Workbook

Sheet Introduction
B3: Key Stage 2 including breakdowns by Pupil Characteristics
L6: IL1: Protect
L7: 2017 version 1.1
A9: This workbook includes Key Stage 2 trend results for the last 3 years split by Pupil Characteristics for the key indicators. Comparisons to Local Authority figures and National Data are included where available. You can use the links below to look at each worksheet or you can click on the tabs at the bottom of the screen. Please note that the worksheets are protected so that they can't be altered, however you can copy information from the worksheets and use paste special values to place it elsewhere if you wish to manipulate the information. The 2017 data shown in this report is provisional data and does not take account of pupil removal requests. Updates since version 1 - New Ofsted Gaps report, Pupil Premium data, Value Added as per the Performance tables checking data and NCER emerging national data for pupil groups. A separate version of this file will be produced which will take account of the pupil removal requests that schools are intending to make in the September checking exercise where these have been sent to the Local Authority. 2017 national data for pupils groups is based on the NCER emerging national data rather than DFE published figures and should be treated with caution. Please note that from 2016 data is not directly comparable to previous years, data for 2015 is included for context. Ipad Users This workbook is compatible with the Official Microsoft Excel App (available from the App store). When you open the file you may get a message saying read only, you will need to choose the duplicate option and save a copy of the file to access the dropdown menus. The dropdown menus will not work in Polaris or in the document viewer in GOOD. If you have any queries please contact the Data Intelligence Unit on 0121 569 8357 or data_intelligenceunit@sandwell.gov.uk.
A11: Sheet Index:
A13: KS2 Summary | B13: A report for each school showing all of the key indicators for all pupils
A14: KS2 Dashboard | B14: A visual report for each school showing the key indicators for all pupils
A15: School Characteristic Report | B15: A report for each school showing a breakdown by pupil characteristics for the chosen indicator
A16: Ofsted Gaps Report | B16: *New A visual report for each school showing Ofsted style gaps by pupil characteristics for the chosen indicator
A17: All Schools Report | B17: A school list report which allows you to select an indicator and 2 pupil groups to compare with gaps

Sheet KS2 Summary
C1: Key Stage 2 School Summary Report
C2: St Margaret's CofE Primary School | S2: =VLOOKUP(C2,Lists!$C$3:$D$99,2,FALSE) -> 3307 | U2: =V2-1 -> 2015 | V2: =W2-1 -> 2016 | W2: =Lists!I2 -> 2017
S3: AllAll
M4: =Introduction!L7 -> 2017 version 1.1
S5: Make sure this matches the table on the lists tab as it is'nt currently linked
A7: Reading, Writing TA & Maths | C7: =$U$2 -> 2015 | D7: =$V$2 -> 2016 | E7: =$W$2 -> 2017 | I7: Reading | K7: =$U$2 -> 2015 | L7: =$V$2 -> 2016 | M7: =$W$2 -> 2017 | S7: Display name | T7: 2016 | U7: 2016 label | V7: 2015 | W7: 2015 label
A8: % Expected+ | B8: =$C$2 -> St Margaret's CofE Primary School | C8: =IF(ISERROR((VLOOKUP(C$7&$S$3&$S$2,OldData,'KS2 Summary'!$V$8,FALSE))),"-",(VLOOKUP(C$7&$S$3&$S$2,OldData,'KS2 Summary'!$V$8,FALSE))) -> 85.71428571 | D8: =IF(ISERROR((VLOOKUP(D$7&$S$3&$S$2,data,'KS2 Summary'!$T$8,FALSE))),"-",(VLOOKUP(D$7&$S$3&$S$2,data,'KS2 Summary'!$T$8,FALSE))) -> 63.33333333 | E8: =IF(ISERROR((VLOOKUP(E$7&$S$3&$S$2,data,'KS2 Summary'!$T$8,FALSE))),"-",(VLOOKUP(E$7&$S$3&$S$2,data,'KS2 Summary'!$T$8,FALSE))) -> 68.96551724 | I8: % Expected+ | J8: =$C$2 -> St Margaret's CofE Primary School | K8: =IF(ISERROR((VLOOKUP(K$7&$S$3&$S$2,OldData,'KS2 Summary'!$V$10,FALSE))),"-",(VLOOKUP(K$7&$S$3&$S$2,OldData,'KS2 Summary'!$V$10,FALSE))) -> 96.42857143 | L8: =IF(ISERROR((VLOOKUP(L$7&$S$3&$S$2,data,'KS2 Summary'!$T$10,FALSE))),"-",(VLOOKUP(L$7&$S$3&$S$2,data,'KS2 Summary'!$T$10,FALSE))) -> 73.33333333 | M8: =IF(ISERROR((VLOOKUP(M$7&$S$3&$S$2,data,'KS2 Summary'!$T$10,FALSE))),"-",(VLOOKUP(M$7&$S$3&$S$2,data,'KS2 Summary'!$T$10,FALSE))) -> 79.31034483 | S8: Reading, Writing & Maths Expected+% | T8: 42 | U8: %RWMExp+ | V8: 32 | W8: RWM4B+
B9: Sandwell | C9: =IF(ISERROR((VLOOKUP(C$7&$S$3&"LA",OldData,'KS2 Summary'!$V$8,FALSE))),"-",(VLOOKUP(C$7&$S$3&"LA",OldData,'KS2 Summary'!$V$8,FALSE))) -> 67.39239239 | D9: =IF(ISERROR((VLOOKUP(D$7&$S$3&"LA",data,'KS2 Summary'!$T$8,FALSE))),"-",(VLOOKUP(D$7&$S$3&"LA",data,'KS2 Summary'!$T$8,FALSE))) -> 50.68661108 | E9: =IF(ISERROR((VLOOKUP(E$7&$S$3&"LA",data,'KS2 Summary'!$T$8,FALSE))),"-",(VLOOKUP(E$7&$S$3&"LA",data,'KS2 Summary'!$T$8,FALSE))) -> 56.5136764 | J9: Sandwell | K9: =IF(ISERROR((VLOOKUP(K$7&$S$3&"LA",OldData,'KS2 Summary'!$V$10,FALSE))),"-",(VLOOKUP(K$7&$S$3&"LA",OldData,'KS2 Summary'!$V$10,FALSE))) -> 77.3023023 | L9: =IF(ISERROR((VLOOKUP(L$7&$S$3&"LA",data,'KS2 Summary'!$T$10,FALSE))),"-",(VLOOKUP(L$7&$S$3&"LA",data,'KS2 Summary'!$T$10,FALSE))) -> 61.01985781 | M9: =IF(ISERROR((VLOOKUP(M$7&$S$3&"LA",data,'KS2 Summary'!$T$10,FALSE))),"-",(VLOOKUP(M$7&$S$3&"LA",data,'KS2 Summary'!$T$10,FALSE))) -> 64.78905888 | S9: Reading, Writing & Maths Exceeding % | T9: 43 | U9: %RWMHigh | V9: 33 | W9: RWM5+
B10: National | C10: =IF(ISERROR((VLOOKUP(C$7&$S$3&"Nat",OldData,'KS2 Summary'!$V$8,FALSE))),"-",(VLOOKUP(C$7&$S$3&"Nat",OldData,'KS2 Summary'!$V$8,FALSE))) -> 69 | D10: =IF(ISERROR((VLOOKUP(D$7&$S$3&"NAT",data,'KS2 Summary'!$T$8,FALSE))),"-",(VLOOKUP(D$7&$S$3&"NAT",data,'KS2 Summary'!$T$8,FALSE))) -> 54 | E10: =IF(ISERROR((VLOOKUP(E$7&$S$3&"NAT",data,'KS2 Summary'!$T$8,FALSE))),"-",(VLOOKUP(E$7&$S$3&"NAT",data,'KS2 Summary'!$T$8,FALSE))) -> 61 | J10: National | K10: =IF(ISERROR((VLOOKUP(K$7&$S$3&"Nat",OldData,'KS2 Summary'!$V$10,FALSE))),"-",(VLOOKUP(K$7&$S$3&"Nat",OldData,'KS2 Summary'!$V$10,FALSE))) -> 80 | L10: =IF(ISERROR((VLOOKUP(L$7&$S$3&"NAT",data,'KS2 Summary'!$T$10,FALSE))),"-",(VLOOKUP(L$7&$S$3&"NAT",data,'KS2 Summary'!$T$10,FALSE))) -> 66 | M10: =IF(ISERROR((VLOOKUP(M$7&$S$3&"NAT",data,'KS2 Summary'!$T$10,FALSE))),"-",(VLOOKUP(M$7&$S$3&"NAT",data,'KS2 Summary'!$T$10,FALSE))) -> 71 | S10: Reading Expected+% | T10: 30 | U10: %ReExp+ | V10: 19 | W10: R4B+
B11: Distance from National | C11: =IF(ISERROR((ROUND(C8,0)-C10)),"-",(ROUND(C8,0)-C10)) -> 17 | D11: =IF(ISERROR((ROUND(D8,0)-D10)),"-",(ROUND(D8,0)-D10)) -> 9 | E11: =IF(ISERROR((ROUND(E8,0)-E10)),"-",(ROUND(E8,0)-E10)) -> 8 | J11: Distance from National | K11: =IF(ISERROR((ROUND(K8,0)-K10)),"-",(ROUND(K8,0)-K10)) -> 16 | L11: =IF(ISERROR((ROUND(L8,0)-L10)),"-",(ROUND(L8,0)-L10)) -> 7 | M11: 8 | S11: Reading Exceeding % | T11: 31 | U11: %ReHigh | V11: 20 | W11: R5+
A12: % Exceeding | B12: =$C$2 -> St Margaret's CofE Primary School | C12: =IF(ISERROR((VLOOKUP(C$7&$S$3&$S$2,OldData,'KS2 Summary'!$V$9,FALSE))),"-",(VLOOKUP(C$7&$S$3&$S$2,OldData,'KS2 Summary'!$V$9,FALSE))) -> 28.57142857 | D12: =IF(ISERROR((VLOOKUP(D$7&$S$3&$S$2,data,'KS2 Summary'!$T$9,FALSE))),"-",(VLOOKUP(D$7&$S$3&$S$2,data,'KS2 Summary'!$T$9,FALSE))) -> 3.333333333 | E12: =IF(ISERROR((VLOOKUP(E$7&$S$3&$S$2,data,'KS2 Summary'!$T$9,FALSE))),"-",(VLOOKUP(E$7&$S$3&$S$2,data,'KS2 Summary'!$T$9,FALSE))) -> 10.34482759 | I12: % Exceeding | J12: =$C$2 -> St Margaret's CofE Primary School | K12: =IF(ISERROR((VLOOKUP(K$7&$S$3&$S$2,OldData,'KS2 Summary'!$V$11,FALSE))),"-",(VLOOKUP(K$7&$S$3&$S$2,OldData,'KS2 Summary'!$V$11,FALSE))) -> 60.71428571 | L12: =IF(ISERROR((VLOOKUP(L$7&$S$3&$S$2,data,'KS2 Summary'!$T$11,FALSE))),"-",(VLOOKUP(L$7&$S$3&$S$2,data,'KS2 Summary'!$T$11,FALSE))) -> 16.66666667 | M12: =IF(ISERROR((VLOOKUP(M$7&$S$3&$S$2,data,'KS2 Summary'!$T$11,FALSE))),"-",(VLOOKUP(M$7&$S$3&$S$2,data,'KS2 Summary'!$T$11,FALSE))) -> 31.03448276 | S12: Reading Average Scaled Score | T12: 32 | U12: ReAvgSS
B13: Sandwell | C13: =IF(ISERROR((VLOOKUP(C$7&$S$3&"LA",OldData,'KS2 Summary'!$V$9,FALSE))),"-",(VLOOKUP(C$7&$S$3&"LA",OldData,'KS2 Summary'!$V$9,FALSE))) -> 20.92092092 | D13: =IF(ISERROR((VLOOKUP(D$7&$S$3&"LA",data,'KS2 Summary'!$T$9,FALSE))),"-",(VLOOKUP(D$7&$S$3&"LA",data,'KS2 Summary'!$T$9,FALSE))) -> 3.997057381 | E13: =IF(ISERROR((VLOOKUP(E$7&$S$3&"LA",data,'KS2 Summary'!$T$9,FALSE))),"-",(VLOOKUP(E$7&$S$3&"LA",data,'KS2 Summary'!$T$9,FALSE))) -> 6.397774687 | J13: Sandwell | K13: =IF(ISERROR((VLOOKUP(K$7&$S$3&"LA",OldData,'KS2 Summary'!$V$11,FALSE))),"-",(VLOOKUP(K$7&$S$3&"LA",OldData,'KS2 Summary'!$V$11,FALSE))) -> 42.21721722 | L13: =IF(ISERROR((VLOOKUP(L$7&$S$3&"LA",data,'KS2 Summary'!$T$11,FALSE))),"-",(VLOOKUP(L$7&$S$3&"LA",data,'KS2 Summary'!$T$11,FALSE))) -> 13.23853886 | M13: =IF(ISERROR((VLOOKUP(M$7&$S$3&"LA",data,'KS2 Summary'!$T$11,FALSE))),"-",(VLOOKUP(M$7&$S$3&"LA",data,'KS2 Summary'!$T$11,FALSE))) -> 17.98794622 | S13: Writing Expected+% | T13: 33 | U13: %WrEXS+ | V13: 22 | W13: W4+
B14: National | C14: =IF(ISERROR((VLOOKUP(C$7&$S$3&"Nat",OldData,'KS2 Summary'!$V$9,FALSE))),"-",(VLOOKUP(C$7&$S$3&"Nat",OldData,'KS2 Summary'!$V$9,FALSE))) -> 24 | D14: =IF(ISERROR((VLOOKUP(D$7&$S$3&"NAT",data,'KS2 Summary'!$T$9,FALSE))),"-",(VLOOKUP(D$7&$S$3&"NAT",data,'KS2 Summary'!$T$9,FALSE))) -> 5 | E14: =IF(ISERROR((VLOOKUP(E$7&$S$3&"NAT",data,'KS2 Summary'!$T$9,FALSE))),"-",(VLOOKUP(E$7&$S$3&"NAT",data,'KS2 Summary'!$T$9,FALSE))) -> 9 | J14: National | K14: =IF(ISERROR((VLOOKUP(K$7&$S$3&"Nat",OldData,'KS2 Summary'!$V$11,FALSE))),"-",(VLOOKUP(K$7&$S$3&"Nat",OldData,'KS2 Summary'!$V$11,FALSE))) -> 48 | L14: =IF(ISERROR((VLOOKUP(L$7&$S$3&"NAT",data,'KS2 Summary'!$T$11,FALSE))),"-",(VLOOKUP(L$7&$S$3&"NAT",data,'KS2 Summary'!$T$11,FALSE))) -> 19 | M14: =IF(ISERROR((VLOOKUP(M$7&$S$3&"NAT",data,'KS2 Summary'!$T$11,FALSE))),"-",(VLOOKUP(M$7&$S$3&"NAT",data,'KS2 Summary'!$T$11,FALSE))) -> 25 | S14: Writing Exceeding % | T14: 34 | U14: %WrGDS | V14: 23 | W14: W5+
B15: Distance from National | C15: =IF(ISERROR((ROUND(C12,0)-C14)),"-",(ROUND(C12,0)-C14)) -> 5 | D15: =IF(ISERROR((ROUND(D12,0)-D14)),"-",(ROUND(D12,0)-D14)) -> -2 | E15: 1 | J15: Distance from National | K15: =IF(ISERROR((ROUND(K12,0)-K14)),"-",(ROUND(K12,0)-K14)) -> 13 | L15: =IF(ISERROR((ROUND(L12,0)-L14)),"-",(ROUND(L12,0)-L14)) -> -2 | M15: 6 | S15: Maths Expected+% | T15: 35 | U15: %MaExp+ | V15: 26 | W15: M4B+
I16: Average Scaled Score | J16: =$C$2 -> St Margaret's CofE Primary School | K16: - | L16: =IF(ISERROR((VLOOKUP(L$7&$S$3&$S$2,data,'KS2 Summary'!$T$12,FALSE))),"-",(VLOOKUP(L$7&$S$3&$S$2,data,'KS2 Summary'!$T$12,FALSE))) -> 102.4666667 | M16: =IF(ISERROR((VLOOKUP(M$7&$S$3&$S$2,data,'KS2 Summary'!$T$12,FALSE))),"-",(VLOOKUP(M$7&$S$3&$S$2,data,'KS2 Summary'!$T$12,FALSE))) -> 106.6206897 | S16: Maths Exceeding % | T16: 36 | U16: %MaHigh | V16: 27 | W16: M5+
J17: Sandwell | K17: - | L17: =IF(ISERROR((VLOOKUP(L$7&$S$3&"LA",data,'KS2 Summary'!$T$12,FALSE))),"-",(VLOOKUP(L$7&$S$3&"LA",data,'KS2 Summary'!$T$12,FALSE))) -> 101.2456229 | M17: =IF(ISERROR((VLOOKUP(M$7&$S$3&"LA",data,'KS2 Summary'!$T$12,FALSE))),"-",(VLOOKUP(M$7&$S$3&"LA",data,'KS2 Summary'!$T$12,FALSE))) -> 102.4969799 | S17: Maths Average Scaled Score | T17: 37 | U17: MaAvgSS
J18: National | K18: - | L18: =IF(ISERROR((VLOOKUP(L$7&$S$3&"NAT",data,'KS2 Summary'!$T$12,FALSE))),"-",(VLOOKUP(L$7&$S$3&"NAT",data,'KS2 Summary'!$T$12,FALSE))) -> 103 | M18: =IF(ISERROR((VLOOKUP(M$7&$S$3&"NAT",data,'KS2 Summary'!$T$12,FALSE))),"-",(VLOOKUP(M$7&$S$3&"NAT",data,'KS2 Summary'!$T$12,FALSE))) -> 104.1 | S18: GPS Expected+% | T18: 38 | U18: %GPSExp+ | V18: 47 | W18: G4B+%
J19: Distance from National | K19: - | L19: =IF(ISERROR((L16-L18)),"-",(L16-L18)) -> -0.5333333333 | M19: =IF(ISERROR((M16-M18)),"-",(M16-M18)) -> 2.520689655 | S19: GPS Exceeding % | T19: 39 | U19: %GPSHigh | V19: 30 | W19: GPS 5+
S20: GPS Average Scaled Score | T20: 40 | U20: GPSAvgSS
I21: Writing TA | K21: =$U$2 -> 2015 | L21: =$V$2 -> 2016 | M21: =$W$2 -> 2017 | S21: Science Expected % | T21: 41 | U21: %SciEXS | V21: 42 | W21: S4+
I22: % Expected+ | J22: =$C$2 -> St Margaret's CofE Primary School | K22: =IF(ISERROR((VLOOKUP(K$7&$S$3&$S$2,OldData,'KS2 Summary'!$V$13,FALSE))),"-",(VLOOKUP(K$7&$S$3&$S$2,OldData,'KS2 Summary'!$V$13,FALSE))) -> 96.42857143 | L22: =IF(ISERROR((VLOOKUP(L$7&$S$3&$S$2,data,'KS2 Summary'!$T$13,FALSE))),"-",(VLOOKUP(L$7&$S$3&$S$2,data,'KS2 Summary'!$T$13,FALSE))) -> 83.33333333 | M22: =IF(ISERROR((VLOOKUP(M$7&$S$3&$S$2,data,'KS2 Summary'!$T$13,FALSE))),"-",(VLOOKUP(M$7&$S$3&$S$2,data,'KS2 Summary'!$T$13,FALSE))) -> 75.86206897 | S22: Reading VA | T22: 5
J23: Sandwell | K23: =IF(ISERROR((VLOOKUP(K$7&$S$3&"LA",OldData,'KS2 Summary'!$V$13,FALSE))),"-",(VLOOKUP(K$7&$S$3&"LA",OldData,'KS2 Summary'!$V$13,FALSE))) -> 85.23523524 | L23: =IF(ISERROR((VLOOKUP(L$7&$S$3&"LA",data,'KS2 Summary'!$T$13,FALSE))),"-",(VLOOKUP(L$7&$S$3&"LA",data,'KS2 Summary'!$T$13,FALSE))) -> 73.44286415 | M23: =IF(ISERROR((VLOOKUP(M$7&$S$3&"LA",data,'KS2 Summary'!$T$13,FALSE))),"-",(VLOOKUP(M$7&$S$3&"LA",data,'KS2 Summary'!$T$13,FALSE))) -> 73.82939268 | S23: Writing VA | T23: 10
J24: National | K24: =IF(ISERROR((VLOOKUP(K$7&$S$3&"Nat",OldData,'KS2 Summary'!$V$13,FALSE))),"-",(VLOOKUP(K$7&$S$3&"Nat",OldData,'KS2 Summary'!$V$13,FALSE))) -> 87 | L24: =IF(ISERROR((VLOOKUP(L$7&$S$3&"NAT",data,'KS2 Summary'!$T$13,FALSE))),"-",(VLOOKUP(L$7&$S$3&"NAT",data,'KS2 Summary'!$T$13,FALSE))) -> 74 | M24: =IF(ISERROR((VLOOKUP(M$7&$S$3&"NAT",data,'KS2 Summary'!$T$13,FALSE))),"-",(VLOOKUP(M$7&$S$3&"NAT",data,'KS2 Summary'!$T$13,FALSE))) -> 76 | S24: Maths VA | T24: 15
J25: Distance from National | K25: =IF(ISERROR((ROUND(K22,0)-K24)),"-",(ROUND(K22,0)-K24)) -> 9 | L25: =IF(ISERROR((ROUND(L22,0)-L24)),"-",(ROUND(L22,0)-L24)) -> 9 | M25: 0
I26: % Exceeding | J26: =$C$2 -> St Margaret's CofE Primary School | K26: =IF(ISERROR((VLOOKUP(K$7&$S$3&$S$2,OldData,'KS2 Summary'!$V$14,FALSE))),"-",(VLOOKUP(K$7&$S$3&$S$2,OldData,'KS2 Summary'!$V$14,FALSE))) -> 39.28571429 | L26: =IF(ISERROR((VLOOKUP(L$7&$S$3&$S$2,data,'KS2 Summary'!$T$14,FALSE))),"-",(VLOOKUP(L$7&$S$3&$S$2,data,'KS2 Summary'!$T$14,FALSE))) -> 13.33333333 | M26: =IF(ISERROR((VLOOKUP(M$7&$S$3&$S$2,data,'KS2 Summary'!$T$14,FALSE))),"-",(VLOOKUP(M$7&$S$3&$S$2,data,'KS2 Summary'!$T$14,FALSE))) -> 17.24137931
J27: Sandwell | K27: =IF(ISERROR((VLOOKUP(K$7&$S$3&"LA",OldData,'KS2 Summary'!$V$14,FALSE))),"-",(VLOOKUP(K$7&$S$3&"LA",OldData,'KS2 Summary'!$V$14,FALSE))) -> 31.98198198 | L27: =IF(ISERROR((VLOOKUP(L$7&$S$3&"LA",data,'KS2 Summary'!$T$14,FALSE))),"-",(VLOOKUP(L$7&$S$3&"LA",data,'KS2 Summary'!$T$14,FALSE))) -> 11.08386464 | M27: =IF(ISERROR((VLOOKUP(M$7&$S$3&"LA",data,'KS2 Summary'!$T$14,FALSE))),"-",(VLOOKUP(M$7&$S$3&"LA",data,'KS2 Summary'!$T$14,FALSE))) -> 14.81223922
J28: National | K28: =IF(ISERROR((VLOOKUP(K$7&$S$3&"Nat",OldData,'KS2 Summary'!$V$14,FALSE))),"-",(VLOOKUP(K$7&$S$3&"Nat",OldData,'KS2 Summary'!$V$14,FALSE))) -> 36 | L28: =IF(ISERROR((VLOOKUP(L$7&$S$3&"NAT",data,'KS2 Summary'!$T$14,FALSE))),"-",(VLOOKUP(L$7&$S$3&"NAT",data,'KS2 Summary'!$T$14,FALSE))) -> 15 | M28: =IF(ISERROR((VLOOKUP(M$7&$S$3&"NAT",data,'KS2 Summary'!$T$14,FALSE))),"-",(VLOOKUP(M$7&$S$3&"NAT",data,'KS2 Summary'!$T$14,FALSE))) -> 18
J29: Distance from National | K29: =IF(ISERROR((ROUND(K26,0)-K28)),"-",(ROUND(K26,0)-K28)) -> 3 | L29: =IF(ISERROR((ROUND(L26,0)-L28)),"-",(ROUND(L26,0)-L28)) -> -2 | M29: -1
I31: Maths | K31: =$U$2 -> 2015 | L31: =$V$2 -> 2016 | M31: =$W$2 -> 2017
I32: % Expected+ | J32: =$C$2 -> St Margaret's CofE Primary School | K32: =IF(ISERROR((VLOOKUP(K$7&$S$3&$S$2,OldData,'KS2 Summary'!$V$15,FALSE))),"-",(VLOOKUP(K$7&$S$3&$S$2,OldData,'KS2 Summary'!$V$15,FALSE))) -> 89.28571429 | L32: =IF(ISERROR((VLOOKUP(L$7&$S$3&$S$2,data,'KS2 Summary'!$T$15,FALSE))),"-",(VLOOKUP(L$7&$S$3&$S$2,data,'KS2 Summary'!$T$15,FALSE))) -> 73.33333333 | M32: =IF(ISERROR((VLOOKUP(M$7&$S$3&$S$2,data,'KS2 Summary'!$T$15,FALSE))),"-",(VLOOKUP(M$7&$S$3&$S$2,data,'KS2 Summary'!$T$15,FALSE))) -> 82.75862069
J33: Sandwell | K33: =IF(ISERROR((VLOOKUP(K$7&$S$3&"LA",OldData,'KS2 Summary'!$V$15,FALSE))),"-",(VLOOKUP(K$7&$S$3&"LA",OldData,'KS2 Summary'!$V$15,FALSE))) -> 79.15415415 | L33: =IF(ISERROR((VLOOKUP(L$7&$S$3&"LA",data,'KS2 Summary'!$T$15,FALSE))),"-",(VLOOKUP(L$7&$S$3&"LA",data,'KS2 Summary'!$T$15,FALSE))) -> 70.40215792 | M33: =IF(ISERROR((VLOOKUP(M$7&$S$3&"LA",data,'KS2 Summary'!$T$15,FALSE))),"-",(VLOOKUP(M$7&$S$3&"LA",data,'KS2 Summary'!$T$15,FALSE))) -> 72.34585072
J34: National | K34: =IF(ISERROR((VLOOKUP(K$7&$S$3&"Nat",OldData,'KS2 Summary'!$V$15,FALSE))),"-",(VLOOKUP(K$7&$S$3&"Nat",OldData,'KS2 Summary'!$V$15,FALSE))) -> 77 | L34: =IF(ISERROR((VLOOKUP(L$7&$S$3&"NAT",data,'KS2 Summary'!$T$15,FALSE))),"-",(VLOOKUP(L$7&$S$3&"NAT",data,'KS2 Summary'!$T$15,FALSE))) -> 70 | M34: =IF(ISERROR((VLOOKUP(M$7&$S$3&"NAT",data,'KS2 Summary'!$T$15,FALSE))),"-",(VLOOKUP(M$7&$S$3&"NAT",data,'KS2 Summary'!$T$15,FALSE))) -> 75
A35: KS1-2 progress Score | C35: =$U$2 -> 2015 | D35: =$V$2 -> 2016 | E35: =$W$2 -> 2017 | J35: Distance from National | K35: =IF(ISERROR((ROUND(K32,0)-K34)),"-",(ROUND(K32,0)-K34)) -> 12 | L35: =IF(ISERROR((ROUND(L32,0)-L34)),"-",(ROUND(L32,0)-L34)) -> 3 | M35: 8 | S35: Progress Sig | T35: =C35 -> 2015 | U35: =D35 -> 2016 | V35: =E35 -> 2017
A36: Reading | B36: =$C$2 -> St Margaret's CofE Primary School | C36: - | D36: =IF(ISERROR((VLOOKUP(D$7&"VA"&$S$2,Progress!$A$4:$R$100,'KS2 Summary'!$T$22,FALSE))),"-",(VLOOKUP(D$7&"VA"&$S$2,Progress!$A$4:$R$100,'KS2 Summary'!$T$22,FALSE))) -> -2.2 | E36: =IF(ISERROR((VLOOKUP(E$7&"VA"&$S$2,Progress!$A$4:$R$200,'KS2 Summary'!$T$22,FALSE))),"-",(VLOOKUP(E$7&"VA"&$S$2,Progress!$A$4:$R$200,'KS2 Summary'!$T$22,FALSE))) -> -0.1175862069 | I36: % Exceeding | J36: =$C$2 -> St Margaret's CofE Primary School | K36: =IF(ISERROR((VLOOKUP(K$7&$S$3&$S$2,OldData,'KS2 Summary'!$V$16,FALSE))),"-",(VLOOKUP(K$7&$S$3&$S$2,OldData,'KS2 Summary'!$V$16,FALSE))) -> 50 | L36: =IF(ISERROR((VLOOKUP(L$7&$S$3&$S$2,data,'KS2 Summary'!$T$16,FALSE))),"-",(VLOOKUP(L$7&$S$3&$S$2,data,'KS2 Summary'!$T$16,FALSE))) -> 20 | M36: =IF(ISERROR((VLOOKUP(M$7&$S$3&$S$2,data,'KS2 Summary'!$T$16,FALSE))),"-",(VLOOKUP(M$7&$S$3&$S$2,data,'KS2 Summary'!$T$16,FALSE))) -> 31.03448276 | S36: Reading | T36: =IF(ISERROR((VLOOKUP(C$7&"VA"&$S$2,Progress!$A$4:$R$100,8,FALSE))),"-",(VLOOKUP(C$7&"VA"&$S$2,Progress!$A$4:$R$100,8,FALSE))) -> - | U36: =IF(ISERROR((VLOOKUP(D$7&"VA"&$S$2,Progress!$A$4:$R$100,8,FALSE))),"-",(VLOOKUP(D$7&"VA"&$S$2,Progress!$A$4:$R$100,8,FALSE))) -> Avg | V36: =IF(ISERROR((VLOOKUP(E$7&"VA"&$S$2,Progress!$A$4:$R$200,8,FALSE))),"-",(VLOOKUP(E$7&"VA"&$S$2,Progress!$A$4:$R$200,8,FALSE))) -> Avg
B37: Sandwell | C37: - | D37: =IF(ISERROR((VLOOKUP(D$7&"VA"&"LA",Progress!$A$4:$R$100,'KS2 Summary'!$T$22,FALSE))),"-",(VLOOKUP(D$7&"VA"&"LA",Progress!$A$4:$R$100,'KS2 Summary'!$T$22,FALSE))) -> 0 | E37: =IF(ISERROR((VLOOKUP(E$7&"VA"&"LA",Progress!$A$4:$R$200,'KS2 Summary'!$T$22,FALSE))),"-",(VLOOKUP(E$7&"VA"&"LA",Progress!$A$4:$R$200,'KS2 Summary'!$T$22,FALSE))) -> -0.05498875843 | J37: Sandwell | K37: =IF(ISERROR((VLOOKUP(K$7&$S$3&"LA",OldData,'KS2 Summary'!$V$16,FALSE))),"-",(VLOOKUP(K$7&$S$3&"LA",OldData,'KS2 Summary'!$V$16,FALSE))) -> 39.58958959 | L37: =IF(ISERROR((VLOOKUP(L$7&$S$3&"LA",data,'KS2 Summary'!$T$16,FALSE))),"-",(VLOOKUP(L$7&$S$3&"LA",data,'KS2 Summary'!$T$16,FALSE))) -> 15.8656204 | M37: =IF(ISERROR((VLOOKUP(M$7&$S$3&"LA",data,'KS2 Summary'!$T$16,FALSE))),"-",(VLOOKUP(M$7&$S$3&"LA",data,'KS2 Summary'!$T$16,FALSE))) -> 18.70653686 | S37: Writing | T37: =IF(ISERROR((VLOOKUP(C$7&"VA"&$S$2,Progress!$A$4:$R$100,13,FALSE))),"-",(VLOOKUP($D$7&"VA"&$S$2,Progress!$A$4:$R$100,13,FALSE))) -> - | U37: =IF(ISERROR((VLOOKUP(D$7&"VA"&$S$2,Progress!$A$4:$R$100,13,FALSE))),"-",(VLOOKUP($D$7&"VA"&$S$2,Progress!$A$4:$R$100,13,FALSE))) -> Avg | V37: =IF(ISERROR((VLOOKUP(E$7&"VA"&$S$2,Progress!$A$4:$R$200,13,FALSE))),"-",(VLOOKUP($E$7&"VA"&$S$2,Progress!$A$4:$R$200,13,FALSE))) -> Sig-
A38: Writing | B38: =$C$2 -> St Margaret's CofE Primary School | C38: - | D38: =IF(ISERROR((VLOOKUP(D$7&"VA"&$S$2,Progress!$A$4:$R$100,'KS2 Summary'!$T$23,FALSE))),"-",(VLOOKUP(D$7&"VA"&$S$2,Progress!$A$4:$R$100,'KS2 Summary'!$T$23,FALSE))) -> -2.1 | E38: =IF(ISERROR((VLOOKUP(E$7&"VA"&$S$2,Progress!$A$4:$R$200,'KS2 Summary'!$T$23,FALSE))),"-",(VLOOKUP(E$7&"VA"&$S$2,Progress!$A$4:$R$200,'KS2 Summary'!$T$23,FALSE))) -> -2.325862069 | J38: National | K38: =IF(ISERROR((VLOOKUP(K$7&$S$3&"Nat",OldData,'KS2 Summary'!$V$16,FALSE))),"-",(VLOOKUP(K$7&$S$3&"Nat",OldData,'KS2 Summary'!$V$16,FALSE))) -> 42 | L38: =IF(ISERROR((VLOOKUP(L$7&$S$3&"NAT",data,'KS2 Summary'!$T$16,FALSE))),"-",(VLOOKUP(L$7&$S$3&"NAT",data,'KS2 Summary'!$T$16,FALSE))) -> 17 | M38: =IF(ISERROR((VLOOKUP(M$7&$S$3&"NAT",data,'KS2 Summary'!$T$16,FALSE))),"-",(VLOOKUP(M$7&$S$3&"NAT",data,'KS2 Summary'!$T$16,FALSE))) -> 23 | S38: maths | T38: =IF(ISERROR((VLOOKUP(C$7&"VA"&$S$2,Progress!$A$4:$R$100,18,FALSE))),"-",(VLOOKUP(C$7&"VA"&$S$2,Progress!$A$4:$R$100,18,FALSE))) -> - | U38: =IF(ISERROR((VLOOKUP(D$7&"VA"&$S$2,Progress!$A$4:$R$100,18,FALSE))),"-",(VLOOKUP(D$7&"VA"&$S$2,Progress!$A$4:$R$100,18,FALSE))) -> Avg | V38: =IF(ISERROR((VLOOKUP(E$7&"VA"&$S$2,Progress!$A$4:$R$200,18,FALSE))),"-",(VLOOKUP(E$7&"VA"&$S$2,Progress!$A$4:$R$200,18,FALSE))) -> Avg
B39: Sandwell | C39: - | D39: =IF(ISERROR((VLOOKUP(D$7&"VA"&"LA",Progress!$A$4:$R$100,'KS2 Summary'!$T$23,FALSE))),"-",(VLOOKUP(D$7&"VA"&"LA",Progress!$A$4:$R$100,'KS2 Summary'!$T$23,FALSE))) -> 0.6 | E39: =IF(ISERROR((VLOOKUP(E$7&"VA"&"LA",Progress!$A$4:$R$200,'KS2 Summary'!$T$23,FALSE))),"-",(VLOOKUP(E$7&"VA"&"LA",Progress!$A$4:$R$200,'KS2 Summary'!$T$23,FALSE))) -> 0.5511996018 | J39: Distance from National | K39: =IF(ISERROR((ROUND(K36,0)-K38)),"-",(ROUND(K36,0)-K38)) -> 8 | L39: =IF(ISERROR((ROUND(L36,0)-L38)),"-",(ROUND(L36,0)-L38)) -> 3 | M39: 8
A40: Maths | B40: =$C$2 -> St Margaret's CofE Primary School | C40: - | D40: =IF(ISERROR((VLOOKUP(D$7&"VA"&$S$2,Progress!$A$4:$R$100,'KS2 Summary'!$T$24,FALSE))),"-",(VLOOKUP(D$7&"VA"&$S$2,Progress!$A$4:$R$100,'KS2 Summary'!$T$24,FALSE))) -> -1.4 | E40: =IF(ISERROR((VLOOKUP(E$7&"VA"&$S$2,Progress!$A$4:$R$200,'KS2 Summary'!$T$24,FALSE))),"-",(VLOOKUP(E$7&"VA"&$S$2,Progress!$A$4:$R$200,'KS2 Summary'!$T$24,FALSE))) -> -1.72137931 | I40: Average Scaled Score | J40: =$C$2 -> St Margaret's CofE Primary School | K40: - | L40: =IF(ISERROR((VLOOKUP(L$7&$S$3&$S$2,data,'KS2 Summary'!$T$17,FALSE))),"-",(VLOOKUP(L$7&$S$3&$S$2,data,'KS2 Summary'!$T$17,FALSE))) -> 103.2666667 | M40: =IF(ISERROR((VLOOKUP(M$7&$S$3&$S$2,data,'KS2 Summary'!$T$17,FALSE))),"-",(VLOOKUP(M$7&$S$3&$S$2,data,'KS2 Summary'!$T$17,FALSE))) -> 104.862069
B41: Sandwell | C41: - | D41: =IF(ISERROR((VLOOKUP(D$7&"VA"&"LA",Progress!$A$4:$R$100,'KS2 Summary'!$T$24,FALSE))),"-",(VLOOKUP(D$7&"VA"&"LA",Progress!$A$4:$R$100,'KS2 Summary'!$T$24,FALSE))) -> 0.9 | E41: =IF(ISERROR((VLOOKUP(E$7&"VA"&"LA",Progress!$A$4:$R$200,'KS2 Summary'!$T$24,FALSE))),"-",(VLOOKUP(E$7&"VA"&"LA",Progress!$A$4:$R$200,'KS2 Summary'!$T$24,FALSE))) -> 0.6914310689 | J41: Sandwell | K41: - | L41: =IF(ISERROR((VLOOKUP(L$7&$S$3&"LA",data,'KS2 Summary'!$T$17,FALSE))),"-",(VLOOKUP(L$7&$S$3&"LA",data,'KS2 Summary'!$T$17,FALSE))) -> 102.8843726 | M41: =IF(ISERROR((VLOOKUP(M$7&$S$3&"LA",data,'KS2 Summary'!$T$17,FALSE))),"-",(VLOOKUP(M$7&$S$3&"LA",data,'KS2 Summary'!$T$17,FALSE))) -> 103.4894282
A42: Sig+ | J42: National | K42: - | L42: =IF(ISERROR((VLOOKUP(L$7&$S$3&"NAT",data,'KS2 Summary'!$T$17,FALSE))),"-",(VLOOKUP(L$7&$S$3&"NAT",data,'KS2 Summary'!$T$17,FALSE))) -> 103 | M42: =IF(ISERROR((VLOOKUP(M$7&$S$3&"NAT",data,'KS2 Summary'!$T$17,FALSE))),"-",(VLOOKUP(M$7&$S$3&"NAT",data,'KS2 Summary'!$T$17,FALSE))) -> 104.2
A43: Sig- | J43: Distance from National | K43: - | L43: =IF(ISERROR((L40-L42)),"-",(L40-L42)) -> 0.2666666667 | M43: =IF(ISERROR((M40-M42)),"-",(M40-M42)) -> 0.6620689655
C45: Key Stage 2 Trends Over Time
C46: =C2 -> St Margaret's CofE Primary School
A50: Grammar, Punct & Spelling | C50: =$U$2 -> 2015 | D50: =$V$2 -> 2016 | E50: =$W$2 -> 2017 | I50: Science | K50: =$U$2 -> 2015 | L50: =$V$2 -> 2016 | M50: =$W$2 -> 2017
A51: % Expected | B51: =$C$2 -> St Margaret's CofE Primary School | C51: =IF(ISERROR((VLOOKUP(C$7&$S$3&$S$2,OldData,'KS2 Summary'!$V$18,FALSE))),"-",(VLOOKUP(C$7&$S$3&$S$2,OldData,'KS2 Summary'!$V$18,FALSE))) -> 96.42857143 | D51: =IF(ISERROR((VLOOKUP(D$7&$S$3&$S$2,data,'KS2 Summary'!$T$18,FALSE))),"-",(VLOOKUP(D$7&$S$3&$S$2,data,'KS2 Summary'!$T$18,FALSE))) -> 76.66666667 | E51: =IF(ISERROR((VLOOKUP(E$7&$S$3&$S$2,data,'KS2 Summary'!$T$18,FALSE))),"-",(VLOOKUP(E$7&$S$3&$S$2,data,'KS2 Summary'!$T$18,FALSE))) -> 86.20689655 | I51: % Expected | J51: =$C$2 -> St Margaret's CofE Primary School | K51: =IF(ISERROR((VLOOKUP(K$7&$S$3&$S$2,OldData,'KS2 Summary'!$V$21,FALSE))),"-",(VLOOKUP(K$7&$S$3&$S$2,OldData,'KS2 Summary'!$V$21,FALSE))) -> 96.42857143 | L51: =IF(ISERROR((VLOOKUP(L$7&$S$3&$S$2,data,'KS2 Summary'!$T$21,FALSE))),"-",(VLOOKUP(L$7&$S$3&$S$2,data,'KS2 Summary'!$T$21,FALSE))) -> 90 | M51: =IF(ISERROR((VLOOKUP(M$7&$S$3&$S$2,data,'KS2 Summary'!$T$21,FALSE))),"-",(VLOOKUP(M$7&$S$3&$S$2,data,'KS2 Summary'!$T$21,FALSE))) -> 93.10344828
B52: Sandwell | C52: =IF(ISERROR((VLOOKUP(C$7&$S$3&"LA",OldData,'KS2 Summary'!$V$18,FALSE))),"-",(VLOOKUP(C$7&$S$3&"LA",OldData,'KS2 Summary'!$V$18,FALSE))) -> 75.12512513 | D52: =IF(ISERROR((VLOOKUP(D$7&$S$3&"LA",data,'KS2 Summary'!$T$18,FALSE))),"-",(VLOOKUP(D$7&$S$3&"LA",data,'KS2 Summary'!$T$18,FALSE))) -> 73.34477685 | E52: =IF(ISERROR((VLOOKUP(E$7&$S$3&"LA",data,'KS2 Summary'!$T$18,FALSE))),"-",(VLOOKUP(E$7&$S$3&"LA",data,'KS2 Summary'!$T$18,FALSE))) -> 75.75336115 | J52: Sandwell | K52: =IF(ISERROR((VLOOKUP(K$7&$S$3&"LA",OldData,'KS2 Summary'!$V$21,FALSE))),"-",(VLOOKUP(K$7&$S$3&"LA",OldData,'KS2 Summary'!$V$21,FALSE))) -> 87.00876095 | L52: =IF(ISERROR((VLOOKUP(L$7&$S$3&"LA",data,'KS2 Summary'!$T$21,FALSE))),"-",(VLOOKUP(L$7&$S$3&"LA",data,'KS2 Summary'!$T$21,FALSE))) -> 77.513487 | M52: =IF(ISERROR((VLOOKUP(M$7&$S$3&"LA",data,'KS2 Summary'!$T$21,FALSE))),"-",(VLOOKUP(M$7&$S$3&"LA",data,'KS2 Summary'!$T$21,FALSE))) -> 77.56142791
B53: National | C53: =IF(ISERROR((VLOOKUP(C$7&$S$3&"Nat",OldData,'KS2 Summary'!$V$18,FALSE))),"-",(VLOOKUP(C$7&$S$3&"Nat",OldData,'KS2 Summary'!$V$18,FALSE))) -> 73 | D53: =IF(ISERROR((VLOOKUP(D$7&$S$3&"NAT",data,'KS2 Summary'!$T$18,FALSE))),"-",(VLOOKUP(D$7&$S$3&"NAT",data,'KS2 Summary'!$T$18,FALSE))) -> 73 | E53: =IF(ISERROR((VLOOKUP(E$7&$S$3&"NAT",data,'KS2 Summary'!$T$18,FALSE))),"-",(VLOOKUP(E$7&$S$3&"NAT",data,'KS2 Summary'!$T$18,FALSE))) -> 77 | J53: National | K53: =IF(ISERROR((VLOOKUP(K$7&$S$3&"Nat",OldData,'KS2 Summary'!$V$21,FALSE))),"-",(VLOOKUP(K$7&$S$3&"Nat",OldData,'KS2 Summary'!$V$21,FALSE))) -> 89 | L53: =IF(ISERROR((VLOOKUP(L$7&$S$3&"NAT",data,'KS2 Summary'!$T$21,FALSE))),"-",(VLOOKUP(L$7&$S$3&"NAT",data,'KS2 Summary'!$T$21,FALSE))) -> 81 | M53: =IF(ISERROR((VLOOKUP(M$7&$S$3&"NAT",data,'KS2 Summary'!$T$21,FALSE))),"-",(VLOOKUP(M$7&$S$3&"NAT",data,'KS2 Summary'!$T$21,FALSE))) -> 81
B54: Distance from National | C54: =IF(ISERROR((ROUND(C51,0)-C53)),"-",(ROUND(C51,0)-C53)) -> 23 | D54: =IF(ISERROR((ROUND(D51,0)-D53)),"-",(ROUND(D51,0)-D53)) -> 4 | E54: 9 | J54: Distance from National | K54: =IF(ISERROR((ROUND(K51,0)-K53)),"-",(ROUND(K51,0)-K53)) -> 7 | L54: =IF(ISERROR((ROUND(L51,0)-L53)),"-",(ROUND(L51,0)-L53)) -> 9 | M54: 12
A55: % Exceeding | B55: =$C$2 -> St Margaret's CofE Primary School | C55: =IF(ISERROR((VLOOKUP(C$7&$S$3&$S$2,OldData,'KS2 Summary'!$V$19,FALSE))),"-",(VLOOKUP(C$7&$S$3&$S$2,OldData,'KS2 Summary'!$V$19,FALSE))) -> 67.85714286 | D55: =IF(ISERROR((VLOOKUP(D$7&$S$3&$S$2,data,'KS2 Summary'!$T$19,FALSE))),"-",(VLOOKUP(D$7&$S$3&$S$2,data,'KS2 Summary'!$T$19,FALSE))) -> 30 | E55: =IF(ISERROR((VLOOKUP(E$7&$S$3&$S$2,data,'KS2 Summary'!$T$19,FALSE))),"-",(VLOOKUP(E$7&$S$3&$S$2,data,'KS2 Summary'!$T$19,FALSE))) -> 37.93103448
B56: Sandwell | C56: =IF(ISERROR((VLOOKUP(C$7&$S$3&"LA",OldData,'KS2 Summary'!$V$19,FALSE))),"-",(VLOOKUP(C$7&$S$3&"LA",OldData,'KS2 Summary'!$V$19,FALSE))) -> 55.70570571 | D56: =IF(ISERROR((VLOOKUP(D$7&$S$3&"LA",data,'KS2 Summary'!$T$19,FALSE))),"-",(VLOOKUP(D$7&$S$3&"LA",data,'KS2 Summary'!$T$19,FALSE))) -> 22.68268759 | E56: =IF(ISERROR((VLOOKUP(E$7&$S$3&"LA",data,'KS2 Summary'!$T$19,FALSE))),"-",(VLOOKUP(E$7&$S$3&"LA",data,'KS2 Summary'!$T$19,FALSE))) -> 30.15762633
B57: National | C57: =IF(ISERROR((VLOOKUP(C$7&$S$3&"Nat",OldData,'KS2 Summary'!$V$19,FALSE))),"-",(VLOOKUP(C$7&$S$3&"Nat",OldData,'KS2 Summary'!$V$19,FALSE))) -> 56 | D57: =IF(ISERROR((VLOOKUP(D$7&$S$3&"NAT",data,'KS2 Summary'!$T$19,FALSE))),"-",(VLOOKUP(D$7&$S$3&"NAT",data,'KS2 Summary'!$T$19,FALSE))) -> 23 | E57: =IF(ISERROR((VLOOKUP(E$7&$S$3&"NAT",data,'KS2 Summary'!$T$19,FALSE))),"-",(VLOOKUP(E$7&$S$3&"NAT",data,'KS2 Summary'!$T$19,FALSE))) -> 31
B58: Distance from National | C58: =IF(ISERROR((ROUND(C55,0)-C57)),"-",(ROUND(C55,0)-C57)) -> 12 | D58: =IF(ISERROR((ROUND(D55,0)-D57)),"-",(ROUND(D55,0)-D57)) -> 7 | E58: 7
A59: Average Scaled Score | B59: =$C$2 -> St Margaret's CofE Primary School | C59: - | D59: =IF(ISERROR((VLOOKUP(D$7&$S$3&$S$2,data,'KS2 Summary'!$T$20,FALSE))),"-",(VLOOKUP(D$7&$S$3&$S$2,data,'KS2 Summary'!$T$20,FALSE))) -> 104.1333333 | E59: =IF(ISERROR((VLOOKUP(E$7&$S$3&$S$2,data,'KS2 Summary'!$T$20,FALSE))),"-",(VLOOKUP(E$7&$S$3&$S$2,data,'KS2 Summary'!$T$20,FALSE))) -> 107.4827586
B60: Sandwell | C60: - | D60: =IF(ISERROR((VLOOKUP(D$7&$S$3&"LA",data,'KS2 Summary'!$T$20,FALSE))),"-",(VLOOKUP(D$7&$S$3&"LA",data,'KS2 Summary'!$T$20,FALSE))) -> 104.0682964 | E60: =IF(ISERROR((VLOOKUP(E$7&$S$3&"LA",data,'KS2 Summary'!$T$20,FALSE))),"-",(VLOOKUP(E$7&$S$3&"LA",data,'KS2 Summary'!$T$20,FALSE))) -> 105.6268012
B61: National | C61: - | D61: =IF(ISERROR((VLOOKUP(D$7&$S$3&"NAT",data,'KS2 Summary'!$T$20,FALSE))),"-",(VLOOKUP(D$7&$S$3&"NAT",data,'KS2 Summary'!$T$20,FALSE))) -> 104 | E61: =IF(ISERROR((VLOOKUP(E$7&$S$3&"NAT",data,'KS2 Summary'!$T$20,FALSE))),"-",(VLOOKUP(E$7&$S$3&"NAT",data,'KS2 Summary'!$T$20,FALSE))) -> 106
B62: Distance from National | C62: =IF(ISERROR((ROUND(C59,0)-C61)),"-",(ROUND(C59,0)-C61)) -> - | D62: =IF(ISERROR((ROUND(D59,0)-D61)),"-",(ROUND(D59,0)-D61)) -> 0 | E62: 1
AJ78: 2015
AJ79: 29.51445087
AJ80: 28.58800301
AJ81: 28.77157
A86: Notes

Sheet Dashboard
E1: Key Stage 2 Dashboard | T1: School | U1: =VLOOKUP(E2,Lists!$C$3:$D$99,2,FALSE) -> 2101 | V1: =X1-2 -> 2015 | W1: =X1-1 -> 2016 | X1: =Lists!I2 -> 2017
E2: Abbey Junior School | T2: Lookup | U2: AllAll
O3: ='KS2 Summary'!M4 -> 2017 version 1.1
A6: KS2 Reading, Writing & Maths - All Pupils
E8: % Expected+ | I8: % Exceeding
E9: =$V$1 -> 2015 | F9: =$W$1 -> 2016 | G9: =$X$1 -> 2017 | I9: =$V$1 -> 2015 | J9: =$W$1 -> 2016 | K9: =$X$1 -> 2017
B10: School | E10: =IF(ISERROR((VLOOKUP(E$9&$U$2&$U$1,OldData,'KS2 Summary'!$V$8,FALSE))),"-",(VLOOKUP(E$9&$U$2&$U$1,OldData,'KS2 Summary'!$V$8,FALSE))) -> 77.01149425 | F10: =IF(ISERROR((VLOOKUP(F$9&$U$2&$U$1,data,'KS2 Summary'!$T$8,FALSE))),"-",(VLOOKUP(F$9&$U$2&$U$1,data,'KS2 Summary'!$T$8,FALSE))) -> 63.63636364 | G10: =IF(ISERROR((VLOOKUP(G$9&$U$2&$U$1,data,'KS2 Summary'!$T$8,FALSE))),"-",(VLOOKUP(G$9&$U$2&$U$1,data,'KS2 Summary'!$T$8,FALSE))) -> 69.31818182 | I10: =IF(ISERROR((VLOOKUP(I$9&$U$2&$U$1,OldData,'KS2 Summary'!$V$9,FALSE))),"-",(VLOOKUP(I$9&$U$2&$U$1,OldData,'KS2 Summary'!$V$9,FALSE))) -> 29.88505747 | J10: =IF(ISERROR((VLOOKUP(J$9&$U$2&$U$1,data,'KS2 Summary'!$T$9,FALSE))),"-",(VLOOKUP(J$9&$U$2&$U$1,data,'KS2 Summary'!$T$9,FALSE))) -> 15.90909091 | K10: =IF(ISERROR((VLOOKUP(K$9&$U$2&$U$1,data,'KS2 Summary'!$T$9,FALSE))),"-",(VLOOKUP(K$9&$U$2&$U$1,data,'KS2 Summary'!$T$9,FALSE))) -> 17.04545455
B11: Sandwell | E11: =IF(ISERROR((VLOOKUP(E$9&$U$2&"LA",OldData,'KS2 Summary'!$V$8,FALSE))),"-",(VLOOKUP(E$9&$U$2&"LA",OldData,'KS2 Summary'!$V$8,FALSE))) -> 67.39239239 | F11: =IF(ISERROR((VLOOKUP(F$9&$U$2&"LA",data,'KS2 Summary'!$T$8,FALSE))),"-",(VLOOKUP(F$9&$U$2&"LA",data,'KS2 Summary'!$T$8,FALSE))) -> 50.68661108 | G11: =IF(ISERROR((VLOOKUP(G$9&$U$2&"LA",data,'KS2 Summary'!$T$8,FALSE))),"-",(VLOOKUP(G$9&$U$2&"LA",data,'KS2 Summary'!$T$8,FALSE))) -> 56.5136764 | I11: =IF(ISERROR((VLOOKUP(I$9&$U$2&"LA",OldData,'KS2 Summary'!$V$9,FALSE))),"-",(VLOOKUP(I$9&$U$2&"LA",OldData,'KS2 Summary'!$V$9,FALSE))) -> 20.92092092 | J11: =IF(ISERROR((VLOOKUP(J$9&$U$2&"LA",data,'KS2 Summary'!$T$8,FALSE))),"-",(VLOOKUP(J$9&$U$2&"LA",data,'KS2 Summary'!$T$9,FALSE))) -> 3.997057381 | K11: =IF(ISERROR((VLOOKUP(K$9&$U$2&"LA",data,'KS2 Summary'!$T$8,FALSE))),"-",(VLOOKUP(K$9&$U$2&"LA",data,'KS2 Summary'!$T$9,FALSE))) -> 6.397774687
B12: National | E12: =IF(ISERROR((VLOOKUP(E$9&$U$2&"Nat",OldData,'KS2 Summary'!$V$8,FALSE))),"-",(VLOOKUP(E$9&$U$2&"Nat",OldData,'KS2 Summary'!$V$8,FALSE))) -> 69 | F12: =IF(ISERROR((VLOOKUP(F$9&$U$2&"NAT",data,'KS2 Summary'!$T$8,FALSE))),"-",(VLOOKUP(F$9&$U$2&"NAT",data,'KS2 Summary'!$T$8,FALSE))) -> 54 | G12: =IF(ISERROR((VLOOKUP(G$9&$U$2&"NAT",data,'KS2 Summary'!$T$8,FALSE))),"-",(VLOOKUP(G$9&$U$2&"NAT",data,'KS2 Summary'!$T$8,FALSE))) -> 61 | I12: =IF(ISERROR((VLOOKUP(I$9&$U$2&"Nat",OldData,'KS2 Summary'!$V$9,FALSE))),"-",(VLOOKUP(I$9&$U$2&"Nat",OldData,'KS2 Summary'!$V$9,FALSE))) -> 24 | J12: =IF(ISERROR((VLOOKUP(J$9&$U$2&"NAT",data,'KS2 Summary'!$T$9,FALSE))),"-",(VLOOKUP(J$9&$U$2&"NAT",data,'KS2 Summary'!$T$9,FALSE))) -> 5 | K12: =IF(ISERROR((VLOOKUP(K$9&$U$2&"NAT",data,'KS2 Summary'!$T$9,FALSE))),"-",(VLOOKUP(K$9&$U$2&"NAT",data,'KS2 Summary'!$T$9,FALSE))) -> 9
B14: A visual report for each school showing the key indicators for all pupils
A33: KS2 Reading - All Pupils
E35: % Expected+ | I35: % Exceeding
E36: =$V$1 -> 2015 | F36: =$W$1 -> 2016 | G36: =$X$1 -> 2017 | I36: =$V$1 -> 2015 | J36: =$W$1 -> 2016 | K36: =$X$1 -> 2017
B37: School | E37: =IF(ISERROR((VLOOKUP(E$9&$U$2&$U$1,OldData,'KS2 Summary'!$V$10,FALSE))),"-",(VLOOKUP(E$9&$U$2&$U$1,OldData,'KS2 Summary'!$V$10,FALSE))) -> 85.05747126 | F37: =IF(ISERROR((VLOOKUP(F$9&$U$2&$U$1,data,'KS2 Summary'!$T$10,FALSE))),"-",(VLOOKUP(F$9&$U$2&$U$1,data,'KS2 Summary'!$T$10,FALSE))) -> 67.04545455 | G37: =IF(ISERROR((VLOOKUP(G$9&$U$2&$U$1,data,'KS2 Summary'!$T$10,FALSE))),"-",(VLOOKUP(G$9&$U$2&$U$1,data,'KS2 Summary'!$T$10,FALSE))) -> 77.27272727 | I37: =IF(ISERROR((VLOOKUP(I$9&$U$2&$U$1,OldData,'KS2 Summary'!$V$11,FALSE))),"-",(VLOOKUP(I$9&$U$2&$U$1,OldData,'KS2 Summary'!$V$11,FALSE))) -> 52.87356322 | J37: =IF(ISERROR((VLOOKUP(J$9&$U$2&$U$1,data,'KS2 Summary'!$T$11,FALSE))),"-",(VLOOKUP(J$9&$U$2&$U$1,data,'KS2 Summary'!$T$11,FALSE))) -> 19.31818182 | K37: =IF(ISERROR((VLOOKUP(K$9&$U$2&$U$1,data,'KS2 Summary'!$T$11,FALSE))),"-",(VLOOKUP(K$9&$U$2&$U$1,data,'KS2 Summary'!$T$11,FALSE))) -> 30.68181818
B38: Sandwell | E38: =IF(ISERROR((VLOOKUP(E$9&$U$2&"LA",OldData,'KS2 Summary'!$V$10,FALSE))),"-",(VLOOKUP(E$9&$U$2&"LA",OldData,'KS2 Summary'!$V$10,FALSE))) -> 77.3023023 | F38: =IF(ISERROR((VLOOKUP(F$9&$U$2&"LA",data,'KS2 Summary'!$T$10,FALSE))),"-",(VLOOKUP(F$9&$U$2&"LA",data,'KS2 Summary'!$T$10,FALSE))) -> 61.01985781 | G38: =IF(ISERROR((VLOOKUP(G$9&$U$2&"LA",data,'KS2 Summary'!$T$10,FALSE))),"-",(VLOOKUP(G$9&$U$2&"LA",data,'KS2 Summary'!$T$10,FALSE))) -> 64.78905888 | I38: =IF(ISERROR((VLOOKUP(I$9&$U$2&"LA",OldData,'KS2 Summary'!$V$11,FALSE))),"-",(VLOOKUP(I$9&$U$2&"LA",OldData,'KS2 Summary'!$V$11,FALSE))) -> 42.21721722 | J38: =IF(ISERROR((VLOOKUP(J$9&$U$2&"LA",data,'KS2 Summary'!$T$8,FALSE))),"-",(VLOOKUP(J$9&$U$2&"LA",data,'KS2 Summary'!$T$11,FALSE))) -> 13.23853886 | K38: =IF(ISERROR((VLOOKUP(K$9&$U$2&"LA",data,'KS2 Summary'!$T$8,FALSE))),"-",(VLOOKUP(K$9&$U$2&"LA",data,'KS2 Summary'!$T$11,FALSE))) -> 17.98794622
B39: National | E39: =IF(ISERROR((VLOOKUP(E$9&$U$2&"Nat",OldData,'KS2 Summary'!$V$10,FALSE))),"-",(VLOOKUP(E$9&$U$2&"Nat",OldData,'KS2 Summary'!$V$10,FALSE))) -> 80 | F39: =IF(ISERROR((VLOOKUP(F$9&$U$2&"NAT",data,'KS2 Summary'!$T$10,FALSE))),"-",(VLOOKUP(F$9&$U$2&"NAT",data,'KS2 Summary'!$T$10,FALSE))) -> 66 | G39: =IF(ISERROR((VLOOKUP(G$9&$U$2&"NAT",data,'KS2 Summary'!$T$10,FALSE))),"-",(VLOOKUP(G$9&$U$2&"NAT",data,'KS2 Summary'!$T$10,FALSE))) -> 71 | I39: =IF(ISERROR((VLOOKUP(I$9&$U$2&"Nat",OldData,'KS2 Summary'!$V$11,FALSE))),"-",(VLOOKUP(I$9&$U$2&"Nat",OldData,'KS2 Summary'!$V$11,FALSE))) -> 48 | J39: =IF(ISERROR((VLOOKUP(J$9&$U$2&"NAT",data,'KS2 Summary'!$T$11,FALSE))),"-",(VLOOKUP(J$9&$U$2&"NAT",data,'KS2 Summary'!$T$11,FALSE))) -> 19 | K39: =IF(ISERROR((VLOOKUP(K$9&$U$2&"NAT",data,'KS2 Summary'!$T$11,FALSE))),"-",(VLOOKUP(K$9&$U$2&"NAT",data,'KS2 Summary'!$T$11,FALSE))) -> 25
A62: KS2 Writing Teacher Assessment - All Pupils
E64: % Expected+ | H64: 2014 | I64: % Exceeding
E65: =$V$1 -> 2015 | F65: =$W$1 -> 2016 | G65: =$X$1 -> 2017 | I65: =$V$1 -> 2015 | J65: =$W$1 -> 2016 | K65: =$X$1 -> 2017
B66: School | E66: =IF(ISERROR((VLOOKUP(E$9&$U$2&$U$1,OldData,'KS2 Summary'!$V$13,FALSE))),"-",(VLOOKUP(E$9&$U$2&$U$1,OldData,'KS2 Summary'!$V$13,FALSE))) -> 83.90804598 | F66: =IF(ISERROR((VLOOKUP(F$9&$U$2&$U$1,data,'KS2 Summary'!$T$13,FALSE))),"-",(VLOOKUP(F$9&$U$2&$U$1,data,'KS2 Summary'!$T$13,FALSE))) -> 81.81818182 | G66: =IF(ISERROR((VLOOKUP(G$9&$U$2&$U$1,data,'KS2 Summary'!$T$13,FALSE))),"-",(VLOOKUP(G$9&$U$2&$U$1,data,'KS2 Summary'!$T$13,FALSE))) -> 86.36363636 | I66: =IF(ISERROR((VLOOKUP(I$9&$U$2&$U$1,OldData,'KS2 Summary'!$V$14,FALSE))),"-",(VLOOKUP(I$9&$U$2&$U$1,OldData,'KS2 Summary'!$V$14,FALSE))) -> 44.82758621 | J66: =IF(ISERROR((VLOOKUP(J$9&$U$2&$U$1,data,'KS2 Summary'!$T$14,FALSE))),"-",(VLOOKUP(J$9&$U$2&$U$1,data,'KS2 Summary'!$T$14,FALSE))) -> 27.27272727 | K66: =IF(ISERROR((VLOOKUP(K$9&$U$2&$U$1,data,'KS2 Summary'!$T$14,FALSE))),"-",(VLOOKUP(K$9&$U$2&$U$1,data,'KS2 Summary'!$T$14,FALSE))) -> 31.81818182
B67: Sandwell | E67: =IF(ISERROR((VLOOKUP(E$9&$U$2&"LA",OldData,'KS2 Summary'!$V$13,FALSE))),"-",(VLOOKUP(E$9&$U$2&"LA",OldData,'KS2 Summary'!$V$13,FALSE))) -> 85.23523524 | F67: =IF(ISERROR((VLOOKUP(F$9&$U$2&"LA",data,'KS2 Summary'!$T$13,FALSE))),"-",(VLOOKUP(F$9&$U$2&"LA",data,'KS2 Summary'!$T$13,FALSE))) -> 73.44286415 | G67: =IF(ISERROR((VLOOKUP(G$9&$U$2&"LA",data,'KS2 Summary'!$T$13,FALSE))),"-",(VLOOKUP(G$9&$U$2&"LA",data,'KS2 Summary'!$T$13,FALSE))) -> 73.82939268 | I67: =IF(ISERROR((VLOOKUP(I$9&$U$2&"LA",OldData,'KS2 Summary'!$V$14,FALSE))),"-",(VLOOKUP(I$9&$U$2&"LA",OldData,'KS2 Summary'!$V$14,FALSE))) -> 31.98198198 | J67: =IF(ISERROR((VLOOKUP(J$9&$U$2&"LA",data,'KS2 Summary'!$T$8,FALSE))),"-",(VLOOKUP(J$9&$U$2&"LA",data,'KS2 Summary'!$T$14,FALSE))) -> 11.08386464 | K67: =IF(ISERROR((VLOOKUP(K$9&$U$2&"LA",data,'KS2 Summary'!$T$8,FALSE))),"-",(VLOOKUP(K$9&$U$2&"LA",data,'KS2 Summary'!$T$14,FALSE))) -> 14.81223922
B68: National | E68: =IF(ISERROR((VLOOKUP(E$9&$U$2&"Nat",OldData,'KS2 Summary'!$V$13,FALSE))),"-",(VLOOKUP(E$9&$U$2&"Nat",OldData,'KS2 Summary'!$V$13,FALSE))) -> 87 | F68: =IF(ISERROR((VLOOKUP(F$9&$U$2&"NAT",data,'KS2 Summary'!$T$13,FALSE))),"-",(VLOOKUP(F$9&$U$2&"NAT",data,'KS2 Summary'!$T$13,FALSE))) -> 74 | G68: =IF(ISERROR((VLOOKUP(G$9&$U$2&"NAT",data,'KS2 Summary'!$T$13,FALSE))),"-",(VLOOKUP(G$9&$U$2&"NAT",data,'KS2 Summary'!$T$13,FALSE))) -> 76 | I68: =IF(ISERROR((VLOOKUP(I$9&$U$2&"Nat",OldData,'KS2 Summary'!$V$14,FALSE))),"-",(VLOOKUP(I$9&$U$2&"Nat",OldData,'KS2 Summary'!$V$14,FALSE))) -> 36 | J68: =IF(ISERROR((VLOOKUP(J$9&$U$2&"NAT",data,'KS2 Summary'!$T$14,FALSE))),"-",(VLOOKUP(J$9&$U$2&"NAT",data,'KS2 Summary'!$T$14,FALSE))) -> 15 | K68: =IF(ISERROR((VLOOKUP(K$9&$U$2&"NAT",data,'KS2 Summary'!$T$14,FALSE))),"-",(VLOOKUP(K$9&$U$2&"NAT",data,'KS2 Summary'!$T$14,FALSE))) -> 18
A89: KS2 Maths - All Pupils
E91: % Expected+ | I91: % Exceeding
E92: =$V$1 -> 2015 | F92: =$W$1 -> 2016 | G92: =$X$1 -> 2017 | I92: =$V$1 -> 2015 | J92: =$W$1 -> 2016 | K92: =$X$1 -> 2017
B93: School | E93: =IF(ISERROR((VLOOKUP(E$9&$U$2&$U$1,OldData,'KS2 Summary'!$V$15,FALSE))),"-",(VLOOKUP(E$9&$U$2&$U$1,OldData,'KS2 Summary'!$V$15,FALSE))) -> 81.6091954 | F93: =IF(ISERROR((VLOOKUP(F$9&$U$2&$U$1,data,'KS2 Summary'!$T$15,FALSE))),"-",(VLOOKUP(F$9&$U$2&$U$1,data,'KS2 Summary'!$T$15,FALSE))) -> 77.27272727 | G93: =IF(ISERROR((VLOOKUP(G$9&$U$2&$U$1,data,'KS2 Summary'!$T$15,FALSE))),"-",(VLOOKUP(G$9&$U$2&$U$1,data,'KS2 Summary'!$T$15,FALSE))) -> 81.81818182 | I93: =IF(ISERROR((VLOOKUP(I$9&$U$2&$U$1,OldData,'KS2 Summary'!$V$16,FALSE))),"-",(VLOOKUP(I$9&$U$2&$U$1,OldData,'KS2 Summary'!$V$16,FALSE))) -> 42.52873563 | J93: =IF(ISERROR((VLOOKUP(J$9&$U$2&$U$1,data,'KS2 Summary'!$T$16,FALSE))),"-",(VLOOKUP(J$9&$U$2&$U$1,data,'KS2 Summary'!$T$16,FALSE))) -> 26.13636364 | K93: =IF(ISERROR((VLOOKUP(K$9&$U$2&$U$1,data,'KS2 Summary'!$T$16,FALSE))),"-",(VLOOKUP(K$9&$U$2&$U$1,data,'KS2 Summary'!$T$16,FALSE))) -> 26.13636364
B94: Sandwell | E94: =IF(ISERROR((VLOOKUP(E$9&$U$2&"LA",OldData,'KS2 Summary'!$V$15,FALSE))),"-",(VLOOKUP(E$9&$U$2&"LA",OldData,'KS2 Summary'!$V$15,FALSE))) -> 79.15415415 | F94: =IF(ISERROR((VLOOKUP(F$9&$U$2&"LA",data,'KS2 Summary'!$T$15,FALSE))),"-",(VLOOKUP(F$9&$U$2&"LA",data,'KS2 Summary'!$T$15,FALSE))) -> 70.40215792 | G94: =IF(ISERROR((VLOOKUP(G$9&$U$2&"LA",data,'KS2 Summary'!$T$15,FALSE))),"-",(VLOOKUP(G$9&$U$2&"LA",data,'KS2 Summary'!$T$15,FALSE))) -> 72.34585072 | I94: =IF(ISERROR((VLOOKUP(I$9&$U$2&"LA",OldData,'KS2 Summary'!$V$16,FALSE))),"-",(VLOOKUP(I$9&$U$2&"LA",OldData,'KS2 Summary'!$V$16,FALSE))) -> 39.58958959 | J94: =IF(ISERROR((VLOOKUP(J$9&$U$2&"LA",data,'KS2 Summary'!$T$8,FALSE))),"-",(VLOOKUP(J$9&$U$2&"LA",data,'KS2 Summary'!$T$16,FALSE))) -> 15.8656204 | K94: =IF(ISERROR((VLOOKUP(K$9&$U$2&"LA",data,'KS2 Summary'!$T$8,FALSE))),"-",(VLOOKUP(K$9&$U$2&"LA",data,'KS2 Summary'!$T$16,FALSE))) -> 18.70653686
B95: National | E95: =IF(ISERROR((VLOOKUP(E$9&$U$2&"Nat",OldData,'KS2 Summary'!$V$15,FALSE))),"-",(VLOOKUP(E$9&$U$2&"Nat",OldData,'KS2 Summary'!$V$15,FALSE))) -> 77 | F95: =IF(ISERROR((VLOOKUP(F$9&$U$2&"NAT",data,'KS2 Summary'!$T$15,FALSE))),"-",(VLOOKUP(F$9&$U$2&"NAT",data,'KS2 Summary'!$T$15,FALSE))) -> 70 | G95: =IF(ISERROR((VLOOKUP(G$9&$U$2&"NAT",data,'KS2 Summary'!$T$15,FALSE))),"-",(VLOOKUP(G$9&$U$2&"NAT",data,'KS2 Summary'!$T$15,FALSE))) -> 75 | I95: =IF(ISERROR((VLOOKUP(I$9&$U$2&"Nat",OldData,'KS2 Summary'!$V$16,FALSE))),"-",(VLOOKUP(I$9&$U$2&"Nat",OldData,'KS2 Summary'!$V$16,FALSE))) -> 42 | J95: =IF(ISERROR((VLOOKUP(J$9&$U$2&"NAT",data,'KS2 Summary'!$T$16,FALSE))),"-",(VLOOKUP(J$9&$U$2&"NAT",data,'KS2 Summary'!$T$16,FALSE))) -> 17 | K95: =IF(ISERROR((VLOOKUP(K$9&$U$2&"NAT",data,'KS2 Summary'!$T$16,FALSE))),"-",(VLOOKUP(K$9&$U$2&"NAT",data,'KS2 Summary'!$T$16,FALSE))) -> 23
A118: KS2 Grammar, Punctuation & Spelling - All Pupils
E120: % Expected+ | H120: 2014 | I120: % Exceeding
E121: =$V$1 -> 2015 | F121: =$W$1 -> 2016 | G121: =$X$1 -> 2017 | I121: =$V$1 -> 2015 | J121: =$W$1 -> 2016 | K121: =$X$1 -> 2017
B122: School | E122: =IF(ISERROR((VLOOKUP(E$9&$U$2&$U$1,OldData,'KS2 Summary'!$V$18,FALSE))),"-",(VLOOKUP(E$9&$U$2&$U$1,OldData,'KS2 Summary'!$V$18,FALSE))) -> 72.4137931 | F122: =IF(ISERROR((VLOOKUP(F$9&$U$2&$U$1,data,'KS2 Summary'!$T$18,FALSE))),"-",(VLOOKUP(F$9&$U$2&$U$1,data,'KS2 Summary'!$T$18,FALSE))) -> 75 | G122: =IF(ISERROR((VLOOKUP(G$9&$U$2&$U$1,data,'KS2 Summary'!$T$18,FALSE))),"-",(VLOOKUP(G$9&$U$2&$U$1,data,'KS2 Summary'!$T$18,FALSE))) -> 80.68181818 | I122: =IF(ISERROR((VLOOKUP(I$9&$U$2&$U$1,OldData,'KS2 Summary'!$V$19,FALSE))),"-",(VLOOKUP(I$9&$U$2&$U$1,OldData,'KS2 Summary'!$V$19,FALSE))) -> 56.32183908 | J122: =IF(ISERROR((VLOOKUP(J$9&$U$2&$U$1,data,'KS2 Summary'!$T$19,FALSE))),"-",(VLOOKUP(J$9&$U$2&$U$1,data,'KS2 Summary'!$T$19,FALSE))) -> 26.13636364 | K122: =IF(ISERROR((VLOOKUP(K$9&$U$2&$U$1,data,'KS2 Summary'!$T$19,FALSE))),"-",(VLOOKUP(K$9&$U$2&$U$1,data,'KS2 Summary'!$T$19,FALSE))) -> 47.72727273
B123: Sandwell | E123: =IF(ISERROR((VLOOKUP(E$9&$U$2&"LA",OldData,'KS2 Summary'!$V$18,FALSE))),"-",(VLOOKUP(E$9&$U$2&"LA",OldData,'KS2 Summary'!$V$18,FALSE))) -> 75.12512513 | F123: =IF(ISERROR((VLOOKUP(F$9&$U$2&"LA",data,'KS2 Summary'!$T$18,FALSE))),"-",(VLOOKUP(F$9&$U$2&"LA",data,'KS2 Summary'!$T$18,FALSE))) -> 73.34477685 | G123: =IF(ISERROR((VLOOKUP(G$9&$U$2&"LA",data,'KS2 Summary'!$T$18,FALSE))),"-",(VLOOKUP(G$9&$U$2&"LA",data,'KS2 Summary'!$T$18,FALSE))) -> 75.75336115 | I123: =IF(ISERROR((VLOOKUP(I$9&$U$2&"LA",OldData,'KS2 Summary'!$V$19,FALSE))),"-",(VLOOKUP(I$9&$U$2&"LA",OldData,'KS2 Summary'!$V$19,FALSE))) -> 55.70570571 | J123: =IF(ISERROR((VLOOKUP(J$9&$U$2&"LA",data,'KS2 Summary'!$T$8,FALSE))),"-",(VLOOKUP(J$9&$U$2&"LA",data,'KS2 Summary'!$T$19,FALSE))) -> 22.68268759 | K123: =IF(ISERROR((VLOOKUP(K$9&$U$2&"LA",data,'KS2 Summary'!$T$8,FALSE))),"-",(VLOOKUP(K$9&$U$2&"LA",data,'KS2 Summary'!$T$19,FALSE))) -> 30.15762633
B124: National | E124: =IF(ISERROR((VLOOKUP(E$9&$U$2&"Nat",OldData,'KS2 Summary'!$V$18,FALSE))),"-",(VLOOKUP(E$9&$U$2&"Nat",OldData,'KS2 Summary'!$V$18,FALSE))) -> 73 | F124: =IF(ISERROR((VLOOKUP(F$9&$U$2&"NAT",data,'KS2 Summary'!$T$18,FALSE))),"-",(VLOOKUP(F$9&$U$2&"NAT",data,'KS2 Summary'!$T$18,FALSE))) -> 73 | G124: =IF(ISERROR((VLOOKUP(G$9&$U$2&"NAT",data,'KS2 Summary'!$T$18,FALSE))),"-",(VLOOKUP(G$9&$U$2&"NAT",data,'KS2 Summary'!$T$18,FALSE))) -> 77 | I124: =IF(ISERROR((VLOOKUP(I$9&$U$2&"Nat",OldData,'KS2 Summary'!$V$19,FALSE))),"-",(VLOOKUP(I$9&$U$2&"Nat",OldData,'KS2 Summary'!$V$19,FALSE))) -> 56 | J124: =IF(ISERROR((VLOOKUP(J$9&$U$2&"NAT",data,'KS2 Summary'!$T$19,FALSE))),"-",(VLOOKUP(J$9&$U$2&"NAT",data,'KS2 Summary'!$T$19,FALSE))) -> 23 | K124: =IF(ISERROR((VLOOKUP(K$9&$U$2&"NAT",data,'KS2 Summary'!$T$19,FALSE))),"-",(VLOOKUP(K$9&$U$2&"NAT",data,'KS2 Summary'!$T$19,FALSE))) -> 31
A145: KS2 Science - All Pupils
E147: % Expected+
E148: =$V$1 -> 2015 | F148: =$W$1 -> 2016 | G148: =$X$1 -> 2017
B149: School | E149: =IF(ISERROR((VLOOKUP(E$9&$U$2&$U$1,OldData,'KS2 Summary'!$V$21,FALSE))),"-",(VLOOKUP(E$9&$U$2&$U$1,OldData,'KS2 Summary'!$V$21,FALSE))) -> 93.10344828 | F149: =IF(ISERROR((VLOOKUP(F$9&$U$2&$U$1,data,'KS2 Summary'!$T$21,FALSE))),"-",(VLOOKUP(F$9&$U$2&$U$1,data,'KS2 Summary'!$T$21,FALSE))) -> 85.22727273 | G149: =IF(ISERROR((VLOOKUP(G$9&$U$2&$U$1,data,'KS2 Summary'!$T$21,FALSE))),"-",(VLOOKUP(G$9&$U$2&$U$1,data,'KS2 Summary'!$T$21,FALSE))) -> 90.90909091
B150: Sandwell | E150: =IF(ISERROR((VLOOKUP(E$9&$U$2&"LA",OldData,'KS2 Summary'!$V$21,FALSE))),"-",(VLOOKUP(E$9&$U$2&"LA",OldData,'KS2 Summary'!$V$21,FALSE))) -> 87.00876095 | F150: =IF(ISERROR((VLOOKUP(F$9&$U$2&"LA",data,'KS2 Summary'!$T$21,FALSE))),"-",(VLOOKUP(F$9&$U$2&"LA",data,'KS2 Summary'!$T$21,FALSE))) -> 77.513487 | G150: =IF(ISERROR((VLOOKUP(G$9&$U$2&"LA",data,'KS2 Summary'!$T$21,FALSE))),"-",(VLOOKUP(G$9&$U$2&"LA",data,'KS2 Summary'!$T$21,FALSE))) -> 77.56142791
B151: National | E151: =IF(ISERROR((VLOOKUP(E$9&$U$2&"Nat",OldData,'KS2 Summary'!$V$21,FALSE))),"-",(VLOOKUP(E$9&$U$2&"Nat",OldData,'KS2 Summary'!$V$21,FALSE))) -> 89 | F151: =IF(ISERROR((VLOOKUP(F$9&$U$2&"NAT",data,'KS2 Summary'!$T$21,FALSE))),"-",(VLOOKUP(F$9&$U$2&"NAT",data,'KS2 Summary'!$T$21,FALSE))) -> 81 | G151: =IF(ISERROR((VLOOKUP(G$9&$U$2&"NAT",data,'KS2 Summary'!$T$21,FALSE))),"-",(VLOOKUP(G$9&$U$2&"NAT",data,'KS2 Summary'!$T$21,FALSE))) -> 81

Sheet School Characteristics
C1: Key Stage 2 by Pupil Characteristics | R1: School | T1: =VLOOKUP(C2,Lists!C3:D99,2,FALSE) -> 2101 | U1: =IF(OR(S2=21,S2=22,S2=23),"Progress","") -> 
C2: Abbey Junior School | R2: Indicator column | S2: 2015 | T2: =VLOOKUP($C$3,Lists!$I$8:$M$21,4,FALSE) -> 32 | U2: 2016+ | V2: =VLOOKUP($C$3,Lists!$I$8:$M$21,2,FALSE) -> 42
C3: % Reading, Writing & Maths Expected+ | R3: =S3-1 -> 2015 | S3: =T3-1 -> 2016 | T3: =Lists!I2 -> 2017
A8: =Introduction!L7 -> 2017 version 1.1 | C8: School Cohort 1 | F8: School % 2 | I8: LA % 2 | L8: National % 2 | R8: LA
C9: =$R$3 -> 2015 | D9: =$S$3 -> 2016 | E9: =$T$3 -> 2017 | F9: =$R$3 -> 2015 | G9: =$S$3 -> 2016 | H9: =$T$3 -> 2017 | I9: =$R$3 -> 2015 | J9: =$S$3 -> 2016 | K9: =$T$3 -> 2017 | L9: =$R$3 -> 2015 | M9: =$S$3 -> 2016 | N9: =$T$3 -> 2017 | O9: 2015 | P9: 2016+ | R9: NAT
A10: All Pupils | C10: =IF(ISERROR((VLOOKUP(C$9&$O10&$T$1,OldData,6,FALSE))),"-",(VLOOKUP(C$9&$O10&$T$1,OldData,6,FALSE))) -> 87 | D10: =IF(ISERROR((VLOOKUP(D$9&$P10&$T$1,data,6,FALSE))),"-",(VLOOKUP(D$9&$P10&$T$1,data,6,FALSE))) -> 88 | E10: =IF(ISERROR((VLOOKUP(E$9&$P10&$T$1,data,6,FALSE))),"-",(VLOOKUP(E$9&$P10&$T$1,data,6,FALSE))) -> 88 | F10: =IF(ISERROR((VLOOKUP(F$9&$O10&$T$1,OldData,'School Characteristics'!$T$2,FALSE))),"-",(VLOOKUP(F$9&$O10&$T$1,OldData,'School Characteristics'!$T$2,FALSE))) -> 77.01149425 | G10: =IF(ISERROR((VLOOKUP(G$9&$P10&$T$1,data,'School Characteristics'!$V$2,FALSE))),"-",(VLOOKUP(G$9&$P10&$T$1,data,'School Characteristics'!$V$2,FALSE))) -> 63.63636364 | H10: =IF(ISERROR((VLOOKUP(H$9&$P10&$T$1,data,'School Characteristics'!$V$2,FALSE))),"-",(VLOOKUP(H$9&$P10&$T$1,data,'School Characteristics'!$V$2,FALSE))) -> 69.31818182 | I10: =IF(ISERROR((VLOOKUP(I$9&$O10&$R$8,OldData,'School Characteristics'!$T$2,FALSE))),"-",(VLOOKUP(I$9&$O10&$R$8,OldData,'School Characteristics'!$T$2,FALSE))) -> 67.39239239 | J10: =IF(ISERROR((VLOOKUP(J$9&$P10&$R$8,data,'School Characteristics'!$V$2,FALSE))),"-",(VLOOKUP(J$9&$P10&$R$8,data,'School Characteristics'!$V$2,FALSE))) -> 50.68661108 | K10: =IF(ISERROR((VLOOKUP(K$9&$P10&$R$8,data,'School Characteristics'!$V$2,FALSE))),"-",(VLOOKUP(K$9&$P10&$R$8,data,'School Characteristics'!$V$2,FALSE))) -> 56.5136764 | L10: =IF(ISERROR((VLOOKUP($L$9&$O10&$R$9,OldData,$T$2,FALSE))),"-",(VLOOKUP($L$9&$O10&$R$9,OldData,$T$2,FALSE))) -> 69 | M10: =IF(ISERROR((VLOOKUP(M$9&$P10&$R$9,data,$V$2,FALSE))),"-",(VLOOKUP(M$9&$P10&$R$9,data,$V$2,FALSE))) -> 54 | N10: =IF(ISERROR((VLOOKUP(N$9&$P10&$R$9,data,$V$2,FALSE))),"-",(VLOOKUP(N$9&$P10&$R$9,data,$V$2,FALSE))) -> 61 | O10: =Lists!J42 -> AllAll | P10: =Lists!K42 -> AllAll
I11: =IF(ISERROR((VLOOKUP(I$9&$O11&$R$8,OldData,'School Characteristics'!$T$2,FALSE))),"-",(VLOOKUP(I$9&$O11&$R$8,OldData,'School Characteristics'!$T$2,FALSE))) -> -
A12: Gender | B12: Boys | C12: =IF(ISERROR((VLOOKUP(C$9&$O12&$T$1,OldData,6,FALSE))),"-",(VLOOKUP(C$9&$O12&$T$1,OldData,6,FALSE))) -> 48 | D12: =IF(ISERROR((VLOOKUP(D$9&$P12&$T$1,data,6,FALSE))),"-",(VLOOKUP(D$9&$P12&$T$1,data,6,FALSE))) -> 37 | E12: =IF(ISERROR((VLOOKUP(E$9&$P12&$T$1,data,6,FALSE))),"-",(VLOOKUP(E$9&$P12&$T$1,data,6,FALSE))) -> 33 | F12: =IF(ISERROR((VLOOKUP(F$9&$O12&$T$1,OldData,'School Characteristics'!$T$2,FALSE))),"-",(VLOOKUP(F$9&$O12&$T$1,OldData,'School Characteristics'!$T$2,FALSE))) -> 72.91666667 | G12: =IF(ISERROR((VLOOKUP(G$9&$P12&$T$1,data,'School Characteristics'!$V$2,FALSE))),"-",(VLOOKUP(G$9&$P12&$T$1,data,'School Characteristics'!$V$2,FALSE))) -> 62.16216216 | H12: =IF(ISERROR((VLOOKUP(H$9&$P12&$T$1,data,'School Characteristics'!$V$2,FALSE))),"-",(VLOOKUP(H$9&$P12&$T$1,data,'School Characteristics'!$V$2,FALSE))) -> 63.63636364 | I12: =IF(ISERROR((VLOOKUP(I$9&$O12&$R$8,OldData,'School Characteristics'!$T$2,FALSE))),"-",(VLOOKUP(I$9&$O12&$R$8,OldData,'School Characteristics'!$T$2,FALSE))) -> 65.32829476 | J12: =IF(ISERROR((VLOOKUP(J$9&$P12&$R$8,data,'School Characteristics'!$V$2,FALSE))),"-",(VLOOKUP(J$9&$P12&$R$8,data,'School Characteristics'!$V$2,FALSE))) -> 47.96358409 | K12: =IF(ISERROR((VLOOKUP(K$9&$P12&$R$8,data,'School Characteristics'!$V$2,FALSE))),"-",(VLOOKUP(K$9&$P12&$R$8,data,'School Characteristics'!$V$2,FALSE))) -> 51.28552097 | L12: =IF(ISERROR((VLOOKUP($L$9&$O12&$R$9,OldData,$T$2,FALSE))),"-",(VLOOKUP($L$9&$O12&$R$9,OldData,$T$2,FALSE))) -> 68 | M12: =IF(ISERROR((VLOOKUP(M$9&$P12&$R$9,data,$V$2,FALSE))),"-",(VLOOKUP(M$9&$P12&$R$9,data,$V$2,FALSE))) -> 50 | N12: =IF(ISERROR((VLOOKUP(N$9&$P12&$R$9,data,$V$2,FALSE))),"-",(VLOOKUP(N$9&$P12&$R$9,data,$V$2,FALSE))) -> 57 | O12: =Lists!J43 -> GenderMale | P12: =Lists!K43 -> GenderMale
B13: Girls | C13: =IF(ISERROR((VLOOKUP(C$9&$O13&$T$1,OldData,6,FALSE))),"-",(VLOOKUP(C$9&$O13&$T$1,OldData,6,FALSE))) -> 39 | D13: =IF(ISERROR((VLOOKUP(D$9&$P13&$T$1,data,6,FALSE))),"-",(VLOOKUP(D$9&$P13&$T$1,data,6,FALSE))) -> 51 | E13: =IF(ISERROR((VLOOKUP(E$9&$P13&$T$1,data,6,FALSE))),"-",(VLOOKUP(E$9&$P13&$T$1,data,6,FALSE))) -> 55 | F13: =IF(ISERROR((VLOOKUP(F$9&$O13&$T$1,OldData,'School Characteristics'!$T$2,FALSE))),"-",(VLOOKUP(F$9&$O13&$T$1,OldData,'School Characteristics'!$T$2,FALSE))) -> 82.05128205 | G13: =IF(ISERROR((VLOOKUP(G$9&$P13&$T$1,data,'School Characteristics'!$V$2,FALSE))),"-",(VLOOKUP(G$9&$P13&$T$1,data,'School Characteristics'!$V$2,FALSE))) -> 64.70588235 | H13: =IF(ISERROR((VLOOKUP(H$9&$P13&$T$1,data,'School Characteristics'!$V$2,FALSE))),"-",(VLOOKUP(H$9&$P13&$T$1,data,'School Characteristics'!$V$2,FALSE))) -> 72.72727273 | I13: =IF(ISERROR((VLOOKUP(I$9&$O13&$R$8,OldData,'School Characteristics'!$T$2,FALSE))),"-",(VLOOKUP(I$9&$O13&$R$8,OldData,'School Characteristics'!$T$2,FALSE))) -> 69.71793507 | J13: =IF(ISERROR((VLOOKUP(J$9&$P13&$R$8,data,'School Characteristics'!$V$2,FALSE))),"-",(VLOOKUP(J$9&$P13&$R$8,data,'School Characteristics'!$V$2,FALSE))) -> 53.5409342 | K13: =IF(ISERROR((VLOOKUP(K$9&$P13&$R$8,data,'School Characteristics'!$V$2,FALSE))),"-",(VLOOKUP(K$9&$P13&$R$8,data,'School Characteristics'!$V$2,FALSE))) -> 62.04101097 | L13: =IF(ISERROR((VLOOKUP($L$9&$O13&$R$9,OldData,$T$2,FALSE))),"-",(VLOOKUP($L$9&$O13&$R$9,OldData,$T$2,FALSE))) -> 71 | M13: =IF(ISERROR((VLOOKUP(M$9&$P13&$R$9,data,$V$2,FALSE))),"-",(VLOOKUP(M$9&$P13&$R$9,data,$V$2,FALSE))) -> 58 | N13: =IF(ISERROR((VLOOKUP(N$9&$P13&$R$9,data,$V$2,FALSE))),"-",(VLOOKUP(N$9&$P13&$R$9,data,$V$2,FALSE))) -> 65 | O13: =Lists!J44 -> GenderFemale | P13: =Lists!K44 -> GenderFemale
B14: Gap (Boys vs. Girls) | C14: =IF(ISERROR((ABS(C13-C12))),"-",(ABS(C13-C12))) -> 9 | D14: =IF(ISERROR((ABS(D13-D12))),"-",(ABS(D13-D12))) -> 14 | E14: =IF(ISERROR((ABS(E13-E12))),"-",(ABS(E13-E12))) -> 22 | F14: =IF(ISERROR((ABS(F13-F12))),"-",(ABS(F13-F12))) -> 9.134615385 | G14: 2.543720191 | H14: =IF(ISERROR((ABS(H13-H12))),"-",(ABS(H13-H12))) -> 9.090909091 | I14: 4.389640315 | J14: =IF(ISERROR((ABS(J13-J12))),"-",(ABS(J13-J12))) -> 5.577350112 | K14: 10.75548999 | L14: 3 | M14: =IF(ISERROR((ABS(M13-M12))),"-",(ABS(M13-M12))) -> 8 | N14: =IF(ISERROR((ABS(N13-N12))),"-",(ABS(N13-N12))) -> 8
A16: Disadvant'd Pupil Premium | B16: Eligible for Pupil Premium | C16: =IF(ISERROR((VLOOKUP(C$9&$O16&$T$1,OldData,6,FALSE))),"-",(VLOOKUP(C$9&$O16&$T$1,OldData,6,FALSE))) -> 17 | D16: =IF(ISERROR((VLOOKUP(D$9&$P16&$T$1,data,6,FALSE))),"-",(VLOOKUP(D$9&$P16&$T$1,data,6,FALSE))) -> 29 | E16: =IF(ISERROR((VLOOKUP(E$9&$P16&$T$1,data,6,FALSE))),"-",(VLOOKUP(E$9&$P16&$T$1,data,6,FALSE))) -> 31 | F16: =IF(ISERROR((VLOOKUP(F$9&$O16&$T$1,OldData,'School Characteristics'!$T$2,FALSE))),"-",(VLOOKUP(F$9&$O16&$T$1,OldData,'School Characteristics'!$T$2,FALSE))) -> 47.05882353 | G16: =IF(ISERROR((VLOOKUP(G$9&$P16&$T$1,data,'School Characteristics'!$V$2,FALSE))),"-",(VLOOKUP(G$9&$P16&$T$1,data,'School Characteristics'!$V$2,FALSE))) -> 51.72413793 | H16: =IF(ISERROR((VLOOKUP(H$9&$P16&$T$1,data,'School Characteristics'!$V$2,FALSE))),"-",(VLOOKUP(H$9&$P16&$T$1,data,'School Characteristics'!$V$2,FALSE))) -> 61.29032258 | I16: =IF(ISERROR((VLOOKUP(I$9&$O16&$R$8,OldData,'School Characteristics'!$T$2,FALSE))),"-",(VLOOKUP(I$9&$O16&$R$8,OldData,'School Characteristics'!$T$2,FALSE))) -> 58.74125874 | J16: =IF(ISERROR((VLOOKUP(J$9&$P16&$R$8,data,'School Characteristics'!$V$2,FALSE))),"-",(VLOOKUP(J$9&$P16&$R$8,data,'School Characteristics'!$V$2,FALSE))) -> 38.8952164 | K16: =IF(ISERROR((VLOOKUP(K$9&$P16&$R$8,data,'School Characteristics'!$V$2,FALSE))),"-",(VLOOKUP(K$9&$P16&$R$8,data,'School Characteristics'!$V$2,FALSE))) -> 48.51706771 | L16: =IF(ISERROR((VLOOKUP($L$9&$O16&$R$9,OldData,$T$2,FALSE))),"-",(VLOOKUP($L$9&$O16&$R$9,OldData,$T$2,FALSE))) -> 56 | M16: =IF(ISERROR((VLOOKUP(M$9&$P16&$R$9,data,$V$2,FALSE))),"-",(VLOOKUP(M$9&$P16&$R$9,data,$V$2,FALSE))) -> 39 | N16: =IF(ISERROR((VLOOKUP(N$9&$P16&$R$9,data,$V$2,FALSE))),"-",(VLOOKUP(N$9&$P16&$R$9,data,$V$2,FALSE))) -> 47 | O16: =Lists!J47 -> PPremiumTrue | P16: =Lists!K47 -> DPP1
B17: All Other pupils3 | C17: =IF(ISERROR((VLOOKUP(C$9&$O17&$T$1,OldData,6,FALSE))),"-",(VLOOKUP(C$9&$O17&$T$1,OldData,6,FALSE))) -> 70 | D17: =IF(ISERROR((VLOOKUP(D$9&$P17&$T$1,data,6,FALSE))),"-",(VLOOKUP(D$9&$P17&$T$1,data,6,FALSE))) -> 59 | E17: =IF(ISERROR((VLOOKUP(E$9&$P17&$T$1,data,6,FALSE))),"-",(VLOOKUP(E$9&$P17&$T$1,data,6,FALSE))) -> 57 | F17: =IF(ISERROR((VLOOKUP(F$9&$O17&$T$1,OldData,'School Characteristics'!$T$2,FALSE))),"-",(VLOOKUP(F$9&$O17&$T$1,OldData,'School Characteristics'!$T$2,FALSE))) -> 84.28571429 | G17: =IF(ISERROR((VLOOKUP(G$9&$P17&$T$1,data,'School Characteristics'!$V$2,FALSE))),"-",(VLOOKUP(G$9&$P17&$T$1,data,'School Characteristics'!$V$2,FALSE))) -> 69.49152542 | H17: =IF(ISERROR((VLOOKUP(H$9&$P17&$T$1,data,'School Characteristics'!$V$2,FALSE))),"-",(VLOOKUP(H$9&$P17&$T$1,data,'School Characteristics'!$V$2,FALSE))) -> 73.68421053 | I17: =IF(ISERROR((VLOOKUP(I$9&$O17&$R$8,OldData,'School Characteristics'!$T$2,FALSE))),"-",(VLOOKUP(I$9&$O17&$R$8,OldData,'School Characteristics'!$T$2,FALSE))) -> 73.90350877 | J17: =IF(ISERROR((VLOOKUP(J$9&$P17&$R$8,data,'School Characteristics'!$V$2,FALSE))),"-",(VLOOKUP(J$9&$P17&$R$8,data,'School Characteristics'!$V$2,FALSE))) -> 59.60378984 | K17: =IF(ISERROR((VLOOKUP(K$9&$P17&$R$8,data,'School Characteristics'!$V$2,FALSE))),"-",(VLOOKUP(K$9&$P17&$R$8,data,'School Characteristics'!$V$2,FALSE))) -> 62.16857934 | L17: =IF(ISERROR((VLOOKUP($L$9&$O17&$R$9,OldData,$T$2,FALSE))),"-",(VLOOKUP($L$9&$O17&$R$9,OldData,$T$2,FALSE))) -> 75 | M17: =IF(ISERROR((VLOOKUP(M$9&$P17&$R$9,data,$V$2,FALSE))),"-",(VLOOKUP(M$9&$P17&$R$9,data,$V$2,FALSE))) -> 61 | N17: =IF(ISERROR((VLOOKUP(N$9&$P17&$R$9,data,$V$2,FALSE))),"-",(VLOOKUP(N$9&$P17&$R$9,data,$V$2,FALSE))) -> 67 | O17: =Lists!J48 -> PPremiumFalse | P17: =Lists!K48 -> DPP0 | Q17: Shown as Other pupils on RAISE onine
B18: Gap (Eligible vs. All Other pupils) | C18: =IF(ISERROR((ABS(C17-C16))),"-",(ABS(C17-C16))) -> 53 | D18: =IF(ISERROR((ABS(D17-D16))),"-",(ABS(D17-D16))) -> 30 | E18: =IF(ISERROR((ABS(E17-E16))),"-",(ABS(E17-E16))) -> 26 | F18: =IF(ISERROR((ABS(F17-F16))),"-",(ABS(F17-F16))) -> 37.22689076 | G18: 17.76738749 | H18: =IF(ISERROR((ABS(H17-H16))),"-",(ABS(H17-H16))) -> 12.39388795 | I18: 15.16225003 | J18: =IF(ISERROR((ABS(J17-J16))),"-",(ABS(J17-J16))) -> 20.70857344 | K18: 13.65151163 | L18: 19 | M18: =IF(ISERROR((ABS(M17-M16))),"-",(ABS(M17-M16))) -> 22 | N18: 20
A20: FSM (Jan Census) | B20: Eligible for FSM | C20: =IF(ISERROR((VLOOKUP(C$9&$O20&$T$1,OldData,6,FALSE))),"-",(VLOOKUP(C$9&$O20&$T$1,OldData,6,FALSE))) -> 11 | D20: =IF(ISERROR((VLOOKUP(D$9&$P20&$T$1,data,6,FALSE))),"-",(VLOOKUP(D$9&$P20&$T$1,data,6,FALSE))) -> 13 | E20: =IF(ISERROR((VLOOKUP(E$9&$P20&$T$1,data,6,FALSE))),"-",(VLOOKUP(E$9&$P20&$T$1,data,6,FALSE))) -> 10 | F20: =IF(ISERROR((VLOOKUP(F$9&$O20&$T$1,OldData,'School Characteristics'!$T$2,FALSE))),"-",(VLOOKUP(F$9&$O20&$T$1,OldData,'School Characteristics'!$T$2,FALSE))) -> 45.45454545 | G20: =IF(ISERROR((VLOOKUP(G$9&$P20&$T$1,data,'School Characteristics'!$V$2,FALSE))),"-",(VLOOKUP(G$9&$P20&$T$1,data,'School Characteristics'!$V$2,FALSE))) -> 53.84615385 | H20: =IF(ISERROR((VLOOKUP(H$9&$P20&$T$1,data,'School Characteristics'!$V$2,FALSE))),"-",(VLOOKUP(H$9&$P20&$T$1,data,'School Characteristics'!$V$2,FALSE))) -> 40 | I20: =IF(ISERROR((VLOOKUP(I$9&$O20&$R$8,OldData,'School Characteristics'!$T$2,FALSE))),"-",(VLOOKUP(I$9&$O20&$R$8,OldData,'School Characteristics'!$T$2,FALSE))) -> 53.31905782 | J20: =IF(ISERROR((VLOOKUP(J$9&$P20&$R$8,data,'School Characteristics'!$V$2,FALSE))),"-",(VLOOKUP(J$9&$P20&$R$8,data,'School Characteristics'!$V$2,FALSE))) -> 35.58282209 | K20: =IF(ISERROR((VLOOKUP(K$9&$P20&$R$8,data,'School Characteristics'!$V$2,FALSE))),"-",(VLOOKUP(K$9&$P20&$R$8,data,'School Characteristics'!$V$2,FALSE))) -> 43.49173554 | L20: =IF(ISERROR((VLOOKUP($L$9&$O20&$R$9,OldData,$T$2,FALSE))),"-",(VLOOKUP($L$9&$O20&$R$9,OldData,$T$2,FALSE))) -> 52 | M20: =IF(ISERROR((VLOOKUP(M$9&$P20&$R$9,data,$V$2,FALSE))),"-",(VLOOKUP(M$9&$P20&$R$9,data,$V$2,FALSE))) -> 36 | N20: =IF(ISERROR((VLOOKUP(N$9&$P20&$R$9,data,$V$2,FALSE))),"-",(VLOOKUP(N$9&$P20&$R$9,data,$V$2,FALSE))) -> 42 | O20: =Lists!J45 -> FSMTrue | P20: =Lists!K45 -> FSM_TT1
B21: All Other Pupils3 | C21: =IF(ISERROR((VLOOKUP(C$9&$O21&$T$1,OldData,6,FALSE))),"-",(VLOOKUP(C$9&$O21&$T$1,OldData,6,FALSE))) -> 76 | D21: =IF(ISERROR((VLOOKUP(D$9&$P21&$T$1,data,6,FALSE))),"-",(VLOOKUP(D$9&$P21&$T$1,data,6,FALSE))) -> 75 | E21: =IF(ISERROR((VLOOKUP(E$9&$P21&$T$1,data,6,FALSE))),"-",(VLOOKUP(E$9&$P21&$T$1,data,6,FALSE))) -> 78 | F21: =IF(ISERROR((VLOOKUP(F$9&$O21&$T$1,OldData,'School Characteristics'!$T$2,FALSE))),"-",(VLOOKUP(F$9&$O21&$T$1,OldData,'School Characteristics'!$T$2,FALSE))) -> 81.57894737 | G21: =IF(ISERROR((VLOOKUP(G$9&$P21&$T$1,data,'School Characteristics'!$V$2,FALSE))),"-",(VLOOKUP(G$9&$P21&$T$1,data,'School Characteristics'!$V$2,FALSE))) -> 65.33333333 | H21: =IF(ISERROR((VLOOKUP(H$9&$P21&$T$1,data,'School Characteristics'!$V$2,FALSE))),"-",(VLOOKUP(H$9&$P21&$T$1,data,'School Characteristics'!$V$2,FALSE))) -> 73.07692308 | I21: =IF(ISERROR((VLOOKUP(I$9&$O21&$R$8,OldData,'School Characteristics'!$T$2,FALSE))),"-",(VLOOKUP(I$9&$O21&$R$8,OldData,'School Characteristics'!$T$2,FALSE))) -> 71.79823125 | J21: =IF(ISERROR((VLOOKUP(J$9&$P21&$R$8,data,'School Characteristics'!$V$2,FALSE))),"-",(VLOOKUP(J$9&$P21&$R$8,data,'School Characteristics'!$V$2,FALSE))) -> 55.4516129 | K21: =IF(ISERROR((VLOOKUP(K$9&$P21&$R$8,data,'School Characteristics'!$V$2,FALSE))),"-",(VLOOKUP(K$9&$P21&$R$8,data,'School Characteristics'!$V$2,FALSE))) -> 60.28093246 | L21: =IF(ISERROR((VLOOKUP($L$9&$O21&$R$9,OldData,$T$2,FALSE))),"-",(VLOOKUP($L$9&$O21&$R$9,OldData,$T$2,FALSE))) -> 72 | M21: =IF(ISERROR((VLOOKUP(M$9&$P21&$R$9,data,$V$2,FALSE))),"-",(VLOOKUP(M$9&$P21&$R$9,data,$V$2,FALSE))) -> 57 | N21: =IF(ISERROR((VLOOKUP(N$9&$P21&$R$9,data,$V$2,FALSE))),"-",(VLOOKUP(N$9&$P21&$R$9,data,$V$2,FALSE))) -> 64 | O21: =Lists!J46 -> FSMFalse | P21: =Lists!K46 -> FSM_TT0 | Q21: Shown as Other pupils on RAISE onine
B22: Gap (Eligible vs. All Other pupils) | C22: =IF(ISERROR((ABS(C21-C20))),"-",(ABS(C21-C20))) -> 65 | D22: =IF(ISERROR((ABS(D21-D20))),"-",(ABS(D21-D20))) -> 62 | E22: =IF(ISERROR((ABS(E21-E20))),"-",(ABS(E21-E20))) -> 68 | F22: =IF(ISERROR((ABS(F21-F20))),"-",(ABS(F21-F20))) -> 36.12440191 | G22: 11.48717949 | H22: =IF(ISERROR((ABS(H21-H20))),"-",(ABS(H21-H20))) -> 33.07692308 | I22: 18.47917343 | J22: =IF(ISERROR((ABS(J21-J20))),"-",(ABS(J21-J20))) -> 19.86879082 | K22: 16.78919692 | L22: 20 | M22: =IF(ISERROR((ABS(M21-M20))),"-",(ABS(M21-M20))) -> 21 | N22: =IF(ISERROR((ABS(N21-N20))),"-",(ABS(N21-N20))) -> 22
A24: SEN | B24: No SEN | C24: =IF(ISERROR((VLOOKUP(C$9&$O24&$T$1,OldData,6,FALSE))),"-",(VLOOKUP(C$9&$O24&$T$1,OldData,6,FALSE))) -> 81 | D24: =IF(ISERROR((VLOOKUP(D$9&$P24&$T$1,data,6,FALSE))),"-",(VLOOKUP(D$9&$P24&$T$1,data,6,FALSE))) -> 83 | E24: =IF(ISERROR((VLOOKUP(E$9&$P24&$T$1,data,6,FALSE))),"-",(VLOOKUP(E$9&$P24&$T$1,data,6,FALSE))) -> 83 | F24: =IF(ISERROR((VLOOKUP(F$9&$O24&$T$1,OldData,'School Characteristics'!$T$2,FALSE))),"-",(VLOOKUP(F$9&$O24&$T$1,OldData,'School Characteristics'!$T$2,FALSE))) -> 81.48148148 | G24: =IF(ISERROR((VLOOKUP(G$9&$P24&$T$1,data,'School Characteristics'!$V$2,FALSE))),"-",(VLOOKUP(G$9&$P24&$T$1,data,'School Characteristics'!$V$2,FALSE))) -> 67.46987952 | H24: =IF(ISERROR((VLOOKUP(H$9&$P24&$T$1,data,'School Characteristics'!$V$2,FALSE))),"-",(VLOOKUP(H$9&$P24&$T$1,data,'School Characteristics'!$V$2,FALSE))) -> 68.6746988 | I24: =IF(ISERROR((VLOOKUP(I$9&$O24&$R$8,OldData,'School Characteristics'!$T$2,FALSE))),"-",(VLOOKUP(I$9&$O24&$R$8,OldData,'School Characteristics'!$T$2,FALSE))) -> 77.10323575 | J24: =IF(ISERROR((VLOOKUP(J$9&$P24&$R$8,data,'School Characteristics'!$V$2,FALSE))),"-",(VLOOKUP(J$9&$P24&$R$8,data,'School Characteristics'!$V$2,FALSE))) -> 58.71833085 | K24: =IF(ISERROR((VLOOKUP(K$9&$P24&$R$8,data,'School Characteristics'!$V$2,FALSE))),"-",(VLOOKUP(K$9&$P24&$R$8,data,'School Characteristics'!$V$2,FALSE))) -> 66.03881279 | L24: =IF(ISERROR((VLOOKUP($L$9&$O24&$R$9,OldData,$T$2,FALSE))),"-",(VLOOKUP($L$9&$O24&$R$9,OldData,$T$2,FALSE))) -> 79 | M24: =IF(ISERROR((VLOOKUP(M$9&$P24&$R$9,data,$V$2,FALSE))),"-",(VLOOKUP(M$9&$P24&$R$9,data,$V$2,FALSE))) -> 62 | N24: =IF(ISERROR((VLOOKUP(N$9&$P24&$R$9,data,$V$2,FALSE))),"-",(VLOOKUP(N$9&$P24&$R$9,data,$V$2,FALSE))) -> 70 | O24: =Lists!J49 -> SENNonSEN | P24: =Lists!K49 -> SENNonSEN
B25: SEN (A,P,S,E,K) | C25: =IF(ISERROR((VLOOKUP(C$9&$O25&$T$1,OldData,6,FALSE))),"-",(VLOOKUP(C$9&$O25&$T$1,OldData,6,FALSE))) -> 6 | D25: =IF(ISERROR((VLOOKUP(D$9&$P25&$T$1,data,6,FALSE))),"-",(VLOOKUP(D$9&$P25&$T$1,data,6,FALSE))) -> 5 | E25: =IF(ISERROR((VLOOKUP(E$9&$P25&$T$1,data,6,FALSE))),"-",(VLOOKUP(E$9&$P25&$T$1,data,6,FALSE))) -> 5 | F25: =IF(ISERROR((VLOOKUP(F$9&$O25&$T$1,OldData,'School Characteristics'!$T$2,FALSE))),"-",(VLOOKUP(F$9&$O25&$T$1,OldData,'School Characteristics'!$T$2,FALSE))) -> 16.66666667 | G25: =IF(ISERROR((VLOOKUP(G$9&$P25&$T$1,data,'School Characteristics'!$V$2,FALSE))),"-",(VLOOKUP(G$9&$P25&$T$1,data,'School Characteristics'!$V$2,FALSE))) -> 0 | H25: =IF(ISERROR((VLOOKUP(H$9&$P25&$T$1,data,'School Characteristics'!$V$2,FALSE))),"-",(VLOOKUP(H$9&$P25&$T$1,data,'School Characteristics'!$V$2,FALSE))) -> 80 | I25: =IF(ISERROR((VLOOKUP(I$9&$O25&$R$8,OldData,'School Characteristics'!$T$2,FALSE))),"-",(VLOOKUP(I$9&$O25&$R$8,OldData,'School Characteristics'!$T$2,FALSE))) -> 25.33692722 | J25: =IF(ISERROR((VLOOKUP(J$9&$P25&$R$8,data,'School Characteristics'!$V$2,FALSE))),"-",(VLOOKUP(J$9&$P25&$R$8,data,'School Characteristics'!$V$2,FALSE))) -> 13.38912134 | K25: =IF(ISERROR((VLOOKUP(K$9&$P25&$R$8,data,'School Characteristics'!$V$2,FALSE))),"-",(VLOOKUP(K$9&$P25&$R$8,data,'School Characteristics'!$V$2,FALSE))) -> 15.4822335 | L25: =IF(ISERROR((VLOOKUP($L$9&$O25&$R$9,OldData,$T$2,FALSE))),"-",(VLOOKUP($L$9&$O25&$R$9,OldData,$T$2,FALSE))) -> 27 | M25: =IF(ISERROR((VLOOKUP(M$9&$P25&$R$9,data,$V$2,FALSE))),"-",(VLOOKUP(M$9&$P25&$R$9,data,$V$2,FALSE))) -> 14 | N25: =IF(ISERROR((VLOOKUP(N$9&$P25&$R$9,data,$V$2,FALSE))),"-",(VLOOKUP(N$9&$P25&$R$9,data,$V$2,FALSE))) -> 18 | O25: =Lists!J50 -> SENSEN | P25: =Lists!K50 -> SENSEN
B26: Gap (No SEN vs. SEN) | C26: =IF(ISERROR((ABS(C24-C25))),"-",(ABS(C24-C25))) -> 75 | D26: =IF(ISERROR((ABS(D24-D25))),"-",(ABS(D24-D25))) -> 78 | E26: =IF(ISERROR((ABS(E24-E25))),"-",(ABS(E24-E25))) -> 78 | F26: =IF(ISERROR((ABS(F24-F25))),"-",(ABS(F24-F25))) -> 64.81481481 | G26: 67.46987952 | H26: 11.3253012 | I26: =IF(ISERROR((ABS(I25-I24))),"-",(ABS(I25-I24))) -> 51.76630852 | J26: =IF(ISERROR((ABS(J25-J24))),"-",(ABS(J25-J24))) -> 45.32920951 | K26: 50.55657928 | L26: 52 | M26: =IF(ISERROR((ABS(M24-M25))),"-",(ABS(M24-M25))) -> 48 | N26: 52
A28: SEN Type | B28: No SEN | C28: =IF(ISERROR((VLOOKUP(C$9&$O28&$T$1,OldData,6,FALSE))),"-",(VLOOKUP(C$9&$O28&$T$1,OldData,6,FALSE))) -> 81 | D28: =IF(ISERROR((VLOOKUP(D$9&$P28&$T$1,data,6,FALSE))),"-",(VLOOKUP(D$9&$P28&$T$1,data,6,FALSE))) -> 83 | E28: 83 | F28: =IF(ISERROR((VLOOKUP(F$9&$O28&$T$1,OldData,'School Characteristics'!$T$2,FALSE))),"-",(VLOOKUP(F$9&$O28&$T$1,OldData,'School Characteristics'!$T$2,FALSE))) -> 81.48148148 | G28: =IF(ISERROR((VLOOKUP(G$9&$P28&$T$1,data,'School Characteristics'!$V$2,FALSE))),"-",(VLOOKUP(G$9&$P28&$T$1,data,'School Characteristics'!$V$2,FALSE))) -> 67.46987952 | H28: =IF(ISERROR((VLOOKUP(H$9&$P28&$T$1,data,'School Characteristics'!$V$2,FALSE))),"-",(VLOOKUP(H$9&$P28&$T$1,data,'School Characteristics'!$V$2,FALSE))) -> 68.6746988 | I28: =IF(ISERROR((VLOOKUP(I$9&$O28&$R$8,OldData,'School Characteristics'!$T$2,FALSE))),"-",(VLOOKUP(I$9&$O28&$R$8,OldData,'School Characteristics'!$T$2,FALSE))) -> 77.10323575 | J28: =IF(ISERROR((VLOOKUP(J$9&$P28&$R$8,data,'School Characteristics'!$V$2,FALSE))),"-",(VLOOKUP(J$9&$P28&$R$8,data,'School Characteristics'!$V$2,FALSE))) -> 58.71833085 | K28: =IF(ISERROR((VLOOKUP(K$9&$P28&$R$8,data,'School Characteristics'!$V$2,FALSE))),"-",(VLOOKUP(K$9&$P28&$R$8,data,'School Characteristics'!$V$2,FALSE))) -> 66.03881279 | L28: =IF(ISERROR((VLOOKUP($L$9&$O28&$R$9,OldData,$T$2,FALSE))),"-",(VLOOKUP($L$9&$O28&$R$9,OldData,$T$2,FALSE))) -> 79 | M28: =IF(ISERROR((VLOOKUP(M$9&$P28&$R$9,data,$V$2,FALSE))),"-",(VLOOKUP(M$9&$P28&$R$9,data,$V$2,FALSE))) -> 62 | N28: 70 | O28: =Lists!J51 -> SENN | P28: =Lists!K51 -> SENN
B29: SEN Support (K,A,P) | C29: 5 | D29: 3 | E29: 3 | F29: =IF(ISERROR((VLOOKUP(F$9&$O29&$T$1,OldData,'School Characteristics'!$T$2,FALSE))),"-",(VLOOKUP(F$9&$O29&$T$1,OldData,'School Characteristics'!$T$2,FALSE))) -> 0 | G29: =IF(ISERROR((VLOOKUP(G$9&$P29&$T$1,data,'School Characteristics'!$V$2,FALSE))),"-",(VLOOKUP(G$9&$P29&$T$1,data,'School Characteristics'!$V$2,FALSE))) -> 0 | H29: =IF(ISERROR((VLOOKUP(H$9&$P29&$T$1,data,'School Characteristics'!$V$2,FALSE))),"-",(VLOOKUP(H$9&$P29&$T$1,data,'School Characteristics'!$V$2,FALSE))) -> 66.66666667 | I29: =IF(ISERROR((VLOOKUP(I$9&$O29&$R$8,OldData,'School Characteristics'!$T$2,FALSE))),"-",(VLOOKUP(I$9&$O29&$R$8,OldData,'School Characteristics'!$T$2,FALSE))) -> 28.08988764 | J29: =IF(ISERROR((VLOOKUP(J$9&$P29&$R$8,data,'School Characteristics'!$V$2,FALSE))),"-",(VLOOKUP(J$9&$P29&$R$8,data,'School Characteristics'!$V$2,FALSE))) -> 14.0549273 | K29: =IF(ISERROR((VLOOKUP(K$9&$P29&$R$8,data,'School Characteristics'!$V$2,FALSE))),"-",(VLOOKUP(K$9&$P29&$R$8,data,'School Characteristics'!$V$2,FALSE))) -> 16.49016641 | L29: =IF(ISERROR((VLOOKUP($L$9&$O29&$R$9,OldData,$T$2,FALSE))),"-",(VLOOKUP($L$9&$O29&$R$9,OldData,$T$2,FALSE))) -> 30 | M29: 16 | N29: 20 | O29: =Lists!J52 -> SENK | P29: =Lists!K52 -> SENK | Q29: Do I need to backtrack for previous years?
B30: Statement/EHC plan | C30: 1 | D30: 2 | E30: 2 | F30: =IF(ISERROR((VLOOKUP(F$9&$O30&$T$1,OldData,'School Characteristics'!$T$2,FALSE))),"-",(VLOOKUP(F$9&$O30&$T$1,OldData,'School Characteristics'!$T$2,FALSE))) -> 100 | G30: =IF(ISERROR((VLOOKUP(G$9&$P30&$T$1,data,'School Characteristics'!$V$2,FALSE))),"-",(VLOOKUP(G$9&$P30&$T$1,data,'School Characteristics'!$V$2,FALSE))) -> 0 | H30: =IF(ISERROR((VLOOKUP(H$9&$P30&$T$1,data,'School Characteristics'!$V$2,FALSE))),"-",(VLOOKUP(H$9&$P30&$T$1,data,'School Characteristics'!$V$2,FALSE))) -> 100 | I30: =IF(ISERROR((VLOOKUP(I$9&$O30&$R$8,OldData,'School Characteristics'!$T$2,FALSE))),"-",(VLOOKUP(I$9&$O30&$R$8,OldData,'School Characteristics'!$T$2,FALSE))) -> 10.92436975 | J30: =IF(ISERROR((VLOOKUP(J$9&$P30&$R$8,data,'School Characteristics'!$V$2,FALSE))),"-",(VLOOKUP(J$9&$P30&$R$8,data,'School Characteristics'!$V$2,FALSE))) -> 9.183673469 | K30: =IF(ISERROR((VLOOKUP(K$9&$P30&$R$8,data,'School Characteristics'!$V$2,FALSE))),"-",(VLOOKUP(K$9&$P30&$R$8,data,'School Characteristics'!$V$2,FALSE))) -> 10.23622047 | L30: =IF(ISERROR((VLOOKUP($L$9&$O30&$R$9,OldData,$T$2,FALSE))),"-",(VLOOKUP($L$9&$O30&$R$9,OldData,$T$2,FALSE))) -> 12 | M30: 7 | N30: 8 | O30: =Lists!J53 -> SENE | P30: =Lists!K53 -> SENE | Q30: Matches RAISEOnline
A32: EAL | B32: English first language | C32: =IF(ISERROR((VLOOKUP(C$9&$O32&$T$1,OldData,6,FALSE))),"-",(VLOOKUP(C$9&$O32&$T$1,OldData,6,FALSE))) -> 69 | D32: =IF(ISERROR((VLOOKUP(D$9&$P32&$T$1,data,6,FALSE))),"-",(VLOOKUP(D$9&$P32&$T$1,data,6,FALSE))) -> 70 | E32: =IF(ISERROR((VLOOKUP(E$9&$P32&$T$1,data,6,FALSE))),"-",(VLOOKUP(E$9&$P32&$T$1,data,6,FALSE))) -> 70 | F32: =IF(ISERROR((VLOOKUP(F$9&$O32&$T$1,OldData,'School Characteristics'!$T$2,FALSE))),"-",(VLOOKUP(F$9&$O32&$T$1,OldData,'School Characteristics'!$T$2,FALSE))) -> 78.26086957 | G32: =IF(ISERROR((VLOOKUP(G$9&$P32&$T$1,data,'School Characteristics'!$V$2,FALSE))),"-",(VLOOKUP(G$9&$P32&$T$1,data,'School Characteristics'!$V$2,FALSE))) -> 64.28571429 | H32: =IF(ISERROR((VLOOKUP(H$9&$P32&$T$1,data,'School Characteristics'!$V$2,FALSE))),"-",(VLOOKUP(H$9&$P32&$T$1,data,'School Characteristics'!$V$2,FALSE))) -> 71.42857143 | I32: =IF(ISERROR((VLOOKUP(I$9&$O32&$R$8,OldData,'School Characteristics'!$T$2,FALSE))),"-",(VLOOKUP(I$9&$O32&$R$8,OldData,'School Characteristics'!$T$2,FALSE))) -> 67.27078891 | J32: =IF(ISERROR((VLOOKUP(J$9&$P32&$R$8,data,'School Characteristics'!$V$2,FALSE))),"-",(VLOOKUP(J$9&$P32&$R$8,data,'School Characteristics'!$V$2,FALSE))) -> 51.00401606 | K32: =IF(ISERROR((VLOOKUP(K$9&$P32&$R$8,data,'School Characteristics'!$V$2,FALSE))),"-",(VLOOKUP(K$9&$P32&$R$8,data,'School Characteristics'!$V$2,FALSE))) -> 57.30769231 | L32: =IF(ISERROR((VLOOKUP($L$9&$O32&$R$9,OldData,$T$2,FALSE))),"-",(VLOOKUP($L$9&$O32&$R$9,OldData,$T$2,FALSE))) -> 70 | M32: =IF(ISERROR((VLOOKUP(M$9&$P32&$R$9,data,$V$2,FALSE))),"-",(VLOOKUP(M$9&$P32&$R$9,data,$V$2,FALSE))) -> 54 | N32: =IF(ISERROR((VLOOKUP(N$9&$P32&$R$9,data,$V$2,FALSE))),"-",(VLOOKUP(N$9&$P32&$R$9,data,$V$2,FALSE))) -> 62 | O32: =Lists!J54 -> EALENG | P32: =Lists!K54 -> EALENG | Q32: matches raisonline except Raise shows unclassified as well
B33: English additional language | C33: =IF(ISERROR((VLOOKUP(C$9&$O33&$T$1,OldData,6,FALSE))),"-",(VLOOKUP(C$9&$O33&$T$1,OldData,6,FALSE))) -> 18 | D33: =IF(ISERROR((VLOOKUP(D$9&$P33&$T$1,data,6,FALSE))),"-",(VLOOKUP(D$9&$P33&$T$1,data,6,FALSE))) -> 18 | E33: =IF(ISERROR((VLOOKUP(E$9&$P33&$T$1,data,6,FALSE))),"-",(VLOOKUP(E$9&$P33&$T$1,data,6,FALSE))) -> 18 | F33: =IF(ISERROR((VLOOKUP(F$9&$O33&$T$1,OldData,'School Characteristics'!$T$2,FALSE))),"-",(VLOOKUP(F$9&$O33&$T$1,OldData,'School Characteristics'!$T$2,FALSE))) -> 72.22222222 | G33: =IF(ISERROR((VLOOKUP(G$9&$P33&$T$1,data,'School Characteristics'!$V$2,FALSE))),"-",(VLOOKUP(G$9&$P33&$T$1,data,'School Characteristics'!$V$2,FALSE))) -> 61.11111111 | H33: =IF(ISERROR((VLOOKUP(H$9&$P33&$T$1,data,'School Characteristics'!$V$2,FALSE))),"-",(VLOOKUP(H$9&$P33&$T$1,data,'School Characteristics'!$V$2,FALSE))) -> 61.11111111 | I33: =IF(ISERROR((VLOOKUP(I$9&$O33&$R$8,OldData,'School Characteristics'!$T$2,FALSE))),"-",(VLOOKUP(I$9&$O33&$R$8,OldData,'School Characteristics'!$T$2,FALSE))) -> 67.91808874 | J33: =IF(ISERROR((VLOOKUP(J$9&$P33&$R$8,data,'School Characteristics'!$V$2,FALSE))),"-",(VLOOKUP(J$9&$P33&$R$8,data,'School Characteristics'!$V$2,FALSE))) -> 50.22522523 | K33: =IF(ISERROR((VLOOKUP(K$9&$P33&$R$8,data,'School Characteristics'!$V$2,FALSE))),"-",(VLOOKUP(K$9&$P33&$R$8,data,'School Characteristics'!$V$2,FALSE))) -> 55.69531796 | L33: =IF(ISERROR((VLOOKUP($L$9&$O33&$R$9,OldData,$T$2,FALSE))),"-",(VLOOKUP($L$9&$O33&$R$9,OldData,$T$2,FALSE))) -> 65 | M33: =IF(ISERROR((VLOOKUP(M$9&$P33&$R$9,data,$V$2,FALSE))),"-",(VLOOKUP(M$9&$P33&$R$9,data,$V$2,FALSE))) -> 50 | N33: =IF(ISERROR((VLOOKUP(N$9&$P33&$R$9,data,$V$2,FALSE))),"-",(VLOOKUP(N$9&$P33&$R$9,data,$V$2,FALSE))) -> 58 | O33: =Lists!J55 -> EALOTH | P33: =Lists!K55 -> EALOTH
B34: Gap (Eng. vs. Other than Eng.) | C34: =IF(ISERROR((ABS(C33-C32))),"-",(ABS(C33-C32))) -> 51 | D34: =IF(ISERROR((ABS(D33-D32))),"-",(ABS(D33-D32))) -> 52 | E34: =IF(ISERROR((ABS(E33-E32))),"-",(ABS(E33-E32))) -> 52 | F34: =IF(ISERROR((ABS(F33-F32))),"-",(ABS(F33-F32))) -> 6.038647343 | G34: 3.174603175 | H34: =IF(ISERROR((ABS(H33-H32))),"-",(ABS(H33-H32))) -> 10.31746032 | I34: 0.6472998246 | J34: =IF(ISERROR((ABS(J33-J32))),"-",(ABS(J33-J32))) -> 0.778790839 | K34: 1.612374348 | L34: 5 | M34: =IF(ISERROR((ABS(M33-M32))),"-",(ABS(M33-M32))) -> 4 | N34: 4
A36: Ethnicity | B36: Any Other Asian Background | C36: =IF(ISERROR((VLOOKUP(C$9&$O36&$T$1,OldData,6,FALSE))),"-",(VLOOKUP(C$9&$O36&$T$1,OldData,6,FALSE))) -> 4 | D36: =IF(ISERROR((VLOOKUP(D$9&$P36&$T$1,data,6,FALSE))),"-",(VLOOKUP(D$9&$P36&$T$1,data,6,FALSE))) -> 3 | E36: 5 | F36: =IF(ISERROR((VLOOKUP(F$9&$O36&$T$1,OldData,'School Characteristics'!$T$2,FALSE))),"-",(VLOOKUP(F$9&$O36&$T$1,OldData,'School Characteristics'!$T$2,FALSE))) -> 50 | G36: =IF(ISERROR((VLOOKUP(G$9&$P36&$T$1,data,'School Characteristics'!$V$2,FALSE))),"-",(VLOOKUP(G$9&$P36&$T$1,data,'School Characteristics'!$V$2,FALSE))) -> 66.66666667 | H36: =IF(ISERROR((VLOOKUP(H$9&$P36&$T$1,data,'School Characteristics'!$V$2,FALSE))),"-",(VLOOKUP(H$9&$P36&$T$1,data,'School Characteristics'!$V$2,FALSE))) -> 80 | I36: =IF(ISERROR((VLOOKUP(I$9&$O36&$R$8,OldData,'School Characteristics'!$T$2,FALSE))),"-",(VLOOKUP(I$9&$O36&$R$8,OldData,'School Characteristics'!$T$2,FALSE))) -> 71.55963303 | J36: =IF(ISERROR((VLOOKUP(J$9&$P36&$R$8,data,'School Characteristics'!$V$2,FALSE))),"-",(VLOOKUP(J$9&$P36&$R$8,data,'School Characteristics'!$V$2,FALSE))) -> 55.55555556 | K36: =IF(ISERROR((VLOOKUP(K$9&$P36&$R$8,data,'School Characteristics'!$V$2,FALSE))),"-",(VLOOKUP(K$9&$P36&$R$8,data,'School Characteristics'!$V$2,FALSE))) -> 59.18367347 | L36: =IF(ISERROR((VLOOKUP($L$9&$O36&$R$9,OldData,$T$2,FALSE))),"-",(VLOOKUP($L$9&$O36&$R$9,OldData,$T$2,FALSE))) -> 75 | M36: =IF(ISERROR((VLOOKUP(M$9&$P36&$R$9,data,$V$2,FALSE))),"-",(VLOOKUP(M$9&$P36&$R$9,data,$V$2,FALSE))) -> 61 | N36: 67.1 | O36: =Lists!J56 -> ETHAOTH | P36: =Lists!K56 -> ETHAOTH
B37: Any Other Black Background | C37: 2 | D37: =IF(ISERROR((VLOOKUP(D$9&$P37&$T$1,data,6,FALSE))),"-",(VLOOKUP(D$9&$P37&$T$1,data,6,FALSE))) -> 1 | E37: 1 | F37: =IF(ISERROR((VLOOKUP(F$9&$O37&$T$1,OldData,'School Characteristics'!$T$2,FALSE))),"-",(VLOOKUP(F$9&$O37&$T$1,OldData,'School Characteristics'!$T$2,FALSE))) -> 0 | G37: =IF(ISERROR((VLOOKUP(G$9&$P37&$T$1,data,'School Characteristics'!$V$2,FALSE))),"-",(VLOOKUP(G$9&$P37&$T$1,data,'School Characteristics'!$V$2,FALSE))) -> 100 | H37: =IF(ISERROR((VLOOKUP(H$9&$P37&$T$1,data,'School Characteristics'!$V$2,FALSE))),"-",(VLOOKUP(H$9&$P37&$T$1,data,'School Characteristics'!$V$2,FALSE))) -> 0 | I37: =IF(ISERROR((VLOOKUP(I$9&$O37&$R$8,OldData,'School Characteristics'!$T$2,FALSE))),"-",(VLOOKUP(I$9&$O37&$R$8,OldData,'School Characteristics'!$T$2,FALSE))) -> 58 | J37: =IF(ISERROR((VLOOKUP(J$9&$P37&$R$8,data,'School Characteristics'!$V$2,FALSE))),"-",(VLOOKUP(J$9&$P37&$R$8,data,'School Characteristics'!$V$2,FALSE))) -> 49.20634921 | K37: =IF(ISERROR((VLOOKUP(K$9&$P37&$R$8,data,'School Characteristics'!$V$2,FALSE))),"-",(VLOOKUP(K$9&$P37&$R$8,data,'School Characteristics'!$V$2,FALSE))) -> 48.05194805 | L37: 63 | M37: 48 | N37: 56.8 | O37: =Lists!J57 -> ETHBOTH | P37: =Lists!K57 -> ETHBOTH
B38: Any Other Ethnic Group | C38: 3 | D38: 2 | E38: - | F38: =IF(ISERROR((VLOOKUP(F$9&$O38&$T$1,OldData,'School Characteristics'!$T$2,FALSE))),"-",(VLOOKUP(F$9&$O38&$T$1,OldData,'School Characteristics'!$T$2,FALSE))) -> 66.66666667 | G38: =IF(ISERROR((VLOOKUP(G$9&$P38&$T$1,data,'School Characteristics'!$V$2,FALSE))),"-",(VLOOKUP(G$9&$P38&$T$1,data,'School Characteristics'!$V$2,FALSE))) -> 50 | H38: =IF(ISERROR((VLOOKUP(H$9&$P38&$T$1,data,'School Characteristics'!$V$2,FALSE))),"-",(VLOOKUP(H$9&$P38&$T$1,data,'School Characteristics'!$V$2,FALSE))) -> - | I38: =IF(ISERROR((VLOOKUP(I$9&$O38&$R$8,OldData,'School Characteristics'!$T$2,FALSE))),"-",(VLOOKUP(I$9&$O38&$R$8,OldData,'School Characteristics'!$T$2,FALSE))) -> 65.75342466 | J38: =IF(ISERROR((VLOOKUP(J$9&$P38&$R$8,data,'School Characteristics'!$V$2,FALSE))),"-",(VLOOKUP(J$9&$P38&$R$8,data,'School Characteristics'!$V$2,FALSE))) -> 37.14285714 | K38: =IF(ISERROR((VLOOKUP(K$9&$P38&$R$8,data,'School Characteristics'!$V$2,FALSE))),"-",(VLOOKUP(K$9&$P38&$R$8,data,'School Characteristics'!$V$2,FALSE))) -> 53.68421053 | L38: 65 | M38: 50 | N38: 56.3 | O38: =Lists!J58 -> ETHOOTH | P38: =Lists!K58 -> ETHOOTH
B39: Any Other Mixed Background | C39: 3 | D39: 3 | E39: 5 | F39: =IF(ISERROR((VLOOKUP(F$9&$O39&$T$1,OldData,'School Characteristics'!$T$2,FALSE))),"-",(VLOOKUP(F$9&$O39&$T$1,OldData,'School Characteristics'!$T$2,FALSE))) -> 100 | G39: =IF(ISERROR((VLOOKUP(G$9&$P39&$T$1,data,'School Characteristics'!$V$2,FALSE))),"-",(VLOOKUP(G$9&$P39&$T$1,data,'School Characteristics'!$V$2,FALSE))) -> 66.66666667 | H39: =IF(ISERROR((VLOOKUP(H$9&$P39&$T$1,data,'School Characteristics'!$V$2,FALSE))),"-",(VLOOKUP(H$9&$P39&$T$1,data,'School Characteristics'!$V$2,FALSE))) -> 80 | I39: =IF(ISERROR((VLOOKUP(I$9&$O39&$R$8,OldData,'School Characteristics'!$T$2,FALSE))),"-",(VLOOKUP(I$9&$O39&$R$8,OldData,'School Characteristics'!$T$2,FALSE))) -> 70.27027027 | J39: =IF(ISERROR((VLOOKUP(J$9&$P39&$R$8,data,'School Characteristics'!$V$2,FALSE))),"-",(VLOOKUP(J$9&$P39&$R$8,data,'School Characteristics'!$V$2,FALSE))) -> 47.6744186 | K39: =IF(ISERROR((VLOOKUP(K$9&$P39&$R$8,data,'School Characteristics'!$V$2,FALSE))),"-",(VLOOKUP(K$9&$P39&$R$8,data,'School Characteristics'!$V$2,FALSE))) -> 59.25925926 | L39: 71 | M39: 57 | N39: 63.7 | O39: =Lists!J59 -> ETHMOTH | P39: =Lists!K59 -> ETHMOTH
B40: Any Other White Background | C40: 3 | D40: 2 | E40: 3 | F40: =IF(ISERROR((VLOOKUP(F$9&$O40&$T$1,OldData,'School Characteristics'!$T$2,FALSE))),"-",(VLOOKUP(F$9&$O40&$T$1,OldData,'School Characteristics'!$T$2,FALSE))) -> 100 | G40: =IF(ISERROR((VLOOKUP(G$9&$P40&$T$1,data,'School Characteristics'!$V$2,FALSE))),"-",(VLOOKUP(G$9&$P40&$T$1,data,'School Characteristics'!$V$2,FALSE))) -> 100 | H40: =IF(ISERROR((VLOOKUP(H$9&$P40&$T$1,data,'School Characteristics'!$V$2,FALSE))),"-",(VLOOKUP(H$9&$P40&$T$1,data,'School Characteristics'!$V$2,FALSE))) -> 100 | I40: =IF(ISERROR((VLOOKUP(I$9&$O40&$R$8,OldData,'School Characteristics'!$T$2,FALSE))),"-",(VLOOKUP(I$9&$O40&$R$8,OldData,'School Characteristics'!$T$2,FALSE))) -> 58.2781457 | J40: =IF(ISERROR((VLOOKUP(J$9&$P40&$R$8,data,'School Characteristics'!$V$2,FALSE))),"-",(VLOOKUP(J$9&$P40&$R$8,data,'School Characteristics'!$V$2,FALSE))) -> 45.34883721 | K40: =IF(ISERROR((VLOOKUP(K$9&$P40&$R$8,data,'School Characteristics'!$V$2,FALSE))),"-",(VLOOKUP(K$9&$P40&$R$8,data,'School Characteristics'!$V$2,FALSE))) -> 43.19526627 | L40: 63 | M40: 48 | N40: 55.1 | O40: =Lists!J60 -> ETHWOTH | P40: =Lists!K60 -> ETHWOTH
B41: Bangladeshi | C41: - | D41: - | E41: - | F41: =IF(ISERROR((VLOOKUP(F$9&$O41&$T$1,OldData,'School Characteristics'!$T$2,FALSE))),"-",(VLOOKUP(F$9&$O41&$T$1,OldData,'School Characteristics'!$T$2,FALSE))) -> - | G41: =IF(ISERROR((VLOOKUP(G$9&$P41&$T$1,data,'School Characteristics'!$V$2,FALSE))),"-",(VLOOKUP(G$9&$P41&$T$1,data,'School Characteristics'!$V$2,FALSE))) -> - | H41: =IF(ISERROR((VLOOKUP(H$9&$P41&$T$1,data,'School Characteristics'!$V$2,FALSE))),"-",(VLOOKUP(H$9&$P41&$T$1,data,'School Characteristics'!$V$2,FALSE))) -> - | I41: =IF(ISERROR((VLOOKUP(I$9&$O41&$R$8,OldData,'School Characteristics'!$T$2,FALSE))),"-",(VLOOKUP(I$9&$O41&$R$8,OldData,'School Characteristics'!$T$2,FALSE))) -> 70.40816327 | J41: =IF(ISERROR((VLOOKUP(J$9&$P41&$R$8,data,'School Characteristics'!$V$2,FALSE))),"-",(VLOOKUP(J$9&$P41&$R$8,data,'School Characteristics'!$V$2,FALSE))) -> 58.33333333 | K41: =IF(ISERROR((VLOOKUP(K$9&$P41&$R$8,data,'School Characteristics'!$V$2,FALSE))),"-",(VLOOKUP(K$9&$P41&$R$8,data,'School Characteristics'!$V$2,FALSE))) -> 64.76683938 | L41: 70 | M41: 56 | N41: 64 | O41: =Lists!J61 -> ETHABAN | P41: =Lists!K61 -> ETHABAN
B42: Black - African | C42: 2 | D42: 4 | E42: 4 | F42: =IF(ISERROR((VLOOKUP(F$9&$O42&$T$1,OldData,'School Characteristics'!$T$2,FALSE))),"-",(VLOOKUP(F$9&$O42&$T$1,OldData,'School Characteristics'!$T$2,FALSE))) -> 100 | G42: =IF(ISERROR((VLOOKUP(G$9&$P42&$T$1,data,'School Characteristics'!$V$2,FALSE))),"-",(VLOOKUP(G$9&$P42&$T$1,data,'School Characteristics'!$V$2,FALSE))) -> 50 | H42: =IF(ISERROR((VLOOKUP(H$9&$P42&$T$1,data,'School Characteristics'!$V$2,FALSE))),"-",(VLOOKUP(H$9&$P42&$T$1,data,'School Characteristics'!$V$2,FALSE))) -> 75 | I42: =IF(ISERROR((VLOOKUP(I$9&$O42&$R$8,OldData,'School Characteristics'!$T$2,FALSE))),"-",(VLOOKUP(I$9&$O42&$R$8,OldData,'School Characteristics'!$T$2,FALSE))) -> 67.69230769 | J42: =IF(ISERROR((VLOOKUP(J$9&$P42&$R$8,data,'School Characteristics'!$V$2,FALSE))),"-",(VLOOKUP(J$9&$P42&$R$8,data,'School Characteristics'!$V$2,FALSE))) -> 43.57142857 | K42: =IF(ISERROR((VLOOKUP(K$9&$P42&$R$8,data,'School Characteristics'!$V$2,FALSE))),"-",(VLOOKUP(K$9&$P42&$R$8,data,'School Characteristics'!$V$2,FALSE))) -> 50.58139535 | L42: 68 | M42: 54 | N42: 61.7 | O42: =Lists!J62 -> ETHBAFR | P42: =Lists!K62 -> ETHBAFR
B43: Black Caribbean | C43: 2 | D43: 3 | E43: 1 | F43: =IF(ISERROR((VLOOKUP(F$9&$O43&$T$1,OldData,'School Characteristics'!$T$2,FALSE))),"-",(VLOOKUP(F$9&$O43&$T$1,OldData,'School Characteristics'!$T$2,FALSE))) -> 50 | G43: =IF(ISERROR((VLOOKUP(G$9&$P43&$T$1,data,'School Characteristics'!$V$2,FALSE))),"-",(VLOOKUP(G$9&$P43&$T$1,data,'School Characteristics'!$V$2,FALSE))) -> 66.66666667 | H43: =IF(ISERROR((VLOOKUP(H$9&$P43&$T$1,data,'School Characteristics'!$V$2,FALSE))),"-",(VLOOKUP(H$9&$P43&$T$1,data,'School Characteristics'!$V$2,FALSE))) -> 0 | I43: =IF(ISERROR((VLOOKUP(I$9&$O43&$R$8,OldData,'School Characteristics'!$T$2,FALSE))),"-",(VLOOKUP(I$9&$O43&$R$8,OldData,'School Characteristics'!$T$2,FALSE))) -> 56.62650602 | J43: =IF(ISERROR((VLOOKUP(J$9&$P43&$R$8,data,'School Characteristics'!$V$2,FALSE))),"-",(VLOOKUP(J$9&$P43&$R$8,data,'School Characteristics'!$V$2,FALSE))) -> 41.57303371 | K43: =IF(ISERROR((VLOOKUP(K$9&$P43&$R$8,data,'School Characteristics'!$V$2,FALSE))),"-",(VLOOKUP(K$9&$P43&$R$8,data,'School Characteristics'!$V$2,FALSE))) -> 48.93617021 | L43: 61 | M43: 43 | N43: 53.2 | O43: =Lists!J63 -> ETHBCRB | P43: =Lists!K63 -> ETHBCRB
B44: Chinese | C44: - | D44: - | E44: - | F44: =IF(ISERROR((VLOOKUP(F$9&$O44&$T$1,OldData,'School Characteristics'!$T$2,FALSE))),"-",(VLOOKUP(F$9&$O44&$T$1,OldData,'School Characteristics'!$T$2,FALSE))) -> - | G44: =IF(ISERROR((VLOOKUP(G$9&$P44&$T$1,data,'School Characteristics'!$V$2,FALSE))),"-",(VLOOKUP(G$9&$P44&$T$1,data,'School Characteristics'!$V$2,FALSE))) -> - | H44: =IF(ISERROR((VLOOKUP(H$9&$P44&$T$1,data,'School Characteristics'!$V$2,FALSE))),"-",(VLOOKUP(H$9&$P44&$T$1,data,'School Characteristics'!$V$2,FALSE))) -> - | I44: =IF(ISERROR((VLOOKUP(I$9&$O44&$R$8,OldData,'School Characteristics'!$T$2,FALSE))),"-",(VLOOKUP(I$9&$O44&$R$8,OldData,'School Characteristics'!$T$2,FALSE))) -> 75 | J44: =IF(ISERROR((VLOOKUP(J$9&$P44&$R$8,data,'School Characteristics'!$V$2,FALSE))),"-",(VLOOKUP(J$9&$P44&$R$8,data,'School Characteristics'!$V$2,FALSE))) -> 83.33333333 | K44: =IF(ISERROR((VLOOKUP(K$9&$P44&$R$8,data,'School Characteristics'!$V$2,FALSE))),"-",(VLOOKUP(K$9&$P44&$R$8,data,'School Characteristics'!$V$2,FALSE))) -> 100 | L44: 82 | M44: 71 | N44: 76.6 | O44: =Lists!J64 -> ETHCHNE | P44: =Lists!K64 -> ETHCHNE
B45: Gypsy / Roma | C45: - | D45: - | E45: - | F45: =IF(ISERROR((VLOOKUP(F$9&$O45&$T$1,OldData,'School Characteristics'!$T$2,FALSE))),"-",(VLOOKUP(F$9&$O45&$T$1,OldData,'School Characteristics'!$T$2,FALSE))) -> - | G45: =IF(ISERROR((VLOOKUP(G$9&$P45&$T$1,data,'School Characteristics'!$V$2,FALSE))),"-",(VLOOKUP(G$9&$P45&$T$1,data,'School Characteristics'!$V$2,FALSE))) -> - | H45: =IF(ISERROR((VLOOKUP(H$9&$P45&$T$1,data,'School Characteristics'!$V$2,FALSE))),"-",(VLOOKUP(H$9&$P45&$T$1,data,'School Characteristics'!$V$2,FALSE))) -> - | I45: =IF(ISERROR((VLOOKUP(I$9&$O45&$R$8,OldData,'School Characteristics'!$T$2,FALSE))),"-",(VLOOKUP(I$9&$O45&$R$8,OldData,'School Characteristics'!$T$2,FALSE))) -> 0 | J45: =IF(ISERROR((VLOOKUP(J$9&$P45&$R$8,data,'School Characteristics'!$V$2,FALSE))),"-",(VLOOKUP(J$9&$P45&$R$8,data,'School Characteristics'!$V$2,FALSE))) -> 0 | K45: =IF(ISERROR((VLOOKUP(K$9&$P45&$R$8,data,'School Characteristics'!$V$2,FALSE))),"-",(VLOOKUP(K$9&$P45&$R$8,data,'School Characteristics'!$V$2,FALSE))) -> 0 | L45: 21 | M45: 12 | N45: 16.4 | O45: =Lists!J65 -> ETHWROM | P45: =Lists!K65 -> ETHWROM
B46: Indian | C46: 7 | D46: 12 | E46: 8 | F46: =IF(ISERROR((VLOOKUP(F$9&$O46&$T$1,OldData,'School Characteristics'!$T$2,FALSE))),"-",(VLOOKUP(F$9&$O46&$T$1,OldData,'School Characteristics'!$T$2,FALSE))) -> 100 | G46: =IF(ISERROR((VLOOKUP(G$9&$P46&$T$1,data,'School Characteristics'!$V$2,FALSE))),"-",(VLOOKUP(G$9&$P46&$T$1,data,'School Characteristics'!$V$2,FALSE))) -> 83.33333333 | H46: =IF(ISERROR((VLOOKUP(H$9&$P46&$T$1,data,'School Characteristics'!$V$2,FALSE))),"-",(VLOOKUP(H$9&$P46&$T$1,data,'School Characteristics'!$V$2,FALSE))) -> 75 | I46: =IF(ISERROR((VLOOKUP(I$9&$O46&$R$8,OldData,'School Characteristics'!$T$2,FALSE))),"-",(VLOOKUP(I$9&$O46&$R$8,OldData,'School Characteristics'!$T$2,FALSE))) -> 77.57437071 | J46: =IF(ISERROR((VLOOKUP(J$9&$P46&$R$8,data,'School Characteristics'!$V$2,FALSE))),"-",(VLOOKUP(J$9&$P46&$R$8,data,'School Characteristics'!$V$2,FALSE))) -> 63.4194831 | K46: =IF(ISERROR((VLOOKUP(K$9&$P46&$R$8,data,'School Characteristics'!$V$2,FALSE))),"-",(VLOOKUP(K$9&$P46&$R$8,data,'School Characteristics'!$V$2,FALSE))) -> 64.92805755 | L46: 79 | M46: 64 | N46: 72 | O46: =Lists!J66 -> ETHAIND | P46: =Lists!K66 -> ETHAIND
B47: Information Not Yet Obtained | C47: - | D47: - | E47: - | F47: =IF(ISERROR((VLOOKUP(F$9&$O47&$T$1,OldData,'School Characteristics'!$T$2,FALSE))),"-",(VLOOKUP(F$9&$O47&$T$1,OldData,'School Characteristics'!$T$2,FALSE))) -> - | G47: =IF(ISERROR((VLOOKUP(G$9&$P47&$T$1,data,'School Characteristics'!$V$2,FALSE))),"-",(VLOOKUP(G$9&$P47&$T$1,data,'School Characteristics'!$V$2,FALSE))) -> - | H47: =IF(ISERROR((VLOOKUP(H$9&$P47&$T$1,data,'School Characteristics'!$V$2,FALSE))),"-",(VLOOKUP(H$9&$P47&$T$1,data,'School Characteristics'!$V$2,FALSE))) -> - | I47: =IF(ISERROR((VLOOKUP(I$9&$O47&$R$8,OldData,'School Characteristics'!$T$2,FALSE))),"-",(VLOOKUP(I$9&$O47&$R$8,OldData,'School Characteristics'!$T$2,FALSE))) -> 80 | J47: =IF(ISERROR((VLOOKUP(J$9&$P47&$R$8,data,'School Characteristics'!$V$2,FALSE))),"-",(VLOOKUP(J$9&$P47&$R$8,data,'School Characteristics'!$V$2,FALSE))) -> 18.18181818 | K47: =IF(ISERROR((VLOOKUP(K$9&$P47&$R$8,data,'School Characteristics'!$V$2,FALSE))),"-",(VLOOKUP(K$9&$P47&$R$8,data,'School Characteristics'!$V$2,FALSE))) -> 16.66666667 | M47: 29 | N47: 61.4 | O47: =Lists!J67 -> ETHNOBT | P47: =Lists!K67 -> ETHNOBT
B48: Pakistani | C48: 7 | D48: 6 | E48: 6 | F48: =IF(ISERROR((VLOOKUP(F$9&$O48&$T$1,OldData,'School Characteristics'!$T$2,FALSE))),"-",(VLOOKUP(F$9&$O48&$T$1,OldData,'School Characteristics'!$T$2,FALSE))) -> 57.14285714 | G48: =IF(ISERROR((VLOOKUP(G$9&$P48&$T$1,data,'School Characteristics'!$V$2,FALSE))),"-",(VLOOKUP(G$9&$P48&$T$1,data,'School Characteristics'!$V$2,FALSE))) -> 33.33333333 | H48: =IF(ISERROR((VLOOKUP(H$9&$P48&$T$1,data,'School Characteristics'!$V$2,FALSE))),"-",(VLOOKUP(H$9&$P48&$T$1,data,'School Characteristics'!$V$2,FALSE))) -> 66.66666667 | I48: =IF(ISERROR((VLOOKUP(I$9&$O48&$R$8,OldData,'School Characteristics'!$T$2,FALSE))),"-",(VLOOKUP(I$9&$O48&$R$8,OldData,'School Characteristics'!$T$2,FALSE))) -> 65.42553191 | J48: =IF(ISERROR((VLOOKUP(J$9&$P48&$R$8,data,'School Characteristics'!$V$2,FALSE))),"-",(VLOOKUP(J$9&$P48&$R$8,data,'School Characteristics'!$V$2,FALSE))) -> 45.43325527 | K48: =IF(ISERROR((VLOOKUP(K$9&$P48&$R$8,data,'School Characteristics'!$V$2,FALSE))),"-",(VLOOKUP(K$9&$P48&$R$8,data,'School Characteristics'!$V$2,FALSE))) -> 59.19395466 | L48: 63 | M48: 47 | N48: 55.3 | O48: =Lists!J68 -> ETHAPKN | P48: =Lists!K68 -> ETHAPKN
B49: Refused | C49: - | D49: 1 | E49: - | F49: =IF(ISERROR((VLOOKUP(F$9&$O49&$T$1,OldData,'School Characteristics'!$T$2,FALSE))),"-",(VLOOKUP(F$9&$O49&$T$1,OldData,'School Characteristics'!$T$2,FALSE))) -> - | G49: =IF(ISERROR((VLOOKUP(G$9&$P49&$T$1,data,'School Characteristics'!$V$2,FALSE))),"-",(VLOOKUP(G$9&$P49&$T$1,data,'School Characteristics'!$V$2,FALSE))) -> 100 | H49: =IF(ISERROR((VLOOKUP(H$9&$P49&$T$1,data,'School Characteristics'!$V$2,FALSE))),"-",(VLOOKUP(H$9&$P49&$T$1,data,'School Characteristics'!$V$2,FALSE))) -> - | I49: =IF(ISERROR((VLOOKUP(I$9&$O49&$R$8,OldData,'School Characteristics'!$T$2,FALSE))),"-",(VLOOKUP(I$9&$O49&$R$8,OldData,'School Characteristics'!$T$2,FALSE))) -> - | J49: =IF(ISERROR((VLOOKUP(J$9&$P49&$R$8,data,'School Characteristics'!$V$2,FALSE))),"-",(VLOOKUP(J$9&$P49&$R$8,data,'School Characteristics'!$V$2,FALSE))) -> 75 | K49: =IF(ISERROR((VLOOKUP(K$9&$P49&$R$8,data,'School Characteristics'!$V$2,FALSE))),"-",(VLOOKUP(K$9&$P49&$R$8,data,'School Characteristics'!$V$2,FALSE))) -> 46.15384615 | M49: 57 | N49: 61.9 | O49: =Lists!J69 -> ETHREFU | P49: =Lists!K69 -> ETHREFU
B50: Traveller of Irish Heritage | C50: - | D50: - | E50: - | F50: =IF(ISERROR((VLOOKUP(F$9&$O50&$T$1,OldData,'School Characteristics'!$T$2,FALSE))),"-",(VLOOKUP(F$9&$O50&$T$1,OldData,'School Characteristics'!$T$2,FALSE))) -> - | G50: =IF(ISERROR((VLOOKUP(G$9&$P50&$T$1,data,'School Characteristics'!$V$2,FALSE))),"-",(VLOOKUP(G$9&$P50&$T$1,data,'School Characteristics'!$V$2,FALSE))) -> - | H50: =IF(ISERROR((VLOOKUP(H$9&$P50&$T$1,data,'School Characteristics'!$V$2,FALSE))),"-",(VLOOKUP(H$9&$P50&$T$1,data,'School Characteristics'!$V$2,FALSE))) -> - | I50: =IF(ISERROR((VLOOKUP(I$9&$O50&$R$8,OldData,'School Characteristics'!$T$2,FALSE))),"-",(VLOOKUP(I$9&$O50&$R$8,OldData,'School Characteristics'!$T$2,FALSE))) -> - | J50: =IF(ISERROR((VLOOKUP(J$9&$P50&$R$8,data,'School Characteristics'!$V$2,FALSE))),"-",(VLOOKUP(J$9&$P50&$R$8,data,'School Characteristics'!$V$2,FALSE))) -> 0 | K50: =IF(ISERROR((VLOOKUP(K$9&$P50&$R$8,data,'School Characteristics'!$V$2,FALSE))),"-",(VLOOKUP(K$9&$P50&$R$8,data,'School Characteristics'!$V$2,FALSE))) -> - | L50: 31 | M50: 20 | N50: 18.5 | O50: =Lists!J70 -> ETHWIRT | P50: =Lists!K70 -> ETHWIRT
B51: White - British | C51: 48 | D51: 44 | E51: 43 | F51: =IF(ISERROR((VLOOKUP(F$9&$O51&$T$1,OldData,'School Characteristics'!$T$2,FALSE))),"-",(VLOOKUP(F$9&$O51&$T$1,OldData,'School Characteristics'!$T$2,FALSE))) -> 83.33333333 | G51: =IF(ISERROR((VLOOKUP(G$9&$P51&$T$1,data,'School Characteristics'!$V$2,FALSE))),"-",(VLOOKUP(G$9&$P51&$T$1,data,'School Characteristics'!$V$2,FALSE))) -> 61.36363636 | H51: =IF(ISERROR((VLOOKUP(H$9&$P51&$T$1,data,'School Characteristics'!$V$2,FALSE))),"-",(VLOOKUP(H$9&$P51&$T$1,data,'School Characteristics'!$V$2,FALSE))) -> 67.44186047 | I51: =IF(ISERROR((VLOOKUP(I$9&$O51&$R$8,OldData,'School Characteristics'!$T$2,FALSE))),"-",(VLOOKUP(I$9&$O51&$R$8,OldData,'School Characteristics'!$T$2,FALSE))) -> 67.20894764 | J51: =IF(ISERROR((VLOOKUP(J$9&$P51&$R$8,data,'School Characteristics'!$V$2,FALSE))),"-",(VLOOKUP(J$9&$P51&$R$8,data,'School Characteristics'!$V$2,FALSE))) -> 50.42328042 | K51: =IF(ISERROR((VLOOKUP(K$9&$P51&$R$8,data,'School Characteristics'!$V$2,FALSE))),"-",(VLOOKUP(K$9&$P51&$R$8,data,'School Characteristics'!$V$2,FALSE))) -> 56.05900948 | L51: 70 | M51: 54 | N51: 61.5 | O51: =Lists!J71 -> ETHWBRI | P51: =Lists!K71 -> ETHWBRI
B52: White - Irish | C52: - | D52: - | E52: - | F52: =IF(ISERROR((VLOOKUP(F$9&$O52&$T$1,OldData,'School Characteristics'!$T$2,FALSE))),"-",(VLOOKUP(F$9&$O52&$T$1,OldData,'School Characteristics'!$T$2,FALSE))) -> - | G52: =IF(ISERROR((VLOOKUP(G$9&$P52&$T$1,data,'School Characteristics'!$V$2,FALSE))),"-",(VLOOKUP(G$9&$P52&$T$1,data,'School Characteristics'!$V$2,FALSE))) -> - | H52: =IF(ISERROR((VLOOKUP(H$9&$P52&$T$1,data,'School Characteristics'!$V$2,FALSE))),"-",(VLOOKUP(H$9&$P52&$T$1,data,'School Characteristics'!$V$2,FALSE))) -> - | I52: =IF(ISERROR((VLOOKUP(I$9&$O52&$R$8,OldData,'School Characteristics'!$T$2,FALSE))),"-",(VLOOKUP(I$9&$O52&$R$8,OldData,'School Characteristics'!$T$2,FALSE))) -> 60 | J52: =IF(ISERROR((VLOOKUP(J$9&$P52&$R$8,data,'School Characteristics'!$V$2,FALSE))),"-",(VLOOKUP(J$9&$P52&$R$8,data,'School Characteristics'!$V$2,FALSE))) -> 60 | K52: =IF(ISERROR((VLOOKUP(K$9&$P52&$R$8,data,'School Characteristics'!$V$2,FALSE))),"-",(VLOOKUP(K$9&$P52&$R$8,data,'School Characteristics'!$V$2,FALSE))) -> 71.42857143 | L52: 76 | M52: 62 | N52: 67.9 | O52: =Lists!J72 -> ETHWIRI | P52: =Lists!K72 -> ETHWIRI
B53: White and Asian | C53: 3 | D53: 1 | E53: 4 | F53: =IF(ISERROR((VLOOKUP(F$9&$O53&$T$1,OldData,'School Characteristics'!$T$2,FALSE))),"-",(VLOOKUP(F$9&$O53&$T$1,OldData,'School Characteristics'!$T$2,FALSE))) -> 66.66666667 | G53: =IF(ISERROR((VLOOKUP(G$9&$P53&$T$1,data,'School Characteristics'!$V$2,FALSE))),"-",(VLOOKUP(G$9&$P53&$T$1,data,'School Characteristics'!$V$2,FALSE))) -> 100 | H53: =IF(ISERROR((VLOOKUP(H$9&$P53&$T$1,data,'School Characteristics'!$V$2,FALSE))),"-",(VLOOKUP(H$9&$P53&$T$1,data,'School Characteristics'!$V$2,FALSE))) -> 100 | I53: =IF(ISERROR((VLOOKUP(I$9&$O53&$R$8,OldData,'School Characteristics'!$T$2,FALSE))),"-",(VLOOKUP(I$9&$O53&$R$8,OldData,'School Characteristics'!$T$2,FALSE))) -> 68.18181818 | J53: =IF(ISERROR((VLOOKUP(J$9&$P53&$R$8,data,'School Characteristics'!$V$2,FALSE))),"-",(VLOOKUP(J$9&$P53&$R$8,data,'School Characteristics'!$V$2,FALSE))) -> 58.53658537 | K53: =IF(ISERROR((VLOOKUP(K$9&$P53&$R$8,data,'School Characteristics'!$V$2,FALSE))),"-",(VLOOKUP(K$9&$P53&$R$8,data,'School Characteristics'!$V$2,FALSE))) -> 73.61111111 | L53: 76 | M53: 63 | N53: 69 | O53: =Lists!J73 -> ETHMWAS | P53: =Lists!K73 -> ETHMWAS
B54: White and Black African | C54: - | D54: 2 | E54: - | F54: =IF(ISERROR((VLOOKUP(F$9&$O54&$T$1,OldData,'School Characteristics'!$T$2,FALSE))),"-",(VLOOKUP(F$9&$O54&$T$1,OldData,'School Characteristics'!$T$2,FALSE))) -> - | G54: =IF(ISERROR((VLOOKUP(G$9&$P54&$T$1,data,'School Characteristics'!$V$2,FALSE))),"-",(VLOOKUP(G$9&$P54&$T$1,data,'School Characteristics'!$V$2,FALSE))) -> 50 | H54: =IF(ISERROR((VLOOKUP(H$9&$P54&$T$1,data,'School Characteristics'!$V$2,FALSE))),"-",(VLOOKUP(H$9&$P54&$T$1,data,'School Characteristics'!$V$2,FALSE))) -> - | I54: =IF(ISERROR((VLOOKUP(I$9&$O54&$R$8,OldData,'School Characteristics'!$T$2,FALSE))),"-",(VLOOKUP(I$9&$O54&$R$8,OldData,'School Characteristics'!$T$2,FALSE))) -> 60 | J54: =IF(ISERROR((VLOOKUP(J$9&$P54&$R$8,data,'School Characteristics'!$V$2,FALSE))),"-",(VLOOKUP(J$9&$P54&$R$8,data,'School Characteristics'!$V$2,FALSE))) -> 42.10526316 | K54: =IF(ISERROR((VLOOKUP(K$9&$P54&$R$8,data,'School Characteristics'!$V$2,FALSE))),"-",(VLOOKUP(K$9&$P54&$R$8,data,'School Characteristics'!$V$2,FALSE))) -> 40.90909091 | L54: 70 | M54: 54 | N54: 62.1 | O54: =Lists!J74 -> ETHMWBA | P54: =Lists!K74 -> ETHMWBA
B55: White and Black Caribbean | C55: 3 | D55: 4 | E55: 8 | F55: =IF(ISERROR((VLOOKUP(F$9&$O55&$T$1,OldData,'School Characteristics'!$T$2,FALSE))),"-",(VLOOKUP(F$9&$O55&$T$1,OldData,'School Characteristics'!$T$2,FALSE))) -> 33.33333333 | G55: =IF(ISERROR((VLOOKUP(G$9&$P55&$T$1,data,'School Characteristics'!$V$2,FALSE))),"-",(VLOOKUP(G$9&$P55&$T$1,data,'School Characteristics'!$V$2,FALSE))) -> 50 | H55: =IF(ISERROR((VLOOKUP(H$9&$P55&$T$1,data,'School Characteristics'!$V$2,FALSE))),"-",(VLOOKUP(H$9&$P55&$T$1,data,'School Characteristics'!$V$2,FALSE))) -> 50 | I55: =IF(ISERROR((VLOOKUP(I$9&$O55&$R$8,OldData,'School Characteristics'!$T$2,FALSE))),"-",(VLOOKUP(I$9&$O55&$R$8,OldData,'School Characteristics'!$T$2,FALSE))) -> 63.76811594 | J55: =IF(ISERROR((VLOOKUP(J$9&$P55&$R$8,data,'School Characteristics'!$V$2,FALSE))),"-",(VLOOKUP(J$9&$P55&$R$8,data,'School Characteristics'!$V$2,FALSE))) -> 44.27480916 | K55: =IF(ISERROR((VLOOKUP(K$9&$P55&$R$8,data,'School Characteristics'!$V$2,FALSE))),"-",(VLOOKUP(K$9&$P55&$R$8,data,'School Characteristics'!$V$2,FALSE))) -> 50.64102564 | L55: 64 | M55: 47 | N55: 54.5 | O55: =Lists!J75 -> ETHMWBC | P55: =Lists!K75 -> ETHMWBC
A57: ACORN Category | B57: Affluent Achievers | C57: - | D57: =IF(ISERROR((VLOOKUP(D$9&$P57&$T$1,data,6,FALSE))),"-",(VLOOKUP(D$9&$P57&$T$1,data,6,FALSE))) -> 11 | E57: 7 | F57: =IF(ISERROR((VLOOKUP(F$9&$O57&$T$1,OldData,'School Characteristics'!$T$2,FALSE))),"-",(VLOOKUP(F$9&$O57&$T$1,OldData,'School Characteristics'!$T$2,FALSE))) -> 100 | G57: =IF(ISERROR((VLOOKUP(G$9&$P57&$T$1,data,'School Characteristics'!$V$2,FALSE))),"-",(VLOOKUP(G$9&$P57&$T$1,data,'School Characteristics'!$V$2,FALSE))) -> 72.72727273 | H57: =IF(ISERROR((VLOOKUP(H$9&$P57&$T$1,data,'School Characteristics'!$V$2,FALSE))),"-",(VLOOKUP(H$9&$P57&$T$1,data,'School Characteristics'!$V$2,FALSE))) -> 85.71428571 | I57: =IF(ISERROR((VLOOKUP(I$9&$O57&$R$8,OldData,'School Characteristics'!$T$2,FALSE))),"-",(VLOOKUP(I$9&$O57&$R$8,OldData,'School Characteristics'!$T$2,FALSE))) -> 84.3902439 | J57: =IF(ISERROR((VLOOKUP(J$9&$P57&$R$8,data,'School Characteristics'!$V$2,FALSE))),"-",(VLOOKUP(J$9&$P57&$R$8,data,'School Characteristics'!$V$2,FALSE))) -> 69.74358974 | K57: =IF(ISERROR((VLOOKUP(K$9&$P57&$R$8,data,'School Characteristics'!$V$2,FALSE))),"-",(VLOOKUP(K$9&$P57&$R$8,data,'School Characteristics'!$V$2,FALSE))) -> 75.12195122 | L57: - | M57: =IF(ISERROR((VLOOKUP(M$9&$P57&$R$9,data,$V$2,FALSE))),"-",(VLOOKUP(M$9&$P57&$R$9,data,$V$2,FALSE))) -> - | N57: - | O57: =Lists!J76 -> ACORN1 | P57: =Lists!K76 -> ACORNAffluent Achievers
B58: Rising Prosperity | C58: - | D58: 2 | E58: 2 | F58: =IF(ISERROR((VLOOKUP(F$9&$O58&$T$1,OldData,'School Characteristics'!$T$2,FALSE))),"-",(VLOOKUP(F$9&$O58&$T$1,OldData,'School Characteristics'!$T$2,FALSE))) -> 100 | G58: =IF(ISERROR((VLOOKUP(G$9&$P58&$T$1,data,'School Characteristics'!$V$2,FALSE))),"-",(VLOOKUP(G$9&$P58&$T$1,data,'School Characteristics'!$V$2,FALSE))) -> 50 | H58: =IF(ISERROR((VLOOKUP(H$9&$P58&$T$1,data,'School Characteristics'!$V$2,FALSE))),"-",(VLOOKUP(H$9&$P58&$T$1,data,'School Characteristics'!$V$2,FALSE))) -> 100 | I58: =IF(ISERROR((VLOOKUP(I$9&$O58&$R$8,OldData,'School Characteristics'!$T$2,FALSE))),"-",(VLOOKUP(I$9&$O58&$R$8,OldData,'School Characteristics'!$T$2,FALSE))) -> 72.91666667 | J58: =IF(ISERROR((VLOOKUP(J$9&$P58&$R$8,data,'School Characteristics'!$V$2,FALSE))),"-",(VLOOKUP(J$9&$P58&$R$8,data,'School Characteristics'!$V$2,FALSE))) -> 69.62025316 | K58: =IF(ISERROR((VLOOKUP(K$9&$P58&$R$8,data,'School Characteristics'!$V$2,FALSE))),"-",(VLOOKUP(K$9&$P58&$R$8,data,'School Characteristics'!$V$2,FALSE))) -> 60.6557377 | L58: - | M58: - | N58: - | O58: =Lists!J77 -> ACORN2 | P58: =Lists!K77 -> ACORNRising Prosperity
B59: Comfortably Communities | C59: - | D59: 19 | E59: 41 | F59: =IF(ISERROR((VLOOKUP(F$9&$O59&$T$1,OldData,'School Characteristics'!$T$2,FALSE))),"-",(VLOOKUP(F$9&$O59&$T$1,OldData,'School Characteristics'!$T$2,FALSE))) -> 85 | G59: =IF(ISERROR((VLOOKUP(G$9&$P59&$T$1,data,'School Characteristics'!$V$2,FALSE))),"-",(VLOOKUP(G$9&$P59&$T$1,data,'School Characteristics'!$V$2,FALSE))) -> 73.68421053 | H59: =IF(ISERROR((VLOOKUP(H$9&$P59&$T$1,data,'School Characteristics'!$V$2,FALSE))),"-",(VLOOKUP(H$9&$P59&$T$1,data,'School Characteristics'!$V$2,FALSE))) -> 78.04878049 | I59: =IF(ISERROR((VLOOKUP(I$9&$O59&$R$8,OldData,'School Characteristics'!$T$2,FALSE))),"-",(VLOOKUP(I$9&$O59&$R$8,OldData,'School Characteristics'!$T$2,FALSE))) -> 75.92814371 | J59: =IF(ISERROR((VLOOKUP(J$9&$P59&$R$8,data,'School Characteristics'!$V$2,FALSE))),"-",(VLOOKUP(J$9&$P59&$R$8,data,'School Characteristics'!$V$2,FALSE))) -> 60.72772898 | K59: =IF(ISERROR((VLOOKUP(K$9&$P59&$R$8,data,'School Characteristics'!$V$2,FALSE))),"-",(VLOOKUP(K$9&$P59&$R$8,data,'School Characteristics'!$V$2,FALSE))) -> 66.24277457 | L59: - | M59: - | N59: - | O59: =Lists!J78 -> ACORN3 | P59: =Lists!K78 -> ACORNComfortably Communities
B60: Financially Stretched | C60: - | D60: 19 | E60: 5 | F60: =IF(ISERROR((VLOOKUP(F$9&$O60&$T$1,OldData,'School Characteristics'!$T$2,FALSE))),"-",(VLOOKUP(F$9&$O60&$T$1,OldData,'School Characteristics'!$T$2,FALSE))) -> 75 | G60: =IF(ISERROR((VLOOKUP(G$9&$P60&$T$1,data,'School Characteristics'!$V$2,FALSE))),"-",(VLOOKUP(G$9&$P60&$T$1,data,'School Characteristics'!$V$2,FALSE))) -> 63.15789474 | H60: =IF(ISERROR((VLOOKUP(H$9&$P60&$T$1,data,'School Characteristics'!$V$2,FALSE))),"-",(VLOOKUP(H$9&$P60&$T$1,data,'School Characteristics'!$V$2,FALSE))) -> 20 | I60: =IF(ISERROR((VLOOKUP(I$9&$O60&$R$8,OldData,'School Characteristics'!$T$2,FALSE))),"-",(VLOOKUP(I$9&$O60&$R$8,OldData,'School Characteristics'!$T$2,FALSE))) -> 66.81270537 | J60: =IF(ISERROR((VLOOKUP(J$9&$P60&$R$8,data,'School Characteristics'!$V$2,FALSE))),"-",(VLOOKUP(J$9&$P60&$R$8,data,'School Characteristics'!$V$2,FALSE))) -> 50.60483871 | K60: =IF(ISERROR((VLOOKUP(K$9&$P60&$R$8,data,'School Characteristics'!$V$2,FALSE))),"-",(VLOOKUP(K$9&$P60&$R$8,data,'School Characteristics'!$V$2,FALSE))) -> 54.54545455 | L60: - | M60: - | N60: - | O60: =Lists!J79 -> ACORN4 | P60: =Lists!K79 -> ACORNFinancially Stretched
B61: Urban Adversity | C61: - | D61: 36 | E61: 32 | F61: =IF(ISERROR((VLOOKUP(F$9&$O61&$T$1,OldData,'School Characteristics'!$T$2,FALSE))),"-",(VLOOKUP(F$9&$O61&$T$1,OldData,'School Characteristics'!$T$2,FALSE))) -> 63.33333333 | G61: =IF(ISERROR((VLOOKUP(G$9&$P61&$T$1,data,'School Characteristics'!$V$2,FALSE))),"-",(VLOOKUP(G$9&$P61&$T$1,data,'School Characteristics'!$V$2,FALSE))) -> 58.33333333 | H61: =IF(ISERROR((VLOOKUP(H$9&$P61&$T$1,data,'School Characteristics'!$V$2,FALSE))),"-",(VLOOKUP(H$9&$P61&$T$1,data,'School Characteristics'!$V$2,FALSE))) -> 59.375 | I61: =IF(ISERROR((VLOOKUP(I$9&$O61&$R$8,OldData,'School Characteristics'!$T$2,FALSE))),"-",(VLOOKUP(I$9&$O61&$R$8,OldData,'School Characteristics'!$T$2,FALSE))) -> 62.33900052 | J61: =IF(ISERROR((VLOOKUP(J$9&$P61&$R$8,data,'School Characteristics'!$V$2,FALSE))),"-",(VLOOKUP(J$9&$P61&$R$8,data,'School Characteristics'!$V$2,FALSE))) -> 44.56465739 | K61: =IF(ISERROR((VLOOKUP(K$9&$P61&$R$8,data,'School Characteristics'!$V$2,FALSE))),"-",(VLOOKUP(K$9&$P61&$R$8,data,'School Characteristics'!$V$2,FALSE))) -> 51.92776964 | L61: - | M61: - | N61: - | O61: =Lists!J80 -> ACORN5 | P61: =Lists!K80 -> ACORNUrban Adversity
B62: Not Private Households | C62: - | D62: 1 | E62: 1 | F62: =IF(ISERROR((VLOOKUP(F$9&$O62&$T$1,OldData,'School Characteristics'!$T$2,FALSE))),"-",(VLOOKUP(F$9&$O62&$T$1,OldData,'School Characteristics'!$T$2,FALSE))) -> 0 | G62: =IF(ISERROR((VLOOKUP(G$9&$P62&$T$1,data,'School Characteristics'!$V$2,FALSE))),"-",(VLOOKUP(G$9&$P62&$T$1,data,'School Characteristics'!$V$2,FALSE))) -> 0 | H62: =IF(ISERROR((VLOOKUP(H$9&$P62&$T$1,data,'School Characteristics'!$V$2,FALSE))),"-",(VLOOKUP(H$9&$P62&$T$1,data,'School Characteristics'!$V$2,FALSE))) -> 100 | I62: =IF(ISERROR((VLOOKUP(I$9&$O62&$R$8,OldData,'School Characteristics'!$T$2,FALSE))),"-",(VLOOKUP(I$9&$O62&$R$8,OldData,'School Characteristics'!$T$2,FALSE))) -> 68.75 | J62: =IF(ISERROR((VLOOKUP(J$9&$P62&$R$8,data,'School Characteristics'!$V$2,FALSE))),"-",(VLOOKUP(J$9&$P62&$R$8,data,'School Characteristics'!$V$2,FALSE))) -> 38.0952381 | K62: =IF(ISERROR((VLOOKUP(K$9&$P62&$R$8,data,'School Characteristics'!$V$2,FALSE))),"-",(VLOOKUP(K$9&$P62&$R$8,data,'School Characteristics'!$V$2,FALSE))) -> 55.17241379 | L62: - | M62: - | N62: - | O62: =Lists!J81 -> ACORN6 | P62: =Lists!K81 -> ACORNNot Private Households
A70: Notes

Sheet Ofsted Gaps Report
C1: Key Stage 2 by Pupil Characteristics | Q1: School | S1: =VLOOKUP(C2,Lists!C3:D99,2,FALSE) -> 2101 | T1: =IF(OR(R2=21,R2=22,R2=23),"Progress","") -> 
C2: Abbey Junior School | P2: LA | Q2: Indicator column | R2: 2015 | S2: =VLOOKUP($C$3,Lists!$I$8:$M$21,4,FALSE) -> 32 | T2: 2016+ | U2: =VLOOKUP($C$3,Lists!$I$8:$M$21,2,FALSE) -> 42
C3: % Reading, Writing & Maths Expected+ | P3: NAT | Q3: =R3-1 -> 2015 | R3: =S3-1 -> 2016 | S3: =Lists!I2 -> 2017
R5: =G9 -> 2016 | S5: =G9 -> 2016 | T5: =J9 -> 2017 | U5: =J9 -> 2017
A8: =Introduction!L7 -> 2017 version 1.1 | C8: Cohort | E8: School % 2 | G8: National % 2 | I8: % gap to Nat: | K8: Pupil Diff to Nat: | R8: Nos of pupils | S8: Nos of pupils | T8: Nos of pupils | U8: Nos of pupils
C9: =$R$3 -> 2016 | D9: =$S$3 -> 2017 | E9: =$R$3 -> 2016 | F9: =$S$3 -> 2017 | G9: =$R$3 -> 2016 | H9: =$S$3 -> 2017 | I9: =G9 -> 2016 | J9: =H9 -> 2017 | K9: =$R$3 -> 2016 | L9: =$S$3 -> 2017 | O9: 2016+ | P9: Labels for chart | R9: using Sch % | S9: using Nat % | T9: using Sch % | U9: using Nat %
A10: All Pupils | C10: =IF(ISERROR((VLOOKUP(C$9&$O10&$S$1,data,6,FALSE))),"-",(VLOOKUP(C$9&$O10&$S$1,data,6,FALSE))) -> 88 | D10: =IF(ISERROR((VLOOKUP(D$9&$O10&$S$1,data,6,FALSE))),"-",(VLOOKUP(D$9&$O10&$S$1,data,6,FALSE))) -> 88 | E10: =IF(ISERROR((VLOOKUP(E$9&$O10&$S$1,data,'Ofsted Gaps Report'!$U$2,FALSE))),"-",(VLOOKUP(E$9&$O10&$S$1,data,'Ofsted Gaps Report'!$U$2,FALSE))) -> 63.63636364 | F10: =IF(ISERROR((VLOOKUP(F$9&$O10&$S$1,data,'Ofsted Gaps Report'!$U$2,FALSE))),"-",(VLOOKUP(F$9&$O10&$S$1,data,'Ofsted Gaps Report'!$U$2,FALSE))) -> 69.31818182 | G10: =IF(ISERROR((VLOOKUP(G$9&$O10&$P$3,data,$U$2,FALSE))),"-",(VLOOKUP(G$9&$O10&$P$3,data,$U$2,FALSE))) -> 54 | H10: =IF(ISERROR((VLOOKUP(H$9&$O10&$P$3,data,$U$2,FALSE))),"-",(VLOOKUP(H$9&$O10&$P$3,data,$U$2,FALSE))) -> 61 | I10: =IF(ISERROR((ROUND(E10,0)-G10)),"-",(ROUND(E10,0)-G10)) -> 10 | J10: =IF(ISERROR((ROUND(F10,0)-H10)),"-",(ROUND(F10,0)-H10)) -> 8 | K10: =IF(ISERROR((R10-S10)),"-",(R10-S10)) -> 8 | L10: =IF(ISERROR((T10-U10)),"-",(T10-U10)) -> 7 | O10: =Lists!$K$42 -> AllAll | P10: All Pupils | R10: =IF(ISERROR((ROUND(E10/100*C10,0))),"",(ROUND(E10/100*C10,0))) -> 56 | S10: =IF(ISERROR((ROUND(G10/100*C10,0))),"",(ROUND(G10/100*C10,0))) -> 48 | T10: =IF(ISERROR((ROUND(F10/100*D10,0))),"",(ROUND(F10/100*D10,0))) -> 61 | U10: =IF(ISERROR((ROUND(H10/100*D10,0))),"",(ROUND(H10/100*D10,0))) -> 54
A11: Gender National Comparator: Same Group
A12: Gender | B12: Boys | C12: =IF(ISERROR((VLOOKUP(C$9&$O12&$S$1,data,6,FALSE))),"-",(VLOOKUP(C$9&$O12&$S$1,data,6,FALSE))) -> 37 | D12: =IF(ISERROR((VLOOKUP(D$9&$O12&$S$1,data,6,FALSE))),"-",(VLOOKUP(D$9&$O12&$S$1,data,6,FALSE))) -> 33 | E12: =IF(ISERROR((VLOOKUP(E$9&$O12&$S$1,data,'Ofsted Gaps Report'!$U$2,FALSE))),"-",(VLOOKUP(E$9&$O12&$S$1,data,'Ofsted Gaps Report'!$U$2,FALSE))) -> 62.16216216 | F12: =IF(ISERROR((VLOOKUP(F$9&$O12&$S$1,data,'Ofsted Gaps Report'!$U$2,FALSE))),"-",(VLOOKUP(F$9&$O12&$S$1,data,'Ofsted Gaps Report'!$U$2,FALSE))) -> 63.63636364 | G12: =IF(ISERROR((VLOOKUP(G$9&$O12&$P$3,data,$U$2,FALSE))),"-",(VLOOKUP(G$9&$O12&$P$3,data,$U$2,FALSE))) -> 50 | H12: =IF(ISERROR((VLOOKUP(H$9&$O12&$P$3,data,$U$2,FALSE))),"-",(VLOOKUP(H$9&$O12&$P$3,data,$U$2,FALSE))) -> 57 | I12: =IF(ISERROR((ROUND(E12,0)-G12)),"-",(ROUND(E12,0)-G12)) -> 12 | J12: =IF(ISERROR((ROUND(F12,0)-H12)),"-",(ROUND(F12,0)-H12)) -> 7 | K12: =IF(ISERROR((R12-S12)),"-",(R12-S12)) -> 4 | L12: =IF(ISERROR((T12-U12)),"-",(T12-U12)) -> 2 | O12: =Lists!K43 -> GenderMale | P12: Boys | R12: =IF(ISERROR((ROUND(E12/100*C12,0))),"",(ROUND(E12/100*C12,0))) -> 23 | S12: =IF(ISERROR((ROUND(G12/100*C12,0))),"",(ROUND(G12/100*C12,0))) -> 19 | T12: =IF(ISERROR((ROUND(F12/100*D12,0))),"",(ROUND(F12/100*D12,0))) -> 21 | U12: =IF(ISERROR((ROUND(H12/100*D12,0))),"",(ROUND(H12/100*D12,0))) -> 19
B13: Girls | C13: =IF(ISERROR((VLOOKUP(C$9&$O13&$S$1,data,6,FALSE))),"-",(VLOOKUP(C$9&$O13&$S$1,data,6,FALSE))) -> 51 | D13: =IF(ISERROR((VLOOKUP(D$9&$O13&$S$1,data,6,FALSE))),"-",(VLOOKUP(D$9&$O13&$S$1,data,6,FALSE))) -> 55 | E13: =IF(ISERROR((VLOOKUP(E$9&$O13&$S$1,data,'Ofsted Gaps Report'!$U$2,FALSE))),"-",(VLOOKUP(E$9&$O13&$S$1,data,'Ofsted Gaps Report'!$U$2,FALSE))) -> 64.70588235 | F13: =IF(ISERROR((VLOOKUP(F$9&$O13&$S$1,data,'Ofsted Gaps Report'!$U$2,FALSE))),"-",(VLOOKUP(F$9&$O13&$S$1,data,'Ofsted Gaps Report'!$U$2,FALSE))) -> 72.72727273 | G13: =IF(ISERROR((VLOOKUP(G$9&$O13&$P$3,data,$U$2,FALSE))),"-",(VLOOKUP(G$9&$O13&$P$3,data,$U$2,FALSE))) -> 58 | H13: =IF(ISERROR((VLOOKUP(H$9&$O13&$P$3,data,$U$2,FALSE))),"-",(VLOOKUP(H$9&$O13&$P$3,data,$U$2,FALSE))) -> 65 | I13: =IF(ISERROR((ROUND(E13,0)-G13)),"-",(ROUND(E13,0)-G13)) -> 7 | J13: =IF(ISERROR((ROUND(F13,0)-H13)),"-",(ROUND(F13,0)-H13)) -> 8 | K13: =IF(ISERROR((R13-S13)),"-",(R13-S13)) -> 3 | L13: =IF(ISERROR((T13-U13)),"-",(T13-U13)) -> 4 | O13: =Lists!K44 -> GenderFemale | P13: Girls | R13: 33 | S13: 30 | T13: 40 | U13: 36
B14: Gap (Boys vs. Girls) | C14: =IF(ISERROR((ABS(ROUND(C13,0)-ROUND(C12,0)))),"-",(ABS(ROUND(C13,0)-ROUND(C12,0)))) -> 14 | D14: =IF(ISERROR((ABS(ROUND(D13,0)-ROUND(D12,0)))),"-",(ABS(ROUND(D13,0)-ROUND(D12,0)))) -> 22 | E14: 3 | F14: 9 | G14: 8 | H14: 8
A15: Pupil Premium National Comparator: Non Disadvantaged
A16: Disadvant'd Pupil Premium | B16: Disadvantaged | C16: =IF(ISERROR((VLOOKUP(C$9&$O16&$S$1,data,6,FALSE))),"-",(VLOOKUP(C$9&$O16&$S$1,data,6,FALSE))) -> 29 | D16: =IF(ISERROR((VLOOKUP(D$9&$O16&$S$1,data,6,FALSE))),"-",(VLOOKUP(D$9&$O16&$S$1,data,6,FALSE))) -> 31 | E16: =IF(ISERROR((VLOOKUP(E$9&$O16&$S$1,data,'Ofsted Gaps Report'!$U$2,FALSE))),"-",(VLOOKUP(E$9&$O16&$S$1,data,'Ofsted Gaps Report'!$U$2,FALSE))) -> 51.72413793 | F16: =IF(ISERROR((VLOOKUP(F$9&$O16&$S$1,data,'Ofsted Gaps Report'!$U$2,FALSE))),"-",(VLOOKUP(F$9&$O16&$S$1,data,'Ofsted Gaps Report'!$U$2,FALSE))) -> 61.29032258 | G16: =IF(ISERROR((VLOOKUP(G$9&$O17&$P$3,data,$U$2,FALSE))),"-",(VLOOKUP(G$9&$O17&$P$3,data,$U$2,FALSE))) -> 61 | H16: =IF(ISERROR((VLOOKUP(H$9&$O17&$P$3,data,$U$2,FALSE))),"-",(VLOOKUP(H$9&$O17&$P$3,data,$U$2,FALSE))) -> 67 | I16: =IF(ISERROR((ROUND(E16,0)-G16)),"-",(ROUND(E16,0)-G16)) -> -9 | J16: =IF(ISERROR((ROUND(F16,0)-H16)),"-",(ROUND(F16,0)-H16)) -> -6 | K16: =IF(ISERROR((R16-S16)),"-",(R16-S16)) -> -3 | L16: =IF(ISERROR((T16-U16)),"-",(T16-U16)) -> -2 | O16: =Lists!K47 -> DPP1 | P16: Disadvantaged | R16: =IF(ISERROR((ROUND(E16/100*C16,0))),"",(ROUND(E16/100*C16,0))) -> 15 | S16: =IF(ISERROR((ROUND(G16/100*C16,0))),"",(ROUND(G16/100*C16,0))) -> 18 | T16: =IF(ISERROR((ROUND(F16/100*D16,0))),"",(ROUND(F16/100*D16,0))) -> 19 | U16: =IF(ISERROR((ROUND(H16/100*D16,0))),"",(ROUND(H16/100*D16,0))) -> 21
B17: All Other pupils3 | C17: =IF(ISERROR((VLOOKUP(C$9&$O17&$S$1,data,6,FALSE))),"-",(VLOOKUP(C$9&$O17&$S$1,data,6,FALSE))) -> 59 | D17: =IF(ISERROR((VLOOKUP(D$9&$O17&$S$1,data,6,FALSE))),"-",(VLOOKUP(D$9&$O17&$S$1,data,6,FALSE))) -> 57 | E17: =IF(ISERROR((VLOOKUP(E$9&$O17&$S$1,data,'Ofsted Gaps Report'!$U$2,FALSE))),"-",(VLOOKUP(E$9&$O17&$S$1,data,'Ofsted Gaps Report'!$U$2,FALSE))) -> 69.49152542 | F17: =IF(ISERROR((VLOOKUP(F$9&$O17&$S$1,data,'Ofsted Gaps Report'!$U$2,FALSE))),"-",(VLOOKUP(F$9&$O17&$S$1,data,'Ofsted Gaps Report'!$U$2,FALSE))) -> 73.68421053 | G17: =IF(ISERROR((VLOOKUP(G$9&$O17&$P$3,data,$U$2,FALSE))),"-",(VLOOKUP(G$9&$O17&$P$3,data,$U$2,FALSE))) -> 61 | H17: =IF(ISERROR((VLOOKUP(H$9&$O17&$P$3,data,$U$2,FALSE))),"-",(VLOOKUP(H$9&$O17&$P$3,data,$U$2,FALSE))) -> 67 | I17: 8 | J17: 7 | K17: =IF(ISERROR((R17-S17)),"-",(R17-S17)) -> 5 | L17: =IF(ISERROR((T17-U17)),"-",(T17-U17)) -> 4 | O17: =Lists!K48 -> DPP0 | P17: All Other | R17: 41 | S17: 36 | T17: 42 | U17: 38
B18: Gap (Disadvantaged vs. All Other pupils) | C18: =IF(ISERROR((ABS(ROUND(C17,0)-ROUND(C16,0)))),"-",(ABS(ROUND(C17,0)-ROUND(C16,0)))) -> 30 | D18: =IF(ISERROR((ABS(ROUND(D17,0)-ROUND(D16,0)))),"-",(ABS(ROUND(D17,0)-ROUND(D16,0)))) -> 26 | E18: =IF(ISERROR((ABS(ROUND(E17,0)-ROUND(E16,0)))),"-",(ABS(ROUND(E17,0)-ROUND(E16,0)))) -> 17 | F18: =IF(ISERROR((ABS(ROUND(F17,0)-ROUND(F16,0)))),"-",(ABS(ROUND(F17,0)-ROUND(F16,0)))) -> 13 | G18: =IF(ISERROR((ABS(ROUND(G17,0)-ROUND(G16,0)))),"-",(ABS(ROUND(G17,0)-ROUND(G16,0)))) -> 0 | H18: =IF(ISERROR((ABS(ROUND(H17,0)-ROUND(H16,0)))),"-",(ABS(ROUND(H17,0)-ROUND(H16,0)))) -> 0
A19: FSM National Comparator: Non Disadvantaged
A20: FSM (Jan Census) | B20: Free School Meals | C20: =IF(ISERROR((VLOOKUP(C$9&$O20&$S$1,data,6,FALSE))),"-",(VLOOKUP(C$9&$O20&$S$1,data,6,FALSE))) -> 13 | D20: =IF(ISERROR((VLOOKUP(D$9&$O20&$S$1,data,6,FALSE))),"-",(VLOOKUP(D$9&$O20&$S$1,data,6,FALSE))) -> 10 | E20: =IF(ISERROR((VLOOKUP(E$9&$O20&$S$1,data,'Ofsted Gaps Report'!$U$2,FALSE))),"-",(VLOOKUP(E$9&$O20&$S$1,data,'Ofsted Gaps Report'!$U$2,FALSE))) -> 53.84615385 | F20: =IF(ISERROR((VLOOKUP(F$9&$O20&$S$1,data,'Ofsted Gaps Report'!$U$2,FALSE))),"-",(VLOOKUP(F$9&$O20&$S$1,data,'Ofsted Gaps Report'!$U$2,FALSE))) -> 40 | G20: =IF(ISERROR((VLOOKUP(G$9&$O17&$P$3,data,$U$2,FALSE))),"-",(VLOOKUP(G$9&$O17&$P$3,data,$U$2,FALSE))) -> 61 | H20: =IF(ISERROR((VLOOKUP(H$9&$O21&$P$3,data,$U$2,FALSE))),"-",(VLOOKUP(H$9&$O21&$P$3,data,$U$2,FALSE))) -> 64 | I20: =IF(ISERROR((ROUND(E20,0)-G20)),"-",(ROUND(E20,0)-G20)) -> -7 | J20: =IF(ISERROR((ROUND(F20,0)-H20)),"-",(ROUND(F20,0)-H20)) -> -24 | K20: =IF(ISERROR((R20-S20)),"-",(R20-S20)) -> -1 | L20: =IF(ISERROR((T20-U20)),"-",(T20-U20)) -> -2 | O20: =Lists!K45 -> FSM_TT1 | P20: FSM | R20: =IF(ISERROR((ROUND(E20/100*C20,0))),"",(ROUND(E20/100*C20,0))) -> 7 | S20: =IF(ISERROR((ROUND(G20/100*C20,0))),"",(ROUND(G20/100*C20,0))) -> 8 | T20: =IF(ISERROR((ROUND(F20/100*D20,0))),"",(ROUND(F20/100*D20,0))) -> 4 | U20: =IF(ISERROR((ROUND(H20/100*D20,0))),"",(ROUND(H20/100*D20,0))) -> 6
B21: All Other Pupils3 | C21: =IF(ISERROR((VLOOKUP(C$9&$O21&$S$1,data,6,FALSE))),"-",(VLOOKUP(C$9&$O21&$S$1,data,6,FALSE))) -> 75 | D21: =IF(ISERROR((VLOOKUP(D$9&$O21&$S$1,data,6,FALSE))),"-",(VLOOKUP(D$9&$O21&$S$1,data,6,FALSE))) -> 78 | E21: =IF(ISERROR((VLOOKUP(E$9&$O21&$S$1,data,'Ofsted Gaps Report'!$U$2,FALSE))),"-",(VLOOKUP(E$9&$O21&$S$1,data,'Ofsted Gaps Report'!$U$2,FALSE))) -> 65.33333333 | F21: =IF(ISERROR((VLOOKUP(F$9&$O21&$S$1,data,'Ofsted Gaps Report'!$U$2,FALSE))),"-",(VLOOKUP(F$9&$O21&$S$1,data,'Ofsted Gaps Report'!$U$2,FALSE))) -> 73.07692308 | G21: =IF(ISERROR((VLOOKUP(G$9&$O17&$P$3,data,$U$2,FALSE))),"-",(VLOOKUP(G$9&$O17&$P$3,data,$U$2,FALSE))) -> 61 | H21: =IF(ISERROR((VLOOKUP(H$9&$O21&$P$3,data,$U$2,FALSE))),"-",(VLOOKUP(H$9&$O21&$P$3,data,$U$2,FALSE))) -> 64 | I21: =IF(ISERROR((ROUND(E21,0)-G21)),"-",(ROUND(E21,0)-G21)) -> 4 | J21: 9 | K21: =IF(ISERROR((R21-S21)),"-",(R21-S21)) -> 3 | L21: =IF(ISERROR((T21-U21)),"-",(T21-U21)) -> 7 | O21: =Lists!K46 -> FSM_TT0 | R21: =IF(ISERROR((ROUND(E21/100*C21,0))),"",(ROUND(E21/100*C21,0))) -> 49 | S21: =IF(ISERROR((ROUND(G21/100*C21,0))),"",(ROUND(G21/100*C21,0))) -> 46 | T21: =IF(ISERROR((ROUND(F21/100*D21,0))),"",(ROUND(F21/100*D21,0))) -> 57 | U21: =IF(ISERROR((ROUND(H21/100*D21,0))),"",(ROUND(H21/100*D21,0))) -> 50
B22: Gap (FSM vs. All Other pupils) | C22: =IF(ISERROR((ABS(ROUND(C21,0)-ROUND(C20,0)))),"-",(ABS(ROUND(C21,0)-ROUND(C20,0)))) -> 62 | D22: =IF(ISERROR((ABS(ROUND(D21,0)-ROUND(D20,0)))),"-",(ABS(ROUND(D21,0)-ROUND(D20,0)))) -> 68 | E22: =IF(ISERROR((ABS(ROUND(E21,0)-ROUND(E20,0)))),"-",(ABS(ROUND(E21,0)-ROUND(E20,0)))) -> 11 | F22: =IF(ISERROR((ABS(ROUND(F21,0)-ROUND(F20,0)))),"-",(ABS(ROUND(F21,0)-ROUND(F20,0)))) -> 33 | G22: =IF(ISERROR((ABS(ROUND(G21,0)-ROUND(G20,0)))),"-",(ABS(ROUND(G21,0)-ROUND(G20,0)))) -> 0 | H22: =IF(ISERROR((ABS(ROUND(H21,0)-ROUND(H20,0)))),"-",(ABS(ROUND(H21,0)-ROUND(H20,0)))) -> 0
A23: SEN National Comparator: All Pupils For SEN, Same group for No SEN
A24: SEN | B24: No SEN | C24: =IF(ISERROR((VLOOKUP(C$9&$O24&$S$1,data,6,FALSE))),"-",(VLOOKUP(C$9&$O24&$S$1,data,6,FALSE))) -> 83 | D24: =IF(ISERROR((VLOOKUP(D$9&$O24&$S$1,data,6,FALSE))),"-",(VLOOKUP(D$9&$O24&$S$1,data,6,FALSE))) -> 83 | E24: =IF(ISERROR((VLOOKUP(E$9&$O24&$S$1,data,'Ofsted Gaps Report'!$U$2,FALSE))),"-",(VLOOKUP(E$9&$O24&$S$1,data,'Ofsted Gaps Report'!$U$2,FALSE))) -> 67.46987952 | F24: =IF(ISERROR((VLOOKUP(F$9&$O24&$S$1,data,'Ofsted Gaps Report'!$U$2,FALSE))),"-",(VLOOKUP(F$9&$O24&$S$1,data,'Ofsted Gaps Report'!$U$2,FALSE))) -> 68.6746988 | G24: =IF(ISERROR((VLOOKUP(G$9&$O$24&$P$3,data,$U$2,FALSE))),"-",(VLOOKUP(G$9&$O$24&$P$3,data,$U$2,FALSE))) -> 62 | H24: =IF(ISERROR((VLOOKUP(H$9&$O$24&$P$3,data,$U$2,FALSE))),"-",(VLOOKUP(H$9&$O$24&$P$3,data,$U$2,FALSE))) -> 70 | I24: =IF(ISERROR((ROUND(E24,0)-G24)),"-",(ROUND(E24,0)-G24)) -> 5 | J24: =IF(ISERROR((ROUND(F24,0)-H24)),"-",(ROUND(F24,0)-H24)) -> -1 | K24: =IF(ISERROR((R24-S24)),"-",(R24-S24)) -> 5 | L24: =IF(ISERROR((T24-U24)),"-",(T24-U24)) -> -1 | O24: =Lists!K49 -> SENNonSEN | R24: =IF(ISERROR((ROUND(E24/100*C24,0))),"",(ROUND(E24/100*C24,0))) -> 56 | S24: =IF(ISERROR((ROUND(G24/100*C24,0))),"",(ROUND(G24/100*C24,0))) -> 51 | T24: =IF(ISERROR((ROUND(F24/100*D24,0))),"",(ROUND(F24/100*D24,0))) -> 57 | U24: =IF(ISERROR((ROUND(H24/100*D24,0))),"",(ROUND(H24/100*D24,0))) -> 58
B25: SEN (S,E,K) | C25: =IF(ISERROR((VLOOKUP(C$9&$O25&$S$1,data,6,FALSE))),"-",(VLOOKUP(C$9&$O25&$S$1,data,6,FALSE))) -> 5 | D25: =IF(ISERROR((VLOOKUP(D$9&$O25&$S$1,data,6,FALSE))),"-",(VLOOKUP(D$9&$O25&$S$1,data,6,FALSE))) -> 5 | E25: =IF(ISERROR((VLOOKUP(E$9&$O25&$S$1,data,'Ofsted Gaps Report'!$U$2,FALSE))),"-",(VLOOKUP(E$9&$O25&$S$1,data,'Ofsted Gaps Report'!$U$2,FALSE))) -> 0 | F25: =IF(ISERROR((VLOOKUP(F$9&$O25&$S$1,data,'Ofsted Gaps Report'!$U$2,FALSE))),"-",(VLOOKUP(F$9&$O25&$S$1,data,'Ofsted Gaps Report'!$U$2,FALSE))) -> 80 | G25: =IF(ISERROR((VLOOKUP(G$9&$O$10&$P$3,data,$U$2,FALSE))),"-",(VLOOKUP(G$9&$O$10&$P$3,data,$U$2,FALSE))) -> 54 | H25: =IF(ISERROR((VLOOKUP(H$9&$O$10&$P$3,data,$U$2,FALSE))),"-",(VLOOKUP(H$9&$O$10&$P$3,data,$U$2,FALSE))) -> 61 | I25: -54 | J25: 19 | K25: =IF(ISERROR((R25-S25)),"-",(R25-S25)) -> -3 | L25: =IF(ISERROR((T25-U25)),"-",(T25-U25)) -> 1 | O25: =Lists!K50 -> SENSEN | R25: 0 | S25: 3 | T25: 4 | U25: 3
B26: Gap (No SEN vs. SEN) | C26: =IF(ISERROR((ABS(ROUND(C25,0)-ROUND(C24,0)))),"-",(ABS(ROUND(C25,0)-ROUND(C24,0)))) -> 78 | D26: =IF(ISERROR((ABS(ROUND(D25,0)-ROUND(D24,0)))),"-",(ABS(ROUND(D25,0)-ROUND(D24,0)))) -> 78 | E26: =IF(ISERROR((ABS(ROUND(E25,0)-ROUND(E24,0)))),"-",(ABS(ROUND(E25,0)-ROUND(E24,0)))) -> 67 | F26: =IF(ISERROR((ABS(ROUND(F25,0)-ROUND(F24,0)))),"-",(ABS(ROUND(F25,0)-ROUND(F24,0)))) -> 11 | G26: =IF(ISERROR((ABS(ROUND(G25,0)-ROUND(G24,0)))),"-",(ABS(ROUND(G25,0)-ROUND(G24,0)))) -> 8 | H26: =IF(ISERROR((ABS(ROUND(H25,0)-ROUND(H24,0)))),"-",(ABS(ROUND(H25,0)-ROUND(H24,0)))) -> 9
A27: SEN National Comparator: All Pupils for SEN Support and Statement/EHC, Same group for No SEN
A28: SEN Type | B28: No SEN | C28: =IF(ISERROR((VLOOKUP(C$9&$O28&$S$1,data,6,FALSE))),"-",(VLOOKUP(C$9&$O28&$S$1,data,6,FALSE))) -> 83 | D28: 83 | E28: =IF(ISERROR((VLOOKUP(E$9&$O28&$S$1,data,'Ofsted Gaps Report'!$U$2,FALSE))),"-",(VLOOKUP(E$9&$O28&$S$1,data,'Ofsted Gaps Report'!$U$2,FALSE))) -> 67.46987952 | F28: =IF(ISERROR((VLOOKUP(F$9&$O28&$S$1,data,'Ofsted Gaps Report'!$U$2,FALSE))),"-",(VLOOKUP(F$9&$O28&$S$1,data,'Ofsted Gaps Report'!$U$2,FALSE))) -> 68.6746988 | G28: =IF(ISERROR((VLOOKUP(G$9&$O$28&$P$3,data,$U$2,FALSE))),"-",(VLOOKUP(G$9&$O$28&$P$3,data,$U$2,FALSE))) -> 62 | H28: =IF(ISERROR((VLOOKUP(H$9&$O$28&$P$3,data,$U$2,FALSE))),"-",(VLOOKUP(H$9&$O$28&$P$3,data,$U$2,FALSE))) -> 70 | I28: =IF(ISERROR((ROUND(E28,0)-G28)),"-",(ROUND(E28,0)-G28)) -> 5 | J28: =IF(ISERROR((ROUND(F28,0)-H28)),"-",(ROUND(F28,0)-H28)) -> -1 | K28: =IF(ISERROR((R28-S28)),"-",(R28-S28)) -> 5 | L28: =IF(ISERROR((T28-U28)),"-",(T28-U28)) -> -1 | O28: =Lists!K51 -> SENN | P28: No SEN | R28: =IF(ISERROR((ROUND(E28/100*C28,0))),"",(ROUND(E28/100*C28,0))) -> 56 | S28: =IF(ISERROR((ROUND(G28/100*C28,0))),"",(ROUND(G28/100*C28,0))) -> 51 | T28: =IF(ISERROR((ROUND(F28/100*D28,0))),"",(ROUND(F28/100*D28,0))) -> 57 | U28: =IF(ISERROR((ROUND(H28/100*D28,0))),"",(ROUND(H28/100*D28,0))) -> 58
B29: SEN Support (K) | C29: 3 | D29: 3 | E29: =IF(ISERROR((VLOOKUP(E$9&$O29&$S$1,data,'Ofsted Gaps Report'!$U$2,FALSE))),"-",(VLOOKUP(E$9&$O29&$S$1,data,'Ofsted Gaps Report'!$U$2,FALSE))) -> 0 | F29: =IF(ISERROR((VLOOKUP(F$9&$O29&$S$1,data,'Ofsted Gaps Report'!$U$2,FALSE))),"-",(VLOOKUP(F$9&$O29&$S$1,data,'Ofsted Gaps Report'!$U$2,FALSE))) -> 66.66666667 | G29: =IF(ISERROR((VLOOKUP(G$9&$O$10&$P$3,data,$U$2,FALSE))),"-",(VLOOKUP(G$9&$O$10&$P$3,data,$U$2,FALSE))) -> 54 | H29: =IF(ISERROR((VLOOKUP(H$9&$O$10&$P$3,data,$U$2,FALSE))),"-",(VLOOKUP(H$9&$O$10&$P$3,data,$U$2,FALSE))) -> 61 | I29: -54 | J29: =IF(ISERROR((ROUND(F29,0)-H29)),"-",(ROUND(F29,0)-H29)) -> 6 | K29: =IF(ISERROR((R29-S29)),"-",(R29-S29)) -> -2 | L29: =IF(ISERROR((T29-U29)),"-",(T29-U29)) -> 0 | O29: =Lists!K52 -> SENK | P29: SEN Support | R29: 0 | S29: 2 | T29: 2 | U29: 2
B30: Statement/EHC plan | C30: 2 | D30: 2 | E30: =IF(ISERROR((VLOOKUP(E$9&$O30&$S$1,data,'Ofsted Gaps Report'!$U$2,FALSE))),"-",(VLOOKUP(E$9&$O30&$S$1,data,'Ofsted Gaps Report'!$U$2,FALSE))) -> 0 | F30: =IF(ISERROR((VLOOKUP(F$9&$O30&$S$1,data,'Ofsted Gaps Report'!$U$2,FALSE))),"-",(VLOOKUP(F$9&$O30&$S$1,data,'Ofsted Gaps Report'!$U$2,FALSE))) -> 100 | G30: =IF(ISERROR((VLOOKUP(G$9&$O$10&$P$3,data,$U$2,FALSE))),"-",(VLOOKUP(G$9&$O$10&$P$3,data,$U$2,FALSE))) -> 54 | H30: =IF(ISERROR((VLOOKUP(H$9&$O$10&$P$3,data,$U$2,FALSE))),"-",(VLOOKUP(H$9&$O$10&$P$3,data,$U$2,FALSE))) -> 61 | I30: -54 | J30: 39 | K30: =IF(ISERROR((R30-S30)),"-",(R30-S30)) -> -1 | L30: =IF(ISERROR((T30-U30)),"-",(T30-U30)) -> 1 | O30: =Lists!K53 -> SENE | P30: Statement/EHC plan | R30: 0 | S30: 1 | T30: 2 | U30: 1
A31: EAL National Comparator: All Pupils
A32: EAL | B32: English first language | C32: =IF(ISERROR((VLOOKUP(C$9&$O32&$S$1,data,6,FALSE))),"-",(VLOOKUP(C$9&$O32&$S$1,data,6,FALSE))) -> 70 | D32: =IF(ISERROR((VLOOKUP(D$9&$O32&$S$1,data,6,FALSE))),"-",(VLOOKUP(D$9&$O32&$S$1,data,6,FALSE))) -> 70 | E32: =IF(ISERROR((VLOOKUP(E$9&$O32&$S$1,data,'Ofsted Gaps Report'!$U$2,FALSE))),"-",(VLOOKUP(E$9&$O32&$S$1,data,'Ofsted Gaps Report'!$U$2,FALSE))) -> 64.28571429 | F32: =IF(ISERROR((VLOOKUP(F$9&$O32&$S$1,data,'Ofsted Gaps Report'!$U$2,FALSE))),"-",(VLOOKUP(F$9&$O32&$S$1,data,'Ofsted Gaps Report'!$U$2,FALSE))) -> 71.42857143 | G32: =IF(ISERROR((VLOOKUP(G$9&$O$10&$P$3,data,$U$2,FALSE))),"-",(VLOOKUP(G$9&$O$10&$P$3,data,$U$2,FALSE))) -> 54 | H32: =IF(ISERROR((VLOOKUP(H$9&$O$10&$P$3,data,$U$2,FALSE))),"-",(VLOOKUP(H$9&$O$10&$P$3,data,$U$2,FALSE))) -> 61 | I32: =IF(ISERROR((ROUND(E32,0)-G32)),"-",(ROUND(E32,0)-G32)) -> 10 | J32: =IF(ISERROR((ROUND(F32,0)-H32)),"-",(ROUND(F32,0)-H32)) -> 10 | K32: =IF(ISERROR((R32-S32)),"-",(R32-S32)) -> 7 | L32: =IF(ISERROR((T32-U32)),"-",(T32-U32)) -> 7 | O32: =Lists!K54 -> EALENG | P32: English first language | R32: =IF(ISERROR((ROUND(E32/100*C32,0))),"",(ROUND(E32/100*C32,0))) -> 45 | S32: =IF(ISERROR((ROUND(G32/100*C32,0))),"",(ROUND(G32/100*C32,0))) -> 38 | T32: =IF(ISERROR((ROUND(F32/100*D32,0))),"",(ROUND(F32/100*D32,0))) -> 50 | U32: =IF(ISERROR((ROUND(H32/100*D32,0))),"",(ROUND(H32/100*D32,0))) -> 43
B33: English additional language | C33: =IF(ISERROR((VLOOKUP(C$9&$O33&$S$1,data,6,FALSE))),"-",(VLOOKUP(C$9&$O33&$S$1,data,6,FALSE))) -> 18 | D33: =IF(ISERROR((VLOOKUP(D$9&$O33&$S$1,data,6,FALSE))),"-",(VLOOKUP(D$9&$O33&$S$1,data,6,FALSE))) -> 18 | E33: =IF(ISERROR((VLOOKUP(E$9&$O33&$S$1,data,'Ofsted Gaps Report'!$U$2,FALSE))),"-",(VLOOKUP(E$9&$O33&$S$1,data,'Ofsted Gaps Report'!$U$2,FALSE))) -> 61.11111111 | F33: =IF(ISERROR((VLOOKUP(F$9&$O33&$S$1,data,'Ofsted Gaps Report'!$U$2,FALSE))),"-",(VLOOKUP(F$9&$O33&$S$1,data,'Ofsted Gaps Report'!$U$2,FALSE))) -> 61.11111111 | G33: =IF(ISERROR((VLOOKUP(G$9&$O$10&$P$3,data,$U$2,FALSE))),"-",(VLOOKUP(G$9&$O$10&$P$3,data,$U$2,FALSE))) -> 54 | H33: =IF(ISERROR((VLOOKUP(H$9&$O$10&$P$3,data,$U$2,FALSE))),"-",(VLOOKUP(H$9&$O$10&$P$3,data,$U$2,FALSE))) -> 61 | I33: 7 | J33: 0 | K33: =IF(ISERROR((R33-S33)),"-",(R33-S33)) -> 1 | L33: =IF(ISERROR((T33-U33)),"-",(T33-U33)) -> 0 | O33: =Lists!K55 -> EALOTH | P33: English Additional Lang | R33: 11 | S33: 10 | T33: 11 | U33: 11
B34: Gap (Eng. vs. Other than Eng.) | C34: =IF(ISERROR((ABS(ROUND(C33,0)-ROUND(C32,0)))),"-",(ABS(ROUND(C33,0)-ROUND(C32,0)))) -> 52 | D34: =IF(ISERROR((ABS(ROUND(D33,0)-ROUND(D32,0)))),"-",(ABS(ROUND(D33,0)-ROUND(D32,0)))) -> 52 | E34: =IF(ISERROR((ABS(ROUND(E33,0)-ROUND(E32,0)))),"-",(ABS(ROUND(E33,0)-ROUND(E32,0)))) -> 3 | F34: =IF(ISERROR((ABS(ROUND(F33,0)-ROUND(F32,0)))),"-",(ABS(ROUND(F33,0)-ROUND(F32,0)))) -> 10 | G34: =IF(ISERROR((ABS(ROUND(G33,0)-ROUND(G32,0)))),"-",(ABS(ROUND(G33,0)-ROUND(G32,0)))) -> 0 | H34: =IF(ISERROR((ABS(ROUND(H33,0)-ROUND(H32,0)))),"-",(ABS(ROUND(H33,0)-ROUND(H32,0)))) -> 0
A64: Pupil Diff to Nat Key:
A65: 2 | B65: at least 2 more pupils achieved the standard in the school compared to the national comparator
A66: 1 | B66: 1 more pupil achieved the standard in the school compared to the national comparator
A67: -1 | B67: 1 less pupil achieved the standard in the school compared to the national comparator
A68: -2 | B68: at least 2 less pupils achieved the standard in the school compared to the national comparator
A72: =A8 -> 2017 version 1.1 | C72: Cohort | E72: School % 2 | G72: National % 2 | I72: % gap to Nat: | K72: Pupil Diff to Nat: | R72: Nos of pupils | S72: Nos of pupils | T72: Nos of pupils | U72: Nos of pupils
C73: =$R$3 -> 2016 | D73: =$S$3 -> 2017 | E73: =$R$3 -> 2016 | F73: =$S$3 -> 2017 | G73: =$R$3 -> 2016 | H73: =$S$3 -> 2017 | I73: =G73 -> 2016 | J73: =H73 -> 2017 | K73: =$R$3 -> 2016 | L73: =$S$3 -> 2017 | O73: 2016+ | R73: using Sch % | S73: using Nat % | T73: using Sch % | U73: using Nat %
A74: All Pupils | C74: =IF(ISERROR((VLOOKUP(C$9&$O74&$S$1,data,6,FALSE))),"-",(VLOOKUP(C$9&$O74&$S$1,data,6,FALSE))) -> 88 | D74: =IF(ISERROR((VLOOKUP(D$9&$O74&$S$1,data,6,FALSE))),"-",(VLOOKUP(D$9&$O74&$S$1,data,6,FALSE))) -> 88 | E74: =IF(ISERROR((VLOOKUP(E$9&$O74&$S$1,data,'Ofsted Gaps Report'!$U$2,FALSE))),"-",(VLOOKUP(E$9&$O74&$S$1,data,'Ofsted Gaps Report'!$U$2,FALSE))) -> 63.63636364 | F74: =IF(ISERROR((VLOOKUP(F$9&$O74&$S$1,data,'Ofsted Gaps Report'!$U$2,FALSE))),"-",(VLOOKUP(F$9&$O74&$S$1,data,'Ofsted Gaps Report'!$U$2,FALSE))) -> 69.31818182 | G74: =IF(ISERROR((VLOOKUP(G$9&$O74&$P$3,data,$U$2,FALSE))),"-",(VLOOKUP(G$9&$O74&$P$3,data,$U$2,FALSE))) -> 54 | H74: =IF(ISERROR((VLOOKUP(H$9&$O74&$P$3,data,$U$2,FALSE))),"-",(VLOOKUP(H$9&$O74&$P$3,data,$U$2,FALSE))) -> 61 | I74: =IF(ISERROR((ROUND(E74,0)-G74)),"-",(ROUND(E74,0)-G74)) -> 10 | J74: =IF(ISERROR((ROUND(F74,0)-H74)),"-",(ROUND(F74,0)-H74)) -> 8 | K74: =IF(ISERROR((R74-S74)),"-",(R74-S74)) -> 8 | L74: =IF(ISERROR((T74-U74)),"-",(T74-U74)) -> 7 | O74: =Lists!$K$42 -> AllAll | R74: =IF(ISERROR((ROUND(E74/100*C74,0))),"",(ROUND(E74/100*C74,0))) -> 56 | S74: =IF(ISERROR((ROUND(G74/100*C74,0))),"",(ROUND(G74/100*C74,0))) -> 48 | T74: =IF(ISERROR((ROUND(F74/100*D74,0))),"",(ROUND(F74/100*D74,0))) -> 61 | U74: =IF(ISERROR((ROUND(H74/100*D74,0))),"",(ROUND(H74/100*D74,0))) -> 54
A75: Ethnicity National Comparator: All Pupils
A76: White | B76: White - British | C76: =IF(ISERROR((VLOOKUP(C$9&$O76&$S$1,data,6,FALSE))),"-",(VLOOKUP(C$9&$O76&$S$1,data,6,FALSE))) -> 44 | D76: 43 | E76: =IF(ISERROR((VLOOKUP(E$9&$O76&$S$1,data,'Ofsted Gaps Report'!$U$2,FALSE))),"-",(VLOOKUP(E$9&$O76&$S$1,data,'Ofsted Gaps Report'!$U$2,FALSE))) -> 61.36363636 | F76: =IF(ISERROR((VLOOKUP(F$9&$O76&$S$1,data,'Ofsted Gaps Report'!$U$2,FALSE))),"-",(VLOOKUP(F$9&$O76&$S$1,data,'Ofsted Gaps Report'!$U$2,FALSE))) -> 67.44186047 | G76: =IF(ISERROR((VLOOKUP(G$9&$O$10&$P$3,data,$U$2,FALSE))),"-",(VLOOKUP(G$9&$O$10&$P$3,data,$U$2,FALSE))) -> 54 | H76: 61 | I76: =IF(ISERROR((ROUND(E76,0)-G76)),"-",(ROUND(E76,0)-G76)) -> 7 | J76: =IF(ISERROR((ROUND(F76,0)-H76)),"-",(ROUND(F76,0)-H76)) -> 6 | K76: =IF(ISERROR((R76-S76)),"-",(R76-S76)) -> 3 | L76: =IF(ISERROR((T76-U76)),"-",(T76-U76)) -> 3 | O76: =Lists!K71 -> ETHWBRI | P76: White | Q76: British | R76: =IF(ISERROR((ROUND(E76/100*C76,0))),"",(ROUND(E76/100*C76,0))) -> 27 | S76: =IF(ISERROR((ROUND(G76/100*C76,0))),"",(ROUND(G76/100*C76,0))) -> 24 | T76: =IF(ISERROR((ROUND(F76/100*D76,0))),"",(ROUND(F76/100*D76,0))) -> 29 | U76: =IF(ISERROR((ROUND(H76/100*D76,0))),"",(ROUND(H76/100*D76,0))) -> 26
B77: White - Irish | C77: - | D77: - | E77: =IF(ISERROR((VLOOKUP(E$9&$O77&$S$1,data,'Ofsted Gaps Report'!$U$2,FALSE))),"-",(VLOOKUP(E$9&$O77&$S$1,data,'Ofsted Gaps Report'!$U$2,FALSE))) -> - | F77: =IF(ISERROR((VLOOKUP(F$9&$O77&$S$1,data,'Ofsted Gaps Report'!$U$2,FALSE))),"-",(VLOOKUP(F$9&$O77&$S$1,data,'Ofsted Gaps Report'!$U$2,FALSE))) -> - | G77: 54 | H77: 61 | I77: - | J77: - | K77: =IF(ISERROR((R77-S77)),"-",(R77-S77)) -> - | L77: =IF(ISERROR((T77-U77)),"-",(T77-U77)) -> - | O77: =Lists!K72 -> ETHWIRI | Q77: Irish
B78: Traveller of Irish Heritage | C78: - | D78: - | E78: =IF(ISERROR((VLOOKUP(E$9&$O78&$S$1,data,'Ofsted Gaps Report'!$U$2,FALSE))),"-",(VLOOKUP(E$9&$O78&$S$1,data,'Ofsted Gaps Report'!$U$2,FALSE))) -> - | F78: =IF(ISERROR((VLOOKUP(F$9&$O78&$S$1,data,'Ofsted Gaps Report'!$U$2,FALSE))),"-",(VLOOKUP(F$9&$O78&$S$1,data,'Ofsted Gaps Report'!$U$2,FALSE))) -> - | G78: 54 | H78: 61 | I78: - | J78: - | K78: - | L78: - | O78: =Lists!K70 -> ETHWIRT | Q78: Traveller
B79: Gypsy / Roma | C79: - | D79: - | E79: =IF(ISERROR((VLOOKUP(E$9&$O79&$S$1,data,'Ofsted Gaps Report'!$U$2,FALSE))),"-",(VLOOKUP(E$9&$O79&$S$1,data,'Ofsted Gaps Report'!$U$2,FALSE))) -> - | F79: =IF(ISERROR((VLOOKUP(F$9&$O79&$S$1,data,'Ofsted Gaps Report'!$U$2,FALSE))),"-",(VLOOKUP(F$9&$O79&$S$1,data,'Ofsted Gaps Report'!$U$2,FALSE))) -> - | G79: 54 | H79: 61 | I79: - | J79: - | K79: - | L79: - | O79: =Lists!K65 -> ETHWROM | Q79: Gypsy / Roma
B80: Any Other White Background | C80: 2 | D80: 3 | E80: =IF(ISERROR((VLOOKUP(E$9&$O80&$S$1,data,'Ofsted Gaps Report'!$U$2,FALSE))),"-",(VLOOKUP(E$9&$O80&$S$1,data,'Ofsted Gaps Report'!$U$2,FALSE))) -> 100 | F80: =IF(ISERROR((VLOOKUP(F$9&$O80&$S$1,data,'Ofsted Gaps Report'!$U$2,FALSE))),"-",(VLOOKUP(F$9&$O80&$S$1,data,'Ofsted Gaps Report'!$U$2,FALSE))) -> 100 | G80: 54 | H80: 61 | I80: 46 | J80: 39 | K80: 1 | L80: 1 | O80: =Lists!K60 -> ETHWOTH | Q80: Other Wh. | R80: =IF(ISERROR((ROUND(E80/100*C80,0))),"",(ROUND(E80/100*C80,0))) -> 2 | S80: =IF(ISERROR((ROUND(G80/100*C80,0))),"",(ROUND(G80/100*C80,0))) -> 1 | T80: 3 | U80: 2
A81: Mixed | B81: White and Black Caribbean | C81: 4 | D81: 8 | E81: =IF(ISERROR((VLOOKUP(E$9&$O81&$S$1,data,'Ofsted Gaps Report'!$U$2,FALSE))),"-",(VLOOKUP(E$9&$O81&$S$1,data,'Ofsted Gaps Report'!$U$2,FALSE))) -> 50 | F81: =IF(ISERROR((VLOOKUP(F$9&$O81&$S$1,data,'Ofsted Gaps Report'!$U$2,FALSE))),"-",(VLOOKUP(F$9&$O81&$S$1,data,'Ofsted Gaps Report'!$U$2,FALSE))) -> 50 | G81: 54 | H81: 61 | I81: =IF(ISERROR((ROUND(E81,0)-G81)),"-",(ROUND(E81,0)-G81)) -> -4 | J81: =IF(ISERROR((ROUND(F81,0)-H81)),"-",(ROUND(F81,0)-H81)) -> -11 | K81: =IF(ISERROR((R81-S81)),"-",(R81-S81)) -> 0 | L81: =IF(ISERROR((T81-U81)),"-",(T81-U81)) -> -1 | O81: =Lists!K75 -> ETHMWBC | P81: Mixed | Q81: Wh & Blk Car | R81: 2 | S81: 2 | T81: =IF(ISERROR((ROUND(F81/100*D81,0))),"",(ROUND(F81/100*D81,0))) -> 4 | U81: =IF(ISERROR((ROUND(H81/100*D81,0))),"",(ROUND(H81/100*D81,0))) -> 5
B82: White and Black African | C82: =IF(ISERROR((VLOOKUP(C$9&#REF!&$S$1,data,6,FALSE))),"-",(VLOOKUP(C$9&#REF!&$S$1,data,6,FALSE))) -> - | D82: =IF(ISERROR((VLOOKUP(D$9&#REF!&$S$1,data,6,FALSE))),"-",(VLOOKUP(D$9&#REF!&$S$1,data,6,FALSE))) -> - | E82: =IF(ISERROR((VLOOKUP(E$9&#REF!&$S$1,data,'Ofsted Gaps Report'!$U$2,FALSE))),"-",(VLOOKUP(E$9&#REF!&$S$1,data,'Ofsted Gaps Report'!$U$2,FALSE))) -> - | F82: =IF(ISERROR((VLOOKUP(F$9&#REF!&$S$1,data,'Ofsted Gaps Report'!$U$2,FALSE))),"-",(VLOOKUP(F$9&#REF!&$S$1,data,'Ofsted Gaps Report'!$U$2,FALSE))) -> - | G82: 54 | H82: 61 | I82: - | J82: - | K82: =IF(ISERROR((R82-S82)),"-",(R82-S82)) -> - | L82: - | O82: =Lists!K62 -> ETHBAFR | Q82: Wh & Blk Afr
B83: White and Asian | C83: =IF(ISERROR((VLOOKUP(C$9&$O83&$S$1,data,6,FALSE))),"-",(VLOOKUP(C$9&$O83&$S$1,data,6,FALSE))) -> 1 | D83: 4 | E83: =IF(ISERROR((VLOOKUP(E$9&$O83&$S$1,data,'Ofsted Gaps Report'!$U$2,FALSE))),"-",(VLOOKUP(E$9&$O83&$S$1,data,'Ofsted Gaps Report'!$U$2,FALSE))) -> 100 | F83: =IF(ISERROR((VLOOKUP(F$9&$O83&$S$1,data,'Ofsted Gaps Report'!$U$2,FALSE))),"-",(VLOOKUP(F$9&$O83&$S$1,data,'Ofsted Gaps Report'!$U$2,FALSE))) -> 100 | G83: 54 | H83: 61 | I83: 46 | J83: 39 | K83: 0 | L83: 2 | O83: =Lists!K73 -> ETHMWAS | Q83: Wh & Asi | R83: 1 | S83: 1 | T83: 4 | U83: 2
B84: Any Other Mixed Background | C84: 3 | D84: 5 | E84: =IF(ISERROR((VLOOKUP(E$9&$O84&$S$1,data,'Ofsted Gaps Report'!$U$2,FALSE))),"-",(VLOOKUP(E$9&$O84&$S$1,data,'Ofsted Gaps Report'!$U$2,FALSE))) -> 66.66666667 | F84: =IF(ISERROR((VLOOKUP(F$9&$O84&$S$1,data,'Ofsted Gaps Report'!$U$2,FALSE))),"-",(VLOOKUP(F$9&$O84&$S$1,data,'Ofsted Gaps Report'!$U$2,FALSE))) -> 80 | G84: 54 | H84: 61 | I84: 13 | J84: 19 | K84: 0 | L84: 1 | O84: =Lists!K59 -> ETHMOTH | Q84: Other Mixed | R84: 2 | S84: 2 | T84: 4 | U84: 3
A85: Asian or Asian British | B85: Indian | C85: 12 | D85: 8 | E85: =IF(ISERROR((VLOOKUP(E$9&$O85&$S$1,data,'Ofsted Gaps Report'!$U$2,FALSE))),"-",(VLOOKUP(E$9&$O85&$S$1,data,'Ofsted Gaps Report'!$U$2,FALSE))) -> 83.33333333 | F85: =IF(ISERROR((VLOOKUP(F$9&$O85&$S$1,data,'Ofsted Gaps Report'!$U$2,FALSE))),"-",(VLOOKUP(F$9&$O85&$S$1,data,'Ofsted Gaps Report'!$U$2,FALSE))) -> 75 | G85: 54 | H85: 61 | I85: 29 | J85: 14 | K85: 4 | L85: 1 | O85: =Lists!K66 -> ETHAIND | P85: Asian or Asian British | Q85: Indian | R85: 10 | S85: 6 | T85: 6 | U85: 5
B86: Pakistani | C86: 6 | D86: 6 | E86: =IF(ISERROR((VLOOKUP(E$9&$O86&$S$1,data,'Ofsted Gaps Report'!$U$2,FALSE))),"-",(VLOOKUP(E$9&$O86&$S$1,data,'Ofsted Gaps Report'!$U$2,FALSE))) -> 33.33333333 | F86: =IF(ISERROR((VLOOKUP(F$9&$O86&$S$1,data,'Ofsted Gaps Report'!$U$2,FALSE))),"-",(VLOOKUP(F$9&$O86&$S$1,data,'Ofsted Gaps Report'!$U$2,FALSE))) -> 66.66666667 | G86: 54 | H86: 61 | I86: -21 | J86: 6 | K86: -1 | L86: 0 | O86: =Lists!K68 -> ETHAPKN | Q86: Pakistani | R86: 2 | S86: 3 | T86: 4 | U86: 4
B87: Bangladeshi | C87: - | D87: - | E87: =IF(ISERROR((VLOOKUP(E$9&$O87&$S$1,data,'Ofsted Gaps Report'!$U$2,FALSE))),"-",(VLOOKUP(E$9&$O87&$S$1,data,'Ofsted Gaps Report'!$U$2,FALSE))) -> - | F87: =IF(ISERROR((VLOOKUP(F$9&$O87&$S$1,data,'Ofsted Gaps Report'!$U$2,FALSE))),"-",(VLOOKUP(F$9&$O87&$S$1,data,'Ofsted Gaps Report'!$U$2,FALSE))) -> - | G87: 54 | H87: 61 | I87: - | J87: - | K87: - | L87: - | O87: =Lists!K61 -> ETHABAN | Q87: Bangladeshi
B88: Any Other Asian Background | C88: 3 | D88: 5 | E88: =IF(ISERROR((VLOOKUP(E$9&$O88&$S$1,data,'Ofsted Gaps Report'!$U$2,FALSE))),"-",(VLOOKUP(E$9&$O88&$S$1,data,'Ofsted Gaps Report'!$U$2,FALSE))) -> 66.66666667 | F88: =IF(ISERROR((VLOOKUP(F$9&$O88&$S$1,data,'Ofsted Gaps Report'!$U$2,FALSE))),"-",(VLOOKUP(F$9&$O88&$S$1,data,'Ofsted Gaps Report'!$U$2,FALSE))) -> 80 | G88: 54 | H88: 61 | I88: 13 | J88: 19 | K88: 0 | L88: 1 | O88: =Lists!K56 -> ETHAOTH | Q88: Other Asian | R88: 2 | S88: 2 | T88: 4 | U88: 3
A89: Black or Black British | B89: Black Caribbean | C89: 3 | D89: 1 | E89: =IF(ISERROR((VLOOKUP(E$9&$O89&$S$1,data,'Ofsted Gaps Report'!$U$2,FALSE))),"-",(VLOOKUP(E$9&$O89&$S$1,data,'Ofsted Gaps Report'!$U$2,FALSE))) -> 66.66666667 | F89: =IF(ISERROR((VLOOKUP(F$9&$O89&$S$1,data,'Ofsted Gaps Report'!$U$2,FALSE))),"-",(VLOOKUP(F$9&$O89&$S$1,data,'Ofsted Gaps Report'!$U$2,FALSE))) -> 0 | G89: 54 | H89: 61 | I89: 13 | J89: -61 | K89: 0 | L89: -1 | O89: =Lists!K63 -> ETHBCRB | P89: Black or Black British | Q89: Black Caribb. | R89: 2 | S89: 2 | T89: 0 | U89: 1
B90: Black - African | C90: =IF(ISERROR((VLOOKUP(C$9&$O82&$S$1,data,6,FALSE))),"-",(VLOOKUP(C$9&$O82&$S$1,data,6,FALSE))) -> 4 | D90: =IF(ISERROR((VLOOKUP(D$9&$O82&$S$1,data,6,FALSE))),"-",(VLOOKUP(D$9&$O82&$S$1,data,6,FALSE))) -> 4 | E90: =IF(ISERROR((VLOOKUP(E$9&$O82&$S$1,data,'Ofsted Gaps Report'!$U$2,FALSE))),"-",(VLOOKUP(E$9&$O82&$S$1,data,'Ofsted Gaps Report'!$U$2,FALSE))) -> 50 | F90: =IF(ISERROR((VLOOKUP(F$9&$O82&$S$1,data,'Ofsted Gaps Report'!$U$2,FALSE))),"-",(VLOOKUP(F$9&$O82&$S$1,data,'Ofsted Gaps Report'!$U$2,FALSE))) -> 75 | G90: 54 | H90: 61 | I90: -4 | J90: 14 | K90: 0 | L90: 1 | Q90: Black African | R90: 2 | S90: 2 | T90: 3 | U90: 2
B91: Any Other Black Background | C91: =IF(ISERROR((VLOOKUP(C$9&$O91&$S$1,data,6,FALSE))),"-",(VLOOKUP(C$9&$O91&$S$1,data,6,FALSE))) -> 1 | D91: 1 | E91: =IF(ISERROR((VLOOKUP(E$9&$O91&$S$1,data,'Ofsted Gaps Report'!$U$2,FALSE))),"-",(VLOOKUP(E$9&$O91&$S$1,data,'Ofsted Gaps Report'!$U$2,FALSE))) -> 100 | F91: =IF(ISERROR((VLOOKUP(F$9&$O91&$S$1,data,'Ofsted Gaps Report'!$U$2,FALSE))),"-",(VLOOKUP(F$9&$O91&$S$1,data,'Ofsted Gaps Report'!$U$2,FALSE))) -> 0 | G91: 54 | H91: 61 | I91: 46 | J91: -61 | K91: 0 | L91: -1 | O91: =Lists!K57 -> ETHBOTH | Q91: Other Blk | R91: 1 | S91: 1 | T91: 0 | U91: 1
B92: Chinese | C92: - | D92: - | E92: =IF(ISERROR((VLOOKUP(E$9&$O92&$S$1,data,'Ofsted Gaps Report'!$U$2,FALSE))),"-",(VLOOKUP(E$9&$O92&$S$1,data,'Ofsted Gaps Report'!$U$2,FALSE))) -> - | F92: =IF(ISERROR((VLOOKUP(F$9&$O92&$S$1,data,'Ofsted Gaps Report'!$U$2,FALSE))),"-",(VLOOKUP(F$9&$O92&$S$1,data,'Ofsted Gaps Report'!$U$2,FALSE))) -> - | G92: 54 | H92: 61 | I92: - | J92: - | K92: - | L92: - | O92: =Lists!K64 -> ETHCHNE | P92: Other | Q92: Chinese
B93: Any Other Ethnic Group | C93: 2 | D93: - | E93: =IF(ISERROR((VLOOKUP(E$9&$O93&$S$1,data,'Ofsted Gaps Report'!$U$2,FALSE))),"-",(VLOOKUP(E$9&$O93&$S$1,data,'Ofsted Gaps Report'!$U$2,FALSE))) -> 50 | F93: =IF(ISERROR((VLOOKUP(F$9&$O93&$S$1,data,'Ofsted Gaps Report'!$U$2,FALSE))),"-",(VLOOKUP(F$9&$O93&$S$1,data,'Ofsted Gaps Report'!$U$2,FALSE))) -> - | G93: 54 | H93: 61 | I93: -4 | J93: - | K93: 0 | L93: - | O93: =Lists!K58 -> ETHOOTH | Q93: Any Other | R93: 1 | S93: 1
A94: Unclassified | B94: Refused | C94: 1 | D94: - | E94: =IF(ISERROR((VLOOKUP(E$9&$O94&$S$1,data,'Ofsted Gaps Report'!$U$2,FALSE))),"-",(VLOOKUP(E$9&$O94&$S$1,data,'Ofsted Gaps Report'!$U$2,FALSE))) -> 100 | F94: =IF(ISERROR((VLOOKUP(F$9&$O94&$S$1,data,'Ofsted Gaps Report'!$U$2,FALSE))),"-",(VLOOKUP(F$9&$O94&$S$1,data,'Ofsted Gaps Report'!$U$2,FALSE))) -> - | G94: 54 | H94: 61 | I94: 46 | J94: - | K94: 0 | L94: - | O94: =Lists!K69 -> ETHREFU | P94: Unclassified | Q94: Refused | R94: 1 | S94: 1
B95: Information Not Yet Obtained | C95: - | D95: - | E95: =IF(ISERROR((VLOOKUP(E$9&$O95&$S$1,data,'Ofsted Gaps Report'!$U$2,FALSE))),"-",(VLOOKUP(E$9&$O95&$S$1,data,'Ofsted Gaps Report'!$U$2,FALSE))) -> - | F95: =IF(ISERROR((VLOOKUP(F$9&$O95&$S$1,data,'Ofsted Gaps Report'!$U$2,FALSE))),"-",(VLOOKUP(F$9&$O95&$S$1,data,'Ofsted Gaps Report'!$U$2,FALSE))) -> - | G95: 54 | H95: 61 | I95: - | J95: - | K95: - | L95: - | O95: =Lists!K67 -> ETHNOBT | Q95: Info not Obt
A130: Pupil Diff to Nat Key:
A131: 2 | B131: at least 2 more pupils achieved the standard in the school compared to the national comparator
A132: 1 | B132: 1 more pupil achieved the standard in the school compared to the national comparator
A133: -1 | B133: 1 less pupil achieved the standard in the school compared to the national comparator
A134: -2 | B134: at least 2 less pupils achieved the standard in the school compared to the national comparator
A135: Notes

Sheet All Schools
D1: Key Stage 2 by Pupil Characteristics
D3: % Reading, Writing & Maths Expected+
B8: =Introduction!L7 -> 2017 version 1.1
D9: DISADV. PUP PREMIUM: Eligible | H9: DISADV. PUP PREMIUM: All Other Pupils3 | L9: Gap between groups | U9: 2015 | V9: 2016+
B10: DfE | C10: School | D10: 1Cohort | E10: Indicator % | H10: 1Cohort | I10: Indicator % | L10: 1Cohort | M10: Indicator % | S10: Indicator | U10: =VLOOKUP($W$10,Lists!$I$8:$M$21,4,FALSE) -> 32 | V10: =VLOOKUP($W$10,Lists!$I$8:$M$21,2,FALSE) -> 42 | W10: =D3 -> % Reading, Writing & Maths Expected+
D11: =$U$14 -> 2017 | E11: =$S$14 -> 2015 | F11: =$T$14 -> 2016 | G11: =$U$14 -> 2017 | H11: =$U$14 -> 2017 | I11: =E11 -> 2015 | J11: =F11 -> 2016 | K11: =G11 -> 2017 | L11: =$U$14 -> 2017 | M11: =E11 -> 2015 | N11: =F11 -> 2016 | O11: =G11 -> 2017 | S11: Group 1 | T11: =D9 -> DISADV. PUP PREMIUM: Eligible | U11: =VLOOKUP($T11,Lists!$I$42:$K$81,2,FALSE) -> PPremiumTrue | V11: =VLOOKUP($T11,Lists!$I$42:$K$81,3,FALSE) -> DPP1
B12: 333 | C12: LA | D12: =IF(ISERROR((VLOOKUP($D$11&$V$11&"LA",data,6,FALSE))),"-",(VLOOKUP($D$11&$V$11&"LA",data,6,FALSE))) -> 1805 | E12: =IF(ISERROR((VLOOKUP(E$11&$U$11&"LA",OldData,$U$10,FALSE))),"-",(VLOOKUP(E$11&$U$11&"LA",OldData,$U$10,FALSE))) -> 58.74125874 | F12: =IF(ISERROR((VLOOKUP(F$11&$V$11&"LA",data,$V$10,FALSE))),"-",(VLOOKUP(F$11&$V$11&"LA",data,$V$10,FALSE))) -> 38.8952164 | G12: =IF(ISERROR((VLOOKUP(G$11&$V$11&"LA",data,$V$10,FALSE))),"-",(VLOOKUP(G$11&$V$11&"LA",data,$V$10,FALSE))) -> 48.51706771 | H12: =IF(ISERROR((VLOOKUP($D$11&$V$12&"LA",data,6,FALSE))),"-",(VLOOKUP($D$11&$V$12&"LA",data,6,FALSE))) -> 2541 | I12: =IF(ISERROR((VLOOKUP(I$11&$U$12&"LA",OldData,$U$10,FALSE))),"-",(VLOOKUP(I$11&$U$12&"LA",OldData,$U$10,FALSE))) -> 73.90350877 | J12: =IF(ISERROR((VLOOKUP(J$11&$V$12&"LA",data,$V$10,FALSE))),"-",(VLOOKUP(J$11&$V$12&"LA",data,$V$10,FALSE))) -> 59.60378984 | K12: =IF(ISERROR((VLOOKUP(K$11&$V$12&"LA",data,$V$10,FALSE))),"-",(VLOOKUP(K$11&$V$12&"LA",data,$V$10,FALSE))) -> 62.16857934 | L12: =IF(ISERROR((H12-D12)),"-",(H12-D12)) -> 736 | M12: =IF(ISERROR((I12-E12)),"-",(I12-E12)) -> 15.16225003 | N12: =IF(ISERROR((J12-F12)),"-",(J12-F12)) -> 20.70857344 | O12: =IF(ISERROR((K12-G12)),"-",(K12-G12)) -> 13.65151163 | S12: Group 2 | T12: =H9 -> DISADV. PUP PREMIUM: All Other Pupils3 | U12: =VLOOKUP($T12,Lists!$I$42:$K$81,2,FALSE) -> PPremiumFalse | V12: =VLOOKUP($T12,Lists!$I$42:$K$81,3,FALSE) -> DPP0
C13: National | D13: N/A | E13: =IF(ISERROR((VLOOKUP(E$11&$U$11&"NAT",OldData,$U$10,FALSE))),"-",(VLOOKUP(E$11&$U$11&"NAT",OldData,$U$10,FALSE))) -> 56 | F13: =IF(ISERROR((VLOOKUP(F$11&$V$11&"NAT",data,$V$10,FALSE))),"-",(VLOOKUP(F$11&$V$11&"NAT",data,$V$10,FALSE))) -> 39 | G13: =IF(ISERROR((VLOOKUP(G$11&$V$11&"NAT",data,$V$10,FALSE))),"-",(VLOOKUP(G$11&$V$11&"NAT",data,$V$10,FALSE))) -> 47 | H13: N/A | I13: =IF(ISERROR((VLOOKUP(I$11&$U$12&"NAT",OldData,$U$10,FALSE))),"-",(VLOOKUP(I$11&$U$12&"NAT",OldData,$U$10,FALSE))) -> 75 | J13: =IF(ISERROR((VLOOKUP(J$11&$V$12&"NAT",data,$V$10,FALSE))),"-",(VLOOKUP(J$11&$V$12&"NAT",data,$V$10,FALSE))) -> 61 | K13: =IF(ISERROR((VLOOKUP(K$11&$V$12&"NAT",data,$V$10,FALSE))),"-",(VLOOKUP(K$11&$V$12&"NAT",data,$V$10,FALSE))) -> 67 | L13: - | M13: =IF(ISERROR((I13-E13)),"-",(I13-E13)) -> 19 | N13: =IF(ISERROR((J13-F13)),"-",(J13-F13)) -> 22 | O13: =IF(ISERROR((K13-G13)),"-",(K13-G13)) -> 20
B14: =Lists!B3 -> 2101 | C14: =Lists!C3 -> Abbey Junior School | D14: =IF(ISERROR((VLOOKUP($D$11&$V$11&$B14,data,6,FALSE))),"-",(VLOOKUP($D$11&$V$11&$B14,data,6,FALSE))) -> 31 | E14: =IF(ISERROR((VLOOKUP(E$11&$U$11&B14,OldData,$U$10,FALSE))),"-",(VLOOKUP(E$11&$U$11&B14,OldData,$U$10,FALSE))) -> 47.05882353 | F14: =IF(ISERROR((VLOOKUP(F$11&$V$11&$B14,data,$V$10,FALSE))),"-",(VLOOKUP(F$11&$V$11&$B14,data,$V$10,FALSE))) -> 51.72413793 | G14: 61.29032258 | H14: =IF(ISERROR((VLOOKUP($D$11&$V$12&$B14,data,6,FALSE))),"-",(VLOOKUP($D$11&$V$12&$B14,data,6,FALSE))) -> 57 | I14: =IF(ISERROR((VLOOKUP(I$11&$U$12&$B14,OldData,$U$10,FALSE))),"-",(VLOOKUP(I$11&$U$12&$B14,OldData,$U$10,FALSE))) -> 84.28571429 | J14: =IF(ISERROR((VLOOKUP(J$11&$V$12&$B14,data,$V$10,FALSE))),"-",(VLOOKUP(J$11&$V$12&$B14,data,$V$10,FALSE))) -> 69.49152542 | K14: 73.68421053 | L14: =IF(ISERROR((H14-D14)),"-",(H14-D14)) -> 26 | M14: =IF(ISERROR((I14-E14)),"-",(I14-E14)) -> 37.22689076 | N14: =IF(ISERROR((J14-F14)),"-",(J14-F14)) -> 17.76738749 | O14: =IF(ISERROR((K14-G14)),"-",(K14-G14)) -> 12.39388795 | S14: =T14-1 -> 2015 | T14: =U14-1 -> 2016 | U14: =Lists!I2 -> 2017
B15: =Lists!B4 -> 3301 | C15: =Lists!C4 -> All Saints CofE Primary School | D15: 10 | E15: 38.46153846 | F15: 44.44444444 | G15: 20 | H15: 25 | I15: 81.81818182 | J15: 57.69230769 | K15: 60 | L15: 15 | M15: 43.35664336 | N15: 13.24786325 | O15: 40 | S15: LA | T15: 1
B16: =Lists!B5 -> 2104 | C16: =Lists!C5 -> Annie Lennard Infant School | D16: 9 | E16: - | F16: - | G16: 44.44444444 | H16: 22 | I16: - | J16: - | K16: 38.0952381 | L16: 13 | M16: - | N16: - | O16: -6.349206349
B17: =Lists!B6 -> 2105 | C17: =Lists!C6 -> Bearwood Primary School | D17: 28 | E17: 77.77777778 | F17: 59.25925926 | G17: 71.42857143 | H17: 34 | I17: 82.05128205 | J17: 68.96551724 | K17: 66.66666667 | L17: 6 | M17: 4.273504274 | N17: 9.706257982 | O17: -4.761904762
B18: =Lists!B7 -> 2176 | C18: =Lists!C7 -> Blackheath Primary School | D18: 35 | E18: 73.07692308 | F18: 68.96551724 | G18: 65.71428571 | H18: 23 | I18: 73.52941176 | J18: 66.66666667 | K18: 78.26086957 | L18: -12 | M18: 0.4524886878 | N18: -2.298850575 | O18: 12.54658385
B19: =Lists!B8 -> 2108 | C19: =Lists!C8 -> Bleakhouse Junior School | D19: 20 | E19: 41.17647059 | F19: 22.22222222 | G19: 20 | H19: 41 | I19: 72.09302326 | J19: 42.85714286 | K19: 51.2195122 | L19: 21 | M19: 30.91655267 | N19: 20.63492063 | O19: 31.2195122
B20: =Lists!B9 -> 2171 | C20: =Lists!C9 -> Brandhall Primary School | D20: 31 | E20: 69.04761905 | F20: 47.05882353 | G20: 70 | H20: 29 | I20: 66.66666667 | J20: 66.66666667 | K20: 67.85714286 | L20: -2 | M20: -2.380952381 | N20: 19.60784314 | O20: -2.142857143
B21: =Lists!B10 -> 2112 | C21: =Lists!C10 -> Brickhouse Primary School | D21: 17 | E21: 42.85714286 | F21: 42.85714286 | G21: 35.29411765 | H21: 7 | I21: 100 | J21: 33.33333333 | K21: 42.85714286 | L21: -10 | M21: 57.14285714 | N21: -9.523809524 | O21: 7.56302521
B22: =Lists!B11 -> 2054 | C22: =Lists!C11 -> Burnt Tree Primary School | D22: 18 | E22: 66.66666667 | F22: 31.25 | G22: 61.11111111 | H22: 11 | I22: 71.42857143 | J22: 30.76923077 | K22: 72.72727273 | L22: -7 | M22: 4.761904762 | N22: -0.4807692308 | O22: 11.61616162
B23: =Lists!B12 -> 2113 | C23: =Lists!C12 -> Cape Primary School | D23: 52 | E23: 52.83018868 | F23: 25 | G23: 29.41176471 | H23: 40 | I23: 38.23529412 | J23: 36.36363636 | K23: 43.58974359 | L23: -12 | M23: -14.59489456 | N23: 11.36363636 | O23: 14.17797888
B24: =Lists!B13 -> 2178 | C24: =Lists!C13 -> Causeway Green Primary School | D24: 31 | E24: 45.45454545 | F24: 41.37931034 | G24: 60 | H24: 29 | I24: 77.77777778 | J24: 61.29032258 | K24: 75.86206897 | L24: -2 | M24: 32.32323232 | N24: 19.91101224 | O24: 15.86206897
B25: =Lists!B14 -> 3400 | C25: =Lists!C14 -> Christ Church CofE Primary School | D25: 16 | E25: 80 | F25: 50 | G25: 62.5 | H25: 13 | I25: 84.21052632 | J25: 75 | K25: 76.92307692 | L25: -3 | M25: 4.210526316 | N25: 25 | O25: 14.42307692
B26: =Lists!B15 -> 2118 | C26: =Lists!C15 -> Corngreaves Primary School | D26: 12 | E26: 80 | F26: 81.81818182 | G26: 50 | H26: 20 | I26: 92.85714286 | J26: 83.33333333 | K26: 80 | L26: 8 | M26: 12.85714286 | N26: 1.515151515 | O26: 30
B27: =Lists!B16 -> 2123 | C27: =Lists!C16 -> Crocketts Comm. Primary School | D27: 15 | E27: 71.42857143 | F27: 46.15384615 | G27: 53.33333333 | H27: 18 | I27: 68.75 | J27: 70.58823529 | K27: 44.44444444 | L27: 3 | M27: -2.678571429 | N27: 24.43438914 | O27: -8.888888889
B28: =Lists!B17 -> 2124 | C28: =Lists!C17 -> Devonshire Junior School | D28: 35 | E28: 56.25 | F28: 51.35135135 | G28: 52.94117647 | H28: 59 | I28: 67.85714286 | J28: 55.10204082 | K28: 59.3220339 | L28: 24 | M28: 11.60714286 | N28: 3.750689465 | O28: 6.380857428
B29: =Lists!B18 -> 2072 | C29: =Lists!C18 -> Eaton Valley Primary School | D29: 19 | E29: 63.15789474 | F29: 26.08695652 | G29: 26.31578947 | H29: 41 | I29: 52.38095238 | J29: 34.7826087 | K29: 53.65853659 | L29: 22 | M29: -10.77694236 | N29: 8.695652174 | O29: 27.34274711
B30: =Lists!B19 -> 2177 | C30: =Lists!C19 -> Ferndale Primary School | D30: 15 | E30: 58.33333333 | F30: 22.22222222 | G30: 26.66666667 | H30: 47 | I30: 73.52941176 | J30: 47.91666667 | K30: 47.82608696 | L30: 32 | M30: 15.19607843 | N30: 25.69444444 | O30: 21.15942029
B31: =Lists!B20 -> 3409 | C31: =Lists!C20 -> Galton Valley Primary School | D31: 21 | E31: 77.77777778 | F31: 64.28571429 | G31: 66.66666667 | H31: 41 | I31: 71.875 | J31: 67.74193548 | K31: 85.36585366 | L31: 20 | M31: -5.902777778 | N31: 3.456221198 | O31: 18.69918699
B32: =Lists!B21 -> 2004 | C32: =Lists!C21 -> George Betts Primary School | D32: 31 | E32: 78.78787879 | F32: 28.57142857 | G32: 64.51612903 | H32: 31 | I32: 66.66666667 | J32: 50 | K32: 51.61290323 | L32: 0 | M32: -12.12121212 | N32: 21.42857143 | O32: -12.90322581
B33: =Lists!B22 -> 2075 | C33: =Lists!C22 -> Glebefields Primary School | D33: 32 | E33: 56.66666667 | F33: 26.47058824 | G33: 56.25 | H33: 25 | I33: 85.18518519 | J33: 30.76923077 | K33: 84 | L33: -7 | M33: 28.51851852 | N33: 4.298642534 | O33: 27.75
B34: =Lists!B23 -> 2127 | C34: =Lists!C23 -> Grace Mary Primary School | D34: 8 | E34: 62.5 | F34: =IF(ISERROR((VLOOKUP(F$11&$V$11&$B34,data,$V$10,FALSE))),"-",(VLOOKUP(F$11&$V$11&$B34,data,$V$10,FALSE))) -> 66.66666667 | G34: 87.5 | H34: 20 | I34: 78.57142857 | J34: =IF(ISERROR((VLOOKUP(J$11&$V$12&$B34,data,$V$10,FALSE))),"-",(VLOOKUP(J$11&$V$12&$B34,data,$V$10,FALSE))) -> 82.35294118 | K34: 70 | L34: 12 | M34: 16.07142857 | N34: 15.68627451 | O34: -17.5
B35: =Lists!B24 -> 2056 | C35: =Lists!C24 -> Great Bridge Primary School | D35: 21 | E35: 52.38095238 | F35: 53.33333333 | G35: 57.14285714 | H35: 40 | I35: 84.61538462 | J35: 66.66666667 | K35: 72.5 | L35: 19 | M35: 32.23443223 | N35: 13.33333333 | O35: 15.35714286
B36: =Lists!B25 -> 2166 | C36: =Lists!C25 -> Grove Vale Primary School | D36: 9 | E36: 88.88888889 | F36: 57.14285714 | G36: 66.66666667 | H36: 51 | I36: 78.43137255 | J36: 54.71698113 | K36: 66.66666667 | L36: 42 | M36: -10.45751634 | N36: -2.425876011 | O36: 0
B37: =Lists!B26 -> 2181 | C37: =Lists!C26 -> Guns Village Primary School | D37: 25 | E37: 45.45454545 | F37: 26.66666667 | G37: 40 | H37: 36 | I37: 63.15789474 | J37: 48.27586207 | K37: 50 | L37: 11 | M37: 17.70334928 | N37: 21.6091954 | O37: 10
B38: =Lists!B27 -> 2172 | C38: =Lists!C27 -> Hall Green Primary School | D38: 38 | E38: 43.58974359 | F38: 23.68421053 | G38: 55.26315789 | H38: 21 | I38: 60 | J38: 57.14285714 | K38: 76.19047619 | L38: -17 | M38: 16.41025641 | N38: 33.45864662 | O38: 20.9273183
B39: =Lists!B28 -> 2015 | C39: =Lists!C28 -> Hamstead Junior School | D39: 23 | E39: 76.92307692 | F39: 50 | G39: 56.52173913 | H39: 36 | I39: 77.77777778 | J39: 58.97435897 | K39: 77.77777778 | L39: 13 | M39: 0.8547008547 | N39: 8.974358974 | O39: 21.25603865
B40: =Lists!B29 -> 2041 | C40: =Lists!C29 -> Hargate Primary School | D40: 18 | E40: 54.54545455 | F40: 46.66666667 | G40: 55.55555556 | H40: 13 | I40: 68.42105263 | J40: 62.5 | K40: 61.53846154 | L40: -5 | M40: 13.87559809 | N40: 15.83333333 | O40: 5.982905983
B41: =Lists!B30 -> 2186 | C41: =Lists!C30 -> Harvills Hawthorn Primary School | D41: 22 | E41: 52.38095238 | F41: 56.52173913 | G41: 68.18181818 | H41: 38 | I41: 50 | J41: 70.37037037 | K41: 63.15789474 | L41: 16 | M41: -2.380952381 | N41: 13.84863124 | O41: -5.023923445
B42: =Lists!B31 -> 2188 | C42: =Lists!C31 -> Hateley Heath Primary School | D42: 27 | E42: 36.66666667 | F42: 8 | G42: 25.92592593 | H42: 34 | I42: 44.82758621 | J42: 28 | K42: 47.05882353 | L42: 7 | M42: 8.16091954 | N42: 20 | O42: 21.1328976
B43: =Lists!B32 -> 2128 | C43: =Lists!C32 -> Highfields Primary School | D43: 18 | E43: 69.23076923 | F43: 26.08695652 | G43: 61.11111111 | H43: 43 | I43: 76.08695652 | J43: 51.35135135 | K43: 58.13953488 | L43: 25 | M43: 6.856187291 | N43: 25.26439483 | O43: -2.971576227
B44: =Lists!B33 -> 3308 | C44: =Lists!C33 -> Holy Name RC Primary School | D44: 2 | E44: 60 | F44: 0 | G44: 50 | H44: 26 | I44: 83.33333333 | J44: 71.42857143 | K44: 65.38461538 | L44: 24 | M44: 23.33333333 | N44: 71.42857143 | O44: 15.38461538
B45: =Lists!B34 -> 3002 | C45: =Lists!C34 -> Holy Trinity CofE Primary School | D45: 16 | E45: 35.29411765 | F45: 47.36842105 | G45: 40 | H45: 30 | I45: 56.52173913 | J45: 42.85714286 | K45: 51.72413793 | L45: 14 | M45: 21.22762148 | N45: -4.511278195 | O45: 11.72413793
B46: =Lists!B35 -> 2078 | C46: =Lists!C35 -> Holyhead Primary School | D46: =IF(ISERROR((VLOOKUP($D$11&$V$11&$B46,data,6,FALSE))),"-",(VLOOKUP($D$11&$V$11&$B46,data,6,FALSE))) -> 13 | E46: =IF(ISERROR((VLOOKUP(E$11&$U$11&B46,OldData,$U$10,FALSE))),"-",(VLOOKUP(E$11&$U$11&B46,OldData,$U$10,FALSE))) -> 90 | F46: 0 | G46: 69.23076923 | H46: =IF(ISERROR((VLOOKUP($D$11&$V$12&$B46,data,6,FALSE))),"-",(VLOOKUP($D$11&$V$12&$B46,data,6,FALSE))) -> 16 | I46: =IF(ISERROR((VLOOKUP(I$11&$U$12&$B46,OldData,$U$10,FALSE))),"-",(VLOOKUP(I$11&$U$12&$B46,OldData,$U$10,FALSE))) -> 71.42857143 | J46: 63.63636364 | K46: 50 | L46: =IF(ISERROR((H46-D46)),"-",(H46-D46)) -> 3 | M46: =IF(ISERROR((I46-E46)),"-",(I46-E46)) -> -18.57142857 | N46: =IF(ISERROR((J46-F46)),"-",(J46-F46)) -> 63.63636364 | O46: =IF(ISERROR((K46-G46)),"-",(K46-G46)) -> -19.23076923
B47: =Lists!B36 -> 2164 | C47: =Lists!C36 -> Joseph Turner Primary School | D47: 22 | E47: 85.18518519 | F47: 72.22222222 | G47: 63.63636364 | H47: 28 | I47: 90.47619048 | J47: 77.41935484 | K47: 82.14285714 | L47: 6 | M47: 5.291005291 | N47: 5.197132616 | O47: 18.50649351
B48: =Lists!B37 -> 2057 | C48: =Lists!C37 -> Jubilee Park Primary School | D48: 22 | E48: 33.33333333 | F48: 21.05263158 | G48: 31.81818182 | H48: 6 | I48: 87.5 | J48: 16.66666667 | K48: 83.33333333 | L48: -16 | M48: 54.16666667 | N48: -4.385964912 | O48: 51.51515152
B49: =Lists!B38 -> 2182 | C49: =Lists!C38 -> King George V Primary School | D49: 14 | E49: 90 | F49: 20 | G49: 28.57142857 | H49: 17 | I49: 64.28571429 | J49: 42.10526316 | K49: 41.17647059 | L49: 3 | M49: -25.71428571 | N49: 22.10526316 | O49: 12.60504202
B50: =Lists!B39 -> 2173 | C50: =Lists!C39 -> Langley Primary School | D50: 29 | E50: 75 | F50: 48.38709677 | G50: 41.37931034 | H50: 31 | I50: 90 | J50: 78.26086957 | K50: 53.33333333 | L50: 2 | M50: 15 | N50: 29.87377279 | O50: 11.95402299
B51: =Lists!B40 -> 2133 | C51: =Lists!C40 -> Lightwoods Primary School | D51: 4 | E51: 100 | F51: 50 | G51: 50 | H51: 27 | I51: 96.2962963 | J51: 92.85714286 | K51: 74.07407407 | L51: 23 | M51: -3.703703704 | N51: 42.85714286 | O51: 24.07407407
B52: =Lists!B41 -> 2163 | C52: =Lists!C41 -> Lodge Primary School | D52: 27 | E52: 51.72413793 | F52: 16.66666667 | G52: 48.14814815 | H52: 34 | I52: 74.07407407 | J52: 40.625 | K52: 36.36363636 | L52: 7 | M52: 22.34993614 | N52: 23.95833333 | O52: -11.78451178
B53: =Lists!B42 -> 2162 | C53: =Lists!C42 -> Lyng Primary School | D53: 26 | E53: 57.69230769 | F53: 41.66666667 | G53: 56 | H53: 35 | I53: 65.51724138 | J53: 69.6969697 | K53: 62.85714286 | L53: 9 | M53: 7.824933687 | N53: 28.03030303 | O53: 6.857142857
B54: =Lists!B43 -> 2045 | C54: =Lists!C43 -> Mesty Croft Academy | D54: 14 | E54: 47.05882353 | F54: =IF(ISERROR((VLOOKUP(F$11&$V$11&$B54,data,$V$10,FALSE))),"-",(VLOOKUP(F$11&$V$11&$B54,data,$V$10,FALSE))) -> 37.5 | G54: 35.71428571 | H54: 27 | I54: 88.88888889 | J54: =IF(ISERROR((VLOOKUP(J$11&$V$12&$B54,data,$V$10,FALSE))),"-",(VLOOKUP(J$11&$V$12&$B54,data,$V$10,FALSE))) -> 66.66666667 | K54: 59.25925926 | L54: 13 | M54: 41.83006536 | N54: 29.16666667 | O54: 23.54497354
B55: =Lists!B44 -> 2134 | C55: =Lists!C44 -> Moat Farm Junior School | D55: 55 | E55: 65.90909091 | F55: 46.93877551 | G55: 54.54545455 | H55: 66 | I55: 82.66666667 | J55: 66.66666667 | K55: 65.15151515 | L55: 11 | M55: 16.75757576 | N55: 19.72789116 | O55: 10.60606061
B56: =Lists!B45 -> 2046 | C56: =Lists!C45 -> Moorlands Primary School | D56: 9 | E56: 50 | F56: 55.55555556 | G56: 33.33333333 | H56: 22 | I56: 70 | J56: 45 | K56: 72.72727273 | L56: 13 | M56: 20 | N56: -10.55555556 | O56: 39.39393939
B57: =Lists!B46 -> 2074 | C57: =Lists!C46 -> Newtown Primary School | D57: 17 | E57: 40 | F57: 25 | G57: 23.52941176 | H57: 15 | I57: 60 | J57: 50 | K57: 33.33333333 | L57: -2 | M57: 20 | N57: 25 | O57: 9.803921569
B58: =Lists!B47 -> 2136 | C58: =Lists!C47 -> Oakham Primary School | D58: 18 | E58: 92.30769231 | F58: 80 | G58: 83.33333333 | H58: 42 | I58: 93.47826087 | J58: 88.63636364 | K58: 90.47619048 | L58: 24 | M58: 1.170568562 | N58: 8.636363636 | O58: 7.142857143
B59: =Lists!B48 -> 2061 | C59: =Lists!C48 -> Ocker Hill Junior School | D59: 15 | E59: 82.60869565 | F59: 75 | G59: 86.66666667 | H59: 45 | I59: 91.89189189 | J59: 97.61904762 | K59: 91.11111111 | L59: 30 | M59: 9.28319624 | N59: 22.61904762 | O59: 4.444444444
B60: =Lists!B49 -> 2138 | C60: =Lists!C49 -> Old Hill Primary School | D60: 17 | E60: 69.23076923 | F60: 80 | G60: 64.70588235 | H60: 13 | I60: 80 | J60: 87.5 | K60: 61.53846154 | L60: -4 | M60: 10.76923077 | N60: 7.5 | O60: -3.167420814
B61: =Lists!B50 -> 2047 | C61: =Lists!C50 -> Old Park Primary School | D61: 21 | E61: 75 | F61: 47.82608696 | G61: 52.38095238 | H61: 39 | I61: 87.17948718 | J61: 80.55555556 | K61: 76.92307692 | L61: 18 | M61: 12.17948718 | N61: 32.7294686 | O61: 24.54212454
B62: =Lists!B51 -> 2048 | C62: =Lists!C51 -> Park Hill Primary School | D62: 10 | E62: 75 | F62: 66.66666667 | G62: 60 | H62: 20 | I62: 88.88888889 | J62: 72.72727273 | K62: 75 | L62: 10 | M62: 13.88888889 | N62: 6.060606061 | O62: 15
B63: =Lists!B52 -> 3408 | C63: =Lists!C52 -> Pennyhill Primary School | D63: 34 | E63: 53.125 | F63: 37.14285714 | G63: 43.75 | H63: 56 | I63: 70.58823529 | J63: 59.25925926 | K63: 48.21428571 | L63: 22 | M63: 17.46323529 | N63: 22.11640212 | O63: 4.464285714
B64: =Lists!B53 -> 2140 | C64: =Lists!C53 -> Perryfields Primary School | D64: 9 | E64: 85.71428571 | F64: 0 | G64: 22.22222222 | H64: 23 | I64: 66.66666667 | J64: 69.23076923 | K64: 60.86956522 | L64: 14 | M64: -19.04761905 | N64: 69.23076923 | O64: 38.647343
B65: =Lists!B54 -> 2141 | C65: =Lists!C54 -> Reddal Hill Primary School | D65: 17 | E65: 55.55555556 | F65: 31.57894737 | G65: 29.41176471 | H65: 13 | I65: 81.81818182 | J65: 66.66666667 | K65: 76.92307692 | L65: -4 | M65: 26.26262626 | N65: 35.0877193 | O65: 47.51131222
B66: =Lists!B55 -> 2179 | C66: =Lists!C55 -> Rood End Primary School | D66: 26 | E66: 62.96296296 | F66: 34.7826087 | G66: 53.84615385 | H66: 37 | I66: 52.38095238 | J66: 39.28571429 | K66: 51.35135135 | L66: 11 | M66: -10.58201058 | N66: 4.50310559 | O66: -2.494802495
B67: =Lists!B56 -> 2175 | C67: =Lists!C56 -> Rounds Green Primary School | D67: 32 | E67: 37.5 | F67: 21.875 | G67: 21.875 | H67: 28 | I67: 50 | J67: 32 | K67: 46.15384615 | L67: -4 | M67: 12.5 | N67: 10.125 | O67: 24.27884615
B68: =Lists!B57 -> 2146 | C68: =Lists!C57 -> Rowley Hall Primary School | D68: 22 | E68: 27.77777778 | F68: 20 | G68: 40.90909091 | H68: 39 | I68: 57.14285714 | J68: 17.85714286 | K68: 60.52631579 | L68: 17 | M68: 29.36507937 | N68: -2.142857143 | O68: 19.61722488
B69: =Lists!B58 -> 2174 | C69: =Lists!C58 -> Ryders Green Primary School | D69: 29 | E69: 73.33333333 | F69: 40.74074074 | G69: 48 | H69: 31 | I69: 88.46153846 | J69: 64.28571429 | K69: 54.83870968 | L69: 2 | M69: 15.12820513 | N69: 23.54497354 | O69: 6.838709677
B70: =Lists!B59 -> 3406 | C70: =Lists!C59 -> Sacred Heart Primary School | D70: 8 | E70: 88.88888889 | F70: 55.55555556 | G70: 62.5 | H70: 11 | I70: 83.33333333 | J70: 71.42857143 | K70: 36.36363636 | L70: 3 | M70: -5.555555556 | N70: 15.87301587 | O70: -26.13636364
B71: =Lists!B60 -> 7001 | C71: =Lists!C60 -> Shenstone Lodge School | D71: 10 | E71: 0 | F71: 0 | G71: 0 | H71: 3 | I71: 0 | J71: 0 | K71: 0 | L71: -7 | M71: 0 | N71: 0 | O71: 0
B72: =Lists!B61 -> 2161 | C72: =Lists!C61 -> Shireland Hall Primary School | D72: 26 | E72: 57.14285714 | F72: 18.75 | G72: 57.69230769 | H72: 36 | I72: 64 | J72: 43.47826087 | K72: 50 | L72: 10 | M72: 6.857142857 | N72: 24.72826087 | O72: -7.692307692
B73: =Lists!B62 -> 2189 | C73: =Lists!C62 -> Springfield Primary School | D73: 22 | E73: 68.42105263 | F73: 39.13043478 | G73: 63.63636364 | H73: 37 | I73: 80 | J73: 64.86486486 | K73: 72.97297297 | L73: 15 | M73: 11.57894737 | N73: 25.73443008 | O73: 9.336609337
B74: =Lists!B63 -> 3401 | C74: =Lists!C63 -> St Francis Xavier RC Primary School | D74: 9 | E74: 68.75 | F74: =IF(ISERROR((VLOOKUP(F$11&$V$11&$B74,data,$V$10,FALSE))),"-",(VLOOKUP(F$11&$V$11&$B74,data,$V$10,FALSE))) -> 87.5 | G74: 44.44444444 | H74: 21 | I74: 85.71428571 | J74: =IF(ISERROR((VLOOKUP(J$11&$V$12&$B74,data,$V$10,FALSE))),"-",(VLOOKUP(J$11&$V$12&$B74,data,$V$10,FALSE))) -> 63.63636364 | K74: 90.47619048 | L74: 12 | M74: 16.96428571 | N74: -23.86363636 | O74: 46.03174603
B75: =Lists!B64 -> 3405 | C75: =Lists!C64 -> St Gregory's RC Primary School | D75: 2 | E75: 85.71428571 | F75: - | G75: 100 | H75: 29 | I75: 90.90909091 | J75: 93.33333333 | K75: 82.14285714 | L75: 27 | M75: 5.194805195 | N75: - | O75: -17.85714286
B76: =Lists!B65 -> 3402 | C76: =Lists!C65 -> St Hubert's RC Primary School | D76: 6 | E76: 66.66666667 | F76: 66.66666667 | G76: 33.33333333 | H76: 25 | I76: 92.30769231 | J76: 80.76923077 | K76: 80 | L76: 19 | M76: 25.64102564 | N76: 14.1025641 | O76: 46.66666667
B77: =Lists!B66 -> 3006 | C77: =Lists!C66 -> St James' CofE Primary School | D77: 36 | E77: 25 | F77: 55.17241379 | G77: 37.14285714 | H77: 22 | I77: 57.14285714 | J77: 65.38461538 | K77: 54.54545455 | L77: -14 | M77: 32.14285714 | N77: 10.21220159 | O77: 17.4025974
B78: =Lists!B67 -> 3303 | C78: =Lists!C67 -> St John Bosco RC Primary School | D78: =IF(ISERROR((VLOOKUP($D$11&$V$11&$B78,data,6,FALSE))),"-",(VLOOKUP($D$11&$V$11&$B78,data,6,FALSE))) -> 10 | E78: =IF(ISERROR((VLOOKUP(E$11&$U$11&B78,OldData,$U$10,FALSE))),"-",(VLOOKUP(E$11&$U$11&B78,OldData,$U$10,FALSE))) -> 100 | F78: 80 | G78: 80 | H78: =IF(ISERROR((VLOOKUP($D$11&$V$12&$B78,data,6,FALSE))),"-",(VLOOKUP($D$11&$V$12&$B78,data,6,FALSE))) -> 20 | I78: =IF(ISERROR((VLOOKUP(I$11&$U$12&$B78,OldData,$U$10,FALSE))),"-",(VLOOKUP(I$11&$U$12&$B78,OldData,$U$10,FALSE))) -> 90.90909091 | J78: 83.33333333 | K78: 95 | L78: =IF(ISERROR((H78-D78)),"-",(H78-D78)) -> 10 | M78: =IF(ISERROR((I78-E78)),"-",(I78-E78)) -> -9.090909091 | N78: =IF(ISERROR((J78-F78)),"-",(J78-F78)) -> 3.333333333 | O78: =IF(ISERROR((K78-G78)),"-",(K78-G78)) -> 15
B79: =Lists!B68 -> 2006 | C79: =Lists!C68 -> St John's CofE Primary School | D79: 15 | E79: 38.46153846 | F79: 6.25 | G79: 73.33333333 | H79: 15 | I79: 64.28571429 | J79: 30.76923077 | K79: 73.33333333 | L79: 0 | M79: 25.82417582 | N79: 24.51923077 | O79: 0
B80: =Lists!B69 -> 3307 | C80: =Lists!C69 -> St Margaret's CofE Primary School | D80: - | E80: 87.5 | F80: 66.66666667 | G80: - | H80: 29 | I80: 85 | J80: 62.96296296 | K80: 68.96551724 | L80: - | M80: -2.5 | N80: -3.703703704 | O80: -
B81: =Lists!B70 -> 3003 | C81: =Lists!C70 -> St Martin's CofE Primary School | D81: 10 | E81: 62.5 | F81: 25 | G81: 55.55555556 | H81: 19 | I81: 68.18181818 | J81: 68.18181818 | K81: 52.63157895 | L81: 9 | M81: 5.681818182 | N81: 43.18181818 | O81: -2.923976608
B82: =Lists!B71 -> 3005 | C82: =Lists!C71 -> St Mary Magdalene CofE Prim Sch | D82: 10 | E82: 44.44444444 | F82: 53.84615385 | G82: 60 | H82: 21 | I82: 90.47619048 | J82: 81.25 | K82: 66.66666667 | L82: 11 | M82: 46.03174603 | N82: 27.40384615 | O82: 6.666666667
B83: =Lists!B72 -> 3305 | C83: =Lists!C72 -> St Mary's RC Primary School | D83: 9 | E83: 53.33333333 | F83: 33.33333333 | G83: 44.44444444 | H83: 21 | I83: 80 | J83: 22.22222222 | K83: 76.19047619 | L83: 12 | M83: 26.66666667 | N83: -11.11111111 | O83: 31.74603175
B84: =Lists!B73 -> 3403 | C84: =Lists!C73 -> St Matthew's CofE Primary School | D84: 13 | E84: 75 | F84: 56.25 | G84: 30.76923077 | H84: 18 | I84: 84.61538462 | J84: 38.46153846 | K84: 50 | L84: 5 | M84: 9.615384615 | N84: -17.78846154 | O84: 19.23076923
B85: =Lists!B74 -> 3004 | C85: =Lists!C74 -> St Paul's CofE (C) Primary School | D85: 11 | E85: 73.33333333 | F85: 54.54545455 | G85: 72.72727273 | H85: 19 | I85: 100 | J85: 47.36842105 | K85: 78.94736842 | L85: 8 | M85: 26.66666667 | N85: -7.177033493 | O85: 6.220095694
B86: =Lists!B75 -> 3404 | C86: =Lists!C75 -> St Philip's RC Primary School | D86: 18 | E86: 34.7826087 | F86: 40 | G86: 38.88888889 | H86: 13 | I86: 37.5 | J86: 60 | K86: 84.61538462 | L86: -5 | M86: 2.717391304 | N86: 20 | O86: 45.72649573
B87: =Lists!B76 -> 3407 | C87: =Lists!C76 -> Summerhill Primary School | D87: 30 | E87: 45.23809524 | F87: 40 | G87: 50 | H87: 30 | I87: 52.94117647 | J87: 64 | K87: 50 | L87: 0 | M87: 7.703081232 | N87: 24 | O87: 0
B88: =Lists!B77 -> 2187 | C88: =Lists!C77 -> Tameside Primary School | D88: 35 | E88: 56.52173913 | F88: 12.82051282 | G88: 8.571428571 | H88: 27 | I88: 61.11111111 | J88: 26.31578947 | K88: 37.03703704 | L88: -8 | M88: 4.589371981 | N88: 13.49527665 | O88: 28.46560847
B89: =Lists!B78 -> 2148 | C89: =Lists!C78 -> Temple Meadow Primary School | D89: 20 | E89: 58.82352941 | F89: 30.43478261 | G89: 15.78947368 | H89: 31 | I89: 60 | J89: 40 | K89: 45.16129032 | L89: 11 | M89: 1.176470588 | N89: 9.565217391 | O89: 29.37181664
B90: =Lists!B79 -> 7018 | C90: =Lists!C79 -> The Orchard School | D90: 15 | E90: 0 | F90: 0 | G90: 0 | H90: 9 | I90: 0 | J90: 0 | K90: 0 | L90: -6 | M90: 0 | N90: 0 | O90: 0
B91: =Lists!B80 -> 2183 | C91: =Lists!C80 -> The Priory Primary School | D91: 16 | E91: 64.70588235 | F91: 25 | G91: 50 | H91: 15 | I91: 46.15384615 | J91: 66.66666667 | K91: 53.33333333 | L91: -1 | M91: -18.5520362 | N91: 41.66666667 | O91: 3.333333333
B92: =Lists!B81 -> 7019 | C92: =Lists!C81 -> The Westminster School | D92: 4 | E92: 0 | F92: 0 | G92: 0 | H92: 2 | I92: 0 | J92: 0 | K92: 0 | L92: -2 | M92: 0 | N92: 0 | O92: 0
B93: =Lists!B82 -> 2158 | C93: =Lists!C82 -> Timbertree Primary School | D93: 15 | E93: 66.66666667 | F93: 50 | G93: 53.33333333 | H93: 16 | I93: 80 | J93: 66.66666667 | K93: 93.75 | L93: 1 | M93: 13.33333333 | N93: 16.66666667 | O93: 40.41666667
B94: =Lists!B83 -> 2082 | C94: =Lists!C83 -> Tipton Green Junior School | D94: 39 | E94: 38.46153846 | F94: =IF(ISERROR((VLOOKUP(F$11&$V$11&$B94,data,$V$10,FALSE))),"-",(VLOOKUP(F$11&$V$11&$B94,data,$V$10,FALSE))) -> 27.5 | G94: 35.8974359 | H94: 52 | I94: 62.5 | J94: =IF(ISERROR((VLOOKUP(J$11&$V$12&$B94,data,$V$10,FALSE))),"-",(VLOOKUP(J$11&$V$12&$B94,data,$V$10,FALSE))) -> 48.97959184 | K94: 57.69230769 | L94: 13 | M94: 24.03846154 | N94: 21.47959184 | O94: 21.79487179
B95: =Lists!B84 -> 3007 | C95: =Lists!C84 -> Tividale Community Primary School | D95: 18 | E95: 71.42857143 | F95: 52 | G95: 38.88888889 | H95: 43 | I95: 74.35897436 | J95: 71.42857143 | K95: 74.41860465 | L95: 25 | M95: 2.93040293 | N95: 19.42857143 | O95: 35.52971576
B96: =Lists!B85 -> 2151 | C96: =Lists!C85 -> Tividale Hall Primary School | D96: 13 | E96: 57.14285714 | F96: 60 | G96: 61.53846154 | H96: 46 | I96: 70.27027027 | J96: 58.13953488 | K96: 47.82608696 | L96: 33 | M96: 13.12741313 | N96: -1.860465116 | O96: -13.71237458
B97: =Lists!B86 -> 2180 | C97: =Lists!C86 -> Uplands Manor Primary School | D97: 46 | E97: 49.01960784 | F97: 25.49019608 | G97: 37.77777778 | H97: 56 | I97: 54.05405405 | J97: 51.2195122 | K97: 23.63636364 | L97: 10 | M97: 5.034446211 | N97: 25.72931612 | O97: -14.14141414
B98: =Lists!B87 -> 2122 | C98: =Lists!C87 -> Victoria Park Primary Academy | D98: 41 | E98: 82.85714286 | F98: 60.52631579 | G98: 65.85365854 | H98: 21 | I98: 100 | J98: 77.27272727 | K98: 61.9047619 | L98: -20 | M98: 17.14285714 | N98: 16.74641148 | O98: -3.948896632
B99: =Lists!B88 -> 2076 | C99: =Lists!C88 -> Wednesbury Oak Primary School | D99: 33 | E99: 53.57142857 | F99: 33.33333333 | G99: 57.57575758 | H99: 19 | I99: 82.14285714 | J99: 28.57142857 | K99: 84.21052632 | L99: -14 | M99: 28.57142857 | N99: -4.761904762 | O99: 26.63476874
B100: =Lists!B89 -> 2070 | C100: =Lists!C89 -> Whitecrest Primary School | D100: 6 | E100: 100 | F100: 66.66666667 | G100: 66.66666667 | H100: 25 | I100: 70.37037037 | J100: 88.88888889 | K100: 80 | L100: 19 | M100: -29.62962963 | N100: 22.22222222 | O100: 13.33333333
B101: =Lists!B90 -> 2051 | C101: =Lists!C90 -> Wood Green Junior School | D101: 17 | E101: 45 | F101: 30 | G101: 37.5 | H101: 42 | I101: 71.05263158 | J101: 44.11764706 | K101: 47.61904762 | L101: 25 | M101: 26.05263158 | N101: 14.11764706 | O101: 10.11904762
B102: =Lists!B91 -> 2169 | C102: =Lists!C91 -> Yew Tree Primary School | D102: 35 | E102: 66.66666667 | F102: 31.91489362 | G102: 55.88235294 | H102: 37 | I102: 84.375 | J102: 46.42857143 | K102: 64.86486486 | L102: 2 | M102: 17.70833333 | N102: 14.51367781 | O102: 8.982511924
A109: *In 2012, English was calculated from reading test results and writing teacher assessment rather than from reading and writing tests as in previous years.
A110: English in 2012 is, therefore, not comparable to previous years. | B110: Notes

Sheet Notes
B14: A visual report for each school showing the key indicators for all pupils

Sheet Change Log
A1: Date Updated | B1: Change/Update | C1: Version | D1: Updated by
A2: 2017-07-13 | B2: School and LA data updated based on provisional 2017 data, National data added for All Pupils and by gender. | C2: 2017 version 1 | D2: RF
A3: 2017-09-13 | B3: Added new Ofsted Gaps Report, pupil premium data and value added. Annie Lennard Primary added to dropdown lists. NCER emerging national data added for pupil groups. | C3: 2017 version 1.1 | D3: RF

Sheet Lists (hidden)
I1: Change this to roll year group on all reports
H2: Year | I2: 2017
A3: 1 | B3: 2101 | C3: Abbey Junior School | D3: 2101
A4: 2 | B4: 3301 | C4: All Saints CofE Primary School | D4: 3301
A5: 3 | B5: 2104 | C5: Annie Lennard Infant School | D5: 2104
A6: 4 | B6: 2105 | C6: Bearwood Primary School | D6: 2105 | H6: Drop down box list
A7: 5 | B7: 2176 | C7: Blackheath Primary School | D7: 2176 | H7: Position | I7: Display name | J7: Data sheet column 2016 | K7: 2016 label | L7: Data sheet column 2015 | M7: 2015 label
A8: 6 | B8: 2108 | C8: Bleakhouse Junior School | D8: 2108 | H8: 1 | I8: % Reading, Writing & Maths Expected+ | J8: 42 | K8: %RWMExp+ | L8: 32 | M8: RWM4B+
A9: 7 | B9: 2171 | C9: Brandhall Primary School | D9: 2171 | H9: 2 | I9: % Reading, Writing & Maths Exceeding | J9: 43 | K9: %RWMHigh | L9: 33 | M9: RWM5+
A10: 8 | B10: 2112 | C10: Brickhouse Primary School | D10: 2112 | H10: 3 | I10: % Reading Expected+ | J10: 30 | K10: %ReExp+ | L10: 19 | M10: R4B+
A11: 9 | B11: 2054 | C11: Burnt Tree Primary School | D11: 2054 | H11: 4 | I11: % Reading Exceeding | J11: 31 | K11: %ReHigh | L11: 20 | M11: R5+
A12: 10 | B12: 2113 | C12: Cape Primary School | D12: 2113 | H12: 5 | I12: Reading Average Scaled Score | J12: 32 | K12: ReAvgSS
A13: 11 | B13: 2178 | C13: Causeway Green Primary School | D13: 2178 | H13: 6 | I13: % Writing Expected+ | J13: 33 | K13: %WrEXS+ | L13: 22 | M13: W4+
A14: 12 | B14: 3400 | C14: Christ Church CofE Primary School | D14: 3400 | H14: 7 | I14: % Writing Exceeding | J14: 34 | K14: %WrGDS | L14: 23 | M14: W5+
A15: 13 | B15: 2118 | C15: Corngreaves Primary School | D15: 2118 | H15: 8 | I15: % Maths Expected+ | J15: 35 | K15: %MaExp+ | L15: 26 | M15: M4B+
A16: 14 | B16: 2123 | C16: Crocketts Comm. Primary School | D16: 2123 | H16: 9 | I16: % Maths Exceeding | J16: 36 | K16: %MaHigh | L16: 27 | M16: M5+
A17: 15 | B17: 2124 | C17: Devonshire Junior School | D17: 2124 | H17: 10 | I17: Maths Average Scaled Score | J17: 37 | K17: MaAvgSS
A18: 16 | B18: 2072 | C18: Eaton Valley Primary School | D18: 2072 | H18: 11 | I18: % GPS Expected+ | J18: 38 | K18: %GPSExp+ | L18: 47 | M18: G4B+%
A19: 17 | B19: 2177 | C19: Ferndale Primary School | D19: 2177 | H19: 12 | I19: % GPS Exceeding | J19: 39 | K19: %GPSHigh | L19: 30 | M19: GPS 5+
A20: 18 | B20: 3409 | C20: Galton Valley Primary School | D20: 3409 | H20: 13 | I20: GPS Average Scaled Score | J20: 40 | K20: GPSAvgSS
A21: 19 | B21: 2004 | C21: George Betts Primary School | D21: 2004 | H21: 14 | I21: % Science Expected | J21: 41 | K21: %SciEXS | L21: 42 | M21: S4+
A22: 20 | B22: 2075 | C22: Glebefields Primary School | D22: 2075 | H22: 15
A23: 21 | B23: 2127 | C23: Grace Mary Primary School | D23: 2127 | H23: 16
A24: 22 | B24: 2056 | C24: Great Bridge Primary School | D24: 2056 | H24: 17
A25: 23 | B25: 2166 | C25: Grove Vale Primary School | D25: 2166 | H25: 18
A26: 24 | B26: 2181 | C26: Guns Village Primary School | D26: 2181 | H26: 19
A27: 25 | B27: 2172 | C27: Hall Green Primary School | D27: 2172 | H27: 20
A28: 26 | B28: 2015 | C28: Hamstead Junior School | D28: 2015 | H28: 21
A29: 27 | B29: 2041 | C29: Hargate Primary School | D29: 2041 | H29: 22
A30: 28 | B30: 2186 | C30: Harvills Hawthorn Primary School | D30: 2186 | H30: 23
A31: 29 | B31: 2188 | C31: Hateley Heath Primary School | D31: 2188 | H31: 24
A32: 30 | B32: 2128 | C32: Highfields Primary School | D32: 2128 | H32: 25
A33: 31 | B33: 3308 | C33: Holy Name RC Primary School | D33: 3308 | H33: 26
A34: 32 | B34: 3002 | C34: Holy Trinity CofE Primary School | D34: 3002 | H34: 27
A35: 33 | B35: 2078 | C35: Holyhead Primary School | D35: 2078
A36: 34 | B36: 2164 | C36: Joseph Turner Primary School | D36: 2164
A37: 35 | B37: 2057 | C37: Jubilee Park Primary School | D37: 2057
A38: 36 | B38: 2182 | C38: King George V Primary School | D38: 2182
A39: 37 | B39: 2173 | C39: Langley Primary School | D39: 2173
A40: 38 | B40: 2133 | C40: Lightwoods Primary School | D40: 2133 | J40: 2015 | K40: 2016
A41: 39 | B41: 2163 | C41: Lodge Primary School | D41: 2163 | I41: Dropdown | J41: Local Data
A42: 40 | B42: 2162 | C42: Lyng Primary School | D42: 2162 | H42: 1 | I42: All Pupils | J42: AllAll | K42: AllAll
A43: 41 | B43: 2045 | C43: Mesty Croft Academy | D43: 2045 | H43: 2 | I43: Boys | J43: GenderMale | K43: GenderMale
A44: 42 | B44: 2134 | C44: Moat Farm Junior School | D44: 2134 | H44: 3 | I44: Girls | J44: GenderFemale | K44: GenderFemale
A45: 43 | B45: 2046 | C45: Moorlands Primary School | D45: 2046 | H45: 4 | I45: FSM: Eligible for FSM | J45: FSMTrue | K45: FSM_TT1
A46: 44 | B46: 2074 | C46: Newtown Primary School | D46: 2074 | H46: 5 | I46: FSM: All Other Pupils3 | J46: FSMFalse | K46: FSM_TT0
A47: 45 | B47: 2136 | C47: Oakham Primary School | D47: 2136 | H47: 6 | I47: DISADV. PUP PREMIUM: Eligible | J47: PPremiumTrue | K47: DPP1
A48: 46 | B48: 2061 | C48: Ocker Hill Junior School | D48: 2061 | H48: 7 | I48: DISADV. PUP PREMIUM: All Other Pupils3 | J48: PPremiumFalse | K48: DPP0
A49: 47 | B49: 2138 | C49: Old Hill Primary School | D49: 2138 | H49: 8 | I49: SEN: No identified SEN | J49: SENNonSEN | K49: SENNonSEN
A50: 48 | B50: 2047 | C50: Old Park Primary School | D50: 2047 | H50: 9 | I50: SEN (A,P,S,E,K) | J50: SENSEN | K50: SENSEN
A51: 49 | B51: 2048 | C51: Park Hill Primary School | D51: 2048 | H51: 10 | I51: SEN: No identified SEN | J51: SENN | K51: SENN
A52: 50 | B52: 3408 | C52: Pennyhill Primary School | D52: 3408 | H52: 11 | I52: SEN: SEN Support (K,A,P) | J52: SENK | K52: SENK
A53: 51 | B53: 2140 | C53: Perryfields Primary School | D53: 2140 | H53: 12 | I53: SEN: Statement/EHC plan | J53: SENE | K53: SENE
A54: 52 | B54: 2141 | C54: Reddal Hill Primary School | D54: 2141 | H54: 13 | I54: EAL: English | J54: EALENG | K54: EALENG
A55: 53 | B55: 2179 | C55: Rood End Primary School | D55: 2179 | H55: 14 | I55: EAL: Other than English | J55: EALOTH | K55: EALOTH
A56: 54 | B56: 2175 | C56: Rounds Green Primary School | D56: 2175 | H56: 15 | I56: ETH: Any Other Asian | J56: ETHAOTH | K56: ETHAOTH
A57: 55 | B57: 2146 | C57: Rowley Hall Primary School | D57: 2146 | H57: 16 | I57: ETH: Any Other Black | J57: ETHBOTH | K57: ETHBOTH
A58: 56 | B58: 2174 | C58: Ryders Green Primary School | D58: 2174 | H58: 17 | I58: ETH: Any Other Group | J58: ETHOOTH | K58: ETHOOTH
A59: 57 | B59: 3406 | C59: Sacred Heart Primary School | D59: 3406 | H59: 18 | I59: ETH: Any Other Mixed | J59: ETHMOTH | K59: ETHMOTH
A60: 58 | B60: 7001 | C60: Shenstone Lodge School | D60: 7001 | H60: 19 | I60: ETH: Any Other White | J60: ETHWOTH | K60: ETHWOTH
A61: 59 | B61: 2161 | C61: Shireland Hall Primary School | D61: 2161 | H61: 20 | I61: ETH: Bangladeshi | J61: ETHABAN | K61: ETHABAN
A62: 60 | B62: 2189 | C62: Springfield Primary School | D62: 2189 | H62: 21 | I62: ETH: Black - African | J62: ETHBAFR | K62: ETHBAFR
A63: 61 | B63: 3401 | C63: St Francis Xavier RC Primary School | D63: 3401 | H63: 22 | I63: ETH: Black Caribbean | J63: ETHBCRB | K63: ETHBCRB
A64: 62 | B64: 3405 | C64: St Gregory's RC Primary School | D64: 3405 | H64: 23 | I64: ETH: Chinese | J64: ETHCHNE | K64: ETHCHNE
A65: 63 | B65: 3402 | C65: St Hubert's RC Primary School | D65: 3402 | H65: 24 | I65: ETH: Gypsy / Roma | J65: ETHWROM | K65: ETHWROM
A66: 64 | B66: 3006 | C66: St James' CofE Primary School | D66: 3006 | H66: 25 | I66: ETH: Indian | J66: ETHAIND | K66: ETHAIND
A67: 65 | B67: 3303 | C67: St John Bosco RC Primary School | D67: 3303 | H67: 26 | I67: ETH: Info Not Yet Obtained | J67: ETHNOBT | K67: ETHNOBT
A68: 66 | B68: 2006 | C68: St John's CofE Primary School | D68: 2006 | H68: 27 | I68: ETH: Pakistani | J68: ETHAPKN | K68: ETHAPKN
A69: 67 | B69: 3307 | C69: St Margaret's CofE Primary School | D69: 3307 | H69: 28 | I69: ETH: Refused | J69: ETHREFU | K69: ETHREFU
A70: 68 | B70: 3003 | C70: St Martin's CofE Primary School | D70: 3003 | H70: 29 | I70: ETH: Traveller Irish | J70: ETHWIRT | K70: ETHWIRT
A71: 69 | B71: 3005 | C71: St Mary Magdalene CofE Prim Sch | D71: 3005 | H71: 30 | I71: ETH: White - British | J71: ETHWBRI | K71: ETHWBRI
A72: 70 | B72: 3305 | C72: St Mary's RC Primary School | D72: 3305 | H72: 31 | I72: ETH: White - Irish | J72: ETHWIRI | K72: ETHWIRI
A73: 71 | B73: 3403 | C73: St Matthew's CofE Primary School | D73: 3403 | H73: 32 | I73: ETH: White and Asian | J73: ETHMWAS | K73: ETHMWAS
A74: 72 | B74: 3004 | C74: St Paul's CofE (C) Primary School | D74: 3004 | H74: 33 | I74: ETH: White & Black African | J74: ETHMWBA | K74: ETHMWBA
A75: 73 | B75: 3404 | C75: St Philip's RC Primary School | D75: 3404 | H75: 34 | I75: ETH: White & Black Caribbean | J75: ETHMWBC | K75: ETHMWBC
A76: 74 | B76: 3407 | C76: Summerhill Primary School | D76: 3407 | H76: 35 | I76: ACORN: Affluent Achievers | J76: ACORN1 | K76: ACORNAffluent Achievers
A77: 75 | B77: 2187 | C77: Tameside Primary School | D77: 2187 | H77: 36 | I77: ACORN: Rising Prosperity | J77: ACORN2 | K77: ACORNRising Prosperity
A78: 76 | B78: 2148 | C78: Temple Meadow Primary School | D78: 2148 | H78: 37 | I78: ACORN: Comfortable Communities | J78: ACORN3 | K78: ACORNComfortably Communities
A79: 77 | B79: 7018 | C79: The Orchard School | D79: 7018 | H79: 38 | I79: ACORN: Financially Stretched | J79: ACORN4 | K79: ACORNFinancially Stretched
A80: 78 | B80: 2183 | C80: The Priory Primary School | D80: 2183 | H80: 39 | I80: ACORN: Urban Adversity | J80: ACORN5 | K80: ACORNUrban Adversity
A81: 79 | B81: 7019 | C81: The Westminster School | D81: 7019 | H81: 40 | I81: ACORN: Not Private Households | J81: ACORN6 | K81: ACORNNot Private Households
A82: 80 | B82: 2158 | C82: Timbertree Primary School | D82: 2158 | H82: 41
A83: 81 | B83: 2082 | C83: Tipton Green Junior School | D83: 2082 | H83: Drop down box list GAP ANALYSIS
A84: 82 | B84: 3007 | C84: Tividale Community Primary School | D84: 3007 | H84: Position
A85: 83 | B85: 2151 | C85: Tividale Hall Primary School | D85: 2151 | H85: 1
A86: 84 | B86: 2180 | C86: Uplands Manor Primary School | D86: 2180 | H86: 2 | I86: Display name | J86: Data Sheet Column
A87: 85 | B87: 2122 | C87: Victoria Park Primary Academy | D87: 2122 | H87: 3 | I87: Reading, Writing & Maths L4+% | J87: 31
A88: 86 | B88: 2076 | C88: Wednesbury Oak Primary School | D88: 2076 | H88: 4 | I88: Reading, Writing & Maths L5+% | J88: 33
A89: 87 | B89: 2070 | C89: Whitecrest Primary School | D89: 2070 | H89: 5 | I89: Reading L4+% | J89: 18
A90: 88 | B90: 2051 | C90: Wood Green Junior School | D90: 2051 | H90: 6 | I90: Reading L4B+% | J90: 19
A91: 89 | B91: 2169 | C91: Yew Tree Primary School | D91: 2169 | H91: 7 | I91: Reading L5+% | J91: 20
A92: 90 | B92: --------------------------------------------- | C92: ---------------------------------------------------- | D92: --------------------------------------------- | H92: 8 | I92: Writing L4+% | J92: 22
A93: 91 | B93: OLDBURY | C93: Oldbury LC | D93: OLDBURY | H93: 9 | I93: Writing L5+% | J93: 23
A94: 92 | B94: ROWLEY REGIS | C94: Rowley Regis LC | D94: ROWLEY REGIS | H94: 10 | I94: Maths L4+% | J94: 25
A95: 93 | B95: SMETHWICK | C95: Smethwick LC | D95: SMETHWICK | H95: 17 | I95: Maths L4B+% | J95: 26
A96: 94 | B96: TIPTON | C96: Tipton LC | D96: TIPTON | H96: 18 | I96: Maths L5+% | J96: 27
A97: 95 | B97: WEDNESBURY | C97: Wednesbury LC | D97: WEDNESBURY | H97: 19 | I97: Reading 2 Levels Progress % | J97: 39
A98: 96 | B98: WEST BROMWICH CENTRAL | C98: West Bromwich Central LC | D98: WEST BROMWICH CENTRAL | I98: Writing 2 Levels Progress % | J98: 40
A99: 97 | B99: WEST BROMWICH NORTH | C99: West Bromwich North LC | D99: WEST BROMWICH NORTH | I99: Maths 2 levels Progress % | J99: 41

Sheet VA Progress pre 2016 (hidden)
A1: ID | B1: YEAR | C1: DFES | D1: R VA | E1: W VA | F1: M VA | G1: RWM VA | H1: R VA Sig | I1: W VA Sig | J1: M VA Sig | K1: RWM VA Sig
A2: 1 | B2: 2 | C2: 3 | D2: 4 | E2: 5 | F2: 6 | G2: 7 | H2: 8 | I2: 9 | J2: 10 | K2: 11
A3: =B3&"VA"&C3 -> 2011VALA | B3: 2011 | C3: LA | D3: - | E3: - | F3: 100.2 | G3: - | H3: - | I3: - | J3: - | K3: -
A4: 2011VANAT | B4: 2011 | C4: NAT | D4: - | E4: - | F4: 100 | G4: - | H4: - | I4: - | J4: - | K4: -
A5: 2011VA2101 | B5: 2011 | C5: 2101 | D5: - | E5: - | F5: 98.7 | G5: - | H5: - | I5: - | J5: Sig- | K5: -
A6: 2011VA3301 | B6: 2011 | C6: 3301 | D6: - | E6: - | F6: 101.5 | G6: - | H6: - | I6: - | J6: Sig+ | K6: -
A7: 2011VA2105 | B7: 2011 | C7: 2105 | D7: - | E7: - | F7: 99.5 | G7: - | H7: - | I7: - | J7: Av | K7: -
A8: 2011VA2176 | B8: 2011 | C8: 2176 | D8: - | E8: - | F8: 100.3 | G8: - | H8: - | I8: - | J8: Av | K8: -
A9: 2011VA2108 | B9: 2011 | C9: 2108 | D9: - | E9: - | F9: 99.3 | G9: - | H9: - | I9: - | J9: Av | K9: -
A10: 2011VA2171 | B10: 2011 | C10: 2171 | D10: - | E10: - | F10: 98.7 | G10: - | H10: - | I10: - | J10: Sig- | K10: -
A11: 2011VA2112 | B11: 2011 | C11: 2112 | D11: - | E11: - | F11: 101.1 | G11: - | H11: - | I11: - | J11: Av | K11: -
A12: 2011VA2054 | B12: 2011 | C12: 2054 | D12: - | E12: - | F12: 98.8 | G12: - | H12: - | I12: - | J12: Sig- | K12: -
A13: 2011VA2113 | B13: 2011 | C13: 2113 | D13: - | E13: - | F13: 100.6 | G13: - | H13: - | I13: - | J13: Av | K13: -
A14: 2011VA2178 | B14: 2011 | C14: 2178 | D14: - | E14: - | F14: 100 | G14: - | H14: - | I14: - | J14: Av | K14: -
A15: 2011VA3400 | B15: 2011 | C15: 3400 | D15: - | E15: - | F15: 99.9 | G15: - | H15: - | I15: - | J15: Av | K15: -
A16: 2011VA2118 | B16: 2011 | C16: 2118 | D16: - | E16: - | F16: 100.9 | G16: - | H16: - | I16: - | J16: Av | K16: -
A17: 2011VA2123 | B17: 2011 | C17: 2123 | D17: - | E17: - | F17: 101 | G17: - | H17: - | I17: - | J17: Av | K17: -
A18: 2011VA2124 | B18: 2011 | C18: 2124 | D18: - | E18: - | F18: 99.1 | G18: - | H18: - | I18: - | J18: Sig- | K18: -
A19: 2011VA2072 | B19: 2011 | C19: 2072 | D19: - | E19: - | F19: 100.3 | G19: - | H19: - | I19: - | J19: Av | K19: -
A20: 2011VA2177 | B20: 2011 | C20: 2177 | D20: - | E20: - | F20: 100.8 | G20: - | H20: - | I20: - | J20: Av | K20: -
A21: 2011VA3409 | B21: 2011 | C21: 3409 | D21: - | E21: - | F21: 101.7 | G21: - | H21: - | I21: - | J21: Sig+ | K21: -
A22: 2011VA2126 | B22: 2011 | C22: 2126 | D22: - | E22: - | F22: 97.6 | G22: - | H22: - | I22: - | J22: Sig- | K22: -
A23: 2011VA2075 | B23: 2011 | C23: 2075 | D23: - | E23: - | F23: 100.5 | G23: - | H23: - | I23: - | J23: Av | K23: -
A24: 2011VA2127 | B24: 2011 | C24: 2127 | D24: - | E24: - | F24: 100.5 | G24: - | H24: - | I24: - | J24: Av | K24: -
A25: 2011VA2056 | B25: 2011 | C25: 2056 | D25: - | E25: - | F25: 100 | G25: - | H25: - | I25: - | J25: Av | K25: -
A26: 2011VA2166 | B26: 2011 | C26: 2166 | D26: - | E26: - | F26: 100.7 | G26: - | H26: - | I26: - | J26: Av | K26: -
A27: 2011VA2181 | B27: 2011 | C27: 2181 | D27: - | E27: - | F27: 99.4 | G27: - | H27: - | I27: - | J27: Av | K27: -
A28: 2011VA2172 | B28: 2011 | C28: 2172 | D28: - | E28: - | F28: 104.2 | G28: - | H28: - | I28: - | J28: Sig+ | K28: -
A29: 2011VA2015 | B29: 2011 | C29: 2015 | D29: - | E29: - | F29: 100.2 | G29: - | H29: - | I29: - | J29: Av | K29: -
A30: 2011VA2041 | B30: 2011 | C30: 2041 | D30: - | E30: - | F30: 100.6 | G30: - | H30: - | I30: - | J30: Av | K30: -
A31: 2011VA2186 | B31: 2011 | C31: 2186 | D31: - | E31: - | F31: 100.8 | G31: - | H31: - | I31: - | J31: Av | K31: -
A32: 2011VA2188 | B32: 2011 | C32: 2188 | D32: - | E32: - | F32: 100.2 | G32: - | H32: - | I32: - | J32: Av | K32: -
A33: 2011VA2128 | B33: 2011 | C33: 2128 | D33: - | E33: - | F33: 100.7 | G33: - | H33: - | I33: - | J33: Av | K33: -
A34: 2011VA3308 | B34: 2011 | C34: 3308 | D34: - | E34: - | F34: 100 | G34: - | H34: - | I34: - | J34: Av | K34: -
A35: 2011VA3002 | B35: 2011 | C35: 3002 | D35: - | E35: - | F35: 100.2 | G35: - | H35: - | I35: - | J35: Av | K35: -
A36: 2011VA2078 | B36: 2011 | C36: 2078 | D36: - | E36: - | F36: 99 | G36: - | H36: - | I36: - | J36: Av | K36: -
A37: 2011VA2164 | B37: 2011 | C37: 2164 | D37: - | E37: - | F37: 100.7 | G37: - | H37: - | I37: - | J37: Av | K37: -
A38: 2011VA2057 | B38: 2011 | C38: 2057 | D38: - | E38: - | F38: 100.8 | G38: - | H38: - | I38: - | J38: Av | K38: -
A39: 2011VA2182 | B39: 2011 | C39: 2182 | D39: - | E39: - | F39: 100.2 | G39: - | H39: - | I39: - | J39: Av | K39: -
A40: 2011VA2173 | B40: 2011 | C40: 2173 | D40: - | E40: - | F40: 100 | G40: - | H40: - | I40: - | J40: Av | K40: -
A41: 2011VA2133 | B41: 2011 | C41: 2133 | D41: - | E41: - | F41: 99.7 | G41: - | H41: - | I41: - | J41: Av | K41: -
A42: 2011VA2163 | B42: 2011 | C42: 2163 | D42: - | E42: - | F42: 100.7 | G42: - | H42: - | I42: - | J42: Av | K42: -
A43: 2011VA2162 | B43: 2011 | C43: 2162 | D43: - | E43: - | F43: 99.6 | G43: - | H43: - | I43: - | J43: Av | K43: -
A44: 2011VA2045 | B44: 2011 | C44: 2045 | D44: - | E44: - | F44: 101.5 | G44: - | H44: - | I44: - | J44: Sig+ | K44: -
A45: 2011VA2134 | B45: 2011 | C45: 2134 | D45: - | E45: - | F45: 98.8 | G45: - | H45: - | I45: - | J45: Sig- | K45: -
A46: 2011VA2046 | B46: 2011 | C46: 2046 | D46: - | E46: - | F46: 101.3 | G46: - | H46: - | I46: - | J46: Sig+ | K46: -
A47: 2011VA2074 | B47: 2011 | C47: 2074 | D47: - | E47: - | F47: 101.9 | G47: - | H47: - | I47: - | J47: Sig+ | K47: -
A48: 2011VA2136 | B48: 2011 | C48: 2136 | D48: - | E48: - | F48: 99.7 | G48: - | H48: - | I48: - | J48: Av | K48: -
A49: 2011VA2061 | B49: 2011 | C49: 2061 | D49: - | E49: - | F49: 101.4 | G49: - | H49: - | I49: - | J49: Sig+ | K49: -
A50: 2011VA2138 | B50: 2011 | C50: 2138 | D50: - | E50: - | F50: 99.1 | G50: - | H50: - | I50: - | J50: Av | K50: -
A51: 2011VA2047 | B51: 2011 | C51: 2047 | D51: - | E51: - | F51: 100.9 | G51: - | H51: - | I51: - | J51: Sig+ | K51: -
A52: 2011VA2048 | B52: 2011 | C52: 2048 | D52: - | E52: - | F52: 100.4 | G52: - | H52: - | I52: - | J52: Av | K52: -
A53: 2011VA3408 | B53: 2011 | C53: 3408 | D53: - | E53: - | F53: 99.5 | G53: - | H53: - | I53: - | J53: Av | K53: -
A54: 2011VA2140 | B54: 2011 | C54: 2140 | D54: - | E54: - | F54: 97.6 | G54: - | H54: - | I54: - | J54: Sig- | K54: -
A55: 2011VA2141 | B55: 2011 | C55: 2141 | D55: - | E55: - | F55: 99.7 | G55: - | H55: - | I55: - | J55: Av | K55: -
A56: 2011VA2179 | B56: 2011 | C56: 2179 | D56: - | E56: - | F56: 100.7 | G56: - | H56: - | I56: - | J56: Av | K56: -
A57: 2011VA2175 | B57: 2011 | C57: 2175 | D57: - | E57: - | F57: 99.9 | G57: - | H57: - | I57: - | J57: Av | K57: -
A58: 2011VA2146 | B58: 2011 | C58: 2146 | D58: - | E58: - | F58: 101.7 | G58: - | H58: - | I58: - | J58: Sig+ | K58: -
A59: 2011VA2174 | B59: 2011 | C59: 2174 | D59: - | E59: - | F59: 98.6 | G59: - | H59: - | I59: - | J59: Sig- | K59: -
A60: 2011VA3406 | B60: 2011 | C60: 3406 | D60: - | E60: - | F60: 102.2 | G60: - | H60: - | I60: - | J60: Sig+ | K60: -
A61: 2011VA7001 | B61: 2011 | C61: 7001 | D61: - | E61: - | F61: 98.6 | G61: - | H61: - | I61: - | J61: Av | K61: -
A62: 2011VA2161 | B62: 2011 | C62: 2161 | D62: - | E62: - | F62: 101.3 | G62: - | H62: - | I62: - | J62: Sig+ | K62: -
A63: 2011VA2189 | B63: 2011 | C63: 2189 | D63: - | E63: - | F63: 98.6 | G63: - | H63: - | I63: - | J63: Sig- | K63: -
A64: 2011VA3401 | B64: 2011 | C64: 3401 | D64: - | E64: - | F64: 100.3 | G64: - | H64: - | I64: - | J64: Av | K64: -
A65: 2011VA3405 | B65: 2011 | C65: 3405 | D65: - | E65: - | F65: 100.1 | G65: - | H65: - | I65: - | J65: Av | K65: -
A66: 2011VA3402 | B66: 2011 | C66: 3402 | D66: - | E66: - | F66: 101 | G66: - | H66: - | I66: - | J66: Sig+ | K66: -
A67: =B67&"VA"&C67 -> 2011VA3006 | B67: 2011 | C67: 3006 | D67: - | E67: - | F67: 100.2 | G67: - | H67: - | I67: - | J67: Av | K67: -
A68: 2011VA3303 | B68: 2011 | C68: 3303 | D68: - | E68: - | F68: 102.7 | G68: - | H68: - | I68: - | J68: Sig+ | K68: -
A69: 2011VA3304 | B69: 2011 | C69: 3304 | D69: - | E69: - | F69: 98.9 | G69: - | H69: - | I69: - | J69: Av | K69: -
A70: 2011VA3307 | B70: 2011 | C70: 3307 | D70: - | E70: - | F70: 101.6 | G70: - | H70: - | I70: - | J70: Sig+ | K70: -
A71: 2011VA3003 | B71: 2011 | C71: 3003 | D71: - | E71: - | F71: 101.2 | G71: - | H71: - | I71: - | J71: Sig+ | K71: -
A72: 2011VA3005 | B72: 2011 | C72: 3005 | D72: - | E72: - | F72: 101.8 | G72: - | H72: - | I72: - | J72: Sig+ | K72: -
A73: 2011VA3305 | B73: 2011 | C73: 3305 | D73: - | E73: - | F73: 101.1 | G73: - | H73: - | I73: - | J73: Sig+ | K73: -
A74: 2011VA3403 | B74: 2011 | C74: 3403 | D74: - | E74: - | F74: 100.2 | G74: - | H74: - | I74: - | J74: Av | K74: -
A75: 2011VA3004 | B75: 2011 | C75: 3004 | D75: - | E75: - | F75: 103.2 | G75: - | H75: - | I75: - | J75: Sig+ | K75: -
A76: 2011VA3404 | B76: 2011 | C76: 3404 | D76: - | E76: - | F76: 99.5 | G76: - | H76: - | I76: - | J76: Av | K76: -
A77: 2011VA3407 | B77: 2011 | C77: 3407 | D77: - | E77: - | F77: 101 | G77: - | H77: - | I77: - | J77: Sig+ | K77: -
A78: 2011VA2187 | B78: 2011 | C78: 2187 | D78: - | E78: - | F78: 100.2 | G78: - | H78: - | I78: - | J78: Av | K78: -
A79: 2011VA2148 | B79: 2011 | C79: 2148 | D79: - | E79: - | F79: 98.4 | G79: - | H79: - | I79: - | J79: Sig- | K79: -
A80: 2011VA7018 | B80: 2011 | C80: 7018 | D80: - | E80: - | F80: 89.8 | G80: - | H80: - | I80: - | J80: Sig- | K80: -
A81: 2011VA2183 | B81: 2011 | C81: 2183 | D81: - | E81: - | F81: 100.4 | G81: - | H81: - | I81: - | J81: Av | K81: -
A82: 2011VA2158 | B82: 2011 | C82: 2158 | D82: - | E82: - | F82: 101.9 | G82: - | H82: - | I82: - | J82: Sig+ | K82: -
A83: 2011VA2082 | B83: 2011 | C83: 2082 | D83: - | E83: - | F83: 99.1 | G83: - | H83: - | I83: - | J83: Sig- | K83: -
A84: 2011VA3007 | B84: 2011 | C84: 3007 | D84: - | E84: - | F84: 101.3 | G84: - | H84: - | I84: - | J84: Sig+ | K84: -
A85: 2011VA2151 | B85: 2011 | C85: 2151 | D85: - | E85: - | F85: 98.9 | G85: - | H85: - | I85: - | J85: Sig- | K85: -
A86: 2011VA2180 | B86: 2011 | C86: 2180 | D86: - | E86: - | F86: 100.1 | G86: - | H86: - | I86: - | J86: Av | K86: -
A87: 2011VA2122 | B87: 2011 | C87: 2122 | D87: - | E87: - | F87: 101.2 | G87: - | H87: - | I87: - | J87: Sig+ | K87: -
A88: 2011VA2076 | B88: 2011 | C88: 2076 | D88: - | E88: - | F88: 100.6 | G88: - | H88: - | I88: - | J88: Av | K88: -
A89: 2011VA2070 | B89: 2011 | C89: 2070 | D89: - | E89: - | F89: 100.2 | G89: - | H89: - | I89: - | J89: Av | K89: -
A90: 2011VA2051 | B90: 2011 | C90: 2051 | D90: - | E90: - | F90: 98.9 | G90: - | H90: - | I90: - | J90: Sig- | K90: -
A91: 2011VA2169 | B91: 2011 | C91: 2169 | D91: - | E91: - | F91: 100.9 | G91: - | H91: - | I91: - | J91: Sig+ | K91: -
A92: 2012VALA | B92: 2012 | C92: LA | D92: - | E92: - | F92: 100.4 | G92: - | H92: - | I92: - | J92: - | K92: -
A93: 2012VANAT | B93: 2012 | C93: NAT | D93: - | E93: - | F93: 100 | G93: - | H93: - | I93: - | J93: - | K93: -
A94: 2012VA2101 | B94: 2012 | C94: 2101 | D94: - | E94: - | F94: 98.9 | G94: - | H94: - | I94: - | J94: Sig- | K94: -
A95: 2012VA3301 | B95: 2012 | C95: 3301 | D95: - | E95: - | F95: 100.2 | G95: - | H95: - | I95: - | J95: Av | K95: -
A96: 2012VA2105 | B96: 2012 | C96: 2105 | D96: - | E96: - | F96: 100.3 | G96: - | H96: - | I96: - | J96: Av | K96: -
A97: 2012VA2176 | B97: 2012 | C97: 2176 | D97: - | E97: - | F97: 100.9 | G97: - | H97: - | I97: - | J97: Sig+ | K97: -
A98: 2012VA2108 | B98: 2012 | C98: 2108 | D98: - | E98: - | F98: 99.3 | G98: - | H98: - | I98: - | J98: Av | K98: -
A99: 2012VA2171 | B99: 2012 | C99: 2171 | D99: - | E99: - | F99: 100 | G99: - | H99: - | I99: - | J99: Av | K99: -
A100: 2012VA2112 | B100: 2012 | C100: 2112 | D100: - | E100: - | F100: 100 | G100: - | H100: - | I100: - | J100: Av | K100: -
A101: 2012VA2054 | B101: 2012 | C101: 2054 | D101: - | E101: - | F101: 98.4 | G101: - | H101: - | I101: - | J101: Sig- | K101: -
A102: 2012VA2113 | B102: 2012 | C102: 2113 | D102: - | E102: - | F102: 99.6 | G102: - | H102: - | I102: - | J102: Av | K102: -
A103: 2012VA2178 | B103: 2012 | C103: 2178 | D103: - | E103: - | F103: 100.6 | G103: - | H103: - | I103: - | J103: Av | K103: -
A104: 2012VA3400 | B104: 2012 | C104: 3400 | D104: - | E104: - | F104: 99.7 | G104: - | H104: - | I104: - | J104: Av | K104: -
A105: 2012VA2118 | B105: 2012 | C105: 2118 | D105: - | E105: - | F105: 100 | G105: - | H105: - | I105: - | J105: Av | K105: -
A106: 2012VA2123 | B106: 2012 | C106: 2123 | D106: - | E106: - | F106: 101.4 | G106: - | H106: - | I106: - | J106: Sig+ | K106: -
A107: 2012VA2124 | B107: 2012 | C107: 2124 | D107: - | E107: - | F107: 99.7 | G107: - | H107: - | I107: - | J107: Av | K107: -
A108: 2012VA2072 | B108: 2012 | C108: 2072 | D108: - | E108: - | F108: 101.3 | G108: - | H108: - | I108: - | J108: Sig+ | K108: -
A109: 2012VA2177 | B109: 2012 | C109: 2177 | D109: - | E109: - | F109: 100.6 | G109: - | H109: - | I109: - | J109: Av | K109: -
A110: 2012VA3409 | B110: 2012 | C110: 3409 | D110: - | E110: - | F110: 101.3 | G110: - | H110: - | I110: - | J110: Sig+ | K110: -
A111: 2012VA2126 | B111: 2012 | C111: 2126 | D111: - | E111: - | F111: 100.1 | G111: - | H111: - | I111: - | J111: Av | K111: -
A112: 2012VA2075 | B112: 2012 | C112: 2075 | D112: - | E112: - | F112: 101.7 | G112: - | H112: - | I112: - | J112: Sig+ | K112: -
A113: 2012VA2127 | B113: 2012 | C113: 2127 | D113: - | E113: - | F113: 101.4 | G113: - | H113: - | I113: - | J113: Sig+ | K113: -
A114: 2012VA2056 | B114: 2012 | C114: 2056 | D114: - | E114: - | F114: 99.1 | G114: - | H114: - | I114: - | J114: Sig- | K114: -
A115: 2012VA2166 | B115: 2012 | C115: 2166 | D115: - | E115: - | F115: 100.4 | G115: - | H115: - | I115: - | J115: Av | K115: -
A116: 2012VA2181 | B116: 2012 | C116: 2181 | D116: - | E116: - | F116: 99.2 | G116: - | H116: - | I116: - | J116: Av | K116: -
A117: 2012VA2172 | B117: 2012 | C117: 2172 | D117: - | E117: - | F117: 103.5 | G117: - | H117: - | I117: - | J117: Sig+ | K117: -
A118: 2012VA2015 | B118: 2012 | C118: 2015 | D118: - | E118: - | F118: 98.8 | G118: - | H118: - | I118: - | J118: Sig- | K118: -
A119: 2012VA2041 | B119: 2012 | C119: 2041 | D119: - | E119: - | F119: 102.7 | G119: - | H119: - | I119: - | J119: Sig+ | K119: -
A120: 2012VA2186 | B120: 2012 | C120: 2186 | D120: - | E120: - | F120: 99.8 | G120: - | H120: - | I120: - | J120: Av | K120: -
A121: 2012VA2188 | B121: 2012 | C121: 2188 | D121: - | E121: - | F121: 99.9 | G121: - | H121: - | I121: - | J121: Av | K121: -
A122: 2012VA2128 | B122: 2012 | C122: 2128 | D122: - | E122: - | F122: 100.6 | G122: - | H122: - | I122: - | J122: Av | K122: -
A123: 2012VA3308 | B123: 2012 | C123: 3308 | D123: - | E123: - | F123: 100.3 | G123: - | H123: - | I123: - | J123: Av | K123: -
A124: 2012VA3002 | B124: 2012 | C124: 3002 | D124: - | E124: - | F124: 99.6 | G124: - | H124: - | I124: - | J124: Av | K124: -
A125: 2012VA2078 | B125: 2012 | C125: 2078 | D125: - | E125: - | F125: 100.2 | G125: - | H125: - | I125: - | J125: Av | K125: -
A126: 2012VA2164 | B126: 2012 | C126: 2164 | D126: - | E126: - | F126: 101.5 | G126: - | H126: - | I126: - | J126: Sig+ | K126: -
A127: 2012VA2057 | B127: 2012 | C127: 2057 | D127: - | E127: - | F127: 101.2 | G127: - | H127: - | I127: - | J127: Sig+ | K127: -
A128: 2012VA2182 | B128: 2012 | C128: 2182 | D128: - | E128: - | F128: 102.2 | G128: - | H128: - | I128: - | J128: Sig+ | K128: -
A129: 2012VA2173 | B129: 2012 | C129: 2173 | D129: - | E129: - | F129: 100 | G129: - | H129: - | I129: - | J129: Av | K129: -
A130: 2012VA2133 | B130: 2012 | C130: 2133 | D130: - | E130: - | F130: 100.2 | G130: - | H130: - | I130: - | J130: Av | K130: -
A131: =B131&"VA"&C131 -> 2012VA2163 | B131: 2012 | C131: 2163 | D131: - | E131: - | F131: 100 | G131: - | H131: - | I131: - | J131: Av | K131: -
A132: 2012VA2162 | B132: 2012 | C132: 2162 | D132: - | E132: - | F132: 98.9 | G132: - | H132: - | I132: - | J132: Sig- | K132: -
A133: 2012VA2045 | B133: 2012 | C133: 2045 | D133: - | E133: - | F133: 101.1 | G133: - | H133: - | I133: - | J133: Sig+ | K133: -
A134: 2012VA2134 | B134: 2012 | C134: 2134 | D134: - | E134: - | F134: 99.5 | G134: - | H134: - | I134: - | J134: Av | K134: -
A135: 2012VA2046 | B135: 2012 | C135: 2046 | D135: - | E135: - | F135: 101 | G135: - | H135: - | I135: - | J135: Av | K135: -
A136: 2012VA2074 | B136: 2012 | C136: 2074 | D136: - | E136: - | F136: 99.7 | G136: - | H136: - | I136: - | J136: Av | K136: -
A137: 2012VA2136 | B137: 2012 | C137: 2136 | D137: - | E137: - | F137: 101.3 | G137: - | H137: - | I137: - | J137: Sig+ | K137: -
A138: 2012VA2061 | B138: 2012 | C138: 2061 | D138: - | E138: - | F138: 100.7 | G138: - | H138: - | I138: - | J138: Av | K138: -
A139: 2012VA2138 | B139: 2012 | C139: 2138 | D139: - | E139: - | F139: 99.1 | G139: - | H139: - | I139: - | J139: Av | K139: -
A140: 2012VA2047 | B140: 2012 | C140: 2047 | D140: - | E140: - | F140: 99.9 | G140: - | H140: - | I140: - | J140: Av | K140: -
A141: 2012VA2048 | B141: 2012 | C141: 2048 | D141: - | E141: - | F141: 102 | G141: - | H141: - | I141: - | J141: Sig+ | K141: -
A142: 2012VA3408 | B142: 2012 | C142: 3408 | D142: - | E142: - | F142: 98.3 | G142: - | H142: - | I142: - | J142: Sig- | K142: -
A143: 2012VA2140 | B143: 2012 | C143: 2140 | D143: - | E143: - | F143: 99.7 | G143: - | H143: - | I143: - | J143: Av | K143: -
A144: 2012VA2141 | B144: 2012 | C144: 2141 | D144: - | E144: - | F144: 100.7 | G144: - | H144: - | I144: - | J144: Av | K144: -
A145: 2012VA2179 | B145: 2012 | C145: 2179 | D145: - | E145: - | F145: 99.3 | G145: - | H145: - | I145: - | J145: Av | K145: -
A146: 2012VA2175 | B146: 2012 | C146: 2175 | D146: - | E146: - | F146: 100.2 | G146: - | H146: - | I146: - | J146: Av | K146: -
A147: 2012VA2146 | B147: 2012 | C147: 2146 | D147: - | E147: - | F147: NA | G147: - | H147: - | I147: - | J147: Sig+ | K147: -
A148: 2012VA2174 | B148: 2012 | C148: 2174 | D148: - | E148: - | F148: 103.1 | G148: - | H148: - | I148: - | J148: Sig+ | K148: -
A149: 2012VA3406 | B149: 2012 | C149: 3406 | D149: - | E149: - | F149: 101.3 | G149: - | H149: - | I149: - | J149: Av | K149: -
A150: 2012VA7001 | B150: 2012 | C150: 7001 | D150: - | E150: - | F150: SUPP | G150: - | H150: - | I150: - | J150: - | K150: -
A151: 2012VA2161 | B151: 2012 | C151: 2161 | D151: - | E151: - | F151: 100.2 | G151: - | H151: - | I151: - | J151: Av | K151: -
A152: 2012VA2189 | B152: 2012 | C152: 2189 | D152: - | E152: - | F152: 101.7 | G152: - | H152: - | I152: - | J152: Sig+ | K152: -
A153: 2012VA3401 | B153: 2012 | C153: 3401 | D153: - | E153: - | F153: 100.2 | G153: - | H153: - | I153: - | J153: Av | K153: -
A154: 2012VA3405 | B154: 2012 | C154: 3405 | D154: - | E154: - | F154: 101 | G154: - | H154: - | I154: - | J154: Av | K154: -
A155: 2012VA3402 | B155: 2012 | C155: 3402 | D155: - | E155: - | F155: 102 | G155: - | H155: - | I155: - | J155: Sig+ | K155: -
A156: 2012VA3006 | B156: 2012 | C156: 3006 | D156: - | E156: - | F156: 100.9 | G156: - | H156: - | I156: - | J156: Av | K156: -
A157: 2012VA3303 | B157: 2012 | C157: 3303 | D157: - | E157: - | F157: 102 | G157: - | H157: - | I157: - | J157: Sig+ | K157: -
A158: 2012VA3304 | B158: 2012 | C158: 3304 | D158: - | E158: - | F158: 100.6 | G158: - | H158: - | I158: - | J158: Av | K158: -
A159: 2012VA3307 | B159: 2012 | C159: 3307 | D159: - | E159: - | F159: 100.4 | G159: - | H159: - | I159: - | J159: Av | K159: -
A160: 2012VA3003 | B160: 2012 | C160: 3003 | D160: - | E160: - | F160: 98.7 | G160: - | H160: - | I160: - | J160: Sig- | K160: -
A161: 2012VA3005 | B161: 2012 | C161: 3005 | D161: - | E161: - | F161: 101.2 | G161: - | H161: - | I161: - | J161: Sig+ | K161: -
A162: 2012VA3305 | B162: 2012 | C162: 3305 | D162: - | E162: - | F162: 100.2 | G162: - | H162: - | I162: - | J162: Av | K162: -
A163: 2012VA3403 | B163: 2012 | C163: 3403 | D163: - | E163: - | F163: 101.6 | G163: - | H163: - | I163: - | J163: Sig+ | K163: -
A164: 2012VA3004 | B164: 2012 | C164: 3004 | D164: - | E164: - | F164: 102.6 | G164: - | H164: - | I164: - | J164: Sig+ | K164: -
A165: 2012VA3404 | B165: 2012 | C165: 3404 | D165: - | E165: - | F165: 102.8 | G165: - | H165: - | I165: - | J165: Sig+ | K165: -
A166: 2012VA3407 | B166: 2012 | C166: 3407 | D166: - | E166: - | F166: 100.8 | G166: - | H166: - | I166: - | J166: Av | K166: -
A167: 2012VA2187 | B167: 2012 | C167: 2187 | D167: - | E167: - | F167: 101.1 | G167: - | H167: - | I167: - | J167: Sig+ | K167: -
A168: 2012VA2148 | B168: 2012 | C168: 2148 | D168: - | E168: - | F168: 98.8 | G168: - | H168: - | I168: - | J168: Sig- | K168: -
A169: 2012VA7018 | B169: 2012 | C169: 7018 | D169: - | E169: - | F169: 90.9 | G169: - | H169: - | I169: - | J169: Sig- | K169: -
A170: 2012VA2183 | B170: 2012 | C170: 2183 | D170: - | E170: - | F170: 98.5 | G170: - | H170: - | I170: - | J170: Sig- | K170: -
A171: 2012VA2158 | B171: 2012 | C171: 2158 | D171: - | E171: - | F171: 101.2 | G171: - | H171: - | I171: - | J171: Av | K171: -
A172: 2012VA2082 | B172: 2012 | C172: 2082 | D172: - | E172: - | F172: 97.2 | G172: - | H172: - | I172: - | J172: Sig- | K172: -
A173: 2012VA3007 | B173: 2012 | C173: 3007 | D173: - | E173: - | F173: 102.1 | G173: - | H173: - | I173: - | J173: Sig+ | K173: -
A174: 2012VA2151 | B174: 2012 | C174: 2151 | D174: - | E174: - | F174: 100.9 | G174: - | H174: - | I174: - | J174: Sig+ | K174: -
A175: 2012VA2180 | B175: 2012 | C175: 2180 | D175: - | E175: - | F175: 102 | G175: - | H175: - | I175: - | J175: Sig+ | K175: -
A176: 2012VA2122 | B176: 2012 | C176: 2122 | D176: - | E176: - | F176: 101.1 | G176: - | H176: - | I176: - | J176: Sig+ | K176: -
A177: 2012VA2076 | B177: 2012 | C177: 2076 | D177: - | E177: - | F177: 100.6 | G177: - | H177: - | I177: - | J177: Av | K177: -
A178: 2012VA2070 | B178: 2012 | C178: 2070 | D178: - | E178: - | F178: 100.5 | G178: - | H178: - | I178: - | J178: Av | K178: -
A179: 2012VA2051 | B179: 2012 | C179: 2051 | D179: - | E179: - | F179: 98.5 | G179: - | H179: - | I179: - | J179: Sig- | K179: -
A180: 2012VA2169 | B180: 2012 | C180: 2169 | D180: - | E180: - | F180: 100.8 | G180: - | H180: - | I180: - | J180: Sig+ | K180: -
A181: 2013VALA | B181: 2013 | C181: LA | D181: 99.9 | E181: 100.2 | F181: 100.4 | G181: 100.3 | H181: - | I181: - | J181: - | K181: -
A182: 2013VANAT | B182: 2013 | C182: NAT | D182: - | E182: - | F182: - | G182: - | H182: - | I182: - | J182: - | K182: -
A183: 2013VA2101 | B183: 2013 | C183: 2101 | D183: 99.5 | E183: 99 | F183: 99.1 | G183: 99.1 | H183: Av | I183: Sig- | J183: Sig- | K183: Sig-
A184: 2013VA3301 | B184: 2013 | C184: 3301 | D184: 100 | E184: 101.7 | F184: 100.3 | G184: 100.6 | H184: Av | I184: Sig+ | J184: Av | K184: Av
A185: 2013VA2105 | B185: 2013 | C185: 2105 | D185: 100.1 | E185: 101.7 | F185: 101.7 | G185: 101.3 | H185: Av | I185: Sig+ | J185: Sig+ | K185: Sig+
A186: 2013VA2176 | B186: 2013 | C186: 2176 | D186: 100.1 | E186: 100 | F186: 100.5 | G186: 100.3 | H186: Av | I186: Av | J186: Av | K186: Av
A187: 2013VA2108 | B187: 2013 | C187: 2108 | D187: 98.6 | E187: 99.7 | F187: 98.1 | G187: 98.6 | H187: Sig- | I187: Av | J187: Sig- | K187: Sig-
A188: 2013VA2171 | B188: 2013 | C188: 2171 | D188: NA | E188: SUPP | F188: NA | G188: NA | H188: NA | I188: NA | J188: NA | K188: Av
A189: 2013VA2112 | B189: 2013 | C189: 2112 | D189: 98.4 | E189: 100.5 | F189: 98.8 | G189: 99.1 | H189: Sig- | I189: Av | J189: Sig- | K189: Av
A190: 2013VA2054 | B190: 2013 | C190: 2054 | D190: 98.5 | E190: 100.2 | F190: 98.7 | G190: 99 | H190: Sig- | I190: Av | J190: Sig- | K190: Sig-
A191: 2013VA2113 | B191: 2013 | C191: 2113 | D191: 98.3 | E191: 100 | F191: 99.4 | G191: 99.3 | H191: Sig- | I191: Av | J191: Av | K191: Sig-
A192: 2013VA2178 | B192: 2013 | C192: 2178 | D192: 100.5 | E192: 100.7 | F192: 101.3 | G192: 101 | H192: Av | I192: Av | J192: Sig+ | K192: Sig+
A193: 2013VA3400 | B193: 2013 | C193: 3400 | D193: 100.4 | E193: 100.3 | F193: 101.2 | G193: 100.8 | H193: Av | I193: Av | J193: Av | K193: Av
A194: 2013VA2118 | B194: 2013 | C194: 2118 | D194: 100.4 | E194: 100.1 | F194: 101.1 | G194: 100.7 | H194: Av | I194: Av | J194: Sig+ | K194: Av
A195: =B195&"VA"&C195 -> 2013VA2123 | B195: 2013 | C195: 2123 | D195: 100.4 | E195: 101.5 | F195: 100.6 | G195: 100.8 | H195: Av | I195: Sig+ | J195: Av | K195: Av
A196: 2013VA2124 | B196: 2013 | C196: 2124 | D196: 99.8 | E196: 101.4 | F196: 99.6 | G196: 100.1 | H196: Av | I196: Sig+ | J196: Av | K196: Av
A197: 2013VA2072 | B197: 2013 | C197: 2072 | D197: 100 | E197: 101 | F197: 100.2 | G197: 100.4 | H197: Av | I197: Sig+ | J197: Av | K197: Av
A198: 2013VA2177 | B198: 2013 | C198: 2177 | D198: 100.4 | E198: 100.3 | F198: 100.7 | G198: 100.5 | H198: Av | I198: Av | J198: Av | K198: Av
A199: 2013VA3409 | B199: 2013 | C199: 3409 | D199: 99.7 | E199: 100.5 | F199: 100.1 | G199: 100.1 | H199: Av | I199: Av | J199: Av | K199: Av
A200: 2013VA2004 | B200: 2013 | C200: 2004 | D200: 99.1 | E200: 100.3 | F200: 101.1 | G200: 100.4 | H200: Av | I200: Av | J200: Sig+ | K200: Av
... 246 more rows

Sheet Old Data (hidden)
A1: ID | B1: Year | C1: DFE | D1: Characteristic | E1: Value | F1: CountOfUPN | G1: SumOfRDenomAPS | H1: SumOfRDenom% | I1: SumOfWDenomAPS | J1: SumOfWDenom% | K1: SumOfMDenomAPS | L1: SumOfMDenom% | M1: SumOfGDenom% | N1: SumOfSDenom% | O1: SumOfRWMDenom% | P1: SumOfSubDenomRWM | Q1: SumOfRWMTotalPts | R1: R4+% | S1: R4B+% | T1: R5+% | U1: RAPS | V1: W4+% | W1: W5+% | X1: WAPS | Y1: M4+% | Z1: M4B+% | AA1: M5+% | AB1: MAPS | AC1: G4+% | AD1: G5+% | AE1: RWM4+% | AF1: RWM4B+% | AG1: RWM5+% | AH1: RWMAPS | AI1: MTA4+% | AJ1: MTA5+% | AK1: ETA4+% | AL1: ETA5+% | AM1: R2LVS% | AN1: W2LVS% | AO1: M2LVS% | AP1: S4+% | AQ1: S5+% | AR1: R3LVS% | AS1: W3LVS% | AT1: M3LVS% | AU1: G4B+%
A2: 1 | B2: 2 | C2: 3 | D2: 4 | E2: 5 | F2: 6 | G2: 7 | H2: 8 | I2: 9 | J2: 10 | K2: 11 | L2: 12 | M2: 13 | N2: 14 | O2: 15 | P2: 16 | Q2: 17 | R2: 18 | S2: 19 | T2: 20 | U2: 21 | V2: 22 | W2: 23 | X2: 24 | Y2: 25 | Z2: 26 | AA2: 27 | AB2: 28 | AC2: 29 | AD2: 30 | AE2: 31 | AF2: 32 | AG2: 33 | AH2: 34 | AI2: 35 | AJ2: 36 | AK2: 37 | AL2: 38 | AM2: 39 | AN2: 40 | AO2: 41 | AP2: 42 | AQ2: 43 | AR2: 44 | AS2: 45 | AT2: 46 | AU2: 47
A3: ID | B3: Year | C3: DFE | D3: Characteristic | E3: Value | F3: CountOfUPN | G3: SumOfRDenomAPS | H3: SumOfRDenom% | I3: SumOfWDenomAPS | J3: SumOfWDenom% | K3: SumOfMDenomAPS | L3: SumOfMDenom% | M3: SumOfGDenom% | N3: SumOfSDenom% | O3: SumOfRWMDenom% | P3: SumOfSubDenomRWM | Q3: SumOfRWMTotalPts | R3: R4+% | S3: R4B+% | T3: R5+% | U3: RAPS | V3: W4+% | W3: W5+% | X3: WAPS | Y3: M4+% | Z3: M4B+% | AA3: M5+% | AB3: MAPS | AC3: G4+% | AD3: G5+% | AE3: RWM4+% | AF3: RWM4B+% | AG3: RWM5+% | AH3: RWMAPS | AI3: MTA4+% | AJ3: MTA5+% | AK3: ETA4+% | AL3: ETA5+% | AM3: R2LVS% | AN3: W2LVS% | AO3: M2LVS% | AP3: S4+% | AQ3: S5+% | AR3: R3LVS% | AS3: W3LVS% | AT3: M3LVS% | AU3: G4B+%
A4: 2013Acorn12006 | B4: 2013 | C4: 2006 | D4: Acorn | E4: 1 | F4: 1 | G4: 1 | H4: 1 | I4: 1 | J4: 1 | K4: 1 | L4: 1 | M4: 1 | N4: 1 | O4: 1 | P4: 2 | Q4: 63 | R4: 100 | S4: 100 | T4: 100 | U4: 33 | V4: 100 | W4: 0 | X4: 27 | Y4: 100 | Z4: 100 | AA4: 100 | AB4: 33 | AC4: 100 | AD4: 0 | AE4: 100 | AF4: 100 | AG4: 0 | AH4: 31.5 | AI4: 100 | AJ4: 0 | AK4: 100 | AL4: 100 | AM4: 100 | AN4: 100 | AO4: 100 | AP4: 100 | AQ4: 0 | AR4: 100 | AS4: 0 | AT4: 100 | AU4: 100
A5: 2013Acorn12015 | B5: 2013 | C5: 2015 | D5: Acorn | E5: 1 | F5: 3 | G5: 3 | H5: 3 | I5: 3 | J5: 3 | K5: 3 | L5: 3 | M5: 3 | N5: 3 | O5: 3 | P5: 6 | Q5: 189 | R5: 100 | S5: 66.66666667 | T5: 66.66666667 | U5: 31 | V5: 66.66666667 | W5: 66.66666667 | X5: 29 | Y5: 100 | Z5: 66.66666667 | AA5: 66.66666667 | AB5: 33 | AC5: 66.66666667 | AD5: 66.66666667 | AE5: 66.66666667 | AF5: 66.66666667 | AG5: 66.66666667 | AH5: 31.5 | AI5: 100 | AJ5: 66.66666667 | AK5: 66.66666667 | AL5: 66.66666667 | AM5: 100 | AN5: 100 | AO5: 100 | AP5: 66.66666667 | AQ5: 66.66666667 | AR5: 0 | AS5: 0 | AT5: 50 | AU5: 66.66666667
A6: 2013Acorn12048 | B6: 2013 | C6: 2048 | D6: Acorn | E6: 1 | F6: 2 | G6: 2 | H6: 2 | I6: 2 | J6: 2 | K6: 2 | L6: 2 | M6: 2 | N6: 2 | O6: 2 | P6: 4 | Q6: 129 | R6: 100 | S6: 100 | T6: 100 | U6: 33 | V6: 100 | W6: 50 | X6: 30 | Y6: 100 | Z6: 100 | AA6: 100 | AB6: 33 | AC6: 100 | AD6: 100 | AE6: 100 | AF6: 100 | AG6: 50 | AH6: 32.25 | AI6: 100 | AJ6: 50 | AK6: 100 | AL6: 50 | AM6: 100 | AN6: 100 | AO6: 100 | AP6: 100 | AQ6: 100 | AR6: 100 | AS6: 0 | AT6: 100 | AU6: 100
A7: 2013Acorn12056 | B7: 2013 | C7: 2056 | D7: Acorn | E7: 1 | F7: 1 | G7: 1 | H7: 1 | I7: 1 | J7: 1 | K7: 1 | L7: 1 | M7: 1 | N7: 1 | O7: 1 | P7: 2 | Q7: 66 | R7: 100 | S7: 100 | T7: 100 | U7: 33 | V7: 100 | W7: 100 | X7: 33 | Y7: 100 | Z7: 100 | AA7: 100 | AB7: 33 | AC7: 100 | AD7: 100 | AE7: 100 | AF7: 100 | AG7: 100 | AH7: 33 | AI7: 100 | AJ7: 100 | AK7: 100 | AL7: 100 | AM7: 100 | AN7: 100 | AO7: 100 | AP7: 100 | AQ7: 100 | AR7: 100 | AS7: 100 | AT7: 0 | AU7: 100
A8: 2013Acorn12061 | B8: 2013 | C8: 2061 | D8: Acorn | E8: 1 | F8: 5 | G8: 5 | H8: 5 | I8: 5 | J8: 5 | K8: 5 | L8: 5 | M8: 5 | N8: 5 | O8: 5 | P8: 10 | Q8: 321 | R8: 100 | S8: 100 | T8: 80 | U8: 31.8 | V8: 100 | W8: 60 | X8: 30.6 | Y8: 100 | Z8: 100 | AA8: 100 | AB8: 33 | AC8: 100 | AD8: 20 | AE8: 100 | AF8: 100 | AG8: 60 | AH8: 32.1 | AI8: 100 | AJ8: 80 | AK8: 100 | AL8: 60 | AM8: 100 | AN8: 100 | AO8: 100 | AP8: 100 | AQ8: 100 | AR8: 80 | AS8: 60 | AT8: 80 | AU8: 100
A9: 2013Acorn12070 | B9: 2013 | C9: 2070 | D9: Acorn | E9: 1 | F9: 7 | G9: 7 | H9: 7 | I9: 7 | J9: 7 | K9: 7 | L9: 7 | M9: 7 | N9: 7 | O9: 7 | P9: 14 | Q9: 420 | R9: 85.71428571 | S9: 71.42857143 | T9: 57.14285714 | U9: 29.57142857 | V9: 85.71428571 | W9: 42.85714286 | X9: 29.57142857 | Y9: 85.71428571 | Z9: 71.42857143 | AA9: 57.14285714 | AB9: 30.42857143 | AC9: 100 | AD9: 85.71428571 | AE9: 85.71428571 | AF9: 71.42857143 | AG9: 42.85714286 | AH9: 30 | AI9: 85.71428571 | AJ9: 57.14285714 | AK9: 85.71428571 | AL9: 42.85714286 | AM9: 100 | AN9: 100 | AO9: 100 | AP9: 85.71428571 | AQ9: 57.14285714 | AR9: 14.28571429 | AS9: 28.57142857 | AT9: 42.85714286 | AU9: 85.71428571
A10: 2013Acorn12076 | B10: 2013 | C10: 2076 | D10: Acorn | E10: 1 | F10: 2 | G10: 2 | H10: 2 | I10: 2 | J10: 2 | K10: 2 | L10: 2 | M10: 2 | N10: 2 | O10: 2 | P10: 4 | Q10: 117 | R10: 100 | S10: 50 | T10: 50 | U10: 30 | V10: 50 | W10: 50 | X10: 27 | Y10: 100 | Z10: 50 | AA10: 50 | AB10: 30 | AC10: 50 | AD10: 50 | AE10: 50 | AF10: 50 | AG10: 50 | AH10: 29.25 | AI10: 100 | AJ10: 50 | AK10: 50 | AL10: 50 | AM10: 100 | AN10: 100 | AO10: 100 | AP10: 50 | AQ10: 0 | AR10: 100 | AS10: 100 | AT10: 100 | AU10: 50
A11: 2013Acorn12078 | B11: 2013 | C11: 2078 | D11: Acorn | E11: 1 | F11: 1 | G11: 1 | H11: 1 | I11: 1 | J11: 1 | K11: 1 | L11: 1 | M11: 1 | N11: 1 | O11: 1 | P11: 2 | Q11: 57 | R11: 100 | S11: 100 | T11: 100 | U11: 33 | V11: 100 | W11: 0 | X11: 27 | Y11: 100 | Z11: 100 | AA11: 0 | AB11: 27 | AC11: 100 | AD11: 0 | AE11: 100 | AF11: 100 | AG11: 0 | AH11: 28.5 | AI11: 100 | AJ11: 0 | AK11: 100 | AL11: 0 | AM11: 100 | AN11: 100 | AO11: 100 | AP11: 100 | AQ11: 0 | AR11: 100 | AS11: 0 | AT11: 0 | AU11: 100
A12: 2013Acorn12101 | B12: 2013 | C12: 2101 | D12: Acorn | E12: 1 | F12: 10 | G12: 9 | H12: 10 | I12: 10 | J12: 10 | K12: 9 | L12: 10 | M12: 10 | N12: 10 | O12: 10 | P12: 19 | Q12: 571.5 | R12: 80 | S12: 80 | T12: 60 | U12: 30.33333333 | V12: 100 | W12: 50 | X12: 30 | Y12: 90 | Z12: 90 | AA12: 70 | AB12: 31.66666667 | AC12: 90 | AD12: 80 | AE12: 80 | AF12: 80 | AG12: 40 | AH12: 30.07894737 | AI12: 100 | AJ12: 80 | AK12: 100 | AL12: 60 | AM12: 90 | AN12: 100 | AO12: 100 | AP12: 100 | AQ12: 60 | AR12: 30 | AS12: 20 | AT12: 60 | AU12: 80
A13: 2013Acorn12105 | B13: 2013 | C13: 2105 | D13: Acorn | E13: 1 | F13: 3 | G13: 3 | H13: 3 | I13: 3 | J13: 3 | K13: 3 | L13: 3 | M13: 3 | N13: 3 | O13: 3 | P13: 6 | Q13: 171 | R13: 66.66666667 | S13: 66.66666667 | T13: 33.33333333 | U13: 27 | V13: 100 | W13: 33.33333333 | X13: 29 | Y13: 66.66666667 | Z13: 66.66666667 | AA13: 33.33333333 | AB13: 29 | AC13: 66.66666667 | AD13: 33.33333333 | AE13: 66.66666667 | AF13: 66.66666667 | AG13: 33.33333333 | AH13: 28.5 | AI13: 66.66666667 | AJ13: 33.33333333 | AK13: 100 | AL13: 33.33333333 | AM13: 100 | AN13: 100 | AO13: 100 | AP13: 100 | AQ13: 33.33333333 | AR13: 0 | AS13: 100 | AT13: 33.33333333 | AU13: 66.66666667
A14: 2013Acorn12108 | B14: 2013 | C14: 2108 | D14: Acorn | E14: 1 | F14: 2 | G14: 2 | H14: 2 | I14: 2 | J14: 2 | K14: 2 | L14: 2 | M14: 2 | N14: 2 | O14: 2 | P14: 4 | Q14: 123 | R14: 100 | S14: 100 | T14: 100 | U14: 33 | V14: 100 | W14: 50 | X14: 30 | Y14: 100 | Z14: 50 | AA14: 50 | AB14: 30 | AC14: 100 | AD14: 50 | AE14: 100 | AF14: 50 | AG14: 50 | AH14: 30.75 | AI14: 100 | AJ14: 50 | AK14: 100 | AL14: 100 | AM14: 100 | AN14: 100 | AO14: 100 | AP14: 100 | AQ14: 0 | AR14: 100 | AS14: 50 | AT14: 0 | AU14: 100
A15: 2013Acorn12124 | B15: 2013 | C15: 2124 | D15: Acorn | E15: 1 | F15: 1 | G15: 1 | H15: 1 | I15: 1 | J15: 1 | K15: 1 | L15: 1 | M15: 1 | N15: 1 | O15: 1 | P15: 2 | Q15: 42 | R15: 0 | S15: 0 | T15: 0 | U15: 21 | V15: 0 | W15: 0 | X15: 21 | Y15: 0 | Z15: 0 | AA15: 0 | AB15: 21 | AC15: 0 | AD15: 0 | AE15: 0 | AF15: 0 | AG15: 0 | AH15: 21 | AI15: 0 | AJ15: 0 | AK15: 0 | AL15: 0 | AM15: 100 | AN15: 100 | AO15: 100 | AP15: 0 | AQ15: 0 | AR15: 100 | AS15: 100 | AT15: 100 | AU15: 0
A16: 2013Acorn12127 | B16: 2013 | C16: 2127 | D16: Acorn | E16: 1 | F16: 1 | G16: 1 | H16: 1 | I16: 1 | J16: 1 | K16: 1 | L16: 1 | M16: 1 | N16: 1 | O16: 1 | P16: 2 | Q16: 54 | R16: 100 | S16: 0 | T16: 0 | U16: 27 | V16: 100 | W16: 0 | X16: 27 | Y16: 100 | Z16: 100 | AA16: 0 | AB16: 27 | AC16: 0 | AD16: 0 | AE16: 100 | AF16: 0 | AG16: 0 | AH16: 27 | AI16: 100 | AJ16: 0 | AK16: 100 | AL16: 0 | AM16: 100 | AN16: 100 | AO16: 100 | AP16: 100 | AQ16: 0 | AR16: 0 | AS16: 0 | AT16: 0 | AU16: 0
A17: 2013Acorn12128 | B17: 2013 | C17: 2128 | D17: Acorn | E17: 1 | F17: 4 | G17: 4 | H17: 4 | I17: 4 | J17: 4 | K17: 4 | L17: 4 | M17: 4 | N17: 4 | O17: 4 | P17: 8 | Q17: 243 | R17: 100 | S17: 100 | T17: 75 | U17: 31.5 | V17: 100 | W17: 50 | X17: 30 | Y17: 100 | Z17: 75 | AA17: 50 | AB17: 30 | AC17: 100 | AD17: 25 | AE17: 100 | AF17: 75 | AG17: 50 | AH17: 30.375 | AI17: 100 | AJ17: 50 | AK17: 100 | AL17: 50 | AM17: 100 | AN17: 100 | AO17: 100 | AP17: 100 | AQ17: 25 | AR17: 50 | AS17: 50 | AT17: 25 | AU17: 100
A18: 2013Acorn12133 | B18: 2013 | C18: 2133 | D18: Acorn | E18: 1 | F18: 14 | G18: 14 | H18: 14 | I18: 14 | J18: 14 | K18: 14 | L18: 14 | M18: 14 | N18: 14 | O18: 14 | P18: 28 | Q18: 864 | R18: 92.85714286 | S18: 85.71428571 | T18: 64.28571429 | U18: 30.85714286 | V18: 100 | W18: 57.14285714 | X18: 30.85714286 | Y18: 100 | Z18: 85.71428571 | AA18: 50 | AB18: 30.85714286 | AC18: 100 | AD18: 78.57142857 | AE18: 92.85714286 | AF18: 85.71428571 | AG18: 35.71428571 | AH18: 30.85714286 | AI18: 100 | AJ18: 85.71428571 | AK18: 100 | AL18: 71.42857143 | AM18: 85.71428571 | AN18: 100 | AO18: 85.71428571 | AP18: 100 | AQ18: 57.14285714 | AR18: 35.71428571 | AS18: 50 | AT18: 35.71428571 | AU18: 92.85714286
A19: 2013Acorn12134 | B19: 2013 | C19: 2134 | D19: Acorn | E19: 1 | F19: 3 | G19: 3 | H19: 3 | I19: 3 | J19: 3 | K19: 3 | L19: 3 | M19: 3 | N19: 3 | O19: 3 | P19: 6 | Q19: 171 | R19: 100 | S19: 66.66666667 | T19: 66.66666667 | U19: 31 | V19: 66.66666667 | W19: 66.66666667 | X19: 29 | Y19: 66.66666667 | Z19: 66.66666667 | AA19: 33.33333333 | AB19: 27 | AC19: 66.66666667 | AD19: 66.66666667 | AE19: 66.66666667 | AF19: 66.66666667 | AG19: 33.33333333 | AH19: 28.5 | AI19: 100 | AJ19: 33.33333333 | AK19: 100 | AL19: 66.66666667 | AM19: 100 | AN19: 66.66666667 | AO19: 66.66666667 | AP19: 100 | AQ19: 33.33333333 | AR19: 0 | AS19: 0 | AT19: 33.33333333 | AU19: 66.66666667
A20: 2013Acorn12136 | B20: 2013 | C20: 2136 | D20: Acorn | E20: 1 | F20: 10 | G20: 10 | H20: 10 | I20: 10 | J20: 10 | K20: 10 | L20: 10 | M20: 10 | N20: 10 | O20: 10 | P20: 20 | Q20: 642 | R20: 100 | S20: 90 | T20: 80 | U20: 31.8 | V20: 100 | W20: 60 | X20: 30.6 | Y20: 100 | Z20: 100 | AA20: 80 | AB20: 33 | AC20: 80 | AD20: 70 | AE20: 100 | AF20: 90 | AG20: 40 | AH20: 32.1 | AI20: 100 | AJ20: 90 | AK20: 100 | AL20: 80 | AM20: 100 | AN20: 100 | AO20: 100 | AP20: 90 | AQ20: 60 | AR20: 30 | AS20: 30 | AT20: 40 | AU20: 80
A21: 2013Acorn12140 | B21: 2013 | C21: 2140 | D21: Acorn | E21: 1 | F21: 6 | G21: 6 | H21: 6 | I21: 6 | J21: 6 | K21: 6 | L21: 6 | M21: 6 | N21: 6 | O21: 6 | P21: 12 | Q21: 357 | R21: 100 | S21: 100 | T21: 66.66666667 | U21: 31 | V21: 100 | W21: 16.66666667 | X21: 28 | Y21: 83.33333333 | Z21: 83.33333333 | AA21: 50 | AB21: 30 | AC21: 83.33333333 | AD21: 66.66666667 | AE21: 83.33333333 | AF21: 83.33333333 | AG21: 16.66666667 | AH21: 29.75 | AI21: 83.33333333 | AJ21: 66.66666667 | AK21: 100 | AL21: 50 | AM21: 100 | AN21: 100 | AO21: 66.66666667 | AP21: 83.33333333 | AQ21: 50 | AR21: 16.66666667 | AS21: 16.66666667 | AT21: 33.33333333 | AU21: 83.33333333
A22: 2013Acorn12146 | B22: 2013 | C22: 2146 | D22: Acorn | E22: 1 | F22: 1 | G22: 1 | H22: 1 | I22: 1 | J22: 1 | K22: 1 | L22: 1 | M22: 1 | N22: 1 | O22: 1 | P22: 2 | Q22: 60 | R22: 100 | S22: 100 | T22: 0 | U22: 27 | V22: 100 | W22: 0 | X22: 27 | Y22: 100 | Z22: 100 | AA22: 100 | AB22: 33 | AC22: 100 | AD22: 0 | AE22: 100 | AF22: 100 | AG22: 0 | AH22: 30 | AI22: 100 | AJ22: 0 | AK22: 100 | AL22: 100 | AM22: 0 | AN22: 100 | AO22: 100 | AP22: 100 | AQ22: 100 | AR22: 0 | AS22: 0 | AT22: 0 | AU22: 100
A23: 2013Acorn12148 | B23: 2013 | C23: 2148 | D23: Acorn | E23: 1 | F23: 1 | G23: 1 | H23: 1 | I23: 1 | J23: 1 | K23: 1 | L23: 1 | M23: 1 | N23: 1 | O23: 1 | P23: 2 | Q23: 75 | R23: 100 | S23: 100 | T23: 100 | U23: 33 | V23: 100 | W23: 100 | X23: 39 | Y23: 100 | Z23: 100 | AA23: 100 | AB23: 39 | AC23: 100 | AD23: 100 | AE23: 100 | AF23: 100 | AG23: 100 | AH23: 37.5 | AI23: 100 | AJ23: 100 | AK23: 100 | AL23: 100 | AM23: 100 | AN23: 100 | AO23: 100 | AP23: 100 | AQ23: 100 | AR23: 0 | AS23: 100 | AT23: 100 | AU23: 100
A24: 2013Acorn12151 | B24: 2013 | C24: 2151 | D24: Acorn | E24: 1 | F24: 5 | G24: 5 | H24: 5 | I24: 5 | J24: 5 | K24: 5 | L24: 5 | M24: 5 | N24: 5 | O24: 5 | P24: 10 | Q24: 297 | R24: 80 | S24: 80 | T24: 40 | U24: 28.2 | V24: 80 | W24: 20 | X24: 27 | Y24: 100 | Z24: 80 | AA24: 60 | AB24: 31.8 | AC24: 100 | AD24: 40 | AE24: 60 | AF24: 60 | AG24: 20 | AH24: 29.7 | AI24: 100 | AJ24: 60 | AK24: 100 | AL24: 40 | AM24: 80 | AN24: 80 | AO24: 100 | AP24: 100 | AQ24: 60 | AR24: 20 | AS24: 0 | AT24: 40 | AU24: 60
A25: 2013Acorn12166 | B25: 2013 | C25: 2166 | D25: Acorn | E25: 1 | F25: 25 | G25: 25 | H25: 25 | I25: 25 | J25: 25 | K25: 25 | L25: 25 | M25: 25 | N25: 25 | O25: 25 | P25: 50 | Q25: 1446 | R25: 92 | S25: 72 | T25: 48 | U25: 29.4 | V25: 84 | W25: 24 | X25: 27.96 | Y25: 80 | Z25: 76 | AA25: 48 | AB25: 29.16 | AC25: 80 | AD25: 56 | AE25: 72 | AF25: 60 | AG25: 20 | AH25: 28.92 | AI25: 88 | AJ25: 52 | AK25: 88 | AL25: 24 | AM25: 95.83333333 | AN25: 95.83333333 | AO25: 95.83333333 | AP25: 92 | AQ25: 32 | AR25: 37.5 | AS25: 29.16666667 | AT25: 37.5 | AU25: 72
A26: 2013Acorn12169 | B26: 2013 | C26: 2169 | D26: Acorn | E26: 1 | F26: 6 | G26: 6 | H26: 6 | I26: 6 | J26: 6 | K26: 6 | L26: 6 | M26: 6 | N26: 6 | O26: 6 | P26: 12 | Q26: 354 | R26: 100 | S26: 100 | T26: 50 | U26: 30 | V26: 100 | W26: 50 | X26: 30 | Y26: 100 | Z26: 66.66666667 | AA26: 33.33333333 | AB26: 29 | AC26: 100 | AD26: 66.66666667 | AE26: 100 | AF26: 66.66666667 | AG26: 16.66666667 | AH26: 29.5 | AI26: 100 | AJ26: 33.33333333 | AK26: 100 | AL26: 66.66666667 | AM26: 100 | AN26: 100 | AO26: 100 | AP26: 100 | AQ26: 66.66666667 | AR26: 33.33333333 | AS26: 33.33333333 | AT26: 16.66666667 | AU26: 83.33333333
A27: 2013Acorn12176 | B27: 2013 | C27: 2176 | D27: Acorn | E27: 1 | F27: 1 | G27: 1 | H27: 1 | I27: 1 | J27: 1 | K27: 1 | L27: 1 | M27: 1 | N27: 1 | O27: 1 | P27: 2 | Q27: 66 | R27: 100 | S27: 100 | T27: 100 | U27: 33 | V27: 100 | W27: 100 | X27: 33 | Y27: 100 | Z27: 100 | AA27: 100 | AB27: 33 | AC27: 100 | AD27: 0 | AE27: 100 | AF27: 100 | AG27: 100 | AH27: 33 | AI27: 100 | AJ27: 100 | AK27: 100 | AL27: 100 | AM27: 100 | AN27: 100 | AO27: 100 | AP27: 100 | AQ27: 0 | AR27: 100 | AS27: 100 | AT27: 100 | AU27: 100
A28: 2013Acorn12177 | B28: 2013 | C28: 2177 | D28: Acorn | E28: 1 | F28: 7 | G28: 7 | H28: 7 | I28: 7 | J28: 7 | K28: 7 | L28: 7 | M28: 7 | N28: 7 | O28: 7 | P28: 14 | Q28: 402 | R28: 100 | S28: 71.42857143 | T28: 28.57142857 | U28: 28.71428571 | V28: 85.71428571 | W28: 14.28571429 | X28: 27 | Y28: 100 | Z28: 100 | AA28: 42.85714286 | AB28: 29.57142857 | AC28: 85.71428571 | AD28: 28.57142857 | AE28: 85.71428571 | AF28: 71.42857143 | AG28: 14.28571429 | AH28: 28.71428571 | AI28: 100 | AJ28: 14.28571429 | AK28: 85.71428571 | AL28: 14.28571429 | AM28: 100 | AN28: 100 | AO28: 100 | AP28: 100 | AQ28: 28.57142857 | AR28: 57.14285714 | AS28: 42.85714286 | AT28: 28.57142857 | AU28: 57.14285714
A29: 2013Acorn12178 | B29: 2013 | C29: 2178 | D29: Acorn | E29: 1 | F29: 2 | G29: 2 | H29: 2 | I29: 2 | J29: 2 | K29: 2 | L29: 2 | M29: 2 | N29: 2 | O29: 2 | P29: 4 | Q29: 141 | R29: 100 | S29: 100 | T29: 100 | U29: 33 | V29: 100 | W29: 100 | X29: 36 | Y29: 100 | Z29: 100 | AA29: 100 | AB29: 36 | AC29: 100 | AD29: 100 | AE29: 100 | AF29: 100 | AG29: 100 | AH29: 35.25 | AI29: 100 | AJ29: 50 | AK29: 100 | AL29: 100 | AM29: 100 | AN29: 100 | AO29: 100 | AP29: 100 | AQ29: 50 | AR29: 0 | AS29: 100 | AT29: 100 | AU29: 100
A30: 2013Acorn12180 | B30: 2013 | C30: 2180 | D30: Acorn | E30: 1 | F30: 4 | G30: 4 | H30: 4 | I30: 4 | J30: 4 | K30: 4 | L30: 4 | M30: 4 | N30: 4 | O30: 4 | P30: 8 | Q30: 207 | R30: 75 | S30: 50 | T30: 50 | U30: 27 | V30: 75 | W30: 25 | X30: 22.5 | Y30: 75 | Z30: 75 | AA30: 50 | AB30: 27 | AC30: 75 | AD30: 25 | AE30: 75 | AF30: 50 | AG30: 25 | AH30: 25.875 | AI30: 75 | AJ30: 50 | AK30: 75 | AL30: 25 | AM30: 75 | AN30: 75 | AO30: 75 | AP30: 75 | AQ30: 25 | AR30: 25 | AS30: 25 | AT30: 50 | AU30: 75
A31: 2013Acorn12182 | B31: 2013 | C31: 2182 | D31: Acorn | E31: 1 | F31: 1 | G31: 1 | H31: 1 | I31: 1 | J31: 1 | K31: 1 | L31: 1 | M31: 1 | N31: 1 | O31: 1 | P31: 2 | Q31: 54 | R31: 100 | S31: 100 | T31: 0 | U31: 27 | V31: 100 | W31: 0 | X31: 27 | Y31: 100 | Z31: 100 | AA31: 0 | AB31: 27 | AC31: 0 | AD31: 0 | AE31: 100 | AF31: 100 | AG31: 0 | AH31: 27 | AI31: 100 | AJ31: 0 | AK31: 100 | AL31: 0 | AM31: 100 | AN31: 100 | AO31: 100 | AP31: 100 | AQ31: 100 | AR31: 100 | AS31: 100 | AT31: 0 | AU31: 0
A32: 2013Acorn12188 | B32: 2013 | C32: 2188 | D32: Acorn | E32: 1 | F32: 1 | G32: 1 | H32: 1 | I32: 1 | J32: 1 | K32: 1 | L32: 1 | M32: 1 | N32: 1 | O32: 1 | P32: 2 | Q32: 60 | R32: 100 | S32: 100 | T32: 100 | U32: 33 | V32: 100 | W32: 100 | X32: 33 | Y32: 100 | Z32: 100 | AA32: 0 | AB32: 27 | AC32: 100 | AD32: 100 | AE32: 100 | AF32: 100 | AG32: 0 | AH32: 30 | AI32: 100 | AJ32: 0 | AK32: 100 | AL32: 100 | AM32: 100 | AN32: 100 | AO32: 100 | AP32: 100 | AQ32: 100 | AR32: 100 | AS32: 100 | AT32: 0 | AU32: 100
A33: 2013Acorn12189 | B33: 2013 | C33: 2189 | D33: Acorn | E33: 1 | F33: 1 | G33: 1 | H33: 1 | I33: 1 | J33: 1 | K33: 1 | L33: 1 | M33: 1 | N33: 1 | O33: 1 | P33: 2 | Q33: 33 | R33: 0 | S33: 0 | T33: 0 | U33: 15 | V33: 0 | W33: 0 | X33: 21 | Y33: 0 | Z33: 0 | AA33: 0 | AB33: 15 | AC33: 0 | AD33: 0 | AE33: 0 | AF33: 0 | AG33: 0 | AH33: 16.5 | AI33: 0 | AJ33: 0 | AK33: 0 | AL33: 0 | AM33: 0 | AN33: 100 | AO33: 0 | AP33: 0 | AQ33: 0 | AR33: 0 | AS33: 0 | AT33: 0 | AU33: 0
A34: 2013Acorn13004 | B34: 2013 | C34: 3004 | D34: Acorn | E34: 1 | F34: 1 | G34: 1 | H34: 1 | I34: 1 | J34: 1 | K34: 1 | L34: 1 | M34: 1 | N34: 1 | O34: 1 | P34: 2 | Q34: 66 | R34: 100 | S34: 100 | T34: 100 | U34: 33 | V34: 100 | W34: 100 | X34: 33 | Y34: 100 | Z34: 100 | AA34: 100 | AB34: 33 | AC34: 100 | AD34: 100 | AE34: 100 | AF34: 100 | AG34: 100 | AH34: 33 | AI34: 100 | AJ34: 100 | AK34: 100 | AL34: 100 | AM34: 100 | AN34: 100 | AO34: 100 | AP34: 100 | AQ34: 100 | AR34: 100 | AS34: 100 | AT34: 100 | AU34: 100
A35: 2013Acorn13007 | B35: 2013 | C35: 3007 | D35: Acorn | E35: 1 | F35: 6 | G35: 5 | H35: 6 | I35: 6 | J35: 6 | K35: 5 | L35: 6 | M35: 6 | N35: 6 | O35: 6 | P35: 11 | Q35: 325.5 | R35: 83.33333333 | S35: 83.33333333 | T35: 66.66666667 | U35: 31.8 | V35: 100 | W35: 33.33333333 | X35: 29 | Y35: 83.33333333 | Z35: 83.33333333 | AA35: 50 | AB35: 31.8 | AC35: 83.33333333 | AD35: 83.33333333 | AE35: 83.33333333 | AF35: 83.33333333 | AG35: 33.33333333 | AH35: 29.59090909 | AI35: 100 | AJ35: 50 | AK35: 100 | AL35: 66.66666667 | AM35: 100 | AN35: 100 | AO35: 100 | AP35: 100 | AQ35: 66.66666667 | AR35: 33.33333333 | AS35: 50 | AT35: 50 | AU35: 83.33333333
A36: 2013Acorn13301 | B36: 2013 | C36: 3301 | D36: Acorn | E36: 1 | F36: 1 | G36: 1 | H36: 1 | I36: 1 | J36: 1 | K36: 1 | L36: 1 | M36: 1 | N36: 1 | O36: 1 | P36: 2 | Q36: 63 | R36: 100 | S36: 100 | T36: 0 | U36: 27 | V36: 100 | W36: 100 | X36: 33 | Y36: 100 | Z36: 100 | AA36: 100 | AB36: 33 | AC36: 100 | AD36: 0 | AE36: 100 | AF36: 100 | AG36: 0 | AH36: 31.5 | AI36: 100 | AJ36: 100 | AK36: 100 | AL36: 100 | AM36: 100 | AN36: 100 | AO36: 100 | AP36: 100 | AQ36: 0 | AR36: 0 | AS36: 100 | AT36: 100 | AU36: 100
A37: 2013Acorn13307 | B37: 2013 | C37: 3307 | D37: Acorn | E37: 1 | F37: 6 | G37: 6 | H37: 6 | I37: 6 | J37: 6 | K37: 6 | L37: 6 | M37: 6 | N37: 6 | O37: 6 | P37: 12 | Q37: 330 | R37: 83.33333333 | S37: 66.66666667 | T37: 16.66666667 | U37: 26 | V37: 83.33333333 | W37: 33.33333333 | X37: 28 | Y37: 66.66666667 | Z37: 33.33333333 | AA37: 33.33333333 | AB37: 28 | AC37: 83.33333333 | AD37: 50 | AE37: 66.66666667 | AF37: 33.33333333 | AG37: 16.66666667 | AH37: 27.5 | AI37: 83.33333333 | AJ37: 33.33333333 | AK37: 83.33333333 | AL37: 33.33333333 | AM37: 100 | AN37: 80 | AO37: 80 | AP37: 83.33333333 | AQ37: 33.33333333 | AR37: 20 | AS37: 20 | AT37: 40 | AU37: 83.33333333
A38: 2013Acorn13308 | B38: 2013 | C38: 3308 | D38: Acorn | E38: 1 | F38: 10 | G38: 10 | H38: 10 | I38: 10 | J38: 10 | K38: 10 | L38: 10 | M38: 10 | N38: 10 | O38: 10 | P38: 20 | Q38: 615 | R38: 100 | S38: 100 | T38: 70 | U38: 31.2 | V38: 100 | W38: 60 | X38: 30.6 | Y38: 100 | Z38: 100 | AA38: 50 | AB38: 30.6 | AC38: 100 | AD38: 100 | AE38: 100 | AF38: 100 | AG38: 40 | AH38: 30.75 | AI38: 100 | AJ38: 70 | AK38: 100 | AL38: 80 | AM38: 100 | AN38: 100 | AO38: 100 | AP38: 100 | AQ38: 60 | AR38: 30 | AS38: 40 | AT38: 40 | AU38: 100
A39: 2013Acorn13400 | B39: 2013 | C39: 3400 | D39: Acorn | E39: 1 | F39: 1 | G39: 1 | H39: 1 | I39: 1 | J39: 1 | K39: 1 | L39: 1 | M39: 1 | N39: 1 | O39: 1 | P39: 2 | Q39: 63 | R39: 100 | S39: 100 | T39: 100 | U39: 33 | V39: 100 | W39: 0 | X39: 27 | Y39: 100 | Z39: 100 | AA39: 100 | AB39: 33 | AC39: 100 | AD39: 100 | AE39: 100 | AF39: 100 | AG39: 0 | AH39: 31.5 | AI39: 100 | AJ39: 100 | AK39: 100 | AL39: 100 | AM39: 100 | AN39: 100 | AO39: 100 | AP39: 100 | AQ39: 100 | AR39: 100 | AS39: 0 | AT39: 100 | AU39: 100
A40: 2013Acorn13401 | B40: 2013 | C40: 3401 | D40: Acorn | E40: 1 | F40: 1 | G40: 1 | H40: 1 | I40: 1 | J40: 1 | K40: 1 | L40: 1 | M40: 1 | N40: 1 | O40: 1 | P40: 2 | Q40: 57 | R40: 100 | S40: 100 | T40: 100 | U40: 33 | V40: 100 | W40: 0 | X40: 27 | Y40: 100 | Z40: 100 | AA40: 0 | AB40: 27 | AC40: 100 | AD40: 0 | AE40: 100 | AF40: 100 | AG40: 0 | AH40: 28.5 | AI40: 100 | AJ40: 0 | AK40: 100 | AL40: 0 | AM40: 100 | AN40: 100 | AO40: 100 | AP40: 100 | AQ40: 0 | AR40: 100 | AS40: 0 | AT40: 0 | AU40: 0
A41: 2013Acorn13402 | B41: 2013 | C41: 3402 | D41: Acorn | E41: 1 | F41: 5 | G41: 5 | H41: 5 | I41: 5 | J41: 5 | K41: 5 | L41: 5 | M41: 5 | N41: 5 | O41: 5 | P41: 10 | Q41: 306 | R41: 100 | S41: 100 | T41: 40 | U41: 29.4 | V41: 80 | W41: 40 | X41: 29.4 | Y41: 100 | Z41: 80 | AA41: 80 | AB41: 31.8 | AC41: 100 | AD41: 60 | AE41: 80 | AF41: 60 | AG41: 40 | AH41: 30.6 | AI41: 100 | AJ41: 80 | AK41: 100 | AL41: 40 | AM41: 100 | AN41: 100 | AO41: 100 | AP41: 100 | AQ41: 80 | AR41: 20 | AS41: 20 | AT41: 80 | AU41: 60
A42: 2013Acorn13405 | B42: 2013 | C42: 3405 | D42: Acorn | E42: 1 | F42: 4 | G42: 4 | H42: 4 | I42: 4 | J42: 4 | K42: 4 | L42: 4 | M42: 4 | N42: 4 | O42: 4 | P42: 8 | Q42: 240 | R42: 100 | S42: 100 | T42: 75 | U42: 31.5 | V42: 50 | W42: 50 | X42: 25.5 | Y42: 100 | Z42: 75 | AA42: 50 | AB42: 31.5 | AC42: 75 | AD42: 50 | AE42: 50 | AF42: 50 | AG42: 50 | AH42: 30 | AI42: 75 | AJ42: 50 | AK42: 50 | AL42: 50 | AM42: 100 | AN42: 75 | AO42: 100 | AP42: 75 | AQ42: 50 | AR42: 75 | AS42: 25 | AT42: 75 | AU42: 50
A43: 2013Acorn13407 | B43: 2013 | C43: 3407 | D43: Acorn | E43: 1 | F43: 1 | G43: 1 | H43: 1 | I43: 1 | J43: 1 | K43: 1 | L43: 1 | M43: 1 | N43: 1 | O43: 1 | P43: 2 | Q43: 51 | R43: 100 | S43: 0 | T43: 0 | U43: 27 | V43: 0 | W43: 0 | X43: 21 | Y43: 100 | Z43: 100 | AA43: 0 | AB43: 27 | AC43: 0 | AD43: 0 | AE43: 0 | AF43: 0 | AG43: 0 | AH43: 25.5 | AI43: 100 | AJ43: 0 | AK43: 100 | AL43: 0 | AM43: 100 | AN43: 100 | AO43: 100 | AP43: 100 | AQ43: 0 | AR43: 100 | AS43: 0 | AT43: 100 | AU43: 0
A44: 2013Acorn13408 | B44: 2013 | C44: 3408 | D44: Acorn | E44: 1 | F44: 3 | G44: 3 | H44: 3 | I44: 3 | J44: 3 | K44: 3 | L44: 3 | M44: 3 | N44: 3 | O44: 3 | P44: 6 | Q44: 183 | R44: 100 | S44: 100 | T44: 0 | U44: 27 | V44: 100 | W44: 33.33333333 | X44: 29 | Y44: 100 | Z44: 100 | AA44: 66.66666667 | AB44: 33 | AC44: 100 | AD44: 33.33333333 | AE44: 100 | AF44: 100 | AG44: 0 | AH44: 30.5 | AI44: 100 | AJ44: 66.66666667 | AK44: 100 | AL44: 33.33333333 | AM44: 100 | AN44: 100 | AO44: 100 | AP44: 100 | AQ44: 100 | AR44: 0 | AS44: 33.33333333 | AT44: 66.66666667 | AU44: 100
A45: 2013Acorn1LA | B45: 2013 | C45: LA | D45: Acorn | E45: 1 | F45: 170 | G45: 168 | H45: 170 | I45: 170 | J45: 170 | K45: 168 | L45: 170 | M45: 170 | N45: 170 | O45: 170 | P45: 338 | Q45: 10095 | R45: 92.35294118 | S45: 82.35294118 | T45: 57.05882353 | U45: 30 | V45: 89.41176471 | W45: 41.76470588 | X45: 28.97647059 | Y45: 90.58823529 | Z45: 81.76470588 | AA45: 55.29411765 | AB45: 30.42857143 | AC45: 86.47058824 | AD45: 59.41176471 | AE45: 82.94117647 | AF45: 73.52941176 | AG45: 32.35294118 | AH45: 29.86686391 | AI45: 93.52941176 | AJ45: 57.64705882 | AK45: 92.35294118 | AL45: 51.76470588 | AM45: 95.18072289 | AN45: 96.38554217 | AO45: 94.57831325 | AP45: 92.94117647 | AQ45: 50.58823529 | AR45: 37.34939759 | AS45: 35.54216867 | AT45: 45.18072289 | AU45: 78.23529412
A46: 2013Acorn1OLDBURY | B46: 2013 | C46: OLDBURY | D46: Acorn | E46: 1 | F46: 40 | G46: 39 | H46: 40 | I46: 40 | J46: 40 | K46: 39 | L46: 40 | M46: 40 | N46: 40 | O46: 40 | P46: 79 | Q46: 2407.5 | R46: 95 | S46: 90 | T46: 67.5 | U46: 31.15384615 | V46: 95 | W46: 45 | X46: 29.85 | Y46: 92.5 | Z46: 82.5 | AA46: 55 | AB46: 30.84615385 | AC46: 92.5 | AD46: 72.5 | AE46: 87.5 | AF46: 80 | AG46: 35 | AH46: 30.47468354 | AI46: 97.5 | AJ46: 67.5 | AK46: 100 | AL46: 65 | AM46: 95 | AN46: 97.5 | AO46: 87.5 | AP46: 97.5 | AQ46: 55 | AR46: 32.5 | AS46: 37.5 | AT46: 45 | AU46: 82.5
A47: 2013Acorn1ROWLEY REGIS | B47: 2013 | C47: ROWLEY REGIS | D47: Acorn | E47: 1 | F47: 24 | G47: 24 | H47: 24 | I47: 24 | J47: 24 | K47: 24 | L47: 24 | M47: 24 | N47: 24 | O47: 24 | P47: 48 | Q47: 1470 | R47: 91.66666667 | S47: 83.33333333 | T47: 62.5 | U47: 30 | V47: 91.66666667 | W47: 45.83333333 | X47: 29.5 | Y47: 95.83333333 | Z47: 87.5 | AA47: 66.66666667 | AB47: 31.5 | AC47: 83.33333333 | AD47: 45.83333333 | AE47: 87.5 | AF47: 75 | AG47: 37.5 | AH47: 30.625 | AI47: 95.83333333 | AJ47: 66.66666667 | AK47: 95.83333333 | AL47: 62.5 | AM47: 87.5 | AN47: 95.83333333 | AO47: 95.83333333 | AP47: 91.66666667 | AQ47: 50 | AR47: 29.16666667 | AS47: 29.16666667 | AT47: 37.5 | AU47: 75
A48: 2013Acorn1SMETHWICK | B48: 2013 | C48: SMETHWICK | D48: Acorn | E48: 1 | F48: 22 | G48: 21 | H48: 22 | I48: 22 | J48: 22 | K48: 21 | L48: 22 | M48: 22 | N48: 22 | O48: 22 | P48: 43 | Q48: 1231.5 | R48: 77.27272727 | S48: 72.72727273 | T48: 54.54545455 | U48: 29 | V48: 81.81818182 | W48: 40.90909091 | X48: 27.27272727 | Y48: 81.81818182 | Z48: 77.27272727 | AA48: 54.54545455 | AB48: 29.85714286 | AC48: 77.27272727 | AD48: 54.54545455 | AE48: 68.18181818 | AF48: 63.63636364 | AG48: 36.36363636 | AH48: 28.63953488 | AI48: 81.81818182 | AJ48: 59.09090909 | AK48: 81.81818182 | AL48: 45.45454545 | AM48: 90.90909091 | AN48: 90.90909091 | AO48: 95.45454545 | AP48: 86.36363636 | AQ48: 45.45454545 | AR48: 36.36363636 | AS48: 36.36363636 | AT48: 59.09090909 | AU48: 68.18181818
A49: 2013Acorn1TIPTON | B49: 2013 | C49: TIPTON | D49: Acorn | E49: 1 | F49: 10 | G49: 10 | H49: 10 | I49: 10 | J49: 10 | K49: 10 | L49: 10 | M49: 10 | N49: 10 | O49: 10 | P49: 20 | Q49: 621 | R49: 100 | S49: 80 | T49: 70 | U49: 31.2 | V49: 80 | W49: 60 | X49: 29.4 | Y49: 100 | Z49: 90 | AA49: 80 | AB49: 31.8 | AC49: 80 | AD49: 40 | AE49: 80 | AF49: 80 | AG49: 60 | AH49: 31.05 | AI49: 100 | AJ49: 70 | AK49: 90 | AL49: 60 | AM49: 100 | AN49: 100 | AO49: 100 | AP49: 90 | AQ49: 70 | AR49: 88.88888889 | AS49: 66.66666667 | AT49: 77.77777778 | AU49: 80
A50: 2013Acorn1WEDNESBURY | B50: 2013 | C50: WEDNESBURY | D50: Acorn | E50: 1 | F50: 4 | G50: 4 | H50: 4 | I50: 4 | J50: 4 | K50: 4 | L50: 4 | M50: 4 | N50: 4 | O50: 4 | P50: 8 | Q50: 249 | R50: 100 | S50: 100 | T50: 100 | U50: 33 | V50: 100 | W50: 25 | X50: 28.5 | Y50: 100 | Z50: 100 | AA50: 75 | AB50: 31.5 | AC50: 100 | AD50: 50 | AE50: 100 | AF50: 100 | AG50: 25 | AH50: 31.125 | AI50: 100 | AJ50: 25 | AK50: 100 | AL50: 50 | AM50: 100 | AN50: 100 | AO50: 100 | AP50: 100 | AQ50: 50 | AR50: 100 | AS50: 0 | AT50: 75 | AU50: 100
A51: 2013Acorn1WEST BROMWICH CENTRAL | B51: 2013 | C51: WEST BROMWICH CENTRAL | D51: Acorn | E51: 1 | F51: 2 | G51: 2 | H51: 2 | I51: 2 | J51: 2 | K51: 2 | L51: 2 | M51: 2 | N51: 2 | O51: 2 | P51: 4 | Q51: 114 | R51: 100 | S51: 100 | T51: 50 | U51: 30 | V51: 100 | W51: 50 | X51: 30 | Y51: 100 | Z51: 100 | AA51: 0 | AB51: 27 | AC51: 50 | AD51: 50 | AE51: 100 | AF51: 100 | AG51: 0 | AH51: 28.5 | AI51: 100 | AJ51: 0 | AK51: 100 | AL51: 50 | AM51: 100 | AN51: 100 | AO51: 100 | AP51: 100 | AQ51: 100 | AR51: 100 | AS51: 100 | AT51: 0 | AU51: 50
A52: 2013Acorn1WEST BROMWICH NORTH | B52: 2013 | C52: WEST BROMWICH NORTH | D52: Acorn | E52: 1 | F52: 68 | G52: 68 | H52: 68 | I52: 68 | J52: 68 | K52: 68 | L52: 68 | M52: 68 | N52: 68 | O52: 68 | P52: 136 | Q52: 4002 | R52: 94.11764706 | S52: 79.41176471 | T52: 45.58823529 | U52: 29.29411765 | V52: 88.23529412 | W52: 36.76470588 | X52: 28.76470588 | Y52: 88.23529412 | Z52: 77.94117647 | AA52: 48.52941176 | AB52: 29.82352941 | AC52: 88.23529412 | AD52: 61.76470588 | AE52: 82.35294118 | AF52: 69.11764706 | AG52: 25 | AH52: 29.42647059 | AI52: 92.64705882 | AJ52: 50 | AK52: 89.70588235 | AL52: 41.17647059 | AM52: 98.46153846 | AN52: 96.92307692 | AO52: 96.92307692 | AP52: 92.64705882 | AQ52: 45.58823529 | AR52: 30.76923077 | AS52: 32.30769231 | AT52: 38.46153846 | AU52: 79.41176471
A53: 2013Acorn2004 | B53: 2013 | C53: 2004 | D53: Acorn | F53: 2 | G53: 2 | H53: 2 | I53: 2 | J53: 2 | K53: 1 | L53: 2 | M53: 2 | N53: 2 | O53: 2 | P53: 3 | Q53: 45 | R53: 0 | S53: 0 | T53: 0 | U53: 15 | V53: 0 | W53: 0 | X53: 15 | Y53: 0 | Z53: 0 | AA53: 0 | AB53: 15 | AC53: 0 | AD53: 0 | AE53: 0 | AF53: 0 | AG53: 0 | AH53: 15 | AI53: 0 | AJ53: 0 | AK53: 0 | AL53: 0 | AM53: 100 | AN53: 100 | AO53: 100 | AP53: 0 | AQ53: 0 | AR53: 0 | AS53: 0 | AT53: 0 | AU53: 0
A54: 2013Acorn2015 | B54: 2013 | C54: 2015 | D54: Acorn | F54: 1 | G54: 1 | H54: 1 | I54: 1 | J54: 1 | K54: 1 | L54: 1 | M54: 1 | N54: 1 | O54: 1 | P54: 2 | Q54: 36 | R54: 0 | S54: 0 | T54: 0 | U54: 21 | V54: 0 | W54: 0 | X54: 21 | Y54: 0 | Z54: 0 | AA54: 0 | AB54: 15 | AC54: 0 | AD54: 0 | AE54: 0 | AF54: 0 | AG54: 0 | AH54: 18 | AI54: 0 | AJ54: 0 | AK54: 0 | AL54: 0 | AM54: 0 | AN54: 100 | AO54: 0 | AP54: 0 | AQ54: 0 | AR54: 0 | AS54: 0 | AT54: 0 | AU54: 0
A55: 2013Acorn2047 | B55: 2013 | C55: 2047 | D55: Acorn | F55: 3 | G55: 3 | H55: 3 | I55: 3 | J55: 3 | K55: 3 | L55: 3 | M55: 3 | N55: 3 | O55: 3 | P55: 6 | Q55: 168 | R55: 100 | S55: 100 | T55: 33.33333333 | U55: 29 | V55: 100 | W55: 33.33333333 | X55: 29 | Y55: 66.66666667 | Z55: 66.66666667 | AA55: 33.33333333 | AB55: 27 | AC55: 66.66666667 | AD55: 33.33333333 | AE55: 66.66666667 | AF55: 66.66666667 | AG55: 33.33333333 | AH55: 28 | AI55: 66.66666667 | AJ55: 33.33333333 | AK55: 100 | AL55: 33.33333333 | AM55: 66.66666667 | AN55: 100 | AO55: 66.66666667 | AP55: 100 | AQ55: 33.33333333 | AR55: 66.66666667 | AS55: 66.66666667 | AT55: 0 | AU55: 66.66666667
A56: 2013Acorn2056 | B56: 2013 | C56: 2056 | D56: Acorn | F56: 1 | G56: 1 | H56: 1 | I56: 1 | J56: 1 | K56: 1 | L56: 1 | M56: 1 | N56: 1 | O56: 1 | P56: 2 | Q56: 66 | R56: 100 | S56: 100 | T56: 100 | U56: 33 | V56: 100 | W56: 100 | X56: 33 | Y56: 100 | Z56: 100 | AA56: 100 | AB56: 33 | AC56: 100 | AD56: 100 | AE56: 100 | AF56: 100 | AG56: 100 | AH56: 33 | AI56: 100 | AJ56: 100 | AK56: 100 | AL56: 100 | AM56: 100 | AN56: 100 | AO56: 100 | AP56: 100 | AQ56: 100 | AR56: 100 | AS56: 100 | AT56: 100 | AU56: 100
A57: 2013Acorn2072 | B57: 2013 | C57: 2072 | D57: Acorn | F57: 2 | G57: 2 | H57: 2 | I57: 2 | J57: 2 | K57: 2 | L57: 2 | M57: 2 | N57: 2 | O57: 2 | P57: 4 | Q57: 132 | R57: 100 | S57: 100 | T57: 50 | U57: 30 | V57: 100 | W57: 50 | X57: 30 | Y57: 100 | Z57: 100 | AA57: 100 | AB57: 36 | AC57: 100 | AD57: 100 | AE57: 100 | AF57: 100 | AG57: 0 | AH57: 33 | AI57: 100 | AJ57: 100 | AK57: 100 | AL57: 100 | AM57: 100 | AN57: 100 | AO57: 100 | AP57: 100 | AQ57: 100 | AR57: 0 | AS57: 50 | AT57: 100 | AU57: 100
A58: 2013Acorn2075 | B58: 2013 | C58: 2075 | D58: Acorn | F58: 1 | G58: 1 | H58: 1 | I58: 1 | J58: 1 | K58: 1 | L58: 1 | M58: 1 | N58: 1 | O58: 1 | P58: 2 | Q58: 48 | R58: 100 | S58: 0 | T58: 0 | U58: 27 | V58: 0 | W58: 0 | X58: 15 | Y58: 100 | Z58: 0 | AA58: 0 | AB58: 27 | AC58: 0 | AD58: 0 | AE58: 0 | AF58: 0 | AG58: 0 | AH58: 24 | AI58: 100 | AJ58: 0 | AK58: 0 | AL58: 0 | AM58: 100 | AN58: 0 | AO58: 100 | AP58: 100 | AQ58: 0 | AR58: 100 | AS58: 0 | AT58: 100 | AU58: 0
A59: 2013Acorn2101 | B59: 2013 | C59: 2101 | D59: Acorn | F59: 1 | G59: 1 | H59: 1 | I59: 1 | J59: 1 | K59: 1 | L59: 1 | M59: 1 | N59: 1 | O59: 1 | P59: 2 | Q59: 48 | R59: 100 | S59: 0 | T59: 0 | U59: 27 | V59: 100 | W59: 0 | X59: 27 | Y59: 0 | Z59: 0 | AA59: 0 | AB59: 21 | AC59: 100 | AD59: 0 | AE59: 0 | AF59: 0 | AG59: 0 | AH59: 24 | AI59: 0 | AJ59: 0 | AK59: 100 | AL59: 0 | AM59: 100 | AN59: 100 | AO59: 100 | AP59: 100 | AQ59: 0 | AR59: 0 | AS59: 0 | AT59: 0 | AU59: 100
A60: 2013Acorn2108 | B60: 2013 | C60: 2108 | D60: Acorn | F60: 1 | G60: 1 | H60: 1 | I60: 1 | J60: 1 | K60: 1 | L60: 1 | M60: 1 | N60: 1 | O60: 1 | P60: 2 | Q60: 51 | R60: 0 | S60: 0 | T60: 0 | U60: 21 | V60: 100 | W60: 0 | X60: 27 | Y60: 100 | Z60: 0 | AA60: 0 | AB60: 27 | AC60: 0 | AD60: 0 | AE60: 0 | AF60: 0 | AG60: 0 | AH60: 25.5 | AI60: 100 | AJ60: 0 | AK60: 100 | AL60: 0 | AM60: 0 | AN60: 100 | AO60: 100 | AP60: 100 | AQ60: 0 | AR60: 0 | AS60: 0 | AT60: 0 | AU60: 0
A61: 2013Acorn2112 | B61: 2013 | C61: 2112 | D61: Acorn | F61: 1 | G61: 1 | H61: 1 | I61: 1 | J61: 1 | K61: 1 | L61: 1 | M61: 1 | N61: 1 | O61: 1 | P61: 2 | Q61: 51 | R61: 0 | S61: 0 | T61: 0 | U61: 21 | V61: 100 | W61: 0 | X61: 27 | Y61: 100 | Z61: 0 | AA61: 0 | AB61: 27 | AC61: 0 | AD61: 0 | AE61: 0 | AF61: 0 | AG61: 0 | AH61: 25.5 | AI61: 100 | AJ61: 100 | AK61: 100 | AL61: 0 | AM61: 0 | AN61: 100 | AO61: 100 | AP61: 100 | AQ61: 0 | AR61: 0 | AS61: 0 | AT61: 0 | AU61: 0
A62: 2013Acorn2113 | B62: 2013 | C62: 2113 | D62: Acorn | F62: 2 | G62: 2 | H62: 2 | I62: 2 | J62: 2 | K62: 2 | L62: 2 | M62: 2 | N62: 2 | O62: 2 | P62: 4 | Q62: 90 | R62: 50 | S62: 50 | T62: 50 | U62: 24 | V62: 50 | W62: 0 | X62: 24 | Y62: 50 | Z62: 0 | AA62: 0 | AB62: 21 | AC62: 50 | AD62: 0 | AE62: 50 | AF62: 0 | AG62: 0 | AH62: 22.5 | AI62: 50 | AJ62: 0 | AK62: 50 | AL62: 0 | AM62: 50 | AN62: 100 | AO62: 50 | AP62: 50 | AQ62: 0 | AR62: 50 | AS62: 0 | AT62: 0 | AU62: 0
A63: 2013Acorn2118 | B63: 2013 | C63: 2118 | D63: Acorn | F63: 1 | G63: 1 | H63: 1 | I63: 1 | J63: 1 | K63: 1 | L63: 1 | M63: 1 | N63: 1 | O63: 1 | P63: 2 | Q63: 57 | R63: 100 | S63: 100 | T63: 100 | U63: 33 | V63: 100 | W63: 0 | X63: 27 | Y63: 100 | Z63: 100 | AA63: 0 | AB63: 27 | AC63: 100 | AD63: 0 | AE63: 100 | AF63: 100 | AG63: 0 | AH63: 28.5 | AI63: 100 | AJ63: 0 | AK63: 100 | AL63: 0 | AM63: 100 | AN63: 100 | AO63: 100 | AP63: 100 | AQ63: 0 | AR63: 100 | AS63: 0 | AT63: 0 | AU63: 100
A64: 2013Acorn2124 | B64: 2013 | C64: 2124 | D64: Acorn | F64: 3 | G64: 3 | H64: 3 | I64: 3 | J64: 3 | K64: 3 | L64: 3 | M64: 3 | N64: 3 | O64: 3 | P64: 6 | Q64: 174 | R64: 66.66666667 | S64: 66.66666667 | T64: 0 | U64: 25 | V64: 100 | W64: 33.33333333 | X64: 29 | Y64: 100 | Z64: 100 | AA64: 66.66666667 | AB64: 31 | AC64: 66.66666667 | AD64: 33.33333333 | AE64: 66.66666667 | AF64: 66.66666667 | AG64: 0 | AH64: 29 | AI64: 100 | AJ64: 66.66666667 | AK64: 100 | AL64: 33.33333333 | AM64: 66.66666667 | AN64: 100 | AO64: 100 | AP64: 100 | AQ64: 0 | AR64: 0 | AS64: 33.33333333 | AT64: 66.66666667 | AU64: 33.33333333
A65: 2013Acorn2133 | B65: 2013 | C65: 2133 | D65: Acorn | F65: 3 | G65: 3 | H65: 3 | I65: 3 | J65: 3 | K65: 3 | L65: 3 | M65: 3 | N65: 3 | O65: 3 | P65: 6 | Q65: 177 | R65: 66.66666667 | S65: 66.66666667 | T65: 33.33333333 | U65: 27 | V65: 100 | W65: 33.33333333 | X65: 29 | Y65: 100 | Z65: 66.66666667 | AA65: 66.66666667 | AB65: 31 | AC65: 66.66666667 | AD65: 66.66666667 | AE65: 66.66666667 | AF65: 66.66666667 | AG65: 33.33333333 | AH65: 29.5 | AI65: 100 | AJ65: 66.66666667 | AK65: 100 | AL65: 66.66666667 | AM65: 33.33333333 | AN65: 100 | AO65: 100 | AP65: 100 | AQ65: 33.33333333 | AR65: 0 | AS65: 33.33333333 | AT65: 33.33333333 | AU65: 66.66666667
A66: 2013Acorn2134 | B66: 2013 | C66: 2134 | D66: Acorn | F66: 1 | G66: 1 | H66: 1 | I66: 1 | J66: 1 | K66: 1 | L66: 1 | M66: 1 | N66: 1 | O66: 1 | P66: 2 | Q66: 66 | R66: 100 | S66: 100 | T66: 100 | U66: 33 | V66: 100 | W66: 100 | X66: 33 | Y66: 100 | Z66: 100 | AA66: 100 | AB66: 33 | AC66: 100 | AD66: 100 | AE66: 100 | AF66: 100 | AG66: 100 | AH66: 33 | AI66: 100 | AJ66: 0 | AK66: 100 | AL66: 100 | AM66: 100 | AN66: 100 | AO66: 100 | AP66: 100 | AQ66: 100 | AR66: 0 | AS66: 100 | AT66: 100 | AU66: 100
A67: 2013Acorn2146 | B67: 2013 | C67: 2146 | D67: Acorn | F67: 1 | G67: 1 | H67: 1 | I67: 1 | J67: 1 | K67: 0 | L67: 1 | M67: 1 | N67: 1 | O67: 1 | P67: 1 | Q67: 27 | R67: 100 | S67: 0 | T67: 0 | U67: 27 | V67: 100 | W67: 0 | X67: 27 | Y67: 0 | Z67: 0 | AA67: 0 | AB67: 0 | AC67: 0 | AD67: 0 | AE67: 0 | AF67: 0 | AG67: 0 | AH67: 27 | AI67: 100 | AJ67: 0 | AK67: 100 | AL67: 0 | AM67: 100 | AN67: 100 | AO67: 100 | AP67: 100 | AQ67: 0 | AR67: 0 | AS67: 0 | AT67: 0 | AU67: 0
A68: 2013Acorn2151 | B68: 2013 | C68: 2151 | D68: Acorn | F68: 1 | G68: 1 | H68: 1 | I68: 1 | J68: 1 | K68: 1 | L68: 1 | M68: 1 | N68: 1 | O68: 1 | P68: 2 | Q68: 54 | R68: 100 | S68: 100 | T68: 0 | U68: 27 | V68: 100 | W68: 0 | X68: 27 | Y68: 100 | Z68: 0 | AA68: 0 | AB68: 27 | AC68: 100 | AD68: 0 | AE68: 100 | AF68: 0 | AG68: 0 | AH68: 27 | AI68: 100 | AJ68: 0 | AK68: 100 | AL68: 0 | AM68: 100 | AN68: 100 | AO68: 100 | AP68: 100 | AQ68: 0 | AR68: 0 | AS68: 0 | AT68: 0 | AU68: 0
A69: 2013Acorn2161 | B69: 2013 | C69: 2161 | D69: Acorn | F69: 2 | G69: 2 | H69: 2 | I69: 2 | J69: 2 | K69: 2 | L69: 2 | M69: 2 | N69: 2 | O69: 2 | P69: 4 | Q69: 102 | R69: 100 | S69: 100 | T69: 0 | U69: 27 | V69: 0 | W69: 0 | X69: 21 | Y69: 100 | Z69: 50 | AA69: 0 | AB69: 27 | AC69: 100 | AD69: 50 | AE69: 0 | AF69: 0 | AG69: 0 | AH69: 25.5 | AI69: 100 | AJ69: 0 | AK69: 50 | AL69: 0 | AM69: 100 | AN69: 100 | AO69: 100 | AP69: 100 | AQ69: 0 | AR69: 100 | AS69: 0 | AT69: 100 | AU69: 100
A70: 2013Acorn2163 | B70: 2013 | C70: 2163 | D70: Acorn | F70: 1 | G70: 1 | H70: 1 | I70: 1 | J70: 1 | K70: 1 | L70: 1 | M70: 1 | N70: 1 | O70: 1 | P70: 2 | Q70: 60 | R70: 100 | S70: 100 | T70: 100 | U70: 33 | V70: 100 | W70: 100 | X70: 33 | Y70: 100 | Z70: 100 | AA70: 0 | AB70: 27 | AC70: 100 | AD70: 100 | AE70: 100 | AF70: 100 | AG70: 0 | AH70: 30 | AI70: 100 | AJ70: 100 | AK70: 100 | AL70: 100 | AM70: 100 | AN70: 100 | AO70: 100 | AP70: 100 | AQ70: 100 | AR70: 100 | AS70: 100 | AT70: 0 | AU70: 100
A71: 2013Acorn2171 | B71: 2013 | C71: 2171 | D71: Acorn | F71: 1 | G71: 1 | H71: 1 | I71: 1 | J71: 1 | K71: 1 | L71: 1 | M71: 1 | N71: 1 | O71: 1 | P71: 2 | Q71: 30 | R71: 0 | S71: 0 | T71: 0 | U71: 15 | V71: 0 | W71: 0 | X71: 15 | Y71: 0 | Z71: 0 | AA71: 0 | AB71: 15 | AC71: 0 | AD71: 0 | AE71: 0 | AF71: 0 | AG71: 0 | AH71: 15 | AI71: 0 | AJ71: 0 | AK71: 0 | AL71: 0 | AM71: 0 | AN71: 0 | AO71: 0 | AP71: 0 | AQ71: 0 | AR71: 0 | AS71: 0 | AT71: 0 | AU71: 0
A72: 2013Acorn2172 | B72: 2013 | C72: 2172 | D72: Acorn | F72: 1 | G72: 1 | H72: 1 | I72: 1 | J72: 1 | K72: 1 | L72: 1 | M72: 1 | N72: 1 | O72: 1 | P72: 2 | Q72: 57 | R72: 100 | S72: 100 | T72: 100 | U72: 33 | V72: 100 | W72: 0 | X72: 27 | Y72: 100 | Z72: 100 | AA72: 0 | AB72: 27 | AC72: 100 | AD72: 100 | AE72: 100 | AF72: 100 | AG72: 0 | AH72: 28.5 | AI72: 100 | AJ72: 0 | AK72: 100 | AL72: 0 | AM72: 100 | AN72: 100 | AO72: 100 | AP72: 100 | AQ72: 0 | AR72: 100 | AS72: 0 | AT72: 0 | AU72: 100
A73: 2013Acorn2173 | B73: 2013 | C73: 2173 | D73: Acorn | F73: 1 | G73: 1 | H73: 1 | I73: 1 | J73: 1 | K73: 1 | L73: 1 | M73: 1 | N73: 1 | O73: 1 | P73: 2 | Q73: 54 | R73: 100 | S73: 100 | T73: 0 | U73: 27 | V73: 100 | W73: 0 | X73: 27 | Y73: 100 | Z73: 100 | AA73: 0 | AB73: 27 | AC73: 0 | AD73: 0 | AE73: 100 | AF73: 100 | AG73: 0 | AH73: 27 | AI73: 100 | AJ73: 0 | AK73: 100 | AL73: 0 | AM73: 100 | AN73: 100 | AO73: 100 | AP73: 100 | AQ73: 0 | AR73: 0 | AS73: 0 | AT73: 0 | AU73: 0
A74: 2013Acorn2175 | B74: 2013 | C74: 2175 | D74: Acorn | F74: 1 | G74: 1 | H74: 1 | I74: 1 | J74: 1 | K74: 1 | L74: 1 | M74: 1 | N74: 1 | O74: 1 | P74: 2 | Q74: 57 | R74: 100 | S74: 100 | T74: 100 | U74: 33 | V74: 100 | W74: 0 | X74: 27 | Y74: 100 | Z74: 100 | AA74: 0 | AB74: 27 | AC74: 100 | AD74: 0 | AE74: 100 | AF74: 100 | AG74: 0 | AH74: 28.5 | AI74: 100 | AJ74: 0 | AK74: 100 | AL74: 0 | AM74: 100 | AN74: 100 | AO74: 100 | AP74: 100 | AQ74: 0 | AR74: 100 | AS74: 0 | AT74: 0 | AU74: 100
A75: 2013Acorn2177 | B75: 2013 | C75: 2177 | D75: Acorn | F75: 1 | G75: 1 | H75: 1 | I75: 1 | J75: 1 | K75: 1 | L75: 1 | M75: 1 | N75: 1 | O75: 1 | P75: 2 | Q75: 57 | R75: 100 | S75: 100 | T75: 0 | U75: 27 | V75: 0 | W75: 0 | X75: 21 | Y75: 100 | Z75: 100 | AA75: 100 | AB75: 33 | AC75: 100 | AD75: 0 | AE75: 0 | AF75: 0 | AG75: 0 | AH75: 28.5 | AI75: 100 | AJ75: 0 | AK75: 100 | AL75: 0 | AM75: 100 | AN75: 100 | AO75: 100 | AP75: 100 | AQ75: 0 | AR75: 0 | AS75: 0 | AT75: 100 | AU75: 100
A76: 2013Acorn2179 | B76: 2013 | C76: 2179 | D76: Acorn | F76: 2 | G76: 2 | H76: 2 | I76: 2 | J76: 2 | K76: 2 | L76: 2 | M76: 2 | N76: 2 | O76: 2 | P76: 4 | Q76: 96 | R76: 50 | S76: 0 | T76: 0 | U76: 21 | V76: 50 | W76: 0 | X76: 21 | Y76: 100 | Z76: 50 | AA76: 0 | AB76: 27 | AC76: 50 | AD76: 0 | AE76: 50 | AF76: 0 | AG76: 0 | AH76: 24 | AI76: 100 | AJ76: 0 | AK76: 50 | AL76: 0 | AM76: 100 | AN76: 100 | AO76: 100 | AP76: 50 | AQ76: 0 | AR76: 0 | AS76: 0 | AT76: 0 | AU76: 50
A77: 2013Acorn2180 | B77: 2013 | C77: 2180 | D77: Acorn | F77: 1 | G77: 1 | H77: 1 | I77: 1 | J77: 1 | K77: 1 | L77: 1 | M77: 1 | N77: 1 | O77: 1 | P77: 2 | Q77: 51 | R77: 0 | S77: 0 | T77: 0 | U77: 21 | V77: 100 | W77: 0 | X77: 27 | Y77: 100 | Z77: 100 | AA77: 0 | AB77: 27 | AC77: 100 | AD77: 100 | AE77: 0 | AF77: 0 | AG77: 0 | AH77: 25.5 | AI77: 100 | AJ77: 0 | AK77: 100 | AL77: 0 | AM77: 0 | AN77: 100 | AO77: 100 | AP77: 100 | AQ77: 0 | AR77: 0 | AS77: 0 | AT77: 0 | AU77: 100
A78: 2013Acorn2183 | B78: 2013 | C78: 2183 | D78: Acorn | F78: 1 | G78: 1 | H78: 1 | I78: 1 | J78: 1 | K78: 1 | L78: 1 | M78: 1 | N78: 1 | O78: 1 | P78: 2 | Q78: 51 | R78: 100 | S78: 0 | T78: 0 | U78: 27 | V78: 0 | W78: 0 | X78: 21 | Y78: 100 | Z78: 0 | AA78: 0 | AB78: 27 | AC78: 0 | AD78: 0 | AE78: 0 | AF78: 0 | AG78: 0 | AH78: 25.5 | AI78: 0 | AJ78: 0 | AK78: 0 | AL78: 0 | AM78: 100 | AN78: 100 | AO78: 100 | AP78: 0 | AQ78: 0 | AR78: 100 | AS78: 0 | AT78: 100 | AU78: 0
A79: 2013Acorn2186 | B79: 2013 | C79: 2186 | D79: Acorn | F79: 1 | G79: 1 | H79: 1 | I79: 1 | J79: 1 | K79: 1 | L79: 1 | M79: 1 | N79: 1 | O79: 1 | P79: 2 | Q79: 54 | R79: 100 | S79: 100 | T79: 0 | U79: 27 | V79: 100 | W79: 0 | X79: 27 | Y79: 100 | Z79: 0 | AA79: 0 | AB79: 27 | AC79: 100 | AD79: 100 | AE79: 100 | AF79: 0 | AG79: 0 | AH79: 27 | AI79: 100 | AJ79: 0 | AK79: 100 | AL79: 0 | AM79: 100 | AN79: 100 | AO79: 100 | AP79: 100 | AQ79: 0 | AR79: 0 | AS79: 0 | AT79: 0 | AU79: 100
A80: 2013Acorn2187 | B80: 2013 | C80: 2187 | D80: Acorn | F80: 1 | G80: 1 | H80: 1 | I80: 1 | J80: 1 | K80: 1 | L80: 1 | M80: 1 | N80: 1 | O80: 1 | P80: 2 | Q80: 54 | R80: 100 | S80: 0 | T80: 0 | U80: 27 | V80: 100 | W80: 0 | X80: 27 | Y80: 100 | Z80: 100 | AA80: 0 | AB80: 27 | AC80: 0 | AD80: 0 | AE80: 100 | AF80: 0 | AG80: 0 | AH80: 27 | AI80: 100 | AJ80: 0 | AK80: 100 | AL80: 0 | AM80: 100 | AN80: 100 | AO80: 100 | AP80: 100 | AQ80: 0 | AR80: 0 | AS80: 0 | AT80: 0 | AU80: 0
A81: 2013Acorn22048 | B81: 2013 | C81: 2048 | D81: Acorn | E81: 2 | F81: 2 | G81: 2 | H81: 2 | I81: 2 | J81: 2 | K81: 2 | L81: 2 | M81: 2 | N81: 2 | O81: 2 | P81: 4 | Q81: 114 | R81: 100 | S81: 100 | T81: 100 | U81: 33 | V81: 100 | W81: 0 | X81: 27 | Y81: 100 | Z81: 100 | AA81: 0 | AB81: 27 | AC81: 100 | AD81: 50 | AE81: 100 | AF81: 100 | AG81: 0 | AH81: 28.5 | AI81: 100 | AJ81: 0 | AK81: 100 | AL81: 0 | AM81: 100 | AN81: 50 | AO81: 100 | AP81: 100 | AQ81: 0 | AR81: 50 | AS81: 0 | AT81: 0 | AU81: 50
A82: 2013Acorn22056 | B82: 2013 | C82: 2056 | D82: Acorn | E82: 2 | F82: 2 | G82: 2 | H82: 2 | I82: 2 | J82: 2 | K82: 2 | L82: 2 | M82: 2 | N82: 2 | O82: 2 | P82: 4 | Q82: 111 | R82: 100 | S82: 50 | T82: 50 | U82: 30 | V82: 100 | W82: 0 | X82: 27 | Y82: 100 | Z82: 100 | AA82: 0 | AB82: 27 | AC82: 100 | AD82: 100 | AE82: 100 | AF82: 50 | AG82: 0 | AH82: 27.75 | AI82: 100 | AJ82: 0 | AK82: 100 | AL82: 0 | AM82: 100 | AN82: 100 | AO82: 100 | AP82: 100 | AQ82: 0 | AR82: 50 | AS82: 0 | AT82: 0 | AU82: 100
A83: 2013Acorn22072 | B83: 2013 | C83: 2072 | D83: Acorn | E83: 2 | F83: 1 | G83: 1 | H83: 1 | I83: 1 | J83: 1 | K83: 1 | L83: 1 | M83: 1 | N83: 1 | O83: 1 | P83: 2 | Q83: 66 | R83: 100 | S83: 100 | T83: 100 | U83: 33 | V83: 100 | W83: 100 | X83: 33 | Y83: 100 | Z83: 100 | AA83: 100 | AB83: 33 | AC83: 100 | AD83: 100 | AE83: 100 | AF83: 100 | AG83: 100 | AH83: 33 | AI83: 100 | AJ83: 100 | AK83: 100 | AL83: 100 | AM83: 100 | AN83: 100 | AO83: 100 | AP83: 100 | AQ83: 100 | AR83: 100 | AS83: 100 | AT83: 100 | AU83: 100
A84: 2013Acorn22074 | B84: 2013 | C84: 2074 | D84: Acorn | E84: 2 | F84: 1 | G84: 1 | H84: 1 | I84: 1 | J84: 1 | K84: 1 | L84: 1 | M84: 1 | N84: 1 | O84: 1 | P84: 2 | Q84: 51 | R84: 100 | S84: 100 | T84: 0 | U84: 27 | V84: 0 | W84: 0 | X84: 21 | Y84: 100 | Z84: 100 | AA84: 0 | AB84: 27 | AC84: 0 | AD84: 0 | AE84: 0 | AF84: 0 | AG84: 0 | AH84: 25.5 | AI84: 100 | AJ84: 0 | AK84: 100 | AL84: 0 | AM84: 100 | AN84: 0 | AO84: 100 | AP84: 100 | AQ84: 0 | AR84: 0 | AS84: 0 | AT84: 0 | AU84: 0
A85: 2013Acorn22076 | B85: 2013 | C85: 2076 | D85: Acorn | E85: 2 | F85: 1 | G85: 1 | H85: 1 | I85: 1 | J85: 1 | K85: 1 | L85: 1 | M85: 1 | N85: 1 | O85: 1 | P85: 2 | Q85: 54 | R85: 100 | S85: 0 | T85: 0 | U85: 27 | V85: 100 | W85: 0 | X85: 27 | Y85: 100 | Z85: 0 | AA85: 0 | AB85: 27 | AC85: 0 | AD85: 0 | AE85: 100 | AF85: 0 | AG85: 0 | AH85: 27 | AI85: 0 | AJ85: 0 | AK85: 100 | AL85: 0 | AM85: 100 | AN85: 100 | AO85: 100 | AP85: 0 | AQ85: 0 | AR85: 100 | AS85: 100 | AT85: 100 | AU85: 0
A86: 2013Acorn22082 | B86: 2013 | C86: 2082 | D86: Acorn | E86: 2 | F86: 1 | G86: 1 | H86: 1 | I86: 1 | J86: 1 | K86: 1 | L86: 1 | M86: 1 | N86: 1 | O86: 1 | P86: 2 | Q86: 54 | R86: 100 | S86: 100 | T86: 0 | U86: 27 | V86: 100 | W86: 0 | X86: 27 | Y86: 100 | Z86: 0 | AA86: 0 | AB86: 27 | AC86: 100 | AD86: 100 | AE86: 100 | AF86: 0 | AG86: 0 | AH86: 27 | AI86: 100 | AJ86: 0 | AK86: 100 | AL86: 0 | AM86: 0 | AN86: 0 | AO86: 0 | AP86: 100 | AQ86: 0 | AR86: 0 | AS86: 0 | AT86: 0 | AU86: 100
A87: 2013Acorn22101 | B87: 2013 | C87: 2101 | D87: Acorn | E87: 2 | F87: 3 | G87: 3 | H87: 3 | I87: 3 | J87: 3 | K87: 3 | L87: 3 | M87: 3 | N87: 3 | O87: 3 | P87: 6 | Q87: 186 | R87: 100 | S87: 100 | T87: 66.66666667 | U87: 31 | V87: 100 | W87: 66.66666667 | X87: 31 | Y87: 100 | Z87: 100 | AA87: 66.66666667 | AB87: 31 | AC87: 100 | AD87: 100 | AE87: 100 | AF87: 100 | AG87: 33.33333333 | AH87: 31 | AI87: 100 | AJ87: 100 | AK87: 100 | AL87: 100 | AM87: 66.66666667 | AN87: 100 | AO87: 100 | AP87: 100 | AQ87: 100 | AR87: 0 | AS87: 0 | AT87: 33.33333333 | AU87: 100
A88: 2013Acorn22105 | B88: 2013 | C88: 2105 | D88: Acorn | E88: 2 | F88: 1 | G88: 1 | H88: 1 | I88: 1 | J88: 1 | K88: 1 | L88: 1 | M88: 1 | N88: 1 | O88: 1 | P88: 2 | Q88: 57 | R88: 100 | S88: 100 | T88: 100 | U88: 33 | V88: 100 | W88: 0 | X88: 27 | Y88: 100 | Z88: 100 | AA88: 0 | AB88: 27 | AC88: 100 | AD88: 100 | AE88: 100 | AF88: 100 | AG88: 0 | AH88: 28.5 | AI88: 100 | AJ88: 0 | AK88: 100 | AL88: 0 | AM88: 100 | AN88: 100 | AO88: 100 | AP88: 100 | AQ88: 0 | AR88: 100 | AS88: 0 | AT88: 0 | AU88: 100
A89: 2013Acorn22122 | B89: 2013 | C89: 2122 | D89: Acorn | E89: 2 | F89: 1 | G89: 1 | H89: 1 | I89: 1 | J89: 1 | K89: 1 | L89: 1 | M89: 1 | N89: 1 | O89: 1 | P89: 2 | Q89: 51 | R89: 100 | S89: 0 | T89: 0 | U89: 27 | V89: 0 | W89: 0 | X89: 21 | Y89: 100 | Z89: 0 | AA89: 0 | AB89: 27 | AC89: 0 | AD89: 0 | AE89: 0 | AF89: 0 | AG89: 0 | AH89: 25.5 | AI89: 100 | AJ89: 0 | AK89: 100 | AL89: 0 | AM89: 100 | AN89: 100 | AO89: 100 | AP89: 100 | AQ89: 0 | AR89: 100 | AS89: 100 | AT89: 100 | AU89: 0
A90: 2013Acorn22146 | B90: 2013 | C90: 2146 | D90: Acorn | E90: 2 | F90: 1 | G90: 1 | H90: 1 | I90: 1 | J90: 1 | K90: 1 | L90: 1 | M90: 1 | N90: 1 | O90: 1 | P90: 2 | Q90: 54 | R90: 100 | S90: 100 | T90: 0 | U90: 27 | V90: 100 | W90: 0 | X90: 27 | Y90: 100 | Z90: 100 | AA90: 0 | AB90: 27 | AC90: 100 | AD90: 0 | AE90: 100 | AF90: 100 | AG90: 0 | AH90: 27 | AI90: 100 | AJ90: 0 | AK90: 100 | AL90: 0 | AM90: 100 | AN90: 100 | AO90: 100 | AP90: 100 | AQ90: 100 | AR90: 0 | AS90: 0 | AT90: 0 | AU90: 100
A91: 2013Acorn22162 | B91: 2013 | C91: 2162 | D91: Acorn | E91: 2 | F91: 1 | G91: 1 | H91: 1 | I91: 1 | J91: 1 | K91: 1 | L91: 1 | M91: 1 | N91: 1 | O91: 1 | P91: 2 | Q91: 63 | R91: 100 | S91: 100 | T91: 100 | U91: 33 | V91: 100 | W91: 0 | X91: 27 | Y91: 100 | Z91: 100 | AA91: 100 | AB91: 33 | AC91: 100 | AD91: 100 | AE91: 100 | AF91: 100 | AG91: 0 | AH91: 31.5 | AI91: 100 | AJ91: 100 | AK91: 100 | AL91: 0 | AM91: 100 | AN91: 100 | AO91: 100 | AP91: 100 | AQ91: 100 | AR91: 100 | AS91: 0 | AT91: 100 | AU91: 100
A92: 2013Acorn22164 | B92: 2013 | C92: 2164 | D92: Acorn | E92: 2 | F92: 1 | G92: 1 | H92: 1 | I92: 1 | J92: 1 | K92: 1 | L92: 1 | M92: 1 | N92: 1 | O92: 1 | P92: 2 | Q92: 48 | R92: 0 | S92: 0 | T92: 0 | U92: 21 | V92: 0 | W92: 0 | X92: 21 | Y92: 100 | Z92: 100 | AA92: 0 | AB92: 27 | AC92: 100 | AD92: 100 | AE92: 0 | AF92: 0 | AG92: 0 | AH92: 24 | AI92: 100 | AJ92: 0 | AK92: 0 | AL92: 0 | AM92: 0 | AN92: 0 | AO92: 100 | AP92: 0 | AQ92: 0 | AR92: 0 | AS92: 0 | AT92: 0 | AU92: 100
A93: 2013Acorn22175 | B93: 2013 | C93: 2175 | D93: Acorn | E93: 2 | F93: 3 | G93: 3 | H93: 3 | I93: 3 | J93: 3 | K93: 3 | L93: 3 | M93: 3 | N93: 3 | O93: 3 | P93: 6 | Q93: 159 | R93: 66.66666667 | S93: 66.66666667 | T93: 33.33333333 | U93: 27 | V93: 66.66666667 | W93: 33.33333333 | X93: 29 | Y93: 66.66666667 | Z93: 33.33333333 | AA93: 33.33333333 | AB93: 25 | AC93: 33.33333333 | AD93: 33.33333333 | AE93: 66.66666667 | AF93: 33.33333333 | AG93: 33.33333333 | AH93: 26.5 | AI93: 66.66666667 | AJ93: 33.33333333 | AK93: 66.66666667 | AL93: 33.33333333 | AM93: 100 | AN93: 100 | AO93: 66.66666667 | AP93: 66.66666667 | AQ93: 33.33333333 | AR93: 33.33333333 | AS93: 66.66666667 | AT93: 33.33333333 | AU93: 33.33333333
A94: 2013Acorn22180 | B94: 2013 | C94: 2180 | D94: Acorn | E94: 2 | F94: 1 | G94: 1 | H94: 1 | I94: 1 | J94: 1 | K94: 1 | L94: 1 | M94: 1 | N94: 1 | O94: 1 | P94: 2 | Q94: 39 | R94: 100 | S94: 0 | T94: 0 | U94: 27 | V94: 0 | W94: 0 | X94: 21 | Y94: 0 | Z94: 0 | AA94: 0 | AB94: 15 | AC94: 0 | AD94: 0 | AE94: 0 | AF94: 0 | AG94: 0 | AH94: 19.5 | AI94: 0 | AJ94: 0 | AK94: 0 | AL94: 0 | AM94: 100 | AN94: 100 | AO94: 100 | AP94: 0 | AQ94: 0 | AR94: 100 | AS94: 100 | AT94: 0 | AU94: 0
A95: 2013Acorn23003 | B95: 2013 | C95: 3003 | D95: Acorn | E95: 2 | F95: 5 | G95: 5 | H95: 5 | I95: 5 | J95: 5 | K95: 5 | L95: 5 | M95: 5 | N95: 5 | O95: 5 | P95: 10 | Q95: 312 | R95: 80 | S95: 80 | T95: 60 | U95: 29.4 | V95: 100 | W95: 40 | X95: 29.4 | Y95: 100 | Z95: 60 | AA95: 60 | AB95: 33 | AC95: 80 | AD95: 60 | AE95: 80 | AF95: 60 | AG95: 40 | AH95: 31.2 | AI95: 100 | AJ95: 40 | AK95: 100 | AL95: 40 | AM95: 80 | AN95: 100 | AO95: 100 | AP95: 100 | AQ95: 40 | AR95: 20 | AS95: 20 | AT95: 60 | AU95: 80
A96: 2013Acorn23004 | B96: 2013 | C96: 3004 | D96: Acorn | E96: 2 | F96: 3 | G96: 3 | H96: 3 | I96: 3 | J96: 3 | K96: 3 | L96: 3 | M96: 3 | N96: 3 | O96: 3 | P96: 6 | Q96: 195 | R96: 100 | S96: 100 | T96: 100 | U96: 33 | V96: 100 | W96: 66.66666667 | X96: 31 | Y96: 100 | Z96: 100 | AA96: 100 | AB96: 33 | AC96: 100 | AD96: 100 | AE96: 100 | AF96: 100 | AG96: 66.66666667 | AH96: 32.5 | AI96: 100 | AJ96: 100 | AK96: 100 | AL96: 100 | AM96: 100 | AN96: 100 | AO96: 100 | AP96: 100 | AQ96: 66.66666667 | AR96: 100 | AS96: 66.66666667 | AT96: 100 | AU96: 100
A97: 2013Acorn23005 | B97: 2013 | C97: 3005 | D97: Acorn | E97: 2 | F97: 1 | G97: 1 | H97: 1 | I97: 1 | J97: 1 | K97: 1 | L97: 1 | M97: 1 | N97: 1 | O97: 1 | P97: 2 | Q97: 63 | R97: 100 | S97: 100 | T97: 100 | U97: 33 | V97: 100 | W97: 0 | X97: 27 | Y97: 100 | Z97: 100 | AA97: 100 | AB97: 33 | AC97: 100 | AD97: 100 | AE97: 100 | AF97: 100 | AG97: 0 | AH97: 31.5 | AI97: 100 | AJ97: 100 | AK97: 100 | AL97: 0 | AM97: 100 | AN97: 100 | AO97: 100 | AP97: 100 | AQ97: 100 | AR97: 100 | AS97: 0 | AT97: 100 | AU97: 100
A98: 2013Acorn23007 | B98: 2013 | C98: 3007 | D98: Acorn | E98: 2 | F98: 5 | G98: 5 | H98: 5 | I98: 5 | J98: 5 | K98: 5 | L98: 5 | M98: 5 | N98: 5 | O98: 5 | P98: 10 | Q98: 306 | R98: 100 | S98: 100 | T98: 60 | U98: 30.6 | V98: 80 | W98: 40 | X98: 28.2 | Y98: 100 | Z98: 100 | AA98: 60 | AB98: 31.8 | AC98: 80 | AD98: 80 | AE98: 80 | AF98: 80 | AG98: 40 | AH98: 30.6 | AI98: 100 | AJ98: 60 | AK98: 80 | AL98: 60 | AM98: 100 | AN98: 100 | AO98: 100 | AP98: 80 | AQ98: 60 | AR98: 100 | AS98: 40 | AT98: 100 | AU98: 80
A99: 2013Acorn23305 | B99: 2013 | C99: 3305 | D99: Acorn | E99: 2 | F99: 2 | G99: 2 | H99: 2 | I99: 2 | J99: 2 | K99: 2 | L99: 2 | M99: 2 | N99: 2 | O99: 2 | P99: 4 | Q99: 126 | R99: 100 | S99: 100 | T99: 100 | U99: 33 | V99: 100 | W99: 100 | X99: 33 | Y99: 100 | Z99: 100 | AA99: 50 | AB99: 30 | AC99: 100 | AD99: 100 | AE99: 100 | AF99: 100 | AG99: 50 | AH99: 31.5 | AI99: 100 | AJ99: 50 | AK99: 100 | AL99: 100 | AM99: 100 | AN99: 100 | AO99: 100 | AP99: 100 | AQ99: 50 | AR99: 100 | AS99: 100 | AT99: 0 | AU99: 100
A100: 2013Acorn23407 | B100: 2013 | C100: 3407 | D100: Acorn | E100: 2 | F100: 1 | G100: 1 | H100: 1 | I100: 1 | J100: 1 | K100: 1 | L100: 1 | M100: 1 | N100: 1 | O100: 1 | P100: 2 | Q100: 72 | R100: 100 | S100: 100 | T100: 100 | U100: 33 | V100: 100 | W100: 100 | X100: 33 | Y100: 100 | Z100: 100 | AA100: 100 | AB100: 39 | AC100: 100 | AD100: 100 | AE100: 100 | AF100: 100 | AG100: 100 | AH100: 36 | AI100: 100 | AJ100: 100 | AK100: 100 | AL100: 100 | AO100: 100 | AP100: 100 | AQ100: 100 | AT100: 0 | AU100: 100
A101: 2013Acorn23408 | B101: 2013 | C101: 3408 | D101: Acorn | E101: 2 | F101: 1 | G101: 1 | H101: 1 | I101: 1 | J101: 1 | K101: 1 | L101: 1 | M101: 1 | N101: 1 | O101: 1 | P101: 2 | Q101: 57 | R101: 100 | S101: 100 | T101: 100 | U101: 33 | V101: 100 | W101: 0 | X101: 27 | Y101: 100 | Z101: 100 | AA101: 0 | AB101: 27 | AC101: 100 | AD101: 100 | AE101: 100 | AF101: 100 | AG101: 0 | AH101: 28.5 | AI101: 100 | AJ101: 100 | AK101: 100 | AL101: 100 | AM101: 100 | AN101: 100 | AO101: 100 | AP101: 100 | AQ101: 100 | AR101: 100 | AS101: 0 | AT101: 0 | AU101: 100
A102: 2013Acorn27018 | B102: 2013 | C102: 7018 | D102: Acorn | E102: 2 | F102: 1 | G102: 1 | H102: 1 | I102: 1 | J102: 1 | K102: 1 | L102: 1 | M102: 1 | N102: 1 | O102: 1 | P102: 2 | Q102: 24 | R102: 0 | S102: 0 | T102: 0 | U102: 15 | V102: 0 | W102: 0 | X102: 3 | Y102: 0 | Z102: 0 | AA102: 0 | AB102: 15 | AC102: 0 | AD102: 0 | AE102: 0 | AF102: 0 | AG102: 0 | AH102: 12 | AI102: 0 | AJ102: 0 | AK102: 0 | AL102: 0 | AM102: 0 | AN102: 0 | AO102: 0 | AP102: 0 | AQ102: 0 | AR102: 0 | AS102: 0 | AT102: 0 | AU102: 0
A103: 2013Acorn2LA | B103: 2013 | C103: LA | D103: Acorn | E103: 2 | F103: 39 | G103: 39 | H103: 39 | I103: 39 | J103: 39 | K103: 39 | L103: 39 | M103: 39 | N103: 39 | O103: 39 | P103: 78 | Q103: 2262 | R103: 89.74358974 | S103: 79.48717949 | T103: 58.97435897 | U103: 29.76923077 | V103: 82.05128205 | W103: 33.33333333 | X103: 27.61538462 | Y103: 92.30769231 | Z103: 76.92307692 | AA103: 43.58974359 | AB103: 29.30769231 | AC103: 76.92307692 | AD103: 69.23076923 | AE103: 79.48717949 | AF103: 66.66666667 | AG103: 28.20512821 | AH103: 29 | AI103: 89.74358974 | AJ103: 46.15384615 | AK103: 87.17948718 | AL103: 43.58974359 | AM103: 86.84210526 | AN103: 86.84210526 | AO103: 92.30769231 | AP103: 84.61538462 | AQ103: 46.15384615 | AR103: 57.89473684 | AS103: 34.21052632 | AT103: 46.15384615 | AU103: 74.35897436
A104: 2013Acorn2OLDBURY | B104: 2013 | C104: OLDBURY | D104: Acorn | E104: 2 | F104: 9 | G104: 9 | H104: 9 | I104: 9 | J104: 9 | K104: 9 | L104: 9 | M104: 9 | N104: 9 | O104: 9 | P104: 18 | Q104: 489 | R104: 77.77777778 | S104: 77.77777778 | T104: 44.44444444 | U104: 27.66666667 | V104: 66.66666667 | W104: 33.33333333 | X104: 25.66666667 | Y104: 77.77777778 | Z104: 66.66666667 | AA104: 44.44444444 | AB104: 27.66666667 | AC104: 55.55555556 | AD104: 55.55555556 | AE104: 66.66666667 | AF104: 55.55555556 | AG104: 33.33333333 | AH104: 27.16666667 | AI104: 77.77777778 | AJ104: 44.44444444 | AK104: 66.66666667 | AL104: 44.44444444 | AM104: 88.88888889 | AN104: 88.88888889 | AO104: 77.77777778 | AP104: 66.66666667 | AQ104: 44.44444444 | AR104: 66.66666667 | AS104: 44.44444444 | AT104: 66.66666667 | AU104: 55.55555556
A105: 2013Acorn2ROWLEY REGIS | B105: 2013 | C105: ROWLEY REGIS | D105: Acorn | E105: 2 | F105: 1 | G105: 1 | H105: 1 | I105: 1 | J105: 1 | K105: 1 | L105: 1 | M105: 1 | N105: 1 | O105: 1 | P105: 2 | Q105: 54 | R105: 100 | S105: 100 | T105: 0 | U105: 27 | V105: 100 | W105: 0 | X105: 27 | Y105: 100 | Z105: 100 | AA105: 0 | AB105: 27 | AC105: 100 | AD105: 0 | AE105: 100 | AF105: 100 | AG105: 0 | AH105: 27 | AI105: 100 | AJ105: 0 | AK105: 100 | AL105: 0 | AM105: 100 | AN105: 100 | AO105: 100 | AP105: 100 | AQ105: 100 | AR105: 0 | AS105: 0 | AT105: 0 | AU105: 100
A106: 2013Acorn2SMETHWICK | B106: 2013 | C106: SMETHWICK | D106: Acorn | E106: 2 | F106: 6 | G106: 6 | H106: 6 | I106: 6 | J106: 6 | K106: 6 | L106: 6 | M106: 6 | N106: 6 | O106: 6 | P106: 12 | Q106: 333 | R106: 100 | S106: 66.66666667 | T106: 50 | U106: 30 | V106: 66.66666667 | W106: 33.33333333 | X106: 27 | Y106: 83.33333333 | Z106: 66.66666667 | AA106: 33.33333333 | AB106: 27 | AC106: 66.66666667 | AD106: 66.66666667 | AE106: 66.66666667 | AF106: 66.66666667 | AG106: 16.66666667 | AH106: 27.75 | AI106: 83.33333333 | AJ106: 50 | AK106: 83.33333333 | AL106: 50 | AM106: 83.33333333 | AN106: 100 | AO106: 100 | AP106: 83.33333333 | AQ106: 50 | AR106: 50 | AS106: 33.33333333 | AT106: 33.33333333 | AU106: 66.66666667
A107: 2013Acorn2TIPTON | B107: 2013 | C107: TIPTON | D107: Acorn | E107: 2 | F107: 14 | G107: 14 | H107: 14 | I107: 14 | J107: 14 | K107: 14 | L107: 14 | M107: 14 | N107: 14 | O107: 14 | P107: 28 | Q107: 846 | R107: 85.71428571 | S107: 71.42857143 | T107: 57.14285714 | U107: 29.57142857 | V107: 92.85714286 | W107: 35.71428571 | X107: 28.71428571 | Y107: 100 | Z107: 71.42857143 | AA107: 50 | AB107: 31.28571429 | AC107: 85.71428571 | AD107: 78.57142857 | AE107: 85.71428571 | AF107: 57.14285714 | AG107: 35.71428571 | AH107: 30.21428571 | AI107: 92.85714286 | AJ107: 42.85714286 | AK107: 92.85714286 | AL107: 42.85714286 | AM107: 76.92307692 | AN107: 84.61538462 | AO107: 92.85714286 | AP107: 85.71428571 | AQ107: 35.71428571 | AR107: 46.15384615 | AS107: 30.76923077 | AT107: 50 | AU107: 85.71428571
A108: 2013Acorn2WEDNESBURY | B108: 2013 | C108: WEDNESBURY | D108: Acorn | E108: 2 | F108: 4 | G108: 4 | H108: 4 | I108: 4 | J108: 4 | K108: 4 | L108: 4 | M108: 4 | N108: 4 | O108: 4 | P108: 8 | Q108: 240 | R108: 100 | S108: 100 | T108: 100 | U108: 33 | V108: 100 | W108: 50 | X108: 30 | Y108: 100 | Z108: 100 | AA108: 25 | AB108: 28.5 | AC108: 100 | AD108: 75 | AE108: 100 | AF108: 100 | AG108: 25 | AH108: 30 | AI108: 100 | AJ108: 25 | AK108: 100 | AL108: 50 | AM108: 100 | AN108: 75 | AO108: 100 | AP108: 100 | AQ108: 25 | AR108: 75 | AS108: 50 | AT108: 0 | AU108: 75
A109: 2013Acorn2WEST BROMWICH CENTRAL | B109: 2013 | C109: WEST BROMWICH CENTRAL | D109: Acorn | E109: 2 | F109: 3 | G109: 3 | H109: 3 | I109: 3 | J109: 3 | K109: 3 | L109: 3 | M109: 3 | N109: 3 | O109: 3 | P109: 6 | Q109: 180 | R109: 100 | S109: 100 | T109: 66.66666667 | U109: 31 | V109: 66.66666667 | W109: 33.33333333 | X109: 27 | Y109: 100 | Z109: 100 | AA109: 66.66666667 | AB109: 31 | AC109: 66.66666667 | AD109: 66.66666667 | AE109: 66.66666667 | AF109: 66.66666667 | AG109: 33.33333333 | AH109: 30 | AI109: 100 | AJ109: 66.66666667 | AK109: 100 | AL109: 33.33333333 | AM109: 100 | AN109: 66.66666667 | AO109: 100 | AP109: 100 | AQ109: 66.66666667 | AR109: 66.66666667 | AS109: 33.33333333 | AT109: 66.66666667 | AU109: 66.66666667
A110: 2013Acorn2WEST BROMWICH NORTH | B110: 2013 | C110: WEST BROMWICH NORTH | D110: Acorn | E110: 2 | F110: 2 | G110: 2 | H110: 2 | I110: 2 | J110: 2 | K110: 2 | L110: 2 | M110: 2 | N110: 2 | O110: 2 | P110: 4 | Q110: 120 | R110: 100 | S110: 100 | T110: 100 | U110: 33 | V110: 100 | W110: 0 | X110: 27 | Y110: 100 | Z110: 100 | AA110: 50 | AB110: 30 | AC110: 100 | AD110: 100 | AE110: 100 | AF110: 100 | AG110: 0 | AH110: 30 | AI110: 100 | AJ110: 100 | AK110: 100 | AL110: 50 | AM110: 100 | AN110: 100 | AO110: 100 | AP110: 100 | AQ110: 100 | AR110: 100 | AS110: 0 | AT110: 50 | AU110: 100
A111: 2013Acorn3002 | B111: 2013 | C111: 3002 | D111: Acorn | F111: 1 | G111: 1 | H111: 1 | I111: 1 | J111: 1 | K111: 1 | L111: 1 | M111: 1 | N111: 1 | O111: 1 | P111: 2 | Q111: 48 | R111: 100 | S111: 100 | T111: 0 | U111: 27 | V111: 100 | W111: 0 | X111: 27 | Y111: 0 | Z111: 0 | AA111: 0 | AB111: 21 | AC111: 100 | AD111: 0 | AE111: 0 | AF111: 0 | AG111: 0 | AH111: 24 | AI111: 100 | AJ111: 0 | AK111: 100 | AL111: 0 | AM111: 100 | AN111: 100 | AO111: 0 | AP111: 100 | AQ111: 0 | AR111: 0 | AS111: 100 | AT111: 0 | AU111: 0
A112: 2013Acorn3005 | B112: 2013 | C112: 3005 | D112: Acorn | F112: 1 | G112: 1 | H112: 1 | I112: 1 | J112: 1 | K112: 1 | L112: 1 | M112: 1 | N112: 1 | O112: 1 | P112: 2 | Q112: 51 | R112: 100 | S112: 100 | T112: 0 | U112: 27 | V112: 0 | W112: 0 | X112: 21 | Y112: 100 | Z112: 100 | AA112: 0 | AB112: 27 | AC112: 100 | AD112: 0 | AE112: 0 | AF112: 0 | AG112: 0 | AH112: 25.5 | AI112: 100 | AJ112: 0 | AK112: 100 | AL112: 0 | AM112: 100 | AN112: 100 | AO112: 100 | AP112: 100 | AQ112: 100 | AR112: 100 | AS112: 0 | AT112: 0 | AU112: 0
A113: 2013Acorn32004 | B113: 2013 | C113: 2004 | D113: Acorn | E113: 3 | F113: 5 | G113: 5 | H113: 5 | I113: 5 | J113: 5 | K113: 5 | L113: 5 | M113: 5 | N113: 5 | O113: 5 | P113: 10 | Q113: 261 | R113: 80 | S113: 20 | T113: 0 | U113: 24.6 | V113: 80 | W113: 0 | X113: 25.8 | Y113: 100 | Z113: 80 | AA113: 0 | AB113: 27 | AC113: 80 | AD113: 40 | AE113: 80 | AF113: 20 | AG113: 0 | AH113: 26.1 | AI113: 100 | AJ113: 20 | AK113: 80 | AL113: 60 | AM113: 100 | AN113: 100 | AO113: 100 | AP113: 100 | AQ113: 20 | AR113: 50 | AS113: 0 | AT113: 0 | AU113: 60
A114: 2013Acorn32006 | B114: 2013 | C114: 2006 | D114: Acorn | E114: 3 | F114: 12 | G114: 12 | H114: 12 | I114: 12 | J114: 12 | K114: 12 | L114: 12 | M114: 12 | N114: 12 | O114: 12 | P114: 24 | Q114: 558 | R114: 41.66666667 | S114: 41.66666667 | T114: 16.66666667 | U114: 22.5 | V114: 50 | W114: 0 | X114: 21.5 | Y114: 66.66666667 | Z114: 50 | AA114: 16.66666667 | AB114: 24.5 | AC114: 58.33333333 | AD114: 16.66666667 | AE114: 41.66666667 | AF114: 33.33333333 | AG114: 0 | AH114: 23.25 | AI114: 66.66666667 | AJ114: 16.66666667 | AK114: 50 | AL114: 8.333333333 | AM114: 58.33333333 | AN114: 83.33333333 | AO114: 75 | AP114: 58.33333333 | AQ114: 25 | AR114: 16.66666667 | AS114: 0 | AT114: 16.66666667 | AU114: 50
A115: 2013Acorn32015 | B115: 2013 | C115: 2015 | D115: Acorn | E115: 3 | F115: 18 | G115: 18 | H115: 18 | I115: 18 | J115: 18 | K115: 18 | L115: 18 | M115: 18 | N115: 18 | O115: 18 | P115: 36 | Q115: 1065 | R115: 94.44444444 | S115: 77.77777778 | T115: 50 | U115: 29.33333333 | V115: 83.33333333 | W115: 38.88888889 | X115: 27.66666667 | Y115: 94.44444444 | Z115: 77.77777778 | AA115: 61.11111111 | AB115: 30.66666667 | AC115: 83.33333333 | AD115: 66.66666667 | AE115: 83.33333333 | AF115: 66.66666667 | AG115: 33.33333333 | AH115: 29.58333333 | AI115: 94.44444444 | AJ115: 50 | AK115: 94.44444444 | AL115: 38.88888889 | AM115: 94.44444444 | AN115: 88.88888889 | AO115: 100 | AP115: 88.88888889 | AQ115: 44.44444444 | AR115: 27.77777778 | AS115: 38.88888889 | AT115: 44.44444444 | AU115: 77.77777778
A116: 2013Acorn32041 | B116: 2013 | C116: 2041 | D116: Acorn | E116: 3 | F116: 2 | G116: 2 | H116: 2 | I116: 2 | J116: 2 | K116: 2 | L116: 2 | M116: 2 | N116: 2 | O116: 2 | P116: 4 | Q116: 114 | R116: 100 | S116: 50 | T116: 0 | U116: 27 | V116: 100 | W116: 0 | X116: 27 | Y116: 100 | Z116: 100 | AA116: 50 | AB116: 30 | AC116: 100 | AD116: 50 | AE116: 100 | AF116: 50 | AG116: 0 | AH116: 28.5 | AI116: 100 | AJ116: 50 | AK116: 100 | AL116: 50 | AM116: 100 | AN116: 100 | AO116: 100 | AP116: 100 | AQ116: 0 | AR116: 0 | AS116: 0 | AT116: 50 | AU116: 100
A117: 2013Acorn32045 | B117: 2013 | C117: 2045 | D117: Acorn | E117: 3 | F117: 8 | G117: 8 | H117: 8 | I117: 8 | J117: 8 | K117: 8 | L117: 8 | M117: 8 | N117: 8 | O117: 8 | P117: 16 | Q117: 426 | R117: 87.5 | S117: 62.5 | T117: 0 | U117: 25.5 | V117: 75 | W117: 0 | X117: 25.5 | Y117: 87.5 | Z117: 87.5 | AA117: 25 | AB117: 27.75 | AC117: 62.5 | AD117: 25 | AE117: 75 | AF117: 62.5 | AG117: 0 | AH117: 26.625 | AI117: 87.5 | AJ117: 0 | AK117: 62.5 | AL117: 0 | AM117: 87.5 | AN117: 87.5 | AO117: 87.5 | AP117: 100 | AQ117: 37.5 | AR117: 25 | AS117: 12.5 | AT117: 25 | AU117: 62.5
A118: 2013Acorn32046 | B118: 2013 | C118: 2046 | D118: Acorn | E118: 3 | F118: 4 | G118: 4 | H118: 4 | I118: 4 | J118: 4 | K118: 4 | L118: 4 | M118: 4 | N118: 4 | O118: 4 | P118: 8 | Q118: 240 | R118: 100 | S118: 100 | T118: 50 | U118: 30 | V118: 100 | W118: 50 | X118: 30 | Y118: 100 | Z118: 75 | AA118: 50 | AB118: 30 | AC118: 75 | AD118: 50 | AE118: 100 | AF118: 75 | AG118: 25 | AH118: 30 | AI118: 100 | AJ118: 75 | AK118: 100 | AL118: 75 | AM118: 100 | AN118: 100 | AO118: 100 | AP118: 100 | AQ118: 50 | AR118: 25 | AS118: 50 | AT118: 25 | AU118: 75
A119: 2013Acorn32047 | B119: 2013 | C119: 2047 | D119: Acorn | E119: 3 | F119: 17 | G119: 17 | H119: 17 | I119: 17 | J119: 17 | K119: 17 | L119: 17 | M119: 17 | N119: 17 | O119: 17 | P119: 34 | Q119: 999 | R119: 100 | S119: 88.23529412 | T119: 41.17647059 | U119: 29.47058824 | V119: 100 | W119: 23.52941176 | X119: 28.41176471 | Y119: 100 | Z119: 100 | AA119: 47.05882353 | AB119: 29.82352941 | AC119: 88.23529412 | AD119: 47.05882353 | AE119: 100 | AF119: 88.23529412 | AG119: 23.52941176 | AH119: 29.38235294 | AI119: 100 | AJ119: 52.94117647 | AK119: 100 | AL119: 29.41176471 | AM119: 88.23529412 | AN119: 100 | AO119: 100 | AP119: 100 | AQ119: 41.17647059 | AR119: 23.52941176 | AS119: 17.64705882 | AT119: 17.64705882 | AU119: 76.47058824
A120: 2013Acorn32048 | B120: 2013 | C120: 2048 | D120: Acorn | E120: 3 | F120: 10 | G120: 10 | H120: 10 | I120: 10 | J120: 10 | K120: 10 | L120: 10 | M120: 10 | N120: 10 | O120: 10 | P120: 20 | Q120: 564 | R120: 100 | S120: 90 | T120: 40 | U120: 29.4 | V120: 60 | W120: 40 | X120: 27 | Y120: 80 | Z120: 60 | AA120: 40 | AB120: 28.2 | AC120: 70 | AD120: 50 | AE120: 60 | AF120: 60 | AG120: 40 | AH120: 28.2 | AI120: 70 | AJ120: 30 | AK120: 70 | AL120: 40 | AM120: 100 | AN120: 70 | AO120: 100 | AP120: 70 | AQ120: 40 | AR120: 20 | AS120: 10 | AT120: 50 | AU120: 70
A121: 2013Acorn32051 | B121: 2013 | C121: 2051 | D121: Acorn | E121: 3 | F121: 7 | G121: 7 | H121: 7 | I121: 7 | J121: 7 | K121: 7 | L121: 7 | M121: 7 | N121: 7 | O121: 7 | P121: 14 | Q121: 387 | R121: 85.71428571 | S121: 57.14285714 | T121: 28.57142857 | U121: 27.85714286 | V121: 85.71428571 | W121: 14.28571429 | X121: 27 | Y121: 85.71428571 | Z121: 42.85714286 | AA121: 28.57142857 | AB121: 27.85714286 | AC121: 71.42857143 | AD121: 28.57142857 | AE121: 57.14285714 | AF121: 28.57142857 | AG121: 14.28571429 | AH121: 27.64285714 | AI121: 100 | AJ121: 28.57142857 | AK121: 100 | AL121: 42.85714286 | AM121: 85.71428571 | AN121: 85.71428571 | AO121: 85.71428571 | AP121: 85.71428571 | AQ121: 14.28571429 | AR121: 14.28571429 | AS121: 14.28571429 | AT121: 28.57142857 | AU121: 71.42857143
A122: 2013Acorn32054 | B122: 2013 | C122: 2054 | D122: Acorn | E122: 3 | F122: 3 | G122: 3 | H122: 3 | I122: 3 | J122: 3 | K122: 3 | L122: 3 | M122: 3 | N122: 3 | O122: 3 | P122: 6 | Q122: 150 | R122: 66.66666667 | S122: 33.33333333 | T122: 0 | U122: 23 | V122: 66.66666667 | W122: 33.33333333 | X122: 27 | Y122: 66.66666667 | Z122: 33.33333333 | AA122: 33.33333333 | AB122: 25 | AC122: 66.66666667 | AD122: 33.33333333 | AE122: 66.66666667 | AF122: 33.33333333 | AG122: 0 | AH122: 25 | AI122: 66.66666667 | AJ122: 33.33333333 | AK122: 66.66666667 | AL122: 33.33333333 | AM122: 33.33333333 | AN122: 100 | AO122: 66.66666667 | AP122: 66.66666667 | AQ122: 33.33333333 | AR122: 0 | AS122: 0 | AT122: 0 | AU122: 33.33333333
A123: 2013Acorn32056 | B123: 2013 | C123: 2056 | D123: Acorn | E123: 3 | F123: 23 | G123: 23 | H123: 23 | I123: 23 | J123: 23 | K123: 23 | L123: 23 | M123: 23 | N123: 23 | O123: 23 | P123: 46 | Q123: 1296 | R123: 82.60869565 | S123: 73.91304348 | T123: 26.08695652 | U123: 27.52173913 | V123: 78.26086957 | W123: 21.73913043 | X123: 27 | Y123: 91.30434783 | Z123: 78.26086957 | AA123: 39.13043478 | AB123: 29.08695652 | AC123: 69.56521739 | AD123: 43.47826087 | AE123: 69.56521739 | AF123: 52.17391304 | AG123: 13.04347826 | AH123: 28.17391304 | AI123: 95.65217391 | AJ123: 43.47826087 | AK123: 86.95652174 | AL123: 26.08695652 | AM123: 95.65217391 | AN123: 100 | AO123: 95.65217391 | AP123: 95.65217391 | AQ123: 17.39130435 | AR123: 13.04347826 | AS123: 13.04347826 | AT123: 30.43478261 | AU123: 60.86956522
A124: 2013Acorn32057 | B124: 2013 | C124: 2057 | D124: Acorn | E124: 3 | F124: 1 | G124: 1 | H124: 1 | I124: 1 | J124: 1 | K124: 1 | L124: 1 | M124: 1 | N124: 1 | O124: 1 | P124: 2 | Q124: 51 | R124: 100 | S124: 100 | T124: 0 | U124: 27 | V124: 0 | W124: 0 | X124: 21 | Y124: 100 | Z124: 100 | AA124: 0 | AB124: 27 | AC124: 0 | AD124: 0 | AE124: 0 | AF124: 0 | AG124: 0 | AH124: 25.5 | AI124: 100 | AJ124: 0 | AK124: 100 | AL124: 0 | AM124: 100 | AN124: 100 | AO124: 100 | AP124: 100 | AQ124: 0 | AR124: 100 | AS124: 0 | AT124: 100 | AU124: 0
A125: 2013Acorn32061 | B125: 2013 | C125: 2061 | D125: Acorn | E125: 3 | F125: 26 | G125: 26 | H125: 26 | I125: 26 | J125: 26 | K125: 26 | L125: 26 | M125: 26 | N125: 26 | O125: 26 | P125: 52 | Q125: 1659 | R125: 100 | S125: 100 | T125: 84.61538462 | U125: 32.07692308 | V125: 96.15384615 | W125: 53.84615385 | X125: 30.92307692 | Y125: 100 | Z125: 100 | AA125: 73.07692308 | AB125: 32.30769231 | AC125: 80.76923077 | AD125: 61.53846154 | AE125: 96.15384615 | AF125: 96.15384615 | AG125: 50 | AH125: 31.90384615 | AI125: 100 | AJ125: 69.23076923 | AK125: 100 | AL125: 69.23076923 | AM125: 100 | AN125: 100 | AO125: 100 | AP125: 100 | AQ125: 88.46153846 | AR125: 38.46153846 | AS125: 57.69230769 | AT125: 50 | AU125: 76.92307692
A126: 2013Acorn32070 | B126: 2013 | C126: 2070 | D126: Acorn | E126: 3 | F126: 19 | G126: 19 | H126: 19 | I126: 19 | J126: 19 | K126: 19 | L126: 19 | M126: 19 | N126: 19 | O126: 19 | P126: 38 | Q126: 1203 | R126: 100 | S126: 100 | T126: 47.36842105 | U126: 29.84210526 | V126: 100 | W126: 47.36842105 | X126: 30.15789474 | Y126: 100 | Z126: 94.73684211 | AA126: 78.94736842 | AB126: 33.31578947 | AC126: 100 | AD126: 89.47368421 | AE126: 100 | AF126: 94.73684211 | AG126: 31.57894737 | AH126: 31.65789474 | AI126: 100 | AJ126: 78.94736842 | AK126: 100 | AL126: 63.15789474 | AM126: 89.47368421 | AN126: 100 | AO126: 100 | AP126: 100 | AQ126: 78.94736842 | AR126: 15.78947368 | AS126: 36.84210526 | AT126: 78.94736842 | AU126: 100
A127: 2013Acorn32072 | B127: 2013 | C127: 2072 | D127: Acorn | E127: 3 | F127: 10 | G127: 10 | H127: 10 | I127: 10 | J127: 10 | K127: 10 | L127: 10 | M127: 10 | N127: 10 | O127: 10 | P127: 20 | Q127: 585 | R127: 90 | S127: 70 | T127: 50 | U127: 29.4 | V127: 90 | W127: 50 | X127: 30 | Y127: 90 | Z127: 80 | AA127: 40 | AB127: 28.8 | AC127: 80 | AD127: 60 | AE127: 90 | AF127: 60 | AG127: 20 | AH127: 29.25 | AI127: 90 | AJ127: 60 | AK127: 90 | AL127: 70 | AM127: 100 | AN127: 100 | AO127: 100 | AP127: 90 | AQ127: 90 | AR127: 50 | AS127: 44.44444444 | AT127: 25 | AU127: 80
A128: 2013Acorn32074 | B128: 2013 | C128: 2074 | D128: Acorn | E128: 3 | F128: 2 | G128: 2 | H128: 2 | I128: 2 | J128: 2 | K128: 2 | L128: 2 | M128: 2 | N128: 2 | O128: 2 | P128: 4 | Q128: 111 | R128: 100 | S128: 50 | T128: 50 | U128: 30 | V128: 50 | W128: 50 | X128: 27 | Y128: 50 | Z128: 50 | AA128: 50 | AB128: 27 | AC128: 100 | AD128: 50 | AE128: 50 | AF128: 50 | AG128: 50 | AH128: 27.75 | AI128: 50 | AJ128: 50 | AK128: 100 | AL128: 50 | AM128: 100 | AN128: 50 | AO128: 50 | AP128: 50 | AQ128: 50 | AR128: 0 | AS128: 0 | AT128: 0 | AU128: 50
A129: 2013Acorn32075 | B129: 2013 | C129: 2075 | D129: Acorn | E129: 3 | F129: 2 | G129: 2 | H129: 2 | I129: 2 | J129: 2 | K129: 2 | L129: 2 | M129: 2 | N129: 2 | O129: 2 | P129: 4 | Q129: 99 | R129: 50 | S129: 50 | T129: 0 | U129: 24 | V129: 100 | W129: 0 | X129: 27 | Y129: 50 | Z129: 50 | AA129: 0 | AB129: 24 | AC129: 50 | AD129: 0 | AE129: 50 | AF129: 50 | AG129: 0 | AH129: 24.75 | AI129: 100 | AJ129: 0 | AK129: 100 | AL129: 0 | AM129: 50 | AN129: 100 | AO129: 100 | AP129: 100 | AQ129: 0 | AR129: 0 | AS129: 0 | AT129: 0 | AU129: 0
A130: 2013Acorn32076 | B130: 2013 | C130: 2076 | D130: Acorn | E130: 3 | F130: 7 | G130: 7 | H130: 7 | I130: 7 | J130: 7 | K130: 7 | L130: 7 | M130: 7 | N130: 7 | O130: 7 | P130: 14 | Q130: 426 | R130: 100 | S130: 85.71428571 | T130: 42.85714286 | U130: 29.57142857 | V130: 85.71428571 | W130: 57.14285714 | X130: 29.57142857 | Y130: 100 | Z130: 100 | AA130: 57.14285714 | AB130: 31.28571429 | AC130: 71.42857143 | AD130: 57.14285714 | AE130: 85.71428571 | AF130: 71.42857143 | AG130: 42.85714286 | AH130: 30.42857143 | AI130: 100 | AJ130: 71.42857143 | AK130: 100 | AL130: 57.14285714 | AM130: 100 | AN130: 100 | AO130: 100 | AP130: 100 | AQ130: 71.42857143 | AR130: 16.66666667 | AS130: 66.66666667 | AT130: 66.66666667 | AU130: 71.42857143
A131: 2013Acorn32078 | B131: 2013 | C131: 2078 | D131: Acorn | E131: 3 | F131: 4 | G131: 4 | H131: 4 | I131: 4 | J131: 4 | K131: 4 | L131: 4 | M131: 4 | N131: 4 | O131: 4 | P131: 8 | Q131: 222 | R131: 100 | S131: 100 | T131: 0 | U131: 27 | V131: 100 | W131: 0 | X131: 27 | Y131: 75 | Z131: 75 | AA131: 50 | AB131: 28.5 | AC131: 100 | AD131: 50 | AE131: 75 | AF131: 75 | AG131: 0 | AH131: 27.75 | AI131: 75 | AJ131: 50 | AK131: 100 | AL131: 0 | AM131: 100 | AN131: 100 | AO131: 66.66666667 | AP131: 100 | AQ131: 25 | AR131: 33.33333333 | AS131: 33.33333333 | AT131: 66.66666667 | AU131: 75
A132: 2013Acorn32082 | B132: 2013 | C132: 2082 | D132: Acorn | E132: 3 | F132: 15 | G132: 15 | H132: 15 | I132: 15 | J132: 15 | K132: 15 | L132: 15 | M132: 15 | N132: 15 | O132: 15 | P132: 30 | Q132: 843 | R132: 73.33333333 | S132: 53.33333333 | T132: 26.66666667 | U132: 27 | V132: 93.33333333 | W132: 40 | X132: 29 | Y132: 86.66666667 | Z132: 66.66666667 | AA132: 26.66666667 | AB132: 28.2 | AC132: 80 | AD132: 40 | AE132: 66.66666667 | AF132: 46.66666667 | AG132: 20 | AH132: 28.1 | AI132: 100 | AJ132: 26.66666667 | AK132: 86.66666667 | AL132: 46.66666667 | AM132: 73.33333333 | AN132: 93.33333333 | AO132: 86.66666667 | AP132: 93.33333333 | AQ132: 40 | AR132: 13.33333333 | AS132: 33.33333333 | AT132: 20 | AU132: 60
A133: 2013Acorn32101 | B133: 2013 | C133: 2101 | D133: Acorn | E133: 3 | F133: 35 | G133: 35 | H133: 35 | I133: 35 | J133: 35 | K133: 35 | L133: 35 | M133: 35 | N133: 35 | O133: 35 | P133: 70 | Q133: 1974 | R133: 85.71428571 | S133: 80 | T133: 57.14285714 | U133: 28.88571429 | V133: 85.71428571 | W133: 34.28571429 | X133: 27.85714286 | Y133: 88.57142857 | Z133: 74.28571429 | AA133: 34.28571429 | AB133: 28.02857143 | AC133: 80 | AD133: 48.57142857 | AE133: 82.85714286 | AF133: 71.42857143 | AG133: 22.85714286 | AH133: 28.2 | AI133: 88.57142857 | AJ133: 45.71428571 | AK133: 85.71428571 | AL133: 45.71428571 | AM133: 82.35294118 | AN133: 91.17647059 | AO133: 91.17647059 | AP133: 88.57142857 | AQ133: 48.57142857 | AR133: 38.23529412 | AS133: 26.47058824 | AT133: 17.64705882 | AU133: 74.28571429
A134: 2013Acorn32105 | B134: 2013 | C134: 2105 | D134: Acorn | E134: 3 | F134: 21 | G134: 21 | H134: 21 | I134: 21 | J134: 21 | K134: 21 | L134: 21 | M134: 21 | N134: 21 | O134: 21 | P134: 42 | Q134: 1203 | R134: 85.71428571 | S134: 66.66666667 | T134: 33.33333333 | U134: 27.85714286 | V134: 95.23809524 | W134: 33.33333333 | X134: 28.71428571 | Y134: 90.47619048 | Z134: 85.71428571 | AA134: 33.33333333 | AB134: 29 | AC134: 95.23809524 | AD134: 57.14285714 | AE134: 80.95238095 | AF134: 61.9047619 | AG134: 23.80952381 | AH134: 28.64285714 | AI134: 90.47619048 | AJ134: 52.38095238 | AK134: 95.23809524 | AL134: 33.33333333 | AM134: 80 | AN134: 100 | AO134: 100 | AP134: 90.47619048 | AQ134: 47.61904762 | AR134: 30 | AS134: 50 | AT134: 38.0952381 | AU134: 76.19047619
A135: 2013Acorn32108 | B135: 2013 | C135: 2108 | D135: Acorn | E135: 3 | F135: 15 | G135: 15 | H135: 15 | I135: 15 | J135: 15 | K135: 15 | L135: 15 | M135: 15 | N135: 15 | O135: 15 | P135: 30 | Q135: 747 | R135: 73.33333333 | S135: 66.66666667 | T135: 13.33333333 | U135: 25.8 | V135: 66.66666667 | W135: 13.33333333 | X135: 25.4 | Y135: 73.33333333 | Z135: 53.33333333 | AA135: 0 | AB135: 24.2 | AC135: 46.66666667 | AD135: 13.33333333 | AE135: 60 | AF135: 33.33333333 | AG135: 0 | AH135: 24.9 | AI135: 80 | AJ135: 13.33333333 | AK135: 80 | AL135: 13.33333333 | AM135: 73.33333333 | AN135: 80 | AO135: 66.66666667 | AP135: 66.66666667 | AQ135: 26.66666667 | AR135: 20 | AS135: 13.33333333 | AT135: 0 | AU135: 20
A136: 2013Acorn32112 | B136: 2013 | C136: 2112 | D136: Acorn | E136: 3 | F136: 2 | G136: 2 | H136: 2 | I136: 2 | J136: 2 | K136: 2 | L136: 2 | M136: 2 | N136: 2 | O136: 2 | P136: 4 | Q136: 105 | R136: 50 | S136: 50 | T136: 50 | U136: 24 | V136: 50 | W136: 50 | X136: 27 | Y136: 50 | Z136: 50 | AA136: 50 | AB136: 27 | AC136: 50 | AD136: 50 | AE136: 50 | AF136: 50 | AG136: 50 | AH136: 26.25 | AI136: 100 | AJ136: 50 | AK136: 50 | AL136: 50 | AM136: 50 | AN136: 100 | AO136: 100 | AP136: 100 | AQ136: 0 | AR136: 0 | AS136: 50 | AT136: 0 | AU136: 50
A137: 2013Acorn32113 | B137: 2013 | C137: 2113 | D137: Acorn | E137: 3 | F137: 6 | G137: 6 | H137: 6 | I137: 6 | J137: 6 | K137: 6 | L137: 6 | M137: 6 | N137: 6 | O137: 6 | P137: 12 | Q137: 330 | R137: 100 | S137: 100 | T137: 0 | U137: 27 | V137: 83.33333333 | W137: 16.66666667 | X137: 27 | Y137: 83.33333333 | Z137: 66.66666667 | AA137: 33.33333333 | AB137: 28 | AC137: 83.33333333 | AD137: 50 | AE137: 83.33333333 | AF137: 66.66666667 | AG137: 0 | AH137: 27.5 | AI137: 100 | AJ137: 33.33333333 | AK137: 100 | AL137: 16.66666667 | AM137: 83.33333333 | AN137: 100 | AO137: 100 | AP137: 100 | AQ137: 0 | AR137: 16.66666667 | AS137: 33.33333333 | AT137: 16.66666667 | AU137: 66.66666667
A138: 2013Acorn32118 | B138: 2013 | C138: 2118 | D138: Acorn | E138: 3 | F138: 9 | G138: 8 | H138: 9 | I138: 9 | J138: 9 | K138: 8 | L138: 9 | M138: 9 | N138: 9 | O138: 9 | P138: 17 | Q138: 505.5 | R138: 88.88888889 | S138: 88.88888889 | T138: 55.55555556 | U138: 30.75 | V138: 100 | W138: 33.33333333 | X138: 29 | Y138: 88.88888889 | Z138: 88.88888889 | AA138: 55.55555556 | AB138: 31.5 | AC138: 77.77777778 | AD138: 66.66666667 | AE138: 88.88888889 | AF138: 88.88888889 | AG138: 22.22222222 | AH138: 29.73529412 | AI138: 100 | AJ138: 66.66666667 | AK138: 100 | AL138: 55.55555556 | AM138: 88.88888889 | AN138: 100 | AO138: 100 | AP138: 100 | AQ138: 44.44444444 | AR138: 22.22222222 | AS138: 22.22222222 | AT138: 33.33333333 | AU138: 77.77777778
A139: 2013Acorn32122 | B139: 2013 | C139: 2122 | D139: Acorn | E139: 3 | F139: 4 | G139: 4 | H139: 4 | I139: 4 | J139: 4 | K139: 4 | L139: 4 | M139: 4 | N139: 4 | O139: 4 | P139: 8 | Q139: 246 | R139: 100 | S139: 100 | T139: 25 | U139: 28.5 | V139: 100 | W139: 25 | X139: 28.5 | Y139: 100 | Z139: 100 | AA139: 75 | AB139: 33 | AC139: 100 | AD139: 50 | AE139: 100 | AF139: 100 | AG139: 25 | AH139: 30.75 | AI139: 100 | AJ139: 50 | AK139: 100 | AL139: 25 | AM139: 100 | AN139: 100 | AO139: 100 | AP139: 100 | AQ139: 75 | AR139: 33.33333333 | AS139: 66.66666667 | AT139: 100 | AU139: 75
A140: 2013Acorn32123 | B140: 2013 | C140: 2123 | D140: Acorn | E140: 3 | F140: 5 | G140: 5 | H140: 5 | I140: 5 | J140: 5 | K140: 5 | L140: 5 | M140: 5 | N140: 5 | O140: 5 | P140: 10 | Q140: 318 | R140: 100 | S140: 100 | T140: 80 | U140: 31.8 | V140: 100 | W140: 80 | X140: 31.8 | Y140: 100 | Z140: 100 | AA140: 80 | AB140: 31.8 | AC140: 100 | AD140: 100 | AE140: 100 | AF140: 100 | AG140: 60 | AH140: 31.8 | AI140: 100 | AJ140: 100 | AK140: 100 | AL140: 100 | AM140: 100 | AN140: 100 | AO140: 100 | AP140: 100 | AQ140: 100 | AR140: 40 | AS140: 60 | AT140: 60 | AU140: 100
A141: 2013Acorn32124 | B141: 2013 | C141: 2124 | D141: Acorn | E141: 3 | F141: 21 | G141: 21 | H141: 21 | I141: 21 | J141: 21 | K141: 21 | L141: 21 | M141: 21 | N141: 21 | O141: 21 | P141: 42 | Q141: 1188 | R141: 90.47619048 | S141: 85.71428571 | T141: 33.33333333 | U141: 28.42857143 | V141: 95.23809524 | W141: 28.57142857 | X141: 28.42857143 | Y141: 90.47619048 | Z141: 85.71428571 | AA141: 28.57142857 | AB141: 28.14285714 | AC141: 95.23809524 | AD141: 76.19047619 | AE141: 85.71428571 | AF141: 80.95238095 | AG141: 4.761904762 | AH141: 28.28571429 | AI141: 95.23809524 | AJ141: 42.85714286 | AK141: 95.23809524 | AL141: 47.61904762 | AM141: 78.94736842 | AN141: 100 | AO141: 94.73684211 | AP141: 95.23809524 | AQ141: 38.0952381 | AR141: 21.05263158 | AS141: 31.57894737 | AT141: 26.31578947 | AU141: 85.71428571
A142: 2013Acorn32127 | B142: 2013 | C142: 2127 | D142: Acorn | E142: 3 | F142: 5 | G142: 5 | H142: 5 | I142: 5 | J142: 5 | K142: 5 | L142: 5 | M142: 5 | N142: 5 | O142: 5 | P142: 10 | Q142: 288 | R142: 100 | S142: 80 | T142: 20 | U142: 28.2 | V142: 100 | W142: 20 | X142: 28.2 | Y142: 100 | Z142: 80 | AA142: 40 | AB142: 29.4 | AC142: 60 | AD142: 40 | AE142: 100 | AF142: 80 | AG142: 20 | AH142: 28.8 | AI142: 100 | AJ142: 40 | AK142: 100 | AL142: 40 | AM142: 100 | AN142: 100 | AO142: 100 | AP142: 100 | AQ142: 20 | AR142: 0 | AS142: 0 | AT142: 20 | AU142: 40
A143: 2013Acorn32128 | B143: 2013 | C143: 2128 | D143: Acorn | E143: 3 | F143: 14 | G143: 14 | H143: 14 | I143: 14 | J143: 14 | K143: 14 | L143: 14 | M143: 14 | N143: 14 | O143: 14 | P143: 28 | Q143: 819 | R143: 92.85714286 | S143: 71.42857143 | T143: 42.85714286 | U143: 29.14285714 | V143: 85.71428571 | W143: 35.71428571 | X143: 27.85714286 | Y143: 92.85714286 | Z143: 78.57142857 | AA143: 57.14285714 | AB143: 30 | AC143: 78.57142857 | AD143: 35.71428571 | AE143: 85.71428571 | AF143: 64.28571429 | AG143: 28.57142857 | AH143: 29.25 | AI143: 100 | AJ143: 42.85714286 | AK143: 92.85714286 | AL143: 64.28571429 | AM143: 100 | AN143: 100 | AO143: 100 | AP143: 92.85714286 | AQ143: 42.85714286 | AR143: 0 | AS143: 15.38461538 | AT143: 46.15384615 | AU143: 71.42857143
A144: 2013Acorn32133 | B144: 2013 | C144: 2133 | D144: Acorn | E144: 3 | F144: 8 | G144: 8 | H144: 8 | I144: 8 | J144: 8 | K144: 8 | L144: 8 | M144: 8 | N144: 8 | O144: 8 | P144: 16 | Q144: 477 | R144: 75 | S144: 62.5 | T144: 37.5 | U144: 27.75 | V144: 100 | W144: 50 | X144: 30 | Y144: 100 | Z144: 75 | AA144: 37.5 | AB144: 30.75 | AC144: 87.5 | AD144: 50 | AE144: 75 | AF144: 62.5 | AG144: 25 | AH144: 29.8125 | AI144: 100 | AJ144: 62.5 | AK144: 100 | AL144: 62.5 | AM144: 62.5 | AN144: 100 | AO144: 100 | AP144: 100 | AQ144: 25 | AR144: 25 | AS144: 25 | AT144: 50 | AU144: 62.5
A145: 2013Acorn32134 | B145: 2013 | C145: 2134 | D145: Acorn | E145: 3 | F145: 32 | G145: 32 | H145: 32 | I145: 32 | J145: 32 | K145: 32 | L145: 32 | M145: 32 | N145: 32 | O145: 32 | P145: 64 | Q145: 1773 | R145: 75 | S145: 65.625 | T145: 31.25 | U145: 26.8125 | V145: 78.125 | W145: 31.25 | X145: 27 | Y145: 84.375 | Z145: 62.5 | AA145: 37.5 | AB145: 28.5 | AC145: 68.75 | AD145: 53.125 | AE145: 71.875 | AF145: 53.125 | AG145: 18.75 | AH145: 27.703125 | AI145: 84.375 | AJ145: 40.625 | AK145: 81.25 | AL145: 34.375 | AM145: 75.86206897 | AN145: 93.10344828 | AO145: 79.31034483 | AP145: 90.625 | AQ145: 40.625 | AR145: 6.896551724 | AS145: 20.68965517 | AT145: 24.13793103 | AU145: 62.5
A146: 2013Acorn32136 | B146: 2013 | C146: 2136 | D146: Acorn | E146: 3 | F146: 20 | G146: 20 | H146: 20 | I146: 20 | J146: 20 | K146: 20 | L146: 20 | M146: 20 | N146: 20 | O146: 20 | P146: 40 | Q146: 1248 | R146: 100 | S146: 95 | T146: 65 | U146: 30.9 | V146: 95 | W146: 40 | X146: 29.1 | Y146: 100 | Z146: 95 | AA146: 70 | AB146: 32.4 | AC146: 85 | AD146: 60 | AE146: 95 | AF146: 90 | AG146: 35 | AH146: 31.2 | AI146: 95 | AJ146: 70 | AK146: 95 | AL146: 55 | AM146: 100 | AN146: 95 | AO146: 100 | AP146: 90 | AQ146: 40 | AR146: 40 | AS146: 30 | AT146: 60 | AU146: 70
A147: 2013Acorn32138 | B147: 2013 | C147: 2138 | D147: Acorn | E147: 3 | F147: 7 | G147: 7 | H147: 7 | I147: 7 | J147: 7 | K147: 7 | L147: 7 | M147: 7 | N147: 7 | O147: 7 | P147: 14 | Q147: 399 | R147: 71.42857143 | S147: 57.14285714 | T147: 28.57142857 | U147: 26.14285714 | V147: 85.71428571 | W147: 42.85714286 | X147: 28.71428571 | Y147: 85.71428571 | Z147: 71.42857143 | AA147: 57.14285714 | AB147: 29.57142857 | AC147: 71.42857143 | AD147: 57.14285714 | AE147: 71.42857143 | AF147: 57.14285714 | AG147: 28.57142857 | AH147: 28.5 | AI147: 85.71428571 | AJ147: 57.14285714 | AK147: 85.71428571 | AL147: 71.42857143 | AM147: 50 | AN147: 100 | AO147: 100 | AP147: 85.71428571 | AQ147: 71.42857143 | AR147: 0 | AS147: 50 | AT147: 16.66666667 | AU147: 71.42857143
A148: 2013Acorn32140 | B148: 2013 | C148: 2140 | D148: Acorn | E148: 3 | F148: 13 | G148: 13 | H148: 13 | I148: 13 | J148: 13 | K148: 13 | L148: 13 | M148: 13 | N148: 13 | O148: 13 | P148: 26 | Q148: 750 | R148: 84.61538462 | S148: 84.61538462 | T148: 53.84615385 | U148: 29.30769231 | V148: 92.30769231 | W148: 15.38461538 | X148: 27.46153846 | Y148: 76.92307692 | Z148: 76.92307692 | AA148: 53.84615385 | AB148: 29.30769231 | AC148: 92.30769231 | AD148: 61.53846154 | AE148: 69.23076923 | AF148: 69.23076923 | AG148: 15.38461538 | AH148: 28.84615385 | AI148: 76.92307692 | AJ148: 53.84615385 | AK148: 84.61538462 | AL148: 30.76923077 | AM148: 76.92307692 | AN148: 100 | AO148: 92.30769231 | AP148: 92.30769231 | AQ148: 30.76923077 | AR148: 38.46153846 | AS148: 15.38461538 | AT148: 15.38461538 | AU148: 84.61538462
A149: 2013Acorn32141 | B149: 2013 | C149: 2141 | D149: Acorn | E149: 3 | F149: 5 | G149: 5 | H149: 5 | I149: 5 | J149: 5 | K149: 5 | L149: 5 | M149: 5 | N149: 5 | O149: 5 | P149: 10 | Q149: 312 | R149: 100 | S149: 100 | T149: 60 | U149: 30.6 | V149: 100 | W149: 60 | X149: 30.6 | Y149: 100 | Z149: 100 | AA149: 80 | AB149: 31.8 | AC149: 80 | AD149: 80 | AE149: 100 | AF149: 100 | AG149: 60 | AH149: 31.2 | AI149: 100 | AJ149: 80 | AK149: 100 | AL149: 60 | AM149: 100 | AN149: 100 | AO149: 100 | AP149: 100 | AQ149: 60 | AR149: 40 | AS149: 60 | AT149: 100 | AU149: 80
A150: 2013Acorn32146 | B150: 2013 | C150: 2146 | D150: Acorn | E150: 3 | F150: 17 | G150: 17 | H150: 17 | I150: 17 | J150: 17 | K150: 17 | L150: 17 | M150: 17 | N150: 17 | O150: 17 | P150: 34 | Q150: 858 | R150: 82.35294118 | S150: 64.70588235 | T150: 23.52941176 | U150: 26.64705882 | V150: 76.47058824 | W150: 11.76470588 | X150: 25.23529412 | Y150: 41.17647059 | Z150: 29.41176471 | AA150: 23.52941176 | AB150: 24.52941176 | AC150: 52.94117647 | AD150: 23.52941176 | AE150: 41.17647059 | AF150: 29.41176471 | AG150: 11.76470588 | AH150: 25.23529412 | AI150: 58.82352941 | AJ150: 23.52941176 | AK150: 82.35294118 | AL150: 23.52941176 | AM150: 100 | AN150: 82.35294118 | AO150: 47.05882353 | AP150: 82.35294118 | AQ150: 17.64705882 | AR150: 5.882352941 | AS150: 5.882352941 | AT150: 5.882352941 | AU150: 35.29411765
A151: 2013Acorn32148 | B151: 2013 | C151: 2148 | D151: Acorn | E151: 3 | F151: 7 | G151: 7 | H151: 7 | I151: 7 | J151: 7 | K151: 7 | L151: 7 | M151: 7 | N151: 7 | O151: 7 | P151: 14 | Q151: 396 | R151: 85.71428571 | S151: 85.71428571 | T151: 57.14285714 | U151: 28.71428571 | V151: 85.71428571 | W151: 71.42857143 | X151: 30.42857143 | Y151: 85.71428571 | Z151: 71.42857143 | AA151: 28.57142857 | AB151: 27 | AC151: 85.71428571 | AD151: 57.14285714 | AE151: 85.71428571 | AF151: 71.42857143 | AG151: 14.28571429 | AH151: 28.28571429 | AI151: 85.71428571 | AJ151: 57.14285714 | AK151: 85.71428571 | AL151: 71.42857143 | AM151: 85.71428571 | AN151: 85.71428571 | AO151: 85.71428571 | AP151: 85.71428571 | AQ151: 57.14285714 | AR151: 42.85714286 | AS151: 85.71428571 | AT151: 14.28571429 | AU151: 85.71428571
A152: 2013Acorn32151 | B152: 2013 | C152: 2151 | D152: Acorn | E152: 3 | F152: 27 | G152: 27 | H152: 27 | I152: 27 | J152: 27 | K152: 27 | L152: 27 | M152: 27 | N152: 27 | O152: 27 | P152: 54 | Q152: 1572 | R152: 88.88888889 | S152: 70.37037037 | T152: 44.44444444 | U152: 28.77777778 | V152: 92.59259259 | W152: 33.33333333 | X152: 28.33333333 | Y152: 85.18518519 | Z152: 81.48148148 | AA152: 55.55555556 | AB152: 29.66666667 | AC152: 85.18518519 | AD152: 55.55555556 | AE152: 81.48148148 | AF152: 66.66666667 | AG152: 25.92592593 | AH152: 29.11111111 | AI152: 88.88888889 | AJ152: 33.33333333 | AK152: 92.59259259 | AL152: 37.03703704 | AM152: 96.15384615 | AN152: 92.30769231 | AO152: 88.46153846 | AP152: 92.59259259 | AQ152: 40.74074074 | AR152: 19.23076923 | AS152: 15.38461538 | AT152: 34.61538462 | AU152: 74.07407407
A153: 2013Acorn32158 | B153: 2013 | C153: 2158 | D153: Acorn | E153: 3 | F153: 5 | G153: 5 | H153: 5 | I153: 5 | J153: 5 | K153: 5 | L153: 5 | M153: 5 | N153: 5 | O153: 5 | P153: 10 | Q153: 258 | R153: 80 | S153: 80 | T153: 0 | U153: 24.6 | V153: 80 | W153: 20 | X153: 27 | Y153: 60 | Z153: 60 | AA153: 20 | AB153: 25.8 | AC153: 80 | AD153: 60 | AE153: 60 | AF153: 60 | AG153: 0 | AH153: 25.8 | AI153: 60 | AJ153: 40 | AK153: 80 | AL153: 20 | AM153: 100 | AN153: 100 | AO153: 80 | AP153: 80 | AQ153: 0 | AR153: 0 | AS153: 20 | AT153: 20 | AU153: 60
A154: 2013Acorn32161 | B154: 2013 | C154: 2161 | D154: Acorn | E154: 3 | F154: 5 | G154: 5 | H154: 5 | I154: 5 | J154: 5 | K154: 5 | L154: 5 | M154: 5 | N154: 5 | O154: 5 | P154: 10 | Q154: 294 | R154: 80 | S154: 60 | T154: 20 | U154: 27 | V154: 100 | W154: 0 | X154: 27 | Y154: 100 | Z154: 80 | AA154: 60 | AB154: 31.8 | AC154: 100 | AD154: 80 | AE154: 80 | AF154: 60 | AG154: 0 | AH154: 29.4 | AI154: 100 | AJ154: 60 | AK154: 100 | AL154: 40 | AM154: 80 | AN154: 100 | AO154: 100 | AP154: 100 | AQ154: 40 | AR154: 40 | AS154: 20 | AT154: 60 | AU154: 80
A155: 2013Acorn32162 | B155: 2013 | C155: 2162 | D155: Acorn | E155: 3 | F155: 4 | G155: 4 | H155: 4 | I155: 4 | J155: 4 | K155: 4 | L155: 4 | M155: 4 | N155: 4 | O155: 4 | P155: 8 | Q155: 201 | R155: 75 | S155: 50 | T155: 25 | U155: 25.5 | V155: 50 | W155: 25 | X155: 24 | Y155: 50 | Z155: 25 | AA155: 25 | AB155: 25.5 | AC155: 50 | AD155: 25 | AE155: 25 | AF155: 25 | AG155: 25 | AH155: 25.125 | AI155: 50 | AJ155: 25 | AK155: 50 | AL155: 25 | AM155: 75 | AN155: 75 | AO155: 50 | AP155: 25 | AQ155: 25 | AR155: 25 | AS155: 25 | AT155: 25 | AU155: 50
A156: 2013Acorn32163 | B156: 2013 | C156: 2163 | D156: Acorn | E156: 3 | F156: 1 | G156: 1 | H156: 1 | I156: 1 | J156: 1 | K156: 1 | L156: 1 | M156: 1 | N156: 1 | O156: 1 | P156: 2 | Q156: 39 | R156: 0 | S156: 0 | T156: 0 | U156: 15 | V156: 0 | W156: 0 | X156: 21 | Y156: 0 | Z156: 0 | AA156: 0 | AB156: 21 | AC156: 0 | AD156: 0 | AE156: 0 | AF156: 0 | AG156: 0 | AH156: 19.5 | AI156: 0 | AJ156: 0 | AK156: 0 | AL156: 0 | AM156: 0 | AN156: 0 | AO156: 0 | AP156: 0 | AQ156: 0 | AR156: 0 | AS156: 0 | AT156: 0 | AU156: 0
A157: 2013Acorn32164 | B157: 2013 | C157: 2164 | D157: Acorn | E157: 3 | F157: 7 | G157: 7 | H157: 7 | I157: 7 | J157: 7 | K157: 7 | L157: 7 | M157: 7 | N157: 7 | O157: 7 | P157: 14 | Q157: 429 | R157: 100 | S157: 71.42857143 | T157: 28.57142857 | U157: 28.71428571 | V157: 85.71428571 | W157: 28.57142857 | X157: 27.85714286 | Y157: 100 | Z157: 100 | AA157: 71.42857143 | AB157: 33 | AC157: 85.71428571 | AD157: 71.42857143 | AE157: 85.71428571 | AF157: 57.14285714 | AG157: 28.57142857 | AH157: 30.64285714 | AI157: 100 | AJ157: 57.14285714 | AK157: 85.71428571 | AL157: 28.57142857 | AM157: 100 | AN157: 85.71428571 | AO157: 100 | AP157: 100 | AQ157: 42.85714286 | AR157: 42.85714286 | AS157: 28.57142857 | AT157: 71.42857143 | AU157: 85.71428571
